Workbook

Sheet Introduction
O30: Spreadsheet Last Updated: | P30: 2025-11-25

Sheet Toll Calculator
C2: Points to Point Service (FT-P) Price Determination:
C4: Select Group 2 Delivery Location Using Pull-Down Menu:
C5: Station Number | D5: Delivery Station Name - [select below] - | E5: Latitude | F5: Longitude | H5: Legal Location | I5: FT-D2 Price
I6: ='Closest Receipt Stations'!H5 -> (¢/mcf)
C7: =IFERROR(INDEX(Table_DeliveryPoint[Group 2 Delivery Point Number],MATCH(D7,Table_DeliveryPoint[Group 2 Delivery Point Name],0),),"") -> 31001 | D7: ADM AGRI INDUSTRIES SALES APN | E7: =IFERROR(INDEX(Table_DeliveryPoint[Latitude],MATCH('Toll Calculator'!D7,Table_DeliveryPoint[Group 2 Delivery Point Name],0),),"") -> 53 | F7: =IFERROR(INDEX(Table_DeliveryPoint[Longitude],MATCH('Toll Calculator'!D7,Table_DeliveryPoint[Group 2 Delivery Point Name],0),),"") -> -110.04 | H7: =IFERROR(INDEX(Table_DeliveryPoint[Legal Location Name],MATCH('Toll Calculator'!D7,Table_DeliveryPoint[Group 2 Delivery Point Name],0),),"") -> SE-02-050-01-W4 | I7: =IFERROR((INDEX(Table_Attach2[FT-D Demand Rate Price Point "Z" ($/GJ/mo)],MATCH($C$7,Table_Attach2[Group 2 Delivery Point Number],0),)*0.95*37.8)*INDEX(Conversions!$C$7:$C$8,MATCH('Toll Calculator'!$O$8,Conversions!$B$7:$B$8,0)),"") -> 32.31 | N7: Select Measurement System for Displaying Rates:
N8: Please Select → | O8: Imperial
C9: Select Receipt Station(s) Using Pull-Down Menu and Input In Volume(s): | I9: =I6 -> (¢/mcf) | J9: ="("&P10&")" -> (10³m³/d)
C10: Station Number | D10: Receipt Station Name - [select below] - | E10: Latitude | F10: Longitude | G10: Distance to Delivery (km) | H10: Legal Location | I10: FT-R Price | J10: FT-P Service Volume | N10: Total Volume: | O10: =SUM(Table_TollCalc[FT-P Service Volume ]) -> 140 | P10: ="10"&CHAR(179)&"m"&CHAR(179)&"/d" -> 10³m³/d
C11: =IFERROR(INDEX(Table_ReceiptPoint[Receipt Point Number],MATCH(Table_TollCalc[[#This Row],[Receipt Station Name - '[select below'] -]],Table_ReceiptPoint[Receipt Point Name],0),),"") -> 5209 | D11: MACKIE CREEK NORTH 1 | E11: =IFERROR(INDEX(Table_ReceiptPoint[Latitude],MATCH(Table_TollCalc[[#This Row],[Station Number]],Table_ReceiptPoint[Receipt Point Number],0),),"") -> 56.21 | F11: =IFERROR(INDEX(Table_ReceiptPoint[Longitude],MATCH(Table_TollCalc[[#This Row],[Station Number]],Table_ReceiptPoint[Receipt Point Number],0),),"") -> -122.09 | G11: =IFERROR(ROUND(INDEX(Table_ReceiptPoint[Distance From Delivery Station],MATCH(Table_TollCalc[[#This Row],[Station Number]],Table_ReceiptPoint[Receipt Point Number],0),),2),"") -> 852.58 | H11: =IFERROR(INDEX(Table_ReceiptPoint[Legal Location Name],MATCH(Table_TollCalc[[#This Row],[Station Number]],Table_ReceiptPoint[Receipt Point Number],0),),"") -> B-57-I 94-B-01 | I11: =IFERROR(INDEX(Table_Attach1[FT-R Demand Rate Price Point "B" ($/103m3/mo)],MATCH(Table_TollCalc[[#This Row],[Station Number]],Table_Attach1[Receipt Point Number],0),)*INDEX(Conversions!$C$7:$C$8,MATCH('Toll Calculator'!$O$8,Conversions!$B$7:$B$8,0))," ") -> 53.13 | J11: 140 | N11: Distance Used for Price: | O11: =ROUND(MAX(Table_TollCalc[Distance to Delivery (km)]),2) -> 852.58 | P11: km
C12: =IFERROR(INDEX(Table_ReceiptPoint[Receipt Point Number],MATCH(Table_TollCalc[[#This Row],[Receipt Station Name - '[select below'] -]],Table_ReceiptPoint[Receipt Point Name],0),),"") ->  | E12: =IFERROR(INDEX(Table_ReceiptPoint[Latitude],MATCH(Table_TollCalc[[#This Row],[Station Number]],Table_ReceiptPoint[Receipt Point Number],0),),"") ->  | F12: =IFERROR(INDEX(Table_ReceiptPoint[Longitude],MATCH(Table_TollCalc[[#This Row],[Station Number]],Table_ReceiptPoint[Receipt Point Number],0),),"") ->  | G12: =IFERROR(ROUND(INDEX(Table_ReceiptPoint[Distance From Delivery Station],MATCH(Table_TollCalc[[#This Row],[Station Number]],Table_ReceiptPoint[Receipt Point Number],0),),2),"") ->  | H12: =IFERROR(INDEX(Table_ReceiptPoint[Legal Location Name],MATCH(Table_TollCalc[[#This Row],[Station Number]],Table_ReceiptPoint[Receipt Point Number],0),),"") ->  | I12: =IFERROR(INDEX(Table_Attach1[FT-R Demand Rate Price Point "B" ($/103m3/mo)],MATCH(Table_TollCalc[[#This Row],[Station Number]],Table_Attach1[Receipt Point Number],0),)*INDEX(Conversions!$C$7:$C$8,MATCH('Toll Calculator'!$O$8,Conversions!$B$7:$B$8,0))," ") ->  | N12: FT-P Price (3-Year Term): | O12: =INDEX(Table_Attach3[FT-P Demand Rate Price Point "B"],MATCH(1,Table_Attach3[Lookup],0),1)*INDEX(Conversions!$C$7:$C$8,MATCH($O$8,Conversions!$B$7:$B$8,0)) -> 80.06 | P12: ='Closest Receipt Stations'!$I$5 -> (¢/mcf)
C13: =IFERROR(INDEX(Table_ReceiptPoint[Receipt Point Number],MATCH(Table_TollCalc[[#This Row],[Receipt Station Name - '[select below'] -]],Table_ReceiptPoint[Receipt Point Name],0),),"") ->  | E13: =IFERROR(INDEX(Table_ReceiptPoint[Latitude],MATCH(Table_TollCalc[[#This Row],[Station Number]],Table_ReceiptPoint[Receipt Point Number],0),),"") ->  | F13: =IFERROR(INDEX(Table_ReceiptPoint[Longitude],MATCH(Table_TollCalc[[#This Row],[Station Number]],Table_ReceiptPoint[Receipt Point Number],0),),"") ->  | G13: =IFERROR(ROUND(INDEX(Table_ReceiptPoint[Distance From Delivery Station],MATCH(Table_TollCalc[[#This Row],[Station Number]],Table_ReceiptPoint[Receipt Point Number],0),),2),"") ->  | H13: =IFERROR(INDEX(Table_ReceiptPoint[Legal Location Name],MATCH(Table_TollCalc[[#This Row],[Station Number]],Table_ReceiptPoint[Receipt Point Number],0),),"") ->  | I13: =IFERROR(INDEX(Table_Attach1[FT-R Demand Rate Price Point "B" ($/103m3/mo)],MATCH(Table_TollCalc[[#This Row],[Station Number]],Table_Attach1[Receipt Point Number],0),)*INDEX(Conversions!$C$7:$C$8,MATCH('Toll Calculator'!$O$8,Conversions!$B$7:$B$8,0))," ") -> 
C14: =IFERROR(INDEX(Table_ReceiptPoint[Receipt Point Number],MATCH(Table_TollCalc[[#This Row],[Receipt Station Name - '[select below'] -]],Table_ReceiptPoint[Receipt Point Name],0),),"") ->  | E14: =IFERROR(INDEX(Table_ReceiptPoint[Latitude],MATCH(Table_TollCalc[[#This Row],[Station Number]],Table_ReceiptPoint[Receipt Point Number],0),),"") ->  | F14: =IFERROR(INDEX(Table_ReceiptPoint[Longitude],MATCH(Table_TollCalc[[#This Row],[Station Number]],Table_ReceiptPoint[Receipt Point Number],0),),"") ->  | G14: =IFERROR(ROUND(INDEX(Table_ReceiptPoint[Distance From Delivery Station],MATCH(Table_TollCalc[[#This Row],[Station Number]],Table_ReceiptPoint[Receipt Point Number],0),),2),"") ->  | H14: =IFERROR(INDEX(Table_ReceiptPoint[Legal Location Name],MATCH(Table_TollCalc[[#This Row],[Station Number]],Table_ReceiptPoint[Receipt Point Number],0),),"") ->  | I14: =IFERROR(INDEX(Table_Attach1[FT-R Demand Rate Price Point "B" ($/103m3/mo)],MATCH(Table_TollCalc[[#This Row],[Station Number]],Table_Attach1[Receipt Point Number],0),)*INDEX(Conversions!$C$7:$C$8,MATCH('Toll Calculator'!$O$8,Conversions!$B$7:$B$8,0))," ") ->  | N14: Volume must be at least 140.0 103m3/d (5 mmcf/d) to be eligible for service
C15: =IFERROR(INDEX(Table_ReceiptPoint[Receipt Point Number],MATCH(Table_TollCalc[[#This Row],[Receipt Station Name - '[select below'] -]],Table_ReceiptPoint[Receipt Point Name],0),),"") ->  | E15: =IFERROR(INDEX(Table_ReceiptPoint[Latitude],MATCH(Table_TollCalc[[#This Row],[Station Number]],Table_ReceiptPoint[Receipt Point Number],0),),"") ->  | F15: =IFERROR(INDEX(Table_ReceiptPoint[Longitude],MATCH(Table_TollCalc[[#This Row],[Station Number]],Table_ReceiptPoint[Receipt Point Number],0),),"") ->  | G15: =IFERROR(ROUND(INDEX(Table_ReceiptPoint[Distance From Delivery Station],MATCH(Table_TollCalc[[#This Row],[Station Number]],Table_ReceiptPoint[Receipt Point Number],0),),2),"") ->  | H15: =IFERROR(INDEX(Table_ReceiptPoint[Legal Location Name],MATCH(Table_TollCalc[[#This Row],[Station Number]],Table_ReceiptPoint[Receipt Point Number],0),),"") ->  | I15: =IFERROR(INDEX(Table_Attach1[FT-R Demand Rate Price Point "B" ($/103m3/mo)],MATCH(Table_TollCalc[[#This Row],[Station Number]],Table_Attach1[Receipt Point Number],0),)*INDEX(Conversions!$C$7:$C$8,MATCH('Toll Calculator'!$O$8,Conversions!$B$7:$B$8,0))," ") -> 
C16: =IFERROR(INDEX(Table_ReceiptPoint[Receipt Point Number],MATCH(Table_TollCalc[[#This Row],[Receipt Station Name - '[select below'] -]],Table_ReceiptPoint[Receipt Point Name],0),),"") ->  | E16: =IFERROR(INDEX(Table_ReceiptPoint[Latitude],MATCH(Table_TollCalc[[#This Row],[Station Number]],Table_ReceiptPoint[Receipt Point Number],0),),"") ->  | F16: =IFERROR(INDEX(Table_ReceiptPoint[Longitude],MATCH(Table_TollCalc[[#This Row],[Station Number]],Table_ReceiptPoint[Receipt Point Number],0),),"") ->  | G16: =IFERROR(ROUND(INDEX(Table_ReceiptPoint[Distance From Delivery Station],MATCH(Table_TollCalc[[#This Row],[Station Number]],Table_ReceiptPoint[Receipt Point Number],0),),2),"") ->  | H16: =IFERROR(INDEX(Table_ReceiptPoint[Legal Location Name],MATCH(Table_TollCalc[[#This Row],[Station Number]],Table_ReceiptPoint[Receipt Point Number],0),),"") ->  | I16: =IFERROR(INDEX(Table_Attach1[FT-R Demand Rate Price Point "B" ($/103m3/mo)],MATCH(Table_TollCalc[[#This Row],[Station Number]],Table_Attach1[Receipt Point Number],0),)*INDEX(Conversions!$C$7:$C$8,MATCH('Toll Calculator'!$O$8,Conversions!$B$7:$B$8,0))," ") -> 
C17: =IFERROR(INDEX(Table_ReceiptPoint[Receipt Point Number],MATCH(Table_TollCalc[[#This Row],[Receipt Station Name - '[select below'] -]],Table_ReceiptPoint[Receipt Point Name],0),),"") ->  | E17: =IFERROR(INDEX(Table_ReceiptPoint[Latitude],MATCH(Table_TollCalc[[#This Row],[Station Number]],Table_ReceiptPoint[Receipt Point Number],0),),"") ->  | F17: =IFERROR(INDEX(Table_ReceiptPoint[Longitude],MATCH(Table_TollCalc[[#This Row],[Station Number]],Table_ReceiptPoint[Receipt Point Number],0),),"") ->  | G17: =IFERROR(ROUND(INDEX(Table_ReceiptPoint[Distance From Delivery Station],MATCH(Table_TollCalc[[#This Row],[Station Number]],Table_ReceiptPoint[Receipt Point Number],0),),2),"") ->  | H17: =IFERROR(INDEX(Table_ReceiptPoint[Legal Location Name],MATCH(Table_TollCalc[[#This Row],[Station Number]],Table_ReceiptPoint[Receipt Point Number],0),),"") ->  | I17: =IFERROR(INDEX(Table_Attach1[FT-R Demand Rate Price Point "B" ($/103m3/mo)],MATCH(Table_TollCalc[[#This Row],[Station Number]],Table_Attach1[Receipt Point Number],0),)*INDEX(Conversions!$C$7:$C$8,MATCH('Toll Calculator'!$O$8,Conversions!$B$7:$B$8,0))," ") -> 
C18: =IFERROR(INDEX(Table_ReceiptPoint[Receipt Point Number],MATCH(Table_TollCalc[[#This Row],[Receipt Station Name - '[select below'] -]],Table_ReceiptPoint[Receipt Point Name],0),),"") ->  | E18: =IFERROR(INDEX(Table_ReceiptPoint[Latitude],MATCH(Table_TollCalc[[#This Row],[Station Number]],Table_ReceiptPoint[Receipt Point Number],0),),"") ->  | F18: =IFERROR(INDEX(Table_ReceiptPoint[Longitude],MATCH(Table_TollCalc[[#This Row],[Station Number]],Table_ReceiptPoint[Receipt Point Number],0),),"") ->  | G18: =IFERROR(ROUND(INDEX(Table_ReceiptPoint[Distance From Delivery Station],MATCH(Table_TollCalc[[#This Row],[Station Number]],Table_ReceiptPoint[Receipt Point Number],0),),2),"") ->  | H18: =IFERROR(INDEX(Table_ReceiptPoint[Legal Location Name],MATCH(Table_TollCalc[[#This Row],[Station Number]],Table_ReceiptPoint[Receipt Point Number],0),),"") ->  | I18: =IFERROR(INDEX(Table_Attach1[FT-R Demand Rate Price Point "B" ($/103m3/mo)],MATCH(Table_TollCalc[[#This Row],[Station Number]],Table_Attach1[Receipt Point Number],0),)*INDEX(Conversions!$C$7:$C$8,MATCH('Toll Calculator'!$O$8,Conversions!$B$7:$B$8,0))," ") -> 
C19: =IFERROR(INDEX(Table_ReceiptPoint[Receipt Point Number],MATCH(Table_TollCalc[[#This Row],[Receipt Station Name - '[select below'] -]],Table_ReceiptPoint[Receipt Point Name],0),),"") ->  | E19: =IFERROR(INDEX(Table_ReceiptPoint[Latitude],MATCH(Table_TollCalc[[#This Row],[Station Number]],Table_ReceiptPoint[Receipt Point Number],0),),"") ->  | F19: =IFERROR(INDEX(Table_ReceiptPoint[Longitude],MATCH(Table_TollCalc[[#This Row],[Station Number]],Table_ReceiptPoint[Receipt Point Number],0),),"") ->  | G19: =IFERROR(ROUND(INDEX(Table_ReceiptPoint[Distance From Delivery Station],MATCH(Table_TollCalc[[#This Row],[Station Number]],Table_ReceiptPoint[Receipt Point Number],0),),2),"") ->  | H19: =IFERROR(INDEX(Table_ReceiptPoint[Legal Location Name],MATCH(Table_TollCalc[[#This Row],[Station Number]],Table_ReceiptPoint[Receipt Point Number],0),),"") ->  | I19: =IFERROR(INDEX(Table_Attach1[FT-R Demand Rate Price Point "B" ($/103m3/mo)],MATCH(Table_TollCalc[[#This Row],[Station Number]],Table_Attach1[Receipt Point Number],0),)*INDEX(Conversions!$C$7:$C$8,MATCH('Toll Calculator'!$O$8,Conversions!$B$7:$B$8,0))," ") -> 
C20: =IFERROR(INDEX(Table_ReceiptPoint[Receipt Point Number],MATCH(Table_TollCalc[[#This Row],[Receipt Station Name - '[select below'] -]],Table_ReceiptPoint[Receipt Point Name],0),),"") ->  | E20: =IFERROR(INDEX(Table_ReceiptPoint[Latitude],MATCH(Table_TollCalc[[#This Row],[Station Number]],Table_ReceiptPoint[Receipt Point Number],0),),"") ->  | F20: =IFERROR(INDEX(Table_ReceiptPoint[Longitude],MATCH(Table_TollCalc[[#This Row],[Station Number]],Table_ReceiptPoint[Receipt Point Number],0),),"") ->  | G20: =IFERROR(ROUND(INDEX(Table_ReceiptPoint[Distance From Delivery Station],MATCH(Table_TollCalc[[#This Row],[Station Number]],Table_ReceiptPoint[Receipt Point Number],0),),2),"") ->  | H20: =IFERROR(INDEX(Table_ReceiptPoint[Legal Location Name],MATCH(Table_TollCalc[[#This Row],[Station Number]],Table_ReceiptPoint[Receipt Point Number],0),),"") ->  | I20: =IFERROR(INDEX(Table_Attach1[FT-R Demand Rate Price Point "B" ($/103m3/mo)],MATCH(Table_TollCalc[[#This Row],[Station Number]],Table_Attach1[Receipt Point Number],0),)*INDEX(Conversions!$C$7:$C$8,MATCH('Toll Calculator'!$O$8,Conversions!$B$7:$B$8,0))," ") -> 
C21: =IFERROR(INDEX(Table_ReceiptPoint[Receipt Point Number],MATCH(Table_TollCalc[[#This Row],[Receipt Station Name - '[select below'] -]],Table_ReceiptPoint[Receipt Point Name],0),),"") ->  | E21: =IFERROR(INDEX(Table_ReceiptPoint[Latitude],MATCH(Table_TollCalc[[#This Row],[Station Number]],Table_ReceiptPoint[Receipt Point Number],0),),"") ->  | F21: =IFERROR(INDEX(Table_ReceiptPoint[Longitude],MATCH(Table_TollCalc[[#This Row],[Station Number]],Table_ReceiptPoint[Receipt Point Number],0),),"") ->  | G21: =IFERROR(ROUND(INDEX(Table_ReceiptPoint[Distance From Delivery Station],MATCH(Table_TollCalc[[#This Row],[Station Number]],Table_ReceiptPoint[Receipt Point Number],0),),2),"") ->  | H21: =IFERROR(INDEX(Table_ReceiptPoint[Legal Location Name],MATCH(Table_TollCalc[[#This Row],[Station Number]],Table_ReceiptPoint[Receipt Point Number],0),),"") ->  | I21: =IFERROR(INDEX(Table_Attach1[FT-R Demand Rate Price Point "B" ($/103m3/mo)],MATCH(Table_TollCalc[[#This Row],[Station Number]],Table_Attach1[Receipt Point Number],0),)*INDEX(Conversions!$C$7:$C$8,MATCH('Toll Calculator'!$O$8,Conversions!$B$7:$B$8,0))," ") -> 
C22: =IFERROR(INDEX(Table_ReceiptPoint[Receipt Point Number],MATCH(Table_TollCalc[[#This Row],[Receipt Station Name - '[select below'] -]],Table_ReceiptPoint[Receipt Point Name],0),),"") ->  | E22: =IFERROR(INDEX(Table_ReceiptPoint[Latitude],MATCH(Table_TollCalc[[#This Row],[Station Number]],Table_ReceiptPoint[Receipt Point Number],0),),"") ->  | F22: =IFERROR(INDEX(Table_ReceiptPoint[Longitude],MATCH(Table_TollCalc[[#This Row],[Station Number]],Table_ReceiptPoint[Receipt Point Number],0),),"") ->  | G22: =IFERROR(ROUND(INDEX(Table_ReceiptPoint[Distance From Delivery Station],MATCH(Table_TollCalc[[#This Row],[Station Number]],Table_ReceiptPoint[Receipt Point Number],0),),2),"") ->  | H22: =IFERROR(INDEX(Table_ReceiptPoint[Legal Location Name],MATCH(Table_TollCalc[[#This Row],[Station Number]],Table_ReceiptPoint[Receipt Point Number],0),),"") ->  | I22: =IFERROR(INDEX(Table_Attach1[FT-R Demand Rate Price Point "B" ($/103m3/mo)],MATCH(Table_TollCalc[[#This Row],[Station Number]],Table_Attach1[Receipt Point Number],0),)*INDEX(Conversions!$C$7:$C$8,MATCH('Toll Calculator'!$O$8,Conversions!$B$7:$B$8,0))," ") -> 
C23: =IFERROR(INDEX(Table_ReceiptPoint[Receipt Point Number],MATCH(Table_TollCalc[[#This Row],[Receipt Station Name - '[select below'] -]],Table_ReceiptPoint[Receipt Point Name],0),),"") ->  | E23: =IFERROR(INDEX(Table_ReceiptPoint[Latitude],MATCH(Table_TollCalc[[#This Row],[Station Number]],Table_ReceiptPoint[Receipt Point Number],0),),"") ->  | F23: =IFERROR(INDEX(Table_ReceiptPoint[Longitude],MATCH(Table_TollCalc[[#This Row],[Station Number]],Table_ReceiptPoint[Receipt Point Number],0),),"") ->  | G23: =IFERROR(ROUND(INDEX(Table_ReceiptPoint[Distance From Delivery Station],MATCH(Table_TollCalc[[#This Row],[Station Number]],Table_ReceiptPoint[Receipt Point Number],0),),2),"") ->  | H23: =IFERROR(INDEX(Table_ReceiptPoint[Legal Location Name],MATCH(Table_TollCalc[[#This Row],[Station Number]],Table_ReceiptPoint[Receipt Point Number],0),),"") ->  | I23: =IFERROR(INDEX(Table_Attach1[FT-R Demand Rate Price Point "B" ($/103m3/mo)],MATCH(Table_TollCalc[[#This Row],[Station Number]],Table_Attach1[Receipt Point Number],0),)*INDEX(Conversions!$C$7:$C$8,MATCH('Toll Calculator'!$O$8,Conversions!$B$7:$B$8,0))," ") -> 
C24: =IFERROR(INDEX(Table_ReceiptPoint[Receipt Point Number],MATCH(Table_TollCalc[[#This Row],[Receipt Station Name - '[select below'] -]],Table_ReceiptPoint[Receipt Point Name],0),),"") ->  | E24: =IFERROR(INDEX(Table_ReceiptPoint[Latitude],MATCH(Table_TollCalc[[#This Row],[Station Number]],Table_ReceiptPoint[Receipt Point Number],0),),"") ->  | F24: =IFERROR(INDEX(Table_ReceiptPoint[Longitude],MATCH(Table_TollCalc[[#This Row],[Station Number]],Table_ReceiptPoint[Receipt Point Number],0),),"") ->  | G24: =IFERROR(ROUND(INDEX(Table_ReceiptPoint[Distance From Delivery Station],MATCH(Table_TollCalc[[#This Row],[Station Number]],Table_ReceiptPoint[Receipt Point Number],0),),2),"") ->  | H24: =IFERROR(INDEX(Table_ReceiptPoint[Legal Location Name],MATCH(Table_TollCalc[[#This Row],[Station Number]],Table_ReceiptPoint[Receipt Point Number],0),),"") ->  | I24: =IFERROR(INDEX(Table_Attach1[FT-R Demand Rate Price Point "B" ($/103m3/mo)],MATCH(Table_TollCalc[[#This Row],[Station Number]],Table_Attach1[Receipt Point Number],0),)*INDEX(Conversions!$C$7:$C$8,MATCH('Toll Calculator'!$O$8,Conversions!$B$7:$B$8,0))," ") -> 
C25: =IFERROR(INDEX(Table_ReceiptPoint[Receipt Point Number],MATCH(Table_TollCalc[[#This Row],[Receipt Station Name - '[select below'] -]],Table_ReceiptPoint[Receipt Point Name],0),),"") ->  | E25: =IFERROR(INDEX(Table_ReceiptPoint[Latitude],MATCH(Table_TollCalc[[#This Row],[Station Number]],Table_ReceiptPoint[Receipt Point Number],0),),"") ->  | F25: =IFERROR(INDEX(Table_ReceiptPoint[Longitude],MATCH(Table_TollCalc[[#This Row],[Station Number]],Table_ReceiptPoint[Receipt Point Number],0),),"") ->  | G25: =IFERROR(ROUND(INDEX(Table_ReceiptPoint[Distance From Delivery Station],MATCH(Table_TollCalc[[#This Row],[Station Number]],Table_ReceiptPoint[Receipt Point Number],0),),2),"") ->  | H25: =IFERROR(INDEX(Table_ReceiptPoint[Legal Location Name],MATCH(Table_TollCalc[[#This Row],[Station Number]],Table_ReceiptPoint[Receipt Point Number],0),),"") ->  | I25: =IFERROR(INDEX(Table_Attach1[FT-R Demand Rate Price Point "B" ($/103m3/mo)],MATCH(Table_TollCalc[[#This Row],[Station Number]],Table_Attach1[Receipt Point Number],0),)*INDEX(Conversions!$C$7:$C$8,MATCH('Toll Calculator'!$O$8,Conversions!$B$7:$B$8,0))," ") -> 
C26: =IFERROR(INDEX(Table_ReceiptPoint[Receipt Point Number],MATCH(Table_TollCalc[[#This Row],[Receipt Station Name - '[select below'] -]],Table_ReceiptPoint[Receipt Point Name],0),),"") ->  | E26: =IFERROR(INDEX(Table_ReceiptPoint[Latitude],MATCH(Table_TollCalc[[#This Row],[Station Number]],Table_ReceiptPoint[Receipt Point Number],0),),"") ->  | F26: =IFERROR(INDEX(Table_ReceiptPoint[Longitude],MATCH(Table_TollCalc[[#This Row],[Station Number]],Table_ReceiptPoint[Receipt Point Number],0),),"") ->  | G26: =IFERROR(ROUND(INDEX(Table_ReceiptPoint[Distance From Delivery Station],MATCH(Table_TollCalc[[#This Row],[Station Number]],Table_ReceiptPoint[Receipt Point Number],0),),2),"") ->  | H26: =IFERROR(INDEX(Table_ReceiptPoint[Legal Location Name],MATCH(Table_TollCalc[[#This Row],[Station Number]],Table_ReceiptPoint[Receipt Point Number],0),),"") ->  | I26: =IFERROR(INDEX(Table_Attach1[FT-R Demand Rate Price Point "B" ($/103m3/mo)],MATCH(Table_TollCalc[[#This Row],[Station Number]],Table_Attach1[Receipt Point Number],0),)*INDEX(Conversions!$C$7:$C$8,MATCH('Toll Calculator'!$O$8,Conversions!$B$7:$B$8,0))," ") -> 
C27: =IFERROR(INDEX(Table_ReceiptPoint[Receipt Point Number],MATCH(Table_TollCalc[[#This Row],[Receipt Station Name - '[select below'] -]],Table_ReceiptPoint[Receipt Point Name],0),),"") ->  | E27: =IFERROR(INDEX(Table_ReceiptPoint[Latitude],MATCH(Table_TollCalc[[#This Row],[Station Number]],Table_ReceiptPoint[Receipt Point Number],0),),"") ->  | F27: =IFERROR(INDEX(Table_ReceiptPoint[Longitude],MATCH(Table_TollCalc[[#This Row],[Station Number]],Table_ReceiptPoint[Receipt Point Number],0),),"") ->  | G27: =IFERROR(ROUND(INDEX(Table_ReceiptPoint[Distance From Delivery Station],MATCH(Table_TollCalc[[#This Row],[Station Number]],Table_ReceiptPoint[Receipt Point Number],0),),2),"") ->  | H27: =IFERROR(INDEX(Table_ReceiptPoint[Legal Location Name],MATCH(Table_TollCalc[[#This Row],[Station Number]],Table_ReceiptPoint[Receipt Point Number],0),),"") ->  | I27: =IFERROR(INDEX(Table_Attach1[FT-R Demand Rate Price Point "B" ($/103m3/mo)],MATCH(Table_TollCalc[[#This Row],[Station Number]],Table_Attach1[Receipt Point Number],0),)*INDEX(Conversions!$C$7:$C$8,MATCH('Toll Calculator'!$O$8,Conversions!$B$7:$B$8,0))," ") -> 
C28: =IFERROR(INDEX(Table_ReceiptPoint[Receipt Point Number],MATCH(Table_TollCalc[[#This Row],[Receipt Station Name - '[select below'] -]],Table_ReceiptPoint[Receipt Point Name],0),),"") ->  | E28: =IFERROR(INDEX(Table_ReceiptPoint[Latitude],MATCH(Table_TollCalc[[#This Row],[Station Number]],Table_ReceiptPoint[Receipt Point Number],0),),"") ->  | F28: =IFERROR(INDEX(Table_ReceiptPoint[Longitude],MATCH(Table_TollCalc[[#This Row],[Station Number]],Table_ReceiptPoint[Receipt Point Number],0),),"") ->  | G28: =IFERROR(ROUND(INDEX(Table_ReceiptPoint[Distance From Delivery Station],MATCH(Table_TollCalc[[#This Row],[Station Number]],Table_ReceiptPoint[Receipt Point Number],0),),2),"") ->  | H28: =IFERROR(INDEX(Table_ReceiptPoint[Legal Location Name],MATCH(Table_TollCalc[[#This Row],[Station Number]],Table_ReceiptPoint[Receipt Point Number],0),),"") ->  | I28: =IFERROR(INDEX(Table_Attach1[FT-R Demand Rate Price Point "B" ($/103m3/mo)],MATCH(Table_TollCalc[[#This Row],[Station Number]],Table_Attach1[Receipt Point Number],0),)*INDEX(Conversions!$C$7:$C$8,MATCH('Toll Calculator'!$O$8,Conversions!$B$7:$B$8,0))," ") -> 
C29: =IFERROR(INDEX(Table_ReceiptPoint[Receipt Point Number],MATCH(Table_TollCalc[[#This Row],[Receipt Station Name - '[select below'] -]],Table_ReceiptPoint[Receipt Point Name],0),),"") ->  | E29: =IFERROR(INDEX(Table_ReceiptPoint[Latitude],MATCH(Table_TollCalc[[#This Row],[Station Number]],Table_ReceiptPoint[Receipt Point Number],0),),"") ->  | F29: =IFERROR(INDEX(Table_ReceiptPoint[Longitude],MATCH(Table_TollCalc[[#This Row],[Station Number]],Table_ReceiptPoint[Receipt Point Number],0),),"") ->  | G29: =IFERROR(ROUND(INDEX(Table_ReceiptPoint[Distance From Delivery Station],MATCH(Table_TollCalc[[#This Row],[Station Number]],Table_ReceiptPoint[Receipt Point Number],0),),2),"") ->  | H29: =IFERROR(INDEX(Table_ReceiptPoint[Legal Location Name],MATCH(Table_TollCalc[[#This Row],[Station Number]],Table_ReceiptPoint[Receipt Point Number],0),),"") ->  | I29: =IFERROR(INDEX(Table_Attach1[FT-R Demand Rate Price Point "B" ($/103m3/mo)],MATCH(Table_TollCalc[[#This Row],[Station Number]],Table_Attach1[Receipt Point Number],0),)*INDEX(Conversions!$C$7:$C$8,MATCH('Toll Calculator'!$O$8,Conversions!$B$7:$B$8,0))," ") -> 
C30: =IFERROR(INDEX(Table_ReceiptPoint[Receipt Point Number],MATCH(Table_TollCalc[[#This Row],[Receipt Station Name - '[select below'] -]],Table_ReceiptPoint[Receipt Point Name],0),),"") ->  | E30: =IFERROR(INDEX(Table_ReceiptPoint[Latitude],MATCH(Table_TollCalc[[#This Row],[Station Number]],Table_ReceiptPoint[Receipt Point Number],0),),"") ->  | F30: =IFERROR(INDEX(Table_ReceiptPoint[Longitude],MATCH(Table_TollCalc[[#This Row],[Station Number]],Table_ReceiptPoint[Receipt Point Number],0),),"") ->  | G30: =IFERROR(ROUND(INDEX(Table_ReceiptPoint[Distance From Delivery Station],MATCH(Table_TollCalc[[#This Row],[Station Number]],Table_ReceiptPoint[Receipt Point Number],0),),2),"") ->  | H30: =IFERROR(INDEX(Table_ReceiptPoint[Legal Location Name],MATCH(Table_TollCalc[[#This Row],[Station Number]],Table_ReceiptPoint[Receipt Point Number],0),),"") ->  | I30: =IFERROR(INDEX(Table_Attach1[FT-R Demand Rate Price Point "B" ($/103m3/mo)],MATCH(Table_TollCalc[[#This Row],[Station Number]],Table_Attach1[Receipt Point Number],0),)*INDEX(Conversions!$C$7:$C$8,MATCH('Toll Calculator'!$O$8,Conversions!$B$7:$B$8,0))," ") -> 
C31: =IFERROR(INDEX(Table_ReceiptPoint[Receipt Point Number],MATCH(Table_TollCalc[[#This Row],[Receipt Station Name - '[select below'] -]],Table_ReceiptPoint[Receipt Point Name],0),),"") ->  | E31: =IFERROR(INDEX(Table_ReceiptPoint[Latitude],MATCH(Table_TollCalc[[#This Row],[Station Number]],Table_ReceiptPoint[Receipt Point Number],0),),"") ->  | F31: =IFERROR(INDEX(Table_ReceiptPoint[Longitude],MATCH(Table_TollCalc[[#This Row],[Station Number]],Table_ReceiptPoint[Receipt Point Number],0),),"") ->  | G31: =IFERROR(ROUND(INDEX(Table_ReceiptPoint[Distance From Delivery Station],MATCH(Table_TollCalc[[#This Row],[Station Number]],Table_ReceiptPoint[Receipt Point Number],0),),2),"") ->  | H31: =IFERROR(INDEX(Table_ReceiptPoint[Legal Location Name],MATCH(Table_TollCalc[[#This Row],[Station Number]],Table_ReceiptPoint[Receipt Point Number],0),),"") ->  | I31: =IFERROR(INDEX(Table_Attach1[FT-R Demand Rate Price Point "B" ($/103m3/mo)],MATCH(Table_TollCalc[[#This Row],[Station Number]],Table_Attach1[Receipt Point Number],0),)*INDEX(Conversions!$C$7:$C$8,MATCH('Toll Calculator'!$O$8,Conversions!$B$7:$B$8,0))," ") -> 
C32: =IFERROR(INDEX(Table_ReceiptPoint[Receipt Point Number],MATCH(Table_TollCalc[[#This Row],[Receipt Station Name - '[select below'] -]],Table_ReceiptPoint[Receipt Point Name],0),),"") ->  | E32: =IFERROR(INDEX(Table_ReceiptPoint[Latitude],MATCH(Table_TollCalc[[#This Row],[Station Number]],Table_ReceiptPoint[Receipt Point Number],0),),"") ->  | F32: =IFERROR(INDEX(Table_ReceiptPoint[Longitude],MATCH(Table_TollCalc[[#This Row],[Station Number]],Table_ReceiptPoint[Receipt Point Number],0),),"") ->  | G32: =IFERROR(ROUND(INDEX(Table_ReceiptPoint[Distance From Delivery Station],MATCH(Table_TollCalc[[#This Row],[Station Number]],Table_ReceiptPoint[Receipt Point Number],0),),2),"") ->  | H32: =IFERROR(INDEX(Table_ReceiptPoint[Legal Location Name],MATCH(Table_TollCalc[[#This Row],[Station Number]],Table_ReceiptPoint[Receipt Point Number],0),),"") ->  | I32: =IFERROR(INDEX(Table_Attach1[FT-R Demand Rate Price Point "B" ($/103m3/mo)],MATCH(Table_TollCalc[[#This Row],[Station Number]],Table_Attach1[Receipt Point Number],0),)*INDEX(Conversions!$C$7:$C$8,MATCH('Toll Calculator'!$O$8,Conversions!$B$7:$B$8,0))," ") -> 
C33: =IFERROR(INDEX(Table_ReceiptPoint[Receipt Point Number],MATCH(Table_TollCalc[[#This Row],[Receipt Station Name - '[select below'] -]],Table_ReceiptPoint[Receipt Point Name],0),),"") ->  | E33: =IFERROR(INDEX(Table_ReceiptPoint[Latitude],MATCH(Table_TollCalc[[#This Row],[Station Number]],Table_ReceiptPoint[Receipt Point Number],0),),"") ->  | F33: =IFERROR(INDEX(Table_ReceiptPoint[Longitude],MATCH(Table_TollCalc[[#This Row],[Station Number]],Table_ReceiptPoint[Receipt Point Number],0),),"") ->  | G33: =IFERROR(ROUND(INDEX(Table_ReceiptPoint[Distance From Delivery Station],MATCH(Table_TollCalc[[#This Row],[Station Number]],Table_ReceiptPoint[Receipt Point Number],0),),2),"") ->  | H33: =IFERROR(INDEX(Table_ReceiptPoint[Legal Location Name],MATCH(Table_TollCalc[[#This Row],[Station Number]],Table_ReceiptPoint[Receipt Point Number],0),),"") ->  | I33: =IFERROR(INDEX(Table_Attach1[FT-R Demand Rate Price Point "B" ($/103m3/mo)],MATCH(Table_TollCalc[[#This Row],[Station Number]],Table_Attach1[Receipt Point Number],0),)*INDEX(Conversions!$C$7:$C$8,MATCH('Toll Calculator'!$O$8,Conversions!$B$7:$B$8,0))," ") -> 
C34: =IFERROR(INDEX(Table_ReceiptPoint[Receipt Point Number],MATCH(Table_TollCalc[[#This Row],[Receipt Station Name - '[select below'] -]],Table_ReceiptPoint[Receipt Point Name],0),),"") ->  | E34: =IFERROR(INDEX(Table_ReceiptPoint[Latitude],MATCH(Table_TollCalc[[#This Row],[Station Number]],Table_ReceiptPoint[Receipt Point Number],0),),"") ->  | F34: =IFERROR(INDEX(Table_ReceiptPoint[Longitude],MATCH(Table_TollCalc[[#This Row],[Station Number]],Table_ReceiptPoint[Receipt Point Number],0),),"") ->  | G34: =IFERROR(ROUND(INDEX(Table_ReceiptPoint[Distance From Delivery Station],MATCH(Table_TollCalc[[#This Row],[Station Number]],Table_ReceiptPoint[Receipt Point Number],0),),2),"") ->  | H34: =IFERROR(INDEX(Table_ReceiptPoint[Legal Location Name],MATCH(Table_TollCalc[[#This Row],[Station Number]],Table_ReceiptPoint[Receipt Point Number],0),),"") ->  | I34: =IFERROR(INDEX(Table_Attach1[FT-R Demand Rate Price Point "B" ($/103m3/mo)],MATCH(Table_TollCalc[[#This Row],[Station Number]],Table_Attach1[Receipt Point Number],0),)*INDEX(Conversions!$C$7:$C$8,MATCH('Toll Calculator'!$O$8,Conversions!$B$7:$B$8,0))," ") -> 
C35: =IFERROR(INDEX(Table_ReceiptPoint[Receipt Point Number],MATCH(Table_TollCalc[[#This Row],[Receipt Station Name - '[select below'] -]],Table_ReceiptPoint[Receipt Point Name],0),),"") ->  | E35: =IFERROR(INDEX(Table_ReceiptPoint[Latitude],MATCH(Table_TollCalc[[#This Row],[Station Number]],Table_ReceiptPoint[Receipt Point Number],0),),"") ->  | F35: =IFERROR(INDEX(Table_ReceiptPoint[Longitude],MATCH(Table_TollCalc[[#This Row],[Station Number]],Table_ReceiptPoint[Receipt Point Number],0),),"") ->  | G35: =IFERROR(ROUND(INDEX(Table_ReceiptPoint[Distance From Delivery Station],MATCH(Table_TollCalc[[#This Row],[Station Number]],Table_ReceiptPoint[Receipt Point Number],0),),2),"") ->  | H35: =IFERROR(INDEX(Table_ReceiptPoint[Legal Location Name],MATCH(Table_TollCalc[[#This Row],[Station Number]],Table_ReceiptPoint[Receipt Point Number],0),),"") ->  | I35: =IFERROR(INDEX(Table_Attach1[FT-R Demand Rate Price Point "B" ($/103m3/mo)],MATCH(Table_TollCalc[[#This Row],[Station Number]],Table_Attach1[Receipt Point Number],0),)*INDEX(Conversions!$C$7:$C$8,MATCH('Toll Calculator'!$O$8,Conversions!$B$7:$B$8,0))," ") -> 
C36: =IFERROR(INDEX(Table_ReceiptPoint[Receipt Point Number],MATCH(Table_TollCalc[[#This Row],[Receipt Station Name - '[select below'] -]],Table_ReceiptPoint[Receipt Point Name],0),),"") ->  | E36: =IFERROR(INDEX(Table_ReceiptPoint[Latitude],MATCH(Table_TollCalc[[#This Row],[Station Number]],Table_ReceiptPoint[Receipt Point Number],0),),"") ->  | F36: =IFERROR(INDEX(Table_ReceiptPoint[Longitude],MATCH(Table_TollCalc[[#This Row],[Station Number]],Table_ReceiptPoint[Receipt Point Number],0),),"") ->  | G36: =IFERROR(ROUND(INDEX(Table_ReceiptPoint[Distance From Delivery Station],MATCH(Table_TollCalc[[#This Row],[Station Number]],Table_ReceiptPoint[Receipt Point Number],0),),2),"") ->  | H36: =IFERROR(INDEX(Table_ReceiptPoint[Legal Location Name],MATCH(Table_TollCalc[[#This Row],[Station Number]],Table_ReceiptPoint[Receipt Point Number],0),),"") ->  | I36: =IFERROR(INDEX(Table_Attach1[FT-R Demand Rate Price Point "B" ($/103m3/mo)],MATCH(Table_TollCalc[[#This Row],[Station Number]],Table_Attach1[Receipt Point Number],0),)*INDEX(Conversions!$C$7:$C$8,MATCH('Toll Calculator'!$O$8,Conversions!$B$7:$B$8,0))," ") -> 
C37: =IFERROR(INDEX(Table_ReceiptPoint[Receipt Point Number],MATCH(Table_TollCalc[[#This Row],[Receipt Station Name - '[select below'] -]],Table_ReceiptPoint[Receipt Point Name],0),),"") ->  | E37: =IFERROR(INDEX(Table_ReceiptPoint[Latitude],MATCH(Table_TollCalc[[#This Row],[Station Number]],Table_ReceiptPoint[Receipt Point Number],0),),"") ->  | F37: =IFERROR(INDEX(Table_ReceiptPoint[Longitude],MATCH(Table_TollCalc[[#This Row],[Station Number]],Table_ReceiptPoint[Receipt Point Number],0),),"") ->  | G37: =IFERROR(ROUND(INDEX(Table_ReceiptPoint[Distance From Delivery Station],MATCH(Table_TollCalc[[#This Row],[Station Number]],Table_ReceiptPoint[Receipt Point Number],0),),2),"") ->  | H37: =IFERROR(INDEX(Table_ReceiptPoint[Legal Location Name],MATCH(Table_TollCalc[[#This Row],[Station Number]],Table_ReceiptPoint[Receipt Point Number],0),),"") ->  | I37: =IFERROR(INDEX(Table_Attach1[FT-R Demand Rate Price Point "B" ($/103m3/mo)],MATCH(Table_TollCalc[[#This Row],[Station Number]],Table_Attach1[Receipt Point Number],0),)*INDEX(Conversions!$C$7:$C$8,MATCH('Toll Calculator'!$O$8,Conversions!$B$7:$B$8,0))," ") -> 
C38: =IFERROR(INDEX(Table_ReceiptPoint[Receipt Point Number],MATCH(Table_TollCalc[[#This Row],[Receipt Station Name - '[select below'] -]],Table_ReceiptPoint[Receipt Point Name],0),),"") ->  | E38: =IFERROR(INDEX(Table_ReceiptPoint[Latitude],MATCH(Table_TollCalc[[#This Row],[Station Number]],Table_ReceiptPoint[Receipt Point Number],0),),"") ->  | F38: =IFERROR(INDEX(Table_ReceiptPoint[Longitude],MATCH(Table_TollCalc[[#This Row],[Station Number]],Table_ReceiptPoint[Receipt Point Number],0),),"") ->  | G38: =IFERROR(ROUND(INDEX(Table_ReceiptPoint[Distance From Delivery Station],MATCH(Table_TollCalc[[#This Row],[Station Number]],Table_ReceiptPoint[Receipt Point Number],0),),2),"") ->  | H38: =IFERROR(INDEX(Table_ReceiptPoint[Legal Location Name],MATCH(Table_TollCalc[[#This Row],[Station Number]],Table_ReceiptPoint[Receipt Point Number],0),),"") ->  | I38: =IFERROR(INDEX(Table_Attach1[FT-R Demand Rate Price Point "B" ($/103m3/mo)],MATCH(Table_TollCalc[[#This Row],[Station Number]],Table_Attach1[Receipt Point Number],0),)*INDEX(Conversions!$C$7:$C$8,MATCH('Toll Calculator'!$O$8,Conversions!$B$7:$B$8,0))," ") -> 
C39: =IFERROR(INDEX(Table_ReceiptPoint[Receipt Point Number],MATCH(Table_TollCalc[[#This Row],[Receipt Station Name - '[select below'] -]],Table_ReceiptPoint[Receipt Point Name],0),),"") ->  | E39: =IFERROR(INDEX(Table_ReceiptPoint[Latitude],MATCH(Table_TollCalc[[#This Row],[Station Number]],Table_ReceiptPoint[Receipt Point Number],0),),"") ->  | F39: =IFERROR(INDEX(Table_ReceiptPoint[Longitude],MATCH(Table_TollCalc[[#This Row],[Station Number]],Table_ReceiptPoint[Receipt Point Number],0),),"") ->  | G39: =IFERROR(ROUND(INDEX(Table_ReceiptPoint[Distance From Delivery Station],MATCH(Table_TollCalc[[#This Row],[Station Number]],Table_ReceiptPoint[Receipt Point Number],0),),2),"") ->  | H39: =IFERROR(INDEX(Table_ReceiptPoint[Legal Location Name],MATCH(Table_TollCalc[[#This Row],[Station Number]],Table_ReceiptPoint[Receipt Point Number],0),),"") ->  | I39: =IFERROR(INDEX(Table_Attach1[FT-R Demand Rate Price Point "B" ($/103m3/mo)],MATCH(Table_TollCalc[[#This Row],[Station Number]],Table_Attach1[Receipt Point Number],0),)*INDEX(Conversions!$C$7:$C$8,MATCH('Toll Calculator'!$O$8,Conversions!$B$7:$B$8,0))," ") -> 
C40: =IFERROR(INDEX(Table_ReceiptPoint[Receipt Point Number],MATCH(Table_TollCalc[[#This Row],[Receipt Station Name - '[select below'] -]],Table_ReceiptPoint[Receipt Point Name],0),),"") ->  | E40: =IFERROR(INDEX(Table_ReceiptPoint[Latitude],MATCH(Table_TollCalc[[#This Row],[Station Number]],Table_ReceiptPoint[Receipt Point Number],0),),"") ->  | F40: =IFERROR(INDEX(Table_ReceiptPoint[Longitude],MATCH(Table_TollCalc[[#This Row],[Station Number]],Table_ReceiptPoint[Receipt Point Number],0),),"") ->  | G40: =IFERROR(ROUND(INDEX(Table_ReceiptPoint[Distance From Delivery Station],MATCH(Table_TollCalc[[#This Row],[Station Number]],Table_ReceiptPoint[Receipt Point Number],0),),2),"") ->  | H40: =IFERROR(INDEX(Table_ReceiptPoint[Legal Location Name],MATCH(Table_TollCalc[[#This Row],[Station Number]],Table_ReceiptPoint[Receipt Point Number],0),),"") ->  | I40: =IFERROR(INDEX(Table_Attach1[FT-R Demand Rate Price Point "B" ($/103m3/mo)],MATCH(Table_TollCalc[[#This Row],[Station Number]],Table_Attach1[Receipt Point Number],0),)*INDEX(Conversions!$C$7:$C$8,MATCH('Toll Calculator'!$O$8,Conversions!$B$7:$B$8,0))," ") -> 
C41: =IFERROR(INDEX(Table_ReceiptPoint[Receipt Point Number],MATCH(Table_TollCalc[[#This Row],[Receipt Station Name - '[select below'] -]],Table_ReceiptPoint[Receipt Point Name],0),),"") ->  | E41: =IFERROR(INDEX(Table_ReceiptPoint[Latitude],MATCH(Table_TollCalc[[#This Row],[Station Number]],Table_ReceiptPoint[Receipt Point Number],0),),"") ->  | F41: =IFERROR(INDEX(Table_ReceiptPoint[Longitude],MATCH(Table_TollCalc[[#This Row],[Station Number]],Table_ReceiptPoint[Receipt Point Number],0),),"") ->  | G41: =IFERROR(ROUND(INDEX(Table_ReceiptPoint[Distance From Delivery Station],MATCH(Table_TollCalc[[#This Row],[Station Number]],Table_ReceiptPoint[Receipt Point Number],0),),2),"") ->  | H41: =IFERROR(INDEX(Table_ReceiptPoint[Legal Location Name],MATCH(Table_TollCalc[[#This Row],[Station Number]],Table_ReceiptPoint[Receipt Point Number],0),),"") ->  | I41: =IFERROR(INDEX(Table_Attach1[FT-R Demand Rate Price Point "B" ($/103m3/mo)],MATCH(Table_TollCalc[[#This Row],[Station Number]],Table_Attach1[Receipt Point Number],0),)*INDEX(Conversions!$C$7:$C$8,MATCH('Toll Calculator'!$O$8,Conversions!$B$7:$B$8,0))," ") -> 
C42: =IFERROR(INDEX(Table_ReceiptPoint[Receipt Point Number],MATCH(Table_TollCalc[[#This Row],[Receipt Station Name - '[select below'] -]],Table_ReceiptPoint[Receipt Point Name],0),),"") ->  | E42: =IFERROR(INDEX(Table_ReceiptPoint[Latitude],MATCH(Table_TollCalc[[#This Row],[Station Number]],Table_ReceiptPoint[Receipt Point Number],0),),"") ->  | F42: =IFERROR(INDEX(Table_ReceiptPoint[Longitude],MATCH(Table_TollCalc[[#This Row],[Station Number]],Table_ReceiptPoint[Receipt Point Number],0),),"") ->  | G42: =IFERROR(ROUND(INDEX(Table_ReceiptPoint[Distance From Delivery Station],MATCH(Table_TollCalc[[#This Row],[Station Number]],Table_ReceiptPoint[Receipt Point Number],0),),2),"") ->  | H42: =IFERROR(INDEX(Table_ReceiptPoint[Legal Location Name],MATCH(Table_TollCalc[[#This Row],[Station Number]],Table_ReceiptPoint[Receipt Point Number],0),),"") ->  | I42: =IFERROR(INDEX(Table_Attach1[FT-R Demand Rate Price Point "B" ($/103m3/mo)],MATCH(Table_TollCalc[[#This Row],[Station Number]],Table_Attach1[Receipt Point Number],0),)*INDEX(Conversions!$C$7:$C$8,MATCH('Toll Calculator'!$O$8,Conversions!$B$7:$B$8,0))," ") -> 
C43: =IFERROR(INDEX(Table_ReceiptPoint[Receipt Point Number],MATCH(Table_TollCalc[[#This Row],[Receipt Station Name - '[select below'] -]],Table_ReceiptPoint[Receipt Point Name],0),),"") ->  | E43: =IFERROR(INDEX(Table_ReceiptPoint[Latitude],MATCH(Table_TollCalc[[#This Row],[Station Number]],Table_ReceiptPoint[Receipt Point Number],0),),"") ->  | F43: =IFERROR(INDEX(Table_ReceiptPoint[Longitude],MATCH(Table_TollCalc[[#This Row],[Station Number]],Table_ReceiptPoint[Receipt Point Number],0),),"") ->  | G43: =IFERROR(ROUND(INDEX(Table_ReceiptPoint[Distance From Delivery Station],MATCH(Table_TollCalc[[#This Row],[Station Number]],Table_ReceiptPoint[Receipt Point Number],0),),2),"") ->  | H43: =IFERROR(INDEX(Table_ReceiptPoint[Legal Location Name],MATCH(Table_TollCalc[[#This Row],[Station Number]],Table_ReceiptPoint[Receipt Point Number],0),),"") ->  | I43: =IFERROR(INDEX(Table_Attach1[FT-R Demand Rate Price Point "B" ($/103m3/mo)],MATCH(Table_TollCalc[[#This Row],[Station Number]],Table_Attach1[Receipt Point Number],0),)*INDEX(Conversions!$C$7:$C$8,MATCH('Toll Calculator'!$O$8,Conversions!$B$7:$B$8,0))," ") -> 
C44: =IFERROR(INDEX(Table_ReceiptPoint[Receipt Point Number],MATCH(Table_TollCalc[[#This Row],[Receipt Station Name - '[select below'] -]],Table_ReceiptPoint[Receipt Point Name],0),),"") ->  | E44: =IFERROR(INDEX(Table_ReceiptPoint[Latitude],MATCH(Table_TollCalc[[#This Row],[Station Number]],Table_ReceiptPoint[Receipt Point Number],0),),"") ->  | F44: =IFERROR(INDEX(Table_ReceiptPoint[Longitude],MATCH(Table_TollCalc[[#This Row],[Station Number]],Table_ReceiptPoint[Receipt Point Number],0),),"") ->  | G44: =IFERROR(ROUND(INDEX(Table_ReceiptPoint[Distance From Delivery Station],MATCH(Table_TollCalc[[#This Row],[Station Number]],Table_ReceiptPoint[Receipt Point Number],0),),2),"") ->  | H44: =IFERROR(INDEX(Table_ReceiptPoint[Legal Location Name],MATCH(Table_TollCalc[[#This Row],[Station Number]],Table_ReceiptPoint[Receipt Point Number],0),),"") ->  | I44: =IFERROR(INDEX(Table_Attach1[FT-R Demand Rate Price Point "B" ($/103m3/mo)],MATCH(Table_TollCalc[[#This Row],[Station Number]],Table_Attach1[Receipt Point Number],0),)*INDEX(Conversions!$C$7:$C$8,MATCH('Toll Calculator'!$O$8,Conversions!$B$7:$B$8,0))," ") -> 
C45: =IFERROR(INDEX(Table_ReceiptPoint[Receipt Point Number],MATCH(Table_TollCalc[[#This Row],[Receipt Station Name - '[select below'] -]],Table_ReceiptPoint[Receipt Point Name],0),),"") ->  | E45: =IFERROR(INDEX(Table_ReceiptPoint[Latitude],MATCH(Table_TollCalc[[#This Row],[Station Number]],Table_ReceiptPoint[Receipt Point Number],0),),"") ->  | F45: =IFERROR(INDEX(Table_ReceiptPoint[Longitude],MATCH(Table_TollCalc[[#This Row],[Station Number]],Table_ReceiptPoint[Receipt Point Number],0),),"") ->  | G45: =IFERROR(ROUND(INDEX(Table_ReceiptPoint[Distance From Delivery Station],MATCH(Table_TollCalc[[#This Row],[Station Number]],Table_ReceiptPoint[Receipt Point Number],0),),2),"") ->  | H45: =IFERROR(INDEX(Table_ReceiptPoint[Legal Location Name],MATCH(Table_TollCalc[[#This Row],[Station Number]],Table_ReceiptPoint[Receipt Point Number],0),),"") ->  | I45: =IFERROR(INDEX(Table_Attach1[FT-R Demand Rate Price Point "B" ($/103m3/mo)],MATCH(Table_TollCalc[[#This Row],[Station Number]],Table_Attach1[Receipt Point Number],0),)*INDEX(Conversions!$C$7:$C$8,MATCH('Toll Calculator'!$O$8,Conversions!$B$7:$B$8,0))," ") -> 
C46: =IFERROR(INDEX(Table_ReceiptPoint[Receipt Point Number],MATCH(Table_TollCalc[[#This Row],[Receipt Station Name - '[select below'] -]],Table_ReceiptPoint[Receipt Point Name],0),),"") ->  | E46: =IFERROR(INDEX(Table_ReceiptPoint[Latitude],MATCH(Table_TollCalc[[#This Row],[Station Number]],Table_ReceiptPoint[Receipt Point Number],0),),"") ->  | F46: =IFERROR(INDEX(Table_ReceiptPoint[Longitude],MATCH(Table_TollCalc[[#This Row],[Station Number]],Table_ReceiptPoint[Receipt Point Number],0),),"") ->  | G46: =IFERROR(ROUND(INDEX(Table_ReceiptPoint[Distance From Delivery Station],MATCH(Table_TollCalc[[#This Row],[Station Number]],Table_ReceiptPoint[Receipt Point Number],0),),2),"") ->  | H46: =IFERROR(INDEX(Table_ReceiptPoint[Legal Location Name],MATCH(Table_TollCalc[[#This Row],[Station Number]],Table_ReceiptPoint[Receipt Point Number],0),),"") ->  | I46: =IFERROR(INDEX(Table_Attach1[FT-R Demand Rate Price Point "B" ($/103m3/mo)],MATCH(Table_TollCalc[[#This Row],[Station Number]],Table_Attach1[Receipt Point Number],0),)*INDEX(Conversions!$C$7:$C$8,MATCH('Toll Calculator'!$O$8,Conversions!$B$7:$B$8,0))," ") -> 
C47: =IFERROR(INDEX(Table_ReceiptPoint[Receipt Point Number],MATCH(Table_TollCalc[[#This Row],[Receipt Station Name - '[select below'] -]],Table_ReceiptPoint[Receipt Point Name],0),),"") ->  | E47: =IFERROR(INDEX(Table_ReceiptPoint[Latitude],MATCH(Table_TollCalc[[#This Row],[Station Number]],Table_ReceiptPoint[Receipt Point Number],0),),"") ->  | F47: =IFERROR(INDEX(Table_ReceiptPoint[Longitude],MATCH(Table_TollCalc[[#This Row],[Station Number]],Table_ReceiptPoint[Receipt Point Number],0),),"") ->  | G47: =IFERROR(ROUND(INDEX(Table_ReceiptPoint[Distance From Delivery Station],MATCH(Table_TollCalc[[#This Row],[Station Number]],Table_ReceiptPoint[Receipt Point Number],0),),2),"") ->  | H47: =IFERROR(INDEX(Table_ReceiptPoint[Legal Location Name],MATCH(Table_TollCalc[[#This Row],[Station Number]],Table_ReceiptPoint[Receipt Point Number],0),),"") ->  | I47: =IFERROR(INDEX(Table_Attach1[FT-R Demand Rate Price Point "B" ($/103m3/mo)],MATCH(Table_TollCalc[[#This Row],[Station Number]],Table_Attach1[Receipt Point Number],0),)*INDEX(Conversions!$C$7:$C$8,MATCH('Toll Calculator'!$O$8,Conversions!$B$7:$B$8,0))," ") -> 
C48: =IFERROR(INDEX(Table_ReceiptPoint[Receipt Point Number],MATCH(Table_TollCalc[[#This Row],[Receipt Station Name - '[select below'] -]],Table_ReceiptPoint[Receipt Point Name],0),),"") ->  | E48: =IFERROR(INDEX(Table_ReceiptPoint[Latitude],MATCH(Table_TollCalc[[#This Row],[Station Number]],Table_ReceiptPoint[Receipt Point Number],0),),"") ->  | F48: =IFERROR(INDEX(Table_ReceiptPoint[Longitude],MATCH(Table_TollCalc[[#This Row],[Station Number]],Table_ReceiptPoint[Receipt Point Number],0),),"") ->  | G48: =IFERROR(ROUND(INDEX(Table_ReceiptPoint[Distance From Delivery Station],MATCH(Table_TollCalc[[#This Row],[Station Number]],Table_ReceiptPoint[Receipt Point Number],0),),2),"") ->  | H48: =IFERROR(INDEX(Table_ReceiptPoint[Legal Location Name],MATCH(Table_TollCalc[[#This Row],[Station Number]],Table_ReceiptPoint[Receipt Point Number],0),),"") ->  | I48: =IFERROR(INDEX(Table_Attach1[FT-R Demand Rate Price Point "B" ($/103m3/mo)],MATCH(Table_TollCalc[[#This Row],[Station Number]],Table_Attach1[Receipt Point Number],0),)*INDEX(Conversions!$C$7:$C$8,MATCH('Toll Calculator'!$O$8,Conversions!$B$7:$B$8,0))," ") -> 
C49: =IFERROR(INDEX(Table_ReceiptPoint[Receipt Point Number],MATCH(Table_TollCalc[[#This Row],[Receipt Station Name - '[select below'] -]],Table_ReceiptPoint[Receipt Point Name],0),),"") ->  | E49: =IFERROR(INDEX(Table_ReceiptPoint[Latitude],MATCH(Table_TollCalc[[#This Row],[Station Number]],Table_ReceiptPoint[Receipt Point Number],0),),"") ->  | F49: =IFERROR(INDEX(Table_ReceiptPoint[Longitude],MATCH(Table_TollCalc[[#This Row],[Station Number]],Table_ReceiptPoint[Receipt Point Number],0),),"") ->  | G49: =IFERROR(ROUND(INDEX(Table_ReceiptPoint[Distance From Delivery Station],MATCH(Table_TollCalc[[#This Row],[Station Number]],Table_ReceiptPoint[Receipt Point Number],0),),2),"") ->  | H49: =IFERROR(INDEX(Table_ReceiptPoint[Legal Location Name],MATCH(Table_TollCalc[[#This Row],[Station Number]],Table_ReceiptPoint[Receipt Point Number],0),),"") ->  | I49: =IFERROR(INDEX(Table_Attach1[FT-R Demand Rate Price Point "B" ($/103m3/mo)],MATCH(Table_TollCalc[[#This Row],[Station Number]],Table_Attach1[Receipt Point Number],0),)*INDEX(Conversions!$C$7:$C$8,MATCH('Toll Calculator'!$O$8,Conversions!$B$7:$B$8,0))," ") -> 
C50: =IFERROR(INDEX(Table_ReceiptPoint[Receipt Point Number],MATCH(Table_TollCalc[[#This Row],[Receipt Station Name - '[select below'] -]],Table_ReceiptPoint[Receipt Point Name],0),),"") ->  | E50: =IFERROR(INDEX(Table_ReceiptPoint[Latitude],MATCH(Table_TollCalc[[#This Row],[Station Number]],Table_ReceiptPoint[Receipt Point Number],0),),"") ->  | F50: =IFERROR(INDEX(Table_ReceiptPoint[Longitude],MATCH(Table_TollCalc[[#This Row],[Station Number]],Table_ReceiptPoint[Receipt Point Number],0),),"") ->  | G50: =IFERROR(ROUND(INDEX(Table_ReceiptPoint[Distance From Delivery Station],MATCH(Table_TollCalc[[#This Row],[Station Number]],Table_ReceiptPoint[Receipt Point Number],0),),2),"") ->  | H50: =IFERROR(INDEX(Table_ReceiptPoint[Legal Location Name],MATCH(Table_TollCalc[[#This Row],[Station Number]],Table_ReceiptPoint[Receipt Point Number],0),),"") ->  | I50: =IFERROR(INDEX(Table_Attach1[FT-R Demand Rate Price Point "B" ($/103m3/mo)],MATCH(Table_TollCalc[[#This Row],[Station Number]],Table_Attach1[Receipt Point Number],0),)*INDEX(Conversions!$C$7:$C$8,MATCH('Toll Calculator'!$O$8,Conversions!$B$7:$B$8,0))," ") -> 
C51: =IFERROR(INDEX(Table_ReceiptPoint[Receipt Point Number],MATCH(Table_TollCalc[[#This Row],[Receipt Station Name - '[select below'] -]],Table_ReceiptPoint[Receipt Point Name],0),),"") ->  | E51: =IFERROR(INDEX(Table_ReceiptPoint[Latitude],MATCH(Table_TollCalc[[#This Row],[Station Number]],Table_ReceiptPoint[Receipt Point Number],0),),"") ->  | F51: =IFERROR(INDEX(Table_ReceiptPoint[Longitude],MATCH(Table_TollCalc[[#This Row],[Station Number]],Table_ReceiptPoint[Receipt Point Number],0),),"") ->  | G51: =IFERROR(ROUND(INDEX(Table_ReceiptPoint[Distance From Delivery Station],MATCH(Table_TollCalc[[#This Row],[Station Number]],Table_ReceiptPoint[Receipt Point Number],0),),2),"") ->  | H51: =IFERROR(INDEX(Table_ReceiptPoint[Legal Location Name],MATCH(Table_TollCalc[[#This Row],[Station Number]],Table_ReceiptPoint[Receipt Point Number],0),),"") ->  | I51: =IFERROR(INDEX(Table_Attach1[FT-R Demand Rate Price Point "B" ($/103m3/mo)],MATCH(Table_TollCalc[[#This Row],[Station Number]],Table_Attach1[Receipt Point Number],0),)*INDEX(Conversions!$C$7:$C$8,MATCH('Toll Calculator'!$O$8,Conversions!$B$7:$B$8,0))," ") -> 
C52: =IFERROR(INDEX(Table_ReceiptPoint[Receipt Point Number],MATCH(Table_TollCalc[[#This Row],[Receipt Station Name - '[select below'] -]],Table_ReceiptPoint[Receipt Point Name],0),),"") ->  | E52: =IFERROR(INDEX(Table_ReceiptPoint[Latitude],MATCH(Table_TollCalc[[#This Row],[Station Number]],Table_ReceiptPoint[Receipt Point Number],0),),"") ->  | F52: =IFERROR(INDEX(Table_ReceiptPoint[Longitude],MATCH(Table_TollCalc[[#This Row],[Station Number]],Table_ReceiptPoint[Receipt Point Number],0),),"") ->  | G52: =IFERROR(ROUND(INDEX(Table_ReceiptPoint[Distance From Delivery Station],MATCH(Table_TollCalc[[#This Row],[Station Number]],Table_ReceiptPoint[Receipt Point Number],0),),2),"") ->  | H52: =IFERROR(INDEX(Table_ReceiptPoint[Legal Location Name],MATCH(Table_TollCalc[[#This Row],[Station Number]],Table_ReceiptPoint[Receipt Point Number],0),),"") ->  | I52: =IFERROR(INDEX(Table_Attach1[FT-R Demand Rate Price Point "B" ($/103m3/mo)],MATCH(Table_TollCalc[[#This Row],[Station Number]],Table_Attach1[Receipt Point Number],0),)*INDEX(Conversions!$C$7:$C$8,MATCH('Toll Calculator'!$O$8,Conversions!$B$7:$B$8,0))," ") -> 
C53: =IFERROR(INDEX(Table_ReceiptPoint[Receipt Point Number],MATCH(Table_TollCalc[[#This Row],[Receipt Station Name - '[select below'] -]],Table_ReceiptPoint[Receipt Point Name],0),),"") ->  | E53: =IFERROR(INDEX(Table_ReceiptPoint[Latitude],MATCH(Table_TollCalc[[#This Row],[Station Number]],Table_ReceiptPoint[Receipt Point Number],0),),"") ->  | F53: =IFERROR(INDEX(Table_ReceiptPoint[Longitude],MATCH(Table_TollCalc[[#This Row],[Station Number]],Table_ReceiptPoint[Receipt Point Number],0),),"") ->  | G53: =IFERROR(ROUND(INDEX(Table_ReceiptPoint[Distance From Delivery Station],MATCH(Table_TollCalc[[#This Row],[Station Number]],Table_ReceiptPoint[Receipt Point Number],0),),2),"") ->  | H53: =IFERROR(INDEX(Table_ReceiptPoint[Legal Location Name],MATCH(Table_TollCalc[[#This Row],[Station Number]],Table_ReceiptPoint[Receipt Point Number],0),),"") ->  | I53: =IFERROR(INDEX(Table_Attach1[FT-R Demand Rate Price Point "B" ($/103m3/mo)],MATCH(Table_TollCalc[[#This Row],[Station Number]],Table_Attach1[Receipt Point Number],0),)*INDEX(Conversions!$C$7:$C$8,MATCH('Toll Calculator'!$O$8,Conversions!$B$7:$B$8,0))," ") -> 
C54: =IFERROR(INDEX(Table_ReceiptPoint[Receipt Point Number],MATCH(Table_TollCalc[[#This Row],[Receipt Station Name - '[select below'] -]],Table_ReceiptPoint[Receipt Point Name],0),),"") ->  | E54: =IFERROR(INDEX(Table_ReceiptPoint[Latitude],MATCH(Table_TollCalc[[#This Row],[Station Number]],Table_ReceiptPoint[Receipt Point Number],0),),"") ->  | F54: =IFERROR(INDEX(Table_ReceiptPoint[Longitude],MATCH(Table_TollCalc[[#This Row],[Station Number]],Table_ReceiptPoint[Receipt Point Number],0),),"") ->  | G54: =IFERROR(ROUND(INDEX(Table_ReceiptPoint[Distance From Delivery Station],MATCH(Table_TollCalc[[#This Row],[Station Number]],Table_ReceiptPoint[Receipt Point Number],0),),2),"") ->  | H54: =IFERROR(INDEX(Table_ReceiptPoint[Legal Location Name],MATCH(Table_TollCalc[[#This Row],[Station Number]],Table_ReceiptPoint[Receipt Point Number],0),),"") ->  | I54: =IFERROR(INDEX(Table_Attach1[FT-R Demand Rate Price Point "B" ($/103m3/mo)],MATCH(Table_TollCalc[[#This Row],[Station Number]],Table_Attach1[Receipt Point Number],0),)*INDEX(Conversions!$C$7:$C$8,MATCH('Toll Calculator'!$O$8,Conversions!$B$7:$B$8,0))," ") -> 
C55: =IFERROR(INDEX(Table_ReceiptPoint[Receipt Point Number],MATCH(Table_TollCalc[[#This Row],[Receipt Station Name - '[select below'] -]],Table_ReceiptPoint[Receipt Point Name],0),),"") ->  | E55: =IFERROR(INDEX(Table_ReceiptPoint[Latitude],MATCH(Table_TollCalc[[#This Row],[Station Number]],Table_ReceiptPoint[Receipt Point Number],0),),"") ->  | F55: =IFERROR(INDEX(Table_ReceiptPoint[Longitude],MATCH(Table_TollCalc[[#This Row],[Station Number]],Table_ReceiptPoint[Receipt Point Number],0),),"") ->  | G55: =IFERROR(ROUND(INDEX(Table_ReceiptPoint[Distance From Delivery Station],MATCH(Table_TollCalc[[#This Row],[Station Number]],Table_ReceiptPoint[Receipt Point Number],0),),2),"") ->  | H55: =IFERROR(INDEX(Table_ReceiptPoint[Legal Location Name],MATCH(Table_TollCalc[[#This Row],[Station Number]],Table_ReceiptPoint[Receipt Point Number],0),),"") ->  | I55: =IFERROR(INDEX(Table_Attach1[FT-R Demand Rate Price Point "B" ($/103m3/mo)],MATCH(Table_TollCalc[[#This Row],[Station Number]],Table_Attach1[Receipt Point Number],0),)*INDEX(Conversions!$C$7:$C$8,MATCH('Toll Calculator'!$O$8,Conversions!$B$7:$B$8,0))," ") -> 
C56: =IFERROR(INDEX(Table_ReceiptPoint[Receipt Point Number],MATCH(Table_TollCalc[[#This Row],[Receipt Station Name - '[select below'] -]],Table_ReceiptPoint[Receipt Point Name],0),),"") ->  | E56: =IFERROR(INDEX(Table_ReceiptPoint[Latitude],MATCH(Table_TollCalc[[#This Row],[Station Number]],Table_ReceiptPoint[Receipt Point Number],0),),"") ->  | F56: =IFERROR(INDEX(Table_ReceiptPoint[Longitude],MATCH(Table_TollCalc[[#This Row],[Station Number]],Table_ReceiptPoint[Receipt Point Number],0),),"") ->  | G56: =IFERROR(ROUND(INDEX(Table_ReceiptPoint[Distance From Delivery Station],MATCH(Table_TollCalc[[#This Row],[Station Number]],Table_ReceiptPoint[Receipt Point Number],0),),2),"") ->  | H56: =IFERROR(INDEX(Table_ReceiptPoint[Legal Location Name],MATCH(Table_TollCalc[[#This Row],[Station Number]],Table_ReceiptPoint[Receipt Point Number],0),),"") ->  | I56: =IFERROR(INDEX(Table_Attach1[FT-R Demand Rate Price Point "B" ($/103m3/mo)],MATCH(Table_TollCalc[[#This Row],[Station Number]],Table_Attach1[Receipt Point Number],0),)*INDEX(Conversions!$C$7:$C$8,MATCH('Toll Calculator'!$O$8,Conversions!$B$7:$B$8,0))," ") -> 
C57: =IFERROR(INDEX(Table_ReceiptPoint[Receipt Point Number],MATCH(Table_TollCalc[[#This Row],[Receipt Station Name - '[select below'] -]],Table_ReceiptPoint[Receipt Point Name],0),),"") ->  | E57: =IFERROR(INDEX(Table_ReceiptPoint[Latitude],MATCH(Table_TollCalc[[#This Row],[Station Number]],Table_ReceiptPoint[Receipt Point Number],0),),"") ->  | F57: =IFERROR(INDEX(Table_ReceiptPoint[Longitude],MATCH(Table_TollCalc[[#This Row],[Station Number]],Table_ReceiptPoint[Receipt Point Number],0),),"") ->  | G57: =IFERROR(ROUND(INDEX(Table_ReceiptPoint[Distance From Delivery Station],MATCH(Table_TollCalc[[#This Row],[Station Number]],Table_ReceiptPoint[Receipt Point Number],0),),2),"") ->  | H57: =IFERROR(INDEX(Table_ReceiptPoint[Legal Location Name],MATCH(Table_TollCalc[[#This Row],[Station Number]],Table_ReceiptPoint[Receipt Point Number],0),),"") ->  | I57: =IFERROR(INDEX(Table_Attach1[FT-R Demand Rate Price Point "B" ($/103m3/mo)],MATCH(Table_TollCalc[[#This Row],[Station Number]],Table_Attach1[Receipt Point Number],0),)*INDEX(Conversions!$C$7:$C$8,MATCH('Toll Calculator'!$O$8,Conversions!$B$7:$B$8,0))," ") -> 
C58: =IFERROR(INDEX(Table_ReceiptPoint[Receipt Point Number],MATCH(Table_TollCalc[[#This Row],[Receipt Station Name - '[select below'] -]],Table_ReceiptPoint[Receipt Point Name],0),),"") ->  | E58: =IFERROR(INDEX(Table_ReceiptPoint[Latitude],MATCH(Table_TollCalc[[#This Row],[Station Number]],Table_ReceiptPoint[Receipt Point Number],0),),"") ->  | F58: =IFERROR(INDEX(Table_ReceiptPoint[Longitude],MATCH(Table_TollCalc[[#This Row],[Station Number]],Table_ReceiptPoint[Receipt Point Number],0),),"") ->  | G58: =IFERROR(ROUND(INDEX(Table_ReceiptPoint[Distance From Delivery Station],MATCH(Table_TollCalc[[#This Row],[Station Number]],Table_ReceiptPoint[Receipt Point Number],0),),2),"") ->  | H58: =IFERROR(INDEX(Table_ReceiptPoint[Legal Location Name],MATCH(Table_TollCalc[[#This Row],[Station Number]],Table_ReceiptPoint[Receipt Point Number],0),),"") ->  | I58: =IFERROR(INDEX(Table_Attach1[FT-R Demand Rate Price Point "B" ($/103m3/mo)],MATCH(Table_TollCalc[[#This Row],[Station Number]],Table_Attach1[Receipt Point Number],0),)*INDEX(Conversions!$C$7:$C$8,MATCH('Toll Calculator'!$O$8,Conversions!$B$7:$B$8,0))," ") -> 
C59: =IFERROR(INDEX(Table_ReceiptPoint[Receipt Point Number],MATCH(Table_TollCalc[[#This Row],[Receipt Station Name - '[select below'] -]],Table_ReceiptPoint[Receipt Point Name],0),),"") ->  | E59: =IFERROR(INDEX(Table_ReceiptPoint[Latitude],MATCH(Table_TollCalc[[#This Row],[Station Number]],Table_ReceiptPoint[Receipt Point Number],0),),"") ->  | F59: =IFERROR(INDEX(Table_ReceiptPoint[Longitude],MATCH(Table_TollCalc[[#This Row],[Station Number]],Table_ReceiptPoint[Receipt Point Number],0),),"") ->  | G59: =IFERROR(ROUND(INDEX(Table_ReceiptPoint[Distance From Delivery Station],MATCH(Table_TollCalc[[#This Row],[Station Number]],Table_ReceiptPoint[Receipt Point Number],0),),2),"") ->  | H59: =IFERROR(INDEX(Table_ReceiptPoint[Legal Location Name],MATCH(Table_TollCalc[[#This Row],[Station Number]],Table_ReceiptPoint[Receipt Point Number],0),),"") ->  | I59: =IFERROR(INDEX(Table_Attach1[FT-R Demand Rate Price Point "B" ($/103m3/mo)],MATCH(Table_TollCalc[[#This Row],[Station Number]],Table_Attach1[Receipt Point Number],0),)*INDEX(Conversions!$C$7:$C$8,MATCH('Toll Calculator'!$O$8,Conversions!$B$7:$B$8,0))," ") -> 
C60: =IFERROR(INDEX(Table_ReceiptPoint[Receipt Point Number],MATCH(Table_TollCalc[[#This Row],[Receipt Station Name - '[select below'] -]],Table_ReceiptPoint[Receipt Point Name],0),),"") ->  | E60: =IFERROR(INDEX(Table_ReceiptPoint[Latitude],MATCH(Table_TollCalc[[#This Row],[Station Number]],Table_ReceiptPoint[Receipt Point Number],0),),"") ->  | F60: =IFERROR(INDEX(Table_ReceiptPoint[Longitude],MATCH(Table_TollCalc[[#This Row],[Station Number]],Table_ReceiptPoint[Receipt Point Number],0),),"") ->  | G60: =IFERROR(ROUND(INDEX(Table_ReceiptPoint[Distance From Delivery Station],MATCH(Table_TollCalc[[#This Row],[Station Number]],Table_ReceiptPoint[Receipt Point Number],0),),2),"") ->  | H60: =IFERROR(INDEX(Table_ReceiptPoint[Legal Location Name],MATCH(Table_TollCalc[[#This Row],[Station Number]],Table_ReceiptPoint[Receipt Point Number],0),),"") ->  | I60: =IFERROR(INDEX(Table_Attach1[FT-R Demand Rate Price Point "B" ($/103m3/mo)],MATCH(Table_TollCalc[[#This Row],[Station Number]],Table_Attach1[Receipt Point Number],0),)*INDEX(Conversions!$C$7:$C$8,MATCH('Toll Calculator'!$O$8,Conversions!$B$7:$B$8,0))," ") -> 

Sheet Customer Savings
B2: Points to Point Service (FT-P) - Annual Savings
B4: Report Date | D4: =TODAY() -> 46027
B5: Delivery Location | D5: ='Toll Calculator'!D7 -> ADM AGRI INDUSTRIES SALES APN
B6: FT-P Contract Demand | D6: =IF('Toll Calculator'!$O$8="Imperial",'Toll Calculator'!$O$10*Conversions!$C$11,SUM(Table_TollCalc[FT-P Service Volume ])) -> 4942.13 | E6: =INDEX(Conversions!$C$7:$G$8,MATCH('Toll Calculator'!$O$8,Conversions!$B$7:$B$8,0),5) -> (mcf/d)
B7: Distance Used for Price | D7: ='Toll Calculator'!$O$11 -> 852.58 | E7: ='Toll Calculator'!$P$11 -> km | N7: Price ($/GJ) -[select below]- | P7: ="Heat Content (MJ/m"&CHAR(179)&") -[select below]-" -> Heat Content (MJ/m³) -[select below]-
B8: FT-P Price | D8: =M15 -> 80.06 | E8: ='Toll Calculator'!$P$12 -> (¢/mcf)
B9: Gas Price | D9: =N10 -> 3.2 | E9: ($/GJ)
B10: Heat Content | D10: =P10 -> 37.8 | E10: ="(MJ/m"&CHAR(179)&")" -> (MJ/m³) | N10: 3.2 | P10: 37.8
B11: Annual Savings | D11: =R17 -> 154285.12
M13: ='Toll Calculator'!O8 &" "&'Closest Receipt Stations'!I5 -> Imperial (¢/mcf) | P13: Estimated Annual Cost
M14: Toll | N14: Fuel | O14: Total | P14: Toll | Q14: Fuel | R14: Total
L15: FT-P* | M15: ='Toll Calculator'!$O$12 -> 80.06 | N15: =IF('Toll Calculator'!$O$8="Imperial",($Q15/($D$6*365))*100,$Q15/12/$D$6) -> 3.18 | O15: =M15+N15 -> 83.24 | P15: =IF('Toll Calculator'!$O$8="Imperial",'Customer Savings'!$D$6*(365/12)/100*'Customer Savings'!$M15*12,'Customer Savings'!$D$6*'Customer Savings'!$M15*12) -> 1444184.29 | Q15: =IF('Toll Calculator'!O8="Imperial",$D$6*(1/Conversions!$C$11)*($P$10*365)*(Conversions!$C$20*$N$10),$D$6*($P$10*365)*(Conversions!$C$20*$N$10)) -> 57298.34 | R15: =P15+Q15 -> 1501482.63
L16: FT-R & FT-D2* | M16: =SUMPRODUCT('Toll Calculator'!I11:I60,'Toll Calculator'!J11:J60)/SUM('Toll Calculator'!J11:J60)+'Toll Calculator'!I7 -> 85.44 | N16: =IF('Toll Calculator'!$O$8="Imperial",($Q16/($D$6*365))*100,$Q16/12/$D$6) -> 6.35 | O16: =M16+N16 -> 91.79 | P16: =IF('Toll Calculator'!$O$8="Imperial",'Customer Savings'!$D$6*(365/12)/100*'Customer Savings'!$M16*12,'Customer Savings'!$D$6*'Customer Savings'!$M16*12) -> 1541232.89 | Q16: =IF('Toll Calculator'!O8="Imperial",$D$6*(1/Conversions!$C$11)*($P$10*365)*(Conversions!$C$19*$N$10),($D$6*$P$10*365)*(Conversions!$C$19*$N$10)) -> 114534.86 | R16: =P16+Q16 -> 1655767.75
L17: Savings | M17: =M16-M15 -> 5.38 | N17: 3.17 | O17: 8.55 | P17: 97048.6 | Q17: 57236.52 | R17: 154285.12
L18: *Based on a 3-year term

Sheet Closest Receipt Stations
D2: Station Number | E2: Delivery Station Name
D3: ='Toll Calculator'!C7 -> 31001 | E3: ='Toll Calculator'!D7 -> ADM AGRI INDUSTRIES SALES APN
D5: List of Receipt Stations Available for FT-P Service | H5: =_xlfn.SWITCH('Toll Calculator'!$O$8,"Metric",Conversions!D7,"Imperial",Conversions!D8) -> (¢/mcf) | I5: =_xlfn.SWITCH('Toll Calculator'!$O$8,"Metric",Conversions!E7,"Imperial",Conversions!E8) -> (¢/mcf) | J5: =_xlfn.SWITCH('Toll Calculator'!$O$8,"Metric",Conversions!F7,"Imperial",Conversions!F8) -> (¢/mcf)
C6: Rank | D6: Station Number | E6: Receipt Station Name | F6: Distance (km) | G6: Legal Location | H6: FT-R Price (3-year term) | I6: FT-P Price (3-year term) | J6: IT-R Price
C7: =Table_ReceiptPointAlphabetical[[#This Row],[Alphabetical Order Rank]] -> 1 | D7: =INDEX(Table_ReceiptPoint[Receipt Point Number],MATCH(Table_CloseReceipt[[#This Row],[Rank]],Table_ReceiptPoint[Distance Rank to Delivery Location],0),) -> 1510 | E7: =INDEX(Table_ReceiptPoint[Receipt Point Name2],MATCH(Table_CloseReceipt[[#This Row],[Rank]],Table_ReceiptPoint[Distance Rank to Delivery Location],0),) -> RIVERCOURSE | F7: =INDEX(Table_ReceiptPoint[Distance From Delivery Station],MATCH(Table_CloseReceipt[[#This Row],[Rank]],Table_ReceiptPoint[Distance Rank to Delivery Location],0),) -> 8.285 | G7: =INDEX(Table_ReceiptPoint[Legal Location Name],MATCH(Table_CloseReceipt[[#This Row],[Rank]],Table_ReceiptPoint[Distance Rank to Delivery Location],0),) -> 15-36-046-02-W4 | H7: =INDEX(Table_Attach1[FT-R Demand Rate Price Point "B" ($/103m3/mo)],MATCH(Table_CloseReceipt[[#This Row],[Station Number]],Table_Attach1[Receipt Point Number],0),)*INDEX(Conversions!$C$7:$C$8,MATCH('Toll Calculator'!$O$8,Conversions!$B$7:$B$8,0)) -> 47.74 | I7: =INDEX(Table_Attach3[FT-P Demand Rate Price Point "B"],MATCH(IF(CEILING(Table_CloseReceipt[[#This Row],[Distance (km)]],25)>500,999999,CEILING(Table_CloseReceipt[[#This Row],[Distance (km)]],25)),Table_Attach3[Maximum Distance Between Receipt Point and Delivery Point (km)],0),)*INDEX(Conversions!$C$7:$C$8,MATCH('Toll Calculator'!$O$8,Conversions!$B$7:$B$8,0)) -> 35.94 | J7: =INDEX(Table_Attach1[IT-R Rate ($/103m3/d)],MATCH(Table_CloseReceipt[[#This Row],[Station Number]], Table_Attach1[Receipt Point Number], 0))*INDEX(Conversions!$C$7:$C$8,MATCH('Toll Calculator'!$O$8, Conversions!$B$7:$B$8, 0))*_xlfn.SWITCH(UPPER(TRIM('Toll Calculator'!$O$8)),"IMPERIAL", (365/12),"METRIC", 1,1) -> 54.9
C8: =Table_ReceiptPointAlphabetical[[#This Row],[Alphabetical Order Rank]] -> 2 | D8: =INDEX(Table_ReceiptPoint[Receipt Point Number],MATCH(Table_CloseReceipt[[#This Row],[Rank]],Table_ReceiptPoint[Distance Rank to Delivery Location],0),) -> 1728 | E8: =INDEX(Table_ReceiptPoint[Receipt Point Name2],MATCH(Table_CloseReceipt[[#This Row],[Rank]],Table_ReceiptPoint[Distance Rank to Delivery Location],0),) -> PARADISE VALLEY* | F8: =INDEX(Table_ReceiptPoint[Distance From Delivery Station],MATCH(Table_CloseReceipt[[#This Row],[Rank]],Table_ReceiptPoint[Distance Rank to Delivery Location],0),) -> 12.9732 | G8: =INDEX(Table_ReceiptPoint[Legal Location Name],MATCH(Table_CloseReceipt[[#This Row],[Rank]],Table_ReceiptPoint[Distance Rank to Delivery Location],0),) -> 02-28-046-02-W4 | H8: =INDEX(Table_Attach1[FT-R Demand Rate Price Point "B" ($/103m3/mo)],MATCH(Table_CloseReceipt[[#This Row],[Station Number]],Table_Attach1[Receipt Point Number],0),)*INDEX(Conversions!$C$7:$C$8,MATCH('Toll Calculator'!$O$8,Conversions!$B$7:$B$8,0)) -> 47.74 | I8: =INDEX(Table_Attach3[FT-P Demand Rate Price Point "B"],MATCH(IF(CEILING(Table_CloseReceipt[[#This Row],[Distance (km)]],25)>500,999999,CEILING(Table_CloseReceipt[[#This Row],[Distance (km)]],25)),Table_Attach3[Maximum Distance Between Receipt Point and Delivery Point (km)],0),)*INDEX(Conversions!$C$7:$C$8,MATCH('Toll Calculator'!$O$8,Conversions!$B$7:$B$8,0)) -> 35.94 | J8: =INDEX(Table_Attach1[IT-R Rate ($/103m3/d)],MATCH(Table_CloseReceipt[[#This Row],[Station Number]], Table_Attach1[Receipt Point Number], 0))*INDEX(Conversions!$C$7:$C$8,MATCH('Toll Calculator'!$O$8, Conversions!$B$7:$B$8, 0))*_xlfn.SWITCH(UPPER(TRIM('Toll Calculator'!$O$8)),"IMPERIAL", (365/12),"METRIC", 1,1) -> 54.9
C9: =Table_ReceiptPointAlphabetical[[#This Row],[Alphabetical Order Rank]] -> 3 | D9: =INDEX(Table_ReceiptPoint[Receipt Point Number],MATCH(Table_CloseReceipt[[#This Row],[Rank]],Table_ReceiptPoint[Distance Rank to Delivery Location],0),) -> 30248 | E9: =INDEX(Table_ReceiptPoint[Receipt Point Name2],MATCH(Table_CloseReceipt[[#This Row],[Rank]],Table_ReceiptPoint[Distance Rank to Delivery Location],0),) -> EARLIE LAKE APN | F9: =INDEX(Table_ReceiptPoint[Distance From Delivery Station],MATCH(Table_CloseReceipt[[#This Row],[Rank]],Table_ReceiptPoint[Distance Rank to Delivery Location],0),) -> 25.8448 | G9: =INDEX(Table_ReceiptPoint[Legal Location Name],MATCH(Table_CloseReceipt[[#This Row],[Rank]],Table_ReceiptPoint[Distance Rank to Delivery Location],0),) -> 08-10-049-02-W4 | H9: =INDEX(Table_Attach1[FT-R Demand Rate Price Point "B" ($/103m3/mo)],MATCH(Table_CloseReceipt[[#This Row],[Station Number]],Table_Attach1[Receipt Point Number],0),)*INDEX(Conversions!$C$7:$C$8,MATCH('Toll Calculator'!$O$8,Conversions!$B$7:$B$8,0)) -> 47.74 | I9: =INDEX(Table_Attach3[FT-P Demand Rate Price Point "B"],MATCH(IF(CEILING(Table_CloseReceipt[[#This Row],[Distance (km)]],25)>500,999999,CEILING(Table_CloseReceipt[[#This Row],[Distance (km)]],25)),Table_Attach3[Maximum Distance Between Receipt Point and Delivery Point (km)],0),)*INDEX(Conversions!$C$7:$C$8,MATCH('Toll Calculator'!$O$8,Conversions!$B$7:$B$8,0)) -> 38.15 | J9: =INDEX(Table_Attach1[IT-R Rate ($/103m3/d)],MATCH(Table_CloseReceipt[[#This Row],[Station Number]], Table_Attach1[Receipt Point Number], 0))*INDEX(Conversions!$C$7:$C$8,MATCH('Toll Calculator'!$O$8, Conversions!$B$7:$B$8, 0))*_xlfn.SWITCH(UPPER(TRIM('Toll Calculator'!$O$8)),"IMPERIAL", (365/12),"METRIC", 1,1) -> 54.9
C10: =Table_ReceiptPointAlphabetical[[#This Row],[Alphabetical Order Rank]] -> 4 | D10: =INDEX(Table_ReceiptPoint[Receipt Point Number],MATCH(Table_CloseReceipt[[#This Row],[Rank]],Table_ReceiptPoint[Distance Rank to Delivery Location],0),) -> 1746 | E10: =INDEX(Table_ReceiptPoint[Receipt Point Name2],MATCH(Table_CloseReceipt[[#This Row],[Rank]],Table_ReceiptPoint[Distance Rank to Delivery Location],0),) -> ESTRIDGE LAKE | F10: =INDEX(Table_ReceiptPoint[Distance From Delivery Station],MATCH(Table_CloseReceipt[[#This Row],[Rank]],Table_ReceiptPoint[Distance Rank to Delivery Location],0),) -> 31.9989 | G10: =INDEX(Table_ReceiptPoint[Legal Location Name],MATCH(Table_CloseReceipt[[#This Row],[Rank]],Table_ReceiptPoint[Distance Rank to Delivery Location],0),) -> 13-31-043-02-W4 | H10: =INDEX(Table_Attach1[FT-R Demand Rate Price Point "B" ($/103m3/mo)],MATCH(Table_CloseReceipt[[#This Row],[Station Number]],Table_Attach1[Receipt Point Number],0),)*INDEX(Conversions!$C$7:$C$8,MATCH('Toll Calculator'!$O$8,Conversions!$B$7:$B$8,0)) -> 46.98 | I10: =INDEX(Table_Attach3[FT-P Demand Rate Price Point "B"],MATCH(IF(CEILING(Table_CloseReceipt[[#This Row],[Distance (km)]],25)>500,999999,CEILING(Table_CloseReceipt[[#This Row],[Distance (km)]],25)),Table_Attach3[Maximum Distance Between Receipt Point and Delivery Point (km)],0),)*INDEX(Conversions!$C$7:$C$8,MATCH('Toll Calculator'!$O$8,Conversions!$B$7:$B$8,0)) -> 38.15 | J10: =INDEX(Table_Attach1[IT-R Rate ($/103m3/d)],MATCH(Table_CloseReceipt[[#This Row],[Station Number]], Table_Attach1[Receipt Point Number], 0))*INDEX(Conversions!$C$7:$C$8,MATCH('Toll Calculator'!$O$8, Conversions!$B$7:$B$8, 0))*_xlfn.SWITCH(UPPER(TRIM('Toll Calculator'!$O$8)),"IMPERIAL", (365/12),"METRIC", 1,1) -> 54.02
C11: =Table_ReceiptPointAlphabetical[[#This Row],[Alphabetical Order Rank]] -> 5 | D11: =INDEX(Table_ReceiptPoint[Receipt Point Number],MATCH(Table_CloseReceipt[[#This Row],[Rank]],Table_ReceiptPoint[Distance Rank to Delivery Location],0),) -> 30297 | E11: =INDEX(Table_ReceiptPoint[Receipt Point Name2],MATCH(Table_CloseReceipt[[#This Row],[Rank]],Table_ReceiptPoint[Distance Rank to Delivery Location],0),) -> KITSCOTY APN* | F11: =INDEX(Table_ReceiptPoint[Distance From Delivery Station],MATCH(Table_CloseReceipt[[#This Row],[Rank]],Table_ReceiptPoint[Distance Rank to Delivery Location],0),) -> 38.1728 | G11: =INDEX(Table_ReceiptPoint[Legal Location Name],MATCH(Table_CloseReceipt[[#This Row],[Rank]],Table_ReceiptPoint[Distance Rank to Delivery Location],0),) -> 08-18-050-02-W4 | H11: =INDEX(Table_Attach1[FT-R Demand Rate Price Point "B" ($/103m3/mo)],MATCH(Table_CloseReceipt[[#This Row],[Station Number]],Table_Attach1[Receipt Point Number],0),)*INDEX(Conversions!$C$7:$C$8,MATCH('Toll Calculator'!$O$8,Conversions!$B$7:$B$8,0)) -> 47.74 | I11: =INDEX(Table_Attach3[FT-P Demand Rate Price Point "B"],MATCH(IF(CEILING(Table_CloseReceipt[[#This Row],[Distance (km)]],25)>500,999999,CEILING(Table_CloseReceipt[[#This Row],[Distance (km)]],25)),Table_Attach3[Maximum Distance Between Receipt Point and Delivery Point (km)],0),)*INDEX(Conversions!$C$7:$C$8,MATCH('Toll Calculator'!$O$8,Conversions!$B$7:$B$8,0)) -> 38.15 | J11: =INDEX(Table_Attach1[IT-R Rate ($/103m3/d)],MATCH(Table_CloseReceipt[[#This Row],[Station Number]], Table_Attach1[Receipt Point Number], 0))*INDEX(Conversions!$C$7:$C$8,MATCH('Toll Calculator'!$O$8, Conversions!$B$7:$B$8, 0))*_xlfn.SWITCH(UPPER(TRIM('Toll Calculator'!$O$8)),"IMPERIAL", (365/12),"METRIC", 1,1) -> 54.9
C12: =Table_ReceiptPointAlphabetical[[#This Row],[Alphabetical Order Rank]] -> 6 | D12: =INDEX(Table_ReceiptPoint[Receipt Point Number],MATCH(Table_CloseReceipt[[#This Row],[Rank]],Table_ReceiptPoint[Distance Rank to Delivery Location],0),) -> 30218 | E12: =INDEX(Table_ReceiptPoint[Receipt Point Name2],MATCH(Table_CloseReceipt[[#This Row],[Rank]],Table_ReceiptPoint[Distance Rank to Delivery Location],0),) -> BLACKFOOT CREEK APN | F12: =INDEX(Table_ReceiptPoint[Distance From Delivery Station],MATCH(Table_CloseReceipt[[#This Row],[Rank]],Table_ReceiptPoint[Distance Rank to Delivery Location],0),) -> 39.0537 | G12: =INDEX(Table_ReceiptPoint[Legal Location Name],MATCH(Table_CloseReceipt[[#This Row],[Rank]],Table_ReceiptPoint[Distance Rank to Delivery Location],0),) -> SE-13-050-03-W4 | H12: =INDEX(Table_Attach1[FT-R Demand Rate Price Point "B" ($/103m3/mo)],MATCH(Table_CloseReceipt[[#This Row],[Station Number]],Table_Attach1[Receipt Point Number],0),)*INDEX(Conversions!$C$7:$C$8,MATCH('Toll Calculator'!$O$8,Conversions!$B$7:$B$8,0)) -> 47.74 | I12: =INDEX(Table_Attach3[FT-P Demand Rate Price Point "B"],MATCH(IF(CEILING(Table_CloseReceipt[[#This Row],[Distance (km)]],25)>500,999999,CEILING(Table_CloseReceipt[[#This Row],[Distance (km)]],25)),Table_Attach3[Maximum Distance Between Receipt Point and Delivery Point (km)],0),)*INDEX(Conversions!$C$7:$C$8,MATCH('Toll Calculator'!$O$8,Conversions!$B$7:$B$8,0)) -> 38.15 | J12: =INDEX(Table_Attach1[IT-R Rate ($/103m3/d)],MATCH(Table_CloseReceipt[[#This Row],[Station Number]], Table_Attach1[Receipt Point Number], 0))*INDEX(Conversions!$C$7:$C$8,MATCH('Toll Calculator'!$O$8, Conversions!$B$7:$B$8, 0))*_xlfn.SWITCH(UPPER(TRIM('Toll Calculator'!$O$8)),"IMPERIAL", (365/12),"METRIC", 1,1) -> 54.9
C13: =Table_ReceiptPointAlphabetical[[#This Row],[Alphabetical Order Rank]] -> 7 | D13: =INDEX(Table_ReceiptPoint[Receipt Point Number],MATCH(Table_CloseReceipt[[#This Row],[Rank]],Table_ReceiptPoint[Distance Rank to Delivery Location],0),) -> 1196 | E13: =INDEX(Table_ReceiptPoint[Receipt Point Name2],MATCH(Table_CloseReceipt[[#This Row],[Rank]],Table_ReceiptPoint[Distance Rank to Delivery Location],0),) -> CHAUVIN | F13: =INDEX(Table_ReceiptPoint[Distance From Delivery Station],MATCH(Table_CloseReceipt[[#This Row],[Rank]],Table_ReceiptPoint[Distance Rank to Delivery Location],0),) -> 39.5144 | G13: =INDEX(Table_ReceiptPoint[Legal Location Name],MATCH(Table_CloseReceipt[[#This Row],[Rank]],Table_ReceiptPoint[Distance Rank to Delivery Location],0),) -> 04-36-042-02-W4 | H13: =INDEX(Table_Attach1[FT-R Demand Rate Price Point "B" ($/103m3/mo)],MATCH(Table_CloseReceipt[[#This Row],[Station Number]],Table_Attach1[Receipt Point Number],0),)*INDEX(Conversions!$C$7:$C$8,MATCH('Toll Calculator'!$O$8,Conversions!$B$7:$B$8,0)) -> 47.74 | I13: =INDEX(Table_Attach3[FT-P Demand Rate Price Point "B"],MATCH(IF(CEILING(Table_CloseReceipt[[#This Row],[Distance (km)]],25)>500,999999,CEILING(Table_CloseReceipt[[#This Row],[Distance (km)]],25)),Table_Attach3[Maximum Distance Between Receipt Point and Delivery Point (km)],0),)*INDEX(Conversions!$C$7:$C$8,MATCH('Toll Calculator'!$O$8,Conversions!$B$7:$B$8,0)) -> 38.15 | J13: =INDEX(Table_Attach1[IT-R Rate ($/103m3/d)],MATCH(Table_CloseReceipt[[#This Row],[Station Number]], Table_Attach1[Receipt Point Number], 0))*INDEX(Conversions!$C$7:$C$8,MATCH('Toll Calculator'!$O$8, Conversions!$B$7:$B$8, 0))*_xlfn.SWITCH(UPPER(TRIM('Toll Calculator'!$O$8)),"IMPERIAL", (365/12),"METRIC", 1,1) -> 54.9
C14: =Table_ReceiptPointAlphabetical[[#This Row],[Alphabetical Order Rank]] -> 8 | D14: =INDEX(Table_ReceiptPoint[Receipt Point Number],MATCH(Table_CloseReceipt[[#This Row],[Rank]],Table_ReceiptPoint[Distance Rank to Delivery Location],0),) -> 1266 | E14: =INDEX(Table_ReceiptPoint[Receipt Point Name2],MATCH(Table_CloseReceipt[[#This Row],[Rank]],Table_ReceiptPoint[Distance Rank to Delivery Location],0),) -> EDGERTON WEST | F14: =INDEX(Table_ReceiptPoint[Distance From Delivery Station],MATCH(Table_CloseReceipt[[#This Row],[Rank]],Table_ReceiptPoint[Distance Rank to Delivery Location],0),) -> 42.06 | G14: =INDEX(Table_ReceiptPoint[Legal Location Name],MATCH(Table_CloseReceipt[[#This Row],[Rank]],Table_ReceiptPoint[Distance Rank to Delivery Location],0),) -> NW-36-044-05-W4 | H14: =INDEX(Table_Attach1[FT-R Demand Rate Price Point "B" ($/103m3/mo)],MATCH(Table_CloseReceipt[[#This Row],[Station Number]],Table_Attach1[Receipt Point Number],0),)*INDEX(Conversions!$C$7:$C$8,MATCH('Toll Calculator'!$O$8,Conversions!$B$7:$B$8,0)) -> 38.54 | I14: =INDEX(Table_Attach3[FT-P Demand Rate Price Point "B"],MATCH(IF(CEILING(Table_CloseReceipt[[#This Row],[Distance (km)]],25)>500,999999,CEILING(Table_CloseReceipt[[#This Row],[Distance (km)]],25)),Table_Attach3[Maximum Distance Between Receipt Point and Delivery Point (km)],0),)*INDEX(Conversions!$C$7:$C$8,MATCH('Toll Calculator'!$O$8,Conversions!$B$7:$B$8,0)) -> 38.15 | J14: =INDEX(Table_Attach1[IT-R Rate ($/103m3/d)],MATCH(Table_CloseReceipt[[#This Row],[Station Number]], Table_Attach1[Receipt Point Number], 0))*INDEX(Conversions!$C$7:$C$8,MATCH('Toll Calculator'!$O$8, Conversions!$B$7:$B$8, 0))*_xlfn.SWITCH(UPPER(TRIM('Toll Calculator'!$O$8)),"IMPERIAL", (365/12),"METRIC", 1,1) -> 44.33
C15: =Table_ReceiptPointAlphabetical[[#This Row],[Alphabetical Order Rank]] -> 9 | D15: =INDEX(Table_ReceiptPoint[Receipt Point Number],MATCH(Table_CloseReceipt[[#This Row],[Rank]],Table_ReceiptPoint[Distance Rank to Delivery Location],0),) -> 1334 | E15: =INDEX(Table_ReceiptPoint[Receipt Point Name2],MATCH(Table_CloseReceipt[[#This Row],[Rank]],Table_ReceiptPoint[Distance Rank to Delivery Location],0),) -> BAXTER LAKE B | F15: =INDEX(Table_ReceiptPoint[Distance From Delivery Station],MATCH(Table_CloseReceipt[[#This Row],[Rank]],Table_ReceiptPoint[Distance Rank to Delivery Location],0),) -> 42.2327 | G15: =INDEX(Table_ReceiptPoint[Legal Location Name],MATCH(Table_CloseReceipt[[#This Row],[Rank]],Table_ReceiptPoint[Distance Rank to Delivery Location],0),) -> NW-28-046-05-W4 | H15: =INDEX(Table_Attach1[FT-R Demand Rate Price Point "B" ($/103m3/mo)],MATCH(Table_CloseReceipt[[#This Row],[Station Number]],Table_Attach1[Receipt Point Number],0),)*INDEX(Conversions!$C$7:$C$8,MATCH('Toll Calculator'!$O$8,Conversions!$B$7:$B$8,0)) -> 41.27 | I15: =INDEX(Table_Attach3[FT-P Demand Rate Price Point "B"],MATCH(IF(CEILING(Table_CloseReceipt[[#This Row],[Distance (km)]],25)>500,999999,CEILING(Table_CloseReceipt[[#This Row],[Distance (km)]],25)),Table_Attach3[Maximum Distance Between Receipt Point and Delivery Point (km)],0),)*INDEX(Conversions!$C$7:$C$8,MATCH('Toll Calculator'!$O$8,Conversions!$B$7:$B$8,0)) -> 38.15 | J15: =INDEX(Table_Attach1[IT-R Rate ($/103m3/d)],MATCH(Table_CloseReceipt[[#This Row],[Station Number]], Table_Attach1[Receipt Point Number], 0))*INDEX(Conversions!$C$7:$C$8,MATCH('Toll Calculator'!$O$8, Conversions!$B$7:$B$8, 0))*_xlfn.SWITCH(UPPER(TRIM('Toll Calculator'!$O$8)),"IMPERIAL", (365/12),"METRIC", 1,1) -> 47.48
C16: =Table_ReceiptPointAlphabetical[[#This Row],[Alphabetical Order Rank]] -> 10 | D16: =INDEX(Table_ReceiptPoint[Receipt Point Number],MATCH(Table_CloseReceipt[[#This Row],[Rank]],Table_ReceiptPoint[Distance Rank to Delivery Location],0),) -> 1197 | E16: =INDEX(Table_ReceiptPoint[Receipt Point Name2],MATCH(Table_CloseReceipt[[#This Row],[Rank]],Table_ReceiptPoint[Distance Rank to Delivery Location],0),) -> BAXTER LAKE | F16: =INDEX(Table_ReceiptPoint[Distance From Delivery Station],MATCH(Table_CloseReceipt[[#This Row],[Rank]],Table_ReceiptPoint[Distance Rank to Delivery Location],0),) -> 42.3046 | G16: =INDEX(Table_ReceiptPoint[Legal Location Name],MATCH(Table_CloseReceipt[[#This Row],[Rank]],Table_ReceiptPoint[Distance Rank to Delivery Location],0),) -> SW-28-046-05-W4 | H16: =INDEX(Table_Attach1[FT-R Demand Rate Price Point "B" ($/103m3/mo)],MATCH(Table_CloseReceipt[[#This Row],[Station Number]],Table_Attach1[Receipt Point Number],0),)*INDEX(Conversions!$C$7:$C$8,MATCH('Toll Calculator'!$O$8,Conversions!$B$7:$B$8,0)) -> 41.27 | I16: =INDEX(Table_Attach3[FT-P Demand Rate Price Point "B"],MATCH(IF(CEILING(Table_CloseReceipt[[#This Row],[Distance (km)]],25)>500,999999,CEILING(Table_CloseReceipt[[#This Row],[Distance (km)]],25)),Table_Attach3[Maximum Distance Between Receipt Point and Delivery Point (km)],0),)*INDEX(Conversions!$C$7:$C$8,MATCH('Toll Calculator'!$O$8,Conversions!$B$7:$B$8,0)) -> 38.15 | J16: =INDEX(Table_Attach1[IT-R Rate ($/103m3/d)],MATCH(Table_CloseReceipt[[#This Row],[Station Number]], Table_Attach1[Receipt Point Number], 0))*INDEX(Conversions!$C$7:$C$8,MATCH('Toll Calculator'!$O$8, Conversions!$B$7:$B$8, 0))*_xlfn.SWITCH(UPPER(TRIM('Toll Calculator'!$O$8)),"IMPERIAL", (365/12),"METRIC", 1,1) -> 47.48
C17: =Table_ReceiptPointAlphabetical[[#This Row],[Alphabetical Order Rank]] -> 11 | D17: =INDEX(Table_ReceiptPoint[Receipt Point Number],MATCH(Table_CloseReceipt[[#This Row],[Rank]],Table_ReceiptPoint[Distance Rank to Delivery Location],0),) -> 30294 | E17: =INDEX(Table_ReceiptPoint[Receipt Point Name2],MATCH(Table_CloseReceipt[[#This Row],[Rank]],Table_ReceiptPoint[Distance Rank to Delivery Location],0),) -> KENILWORTH APN | F17: =INDEX(Table_ReceiptPoint[Distance From Delivery Station],MATCH(Table_CloseReceipt[[#This Row],[Rank]],Table_ReceiptPoint[Distance Rank to Delivery Location],0),) -> 42.6654 | G17: =INDEX(Table_ReceiptPoint[Legal Location Name],MATCH(Table_CloseReceipt[[#This Row],[Rank]],Table_ReceiptPoint[Distance Rank to Delivery Location],0),) -> 02-02-050-04-W4 | H17: =INDEX(Table_Attach1[FT-R Demand Rate Price Point "B" ($/103m3/mo)],MATCH(Table_CloseReceipt[[#This Row],[Station Number]],Table_Attach1[Receipt Point Number],0),)*INDEX(Conversions!$C$7:$C$8,MATCH('Toll Calculator'!$O$8,Conversions!$B$7:$B$8,0)) -> 47.74 | I17: =INDEX(Table_Attach3[FT-P Demand Rate Price Point "B"],MATCH(IF(CEILING(Table_CloseReceipt[[#This Row],[Distance (km)]],25)>500,999999,CEILING(Table_CloseReceipt[[#This Row],[Distance (km)]],25)),Table_Attach3[Maximum Distance Between Receipt Point and Delivery Point (km)],0),)*INDEX(Conversions!$C$7:$C$8,MATCH('Toll Calculator'!$O$8,Conversions!$B$7:$B$8,0)) -> 38.15 | J17: =INDEX(Table_Attach1[IT-R Rate ($/103m3/d)],MATCH(Table_CloseReceipt[[#This Row],[Station Number]], Table_Attach1[Receipt Point Number], 0))*INDEX(Conversions!$C$7:$C$8,MATCH('Toll Calculator'!$O$8, Conversions!$B$7:$B$8, 0))*_xlfn.SWITCH(UPPER(TRIM('Toll Calculator'!$O$8)),"IMPERIAL", (365/12),"METRIC", 1,1) -> 54.9
C18: =Table_ReceiptPointAlphabetical[[#This Row],[Alphabetical Order Rank]] -> 12 | D18: =INDEX(Table_ReceiptPoint[Receipt Point Number],MATCH(Table_CloseReceipt[[#This Row],[Rank]],Table_ReceiptPoint[Distance Rank to Delivery Location],0),) -> 30303 | E18: =INDEX(Table_ReceiptPoint[Receipt Point Name2],MATCH(Table_CloseReceipt[[#This Row],[Rank]],Table_ReceiptPoint[Distance Rank to Delivery Location],0),) -> LLOYDMINSTER A APN* | F18: =INDEX(Table_ReceiptPoint[Distance From Delivery Station],MATCH(Table_CloseReceipt[[#This Row],[Rank]],Table_ReceiptPoint[Distance Rank to Delivery Location],0),) -> 42.9413 | G18: =INDEX(Table_ReceiptPoint[Legal Location Name],MATCH(Table_CloseReceipt[[#This Row],[Rank]],Table_ReceiptPoint[Distance Rank to Delivery Location],0),) -> 07-11-051-01-W4 | H18: =INDEX(Table_Attach1[FT-R Demand Rate Price Point "B" ($/103m3/mo)],MATCH(Table_CloseReceipt[[#This Row],[Station Number]],Table_Attach1[Receipt Point Number],0),)*INDEX(Conversions!$C$7:$C$8,MATCH('Toll Calculator'!$O$8,Conversions!$B$7:$B$8,0)) -> 47.74 | I18: =INDEX(Table_Attach3[FT-P Demand Rate Price Point "B"],MATCH(IF(CEILING(Table_CloseReceipt[[#This Row],[Distance (km)]],25)>500,999999,CEILING(Table_CloseReceipt[[#This Row],[Distance (km)]],25)),Table_Attach3[Maximum Distance Between Receipt Point and Delivery Point (km)],0),)*INDEX(Conversions!$C$7:$C$8,MATCH('Toll Calculator'!$O$8,Conversions!$B$7:$B$8,0)) -> 38.15 | J18: =INDEX(Table_Attach1[IT-R Rate ($/103m3/d)],MATCH(Table_CloseReceipt[[#This Row],[Station Number]], Table_Attach1[Receipt Point Number], 0))*INDEX(Conversions!$C$7:$C$8,MATCH('Toll Calculator'!$O$8, Conversions!$B$7:$B$8, 0))*_xlfn.SWITCH(UPPER(TRIM('Toll Calculator'!$O$8)),"IMPERIAL", (365/12),"METRIC", 1,1) -> 54.9
C19: =Table_ReceiptPointAlphabetical[[#This Row],[Alphabetical Order Rank]] -> 13 | D19: =INDEX(Table_ReceiptPoint[Receipt Point Number],MATCH(Table_CloseReceipt[[#This Row],[Rank]],Table_ReceiptPoint[Distance Rank to Delivery Location],0),) -> 1198 | E19: =INDEX(Table_ReceiptPoint[Receipt Point Name2],MATCH(Table_CloseReceipt[[#This Row],[Rank]],Table_ReceiptPoint[Distance Rank to Delivery Location],0),) -> BAXTER LAKE WEST* | F19: =INDEX(Table_ReceiptPoint[Distance From Delivery Station],MATCH(Table_CloseReceipt[[#This Row],[Rank]],Table_ReceiptPoint[Distance Rank to Delivery Location],0),) -> 43.3695 | G19: =INDEX(Table_ReceiptPoint[Legal Location Name],MATCH(Table_CloseReceipt[[#This Row],[Rank]],Table_ReceiptPoint[Distance Rank to Delivery Location],0),) -> NW-28-045-05-W4 | H19: =INDEX(Table_Attach1[FT-R Demand Rate Price Point "B" ($/103m3/mo)],MATCH(Table_CloseReceipt[[#This Row],[Station Number]],Table_Attach1[Receipt Point Number],0),)*INDEX(Conversions!$C$7:$C$8,MATCH('Toll Calculator'!$O$8,Conversions!$B$7:$B$8,0)) -> 39.77 | I19: =INDEX(Table_Attach3[FT-P Demand Rate Price Point "B"],MATCH(IF(CEILING(Table_CloseReceipt[[#This Row],[Distance (km)]],25)>500,999999,CEILING(Table_CloseReceipt[[#This Row],[Distance (km)]],25)),Table_Attach3[Maximum Distance Between Receipt Point and Delivery Point (km)],0),)*INDEX(Conversions!$C$7:$C$8,MATCH('Toll Calculator'!$O$8,Conversions!$B$7:$B$8,0)) -> 38.15 | J19: =INDEX(Table_Attach1[IT-R Rate ($/103m3/d)],MATCH(Table_CloseReceipt[[#This Row],[Station Number]], Table_Attach1[Receipt Point Number], 0))*INDEX(Conversions!$C$7:$C$8,MATCH('Toll Calculator'!$O$8, Conversions!$B$7:$B$8, 0))*_xlfn.SWITCH(UPPER(TRIM('Toll Calculator'!$O$8)),"IMPERIAL", (365/12),"METRIC", 1,1) -> 45.75
C20: =Table_ReceiptPointAlphabetical[[#This Row],[Alphabetical Order Rank]] -> 14 | D20: =INDEX(Table_ReceiptPoint[Receipt Point Number],MATCH(Table_CloseReceipt[[#This Row],[Rank]],Table_ReceiptPoint[Distance Rank to Delivery Location],0),) -> 1665 | E20: =INDEX(Table_ReceiptPoint[Receipt Point Name2],MATCH(Table_CloseReceipt[[#This Row],[Rank]],Table_ReceiptPoint[Distance Rank to Delivery Location],0),) -> PARSONS LAKE* | F20: =INDEX(Table_ReceiptPoint[Distance From Delivery Station],MATCH(Table_CloseReceipt[[#This Row],[Rank]],Table_ReceiptPoint[Distance Rank to Delivery Location],0),) -> 43.9168 | G20: =INDEX(Table_ReceiptPoint[Legal Location Name],MATCH(Table_CloseReceipt[[#This Row],[Rank]],Table_ReceiptPoint[Distance Rank to Delivery Location],0),) -> 12-07-044-04-W4 | H20: =INDEX(Table_Attach1[FT-R Demand Rate Price Point "B" ($/103m3/mo)],MATCH(Table_CloseReceipt[[#This Row],[Station Number]],Table_Attach1[Receipt Point Number],0),)*INDEX(Conversions!$C$7:$C$8,MATCH('Toll Calculator'!$O$8,Conversions!$B$7:$B$8,0)) -> 39.99 | I20: =INDEX(Table_Attach3[FT-P Demand Rate Price Point "B"],MATCH(IF(CEILING(Table_CloseReceipt[[#This Row],[Distance (km)]],25)>500,999999,CEILING(Table_CloseReceipt[[#This Row],[Distance (km)]],25)),Table_Attach3[Maximum Distance Between Receipt Point and Delivery Point (km)],0),)*INDEX(Conversions!$C$7:$C$8,MATCH('Toll Calculator'!$O$8,Conversions!$B$7:$B$8,0)) -> 38.15 | J20: =INDEX(Table_Attach1[IT-R Rate ($/103m3/d)],MATCH(Table_CloseReceipt[[#This Row],[Station Number]], Table_Attach1[Receipt Point Number], 0))*INDEX(Conversions!$C$7:$C$8,MATCH('Toll Calculator'!$O$8, Conversions!$B$7:$B$8, 0))*_xlfn.SWITCH(UPPER(TRIM('Toll Calculator'!$O$8)),"IMPERIAL", (365/12),"METRIC", 1,1) -> 45.98
C21: =Table_ReceiptPointAlphabetical[[#This Row],[Alphabetical Order Rank]] -> 15 | D21: =INDEX(Table_ReceiptPoint[Receipt Point Number],MATCH(Table_CloseReceipt[[#This Row],[Rank]],Table_ReceiptPoint[Distance Rank to Delivery Location],0),) -> 1383 | E21: =INDEX(Table_ReceiptPoint[Receipt Point Name2],MATCH(Table_CloseReceipt[[#This Row],[Rank]],Table_ReceiptPoint[Distance Rank to Delivery Location],0),) -> WAINWRIGHT EAST | F21: =INDEX(Table_ReceiptPoint[Distance From Delivery Station],MATCH(Table_CloseReceipt[[#This Row],[Rank]],Table_ReceiptPoint[Distance Rank to Delivery Location],0),) -> 47.438 | G21: =INDEX(Table_ReceiptPoint[Legal Location Name],MATCH(Table_CloseReceipt[[#This Row],[Rank]],Table_ReceiptPoint[Distance Rank to Delivery Location],0),) -> NE-04-043-04-W4 | H21: =INDEX(Table_Attach1[FT-R Demand Rate Price Point "B" ($/103m3/mo)],MATCH(Table_CloseReceipt[[#This Row],[Station Number]],Table_Attach1[Receipt Point Number],0),)*INDEX(Conversions!$C$7:$C$8,MATCH('Toll Calculator'!$O$8,Conversions!$B$7:$B$8,0)) -> 43.01 | I21: =INDEX(Table_Attach3[FT-P Demand Rate Price Point "B"],MATCH(IF(CEILING(Table_CloseReceipt[[#This Row],[Distance (km)]],25)>500,999999,CEILING(Table_CloseReceipt[[#This Row],[Distance (km)]],25)),Table_Attach3[Maximum Distance Between Receipt Point and Delivery Point (km)],0),)*INDEX(Conversions!$C$7:$C$8,MATCH('Toll Calculator'!$O$8,Conversions!$B$7:$B$8,0)) -> 38.15 | J21: =INDEX(Table_Attach1[IT-R Rate ($/103m3/d)],MATCH(Table_CloseReceipt[[#This Row],[Station Number]], Table_Attach1[Receipt Point Number], 0))*INDEX(Conversions!$C$7:$C$8,MATCH('Toll Calculator'!$O$8, Conversions!$B$7:$B$8, 0))*_xlfn.SWITCH(UPPER(TRIM('Toll Calculator'!$O$8)),"IMPERIAL", (365/12),"METRIC", 1,1) -> 49.46
C22: =Table_ReceiptPointAlphabetical[[#This Row],[Alphabetical Order Rank]] -> 16 | D22: =INDEX(Table_ReceiptPoint[Receipt Point Number],MATCH(Table_CloseReceipt[[#This Row],[Rank]],Table_ReceiptPoint[Distance Rank to Delivery Location],0),) -> 1382 | E22: =INDEX(Table_ReceiptPoint[Receipt Point Name2],MATCH(Table_CloseReceipt[[#This Row],[Rank]],Table_ReceiptPoint[Distance Rank to Delivery Location],0),) -> BAXTER LAKE NORTHWEST | F22: =INDEX(Table_ReceiptPoint[Distance From Delivery Station],MATCH(Table_CloseReceipt[[#This Row],[Rank]],Table_ReceiptPoint[Distance Rank to Delivery Location],0),) -> 49.4145 | G22: =INDEX(Table_ReceiptPoint[Legal Location Name],MATCH(Table_CloseReceipt[[#This Row],[Rank]],Table_ReceiptPoint[Distance Rank to Delivery Location],0),) -> NW-14-046-06-W4 | H22: =INDEX(Table_Attach1[FT-R Demand Rate Price Point "B" ($/103m3/mo)],MATCH(Table_CloseReceipt[[#This Row],[Station Number]],Table_Attach1[Receipt Point Number],0),)*INDEX(Conversions!$C$7:$C$8,MATCH('Toll Calculator'!$O$8,Conversions!$B$7:$B$8,0)) -> 45.62 | I22: =INDEX(Table_Attach3[FT-P Demand Rate Price Point "B"],MATCH(IF(CEILING(Table_CloseReceipt[[#This Row],[Distance (km)]],25)>500,999999,CEILING(Table_CloseReceipt[[#This Row],[Distance (km)]],25)),Table_Attach3[Maximum Distance Between Receipt Point and Delivery Point (km)],0),)*INDEX(Conversions!$C$7:$C$8,MATCH('Toll Calculator'!$O$8,Conversions!$B$7:$B$8,0)) -> 38.15 | J22: =INDEX(Table_Attach1[IT-R Rate ($/103m3/d)],MATCH(Table_CloseReceipt[[#This Row],[Station Number]], Table_Attach1[Receipt Point Number], 0))*INDEX(Conversions!$C$7:$C$8,MATCH('Toll Calculator'!$O$8, Conversions!$B$7:$B$8, 0))*_xlfn.SWITCH(UPPER(TRIM('Toll Calculator'!$O$8)),"IMPERIAL", (365/12),"METRIC", 1,1) -> 52.46
C23: =Table_ReceiptPointAlphabetical[[#This Row],[Alphabetical Order Rank]] -> 17 | D23: =INDEX(Table_ReceiptPoint[Receipt Point Number],MATCH(Table_CloseReceipt[[#This Row],[Rank]],Table_ReceiptPoint[Distance Rank to Delivery Location],0),) -> 30304 | E23: =INDEX(Table_ReceiptPoint[Receipt Point Name2],MATCH(Table_CloseReceipt[[#This Row],[Rank]],Table_ReceiptPoint[Distance Rank to Delivery Location],0),) -> LLOYDMINSTER B APN* | F23: =INDEX(Table_ReceiptPoint[Distance From Delivery Station],MATCH(Table_CloseReceipt[[#This Row],[Rank]],Table_ReceiptPoint[Distance Rank to Delivery Location],0),) -> 51.2236 | G23: =INDEX(Table_ReceiptPoint[Legal Location Name],MATCH(Table_CloseReceipt[[#This Row],[Rank]],Table_ReceiptPoint[Distance Rank to Delivery Location],0),) -> 10-17-051-03-W4 | H23: =INDEX(Table_Attach1[FT-R Demand Rate Price Point "B" ($/103m3/mo)],MATCH(Table_CloseReceipt[[#This Row],[Station Number]],Table_Attach1[Receipt Point Number],0),)*INDEX(Conversions!$C$7:$C$8,MATCH('Toll Calculator'!$O$8,Conversions!$B$7:$B$8,0)) -> 47.74 | I23: =INDEX(Table_Attach3[FT-P Demand Rate Price Point "B"],MATCH(IF(CEILING(Table_CloseReceipt[[#This Row],[Distance (km)]],25)>500,999999,CEILING(Table_CloseReceipt[[#This Row],[Distance (km)]],25)),Table_Attach3[Maximum Distance Between Receipt Point and Delivery Point (km)],0),)*INDEX(Conversions!$C$7:$C$8,MATCH('Toll Calculator'!$O$8,Conversions!$B$7:$B$8,0)) -> 40.35 | J23: =INDEX(Table_Attach1[IT-R Rate ($/103m3/d)],MATCH(Table_CloseReceipt[[#This Row],[Station Number]], Table_Attach1[Receipt Point Number], 0))*INDEX(Conversions!$C$7:$C$8,MATCH('Toll Calculator'!$O$8, Conversions!$B$7:$B$8, 0))*_xlfn.SWITCH(UPPER(TRIM('Toll Calculator'!$O$8)),"IMPERIAL", (365/12),"METRIC", 1,1) -> 54.9
C24: =Table_ReceiptPointAlphabetical[[#This Row],[Alphabetical Order Rank]] -> 18 | D24: =INDEX(Table_ReceiptPoint[Receipt Point Number],MATCH(Table_CloseReceipt[[#This Row],[Rank]],Table_ReceiptPoint[Distance Rank to Delivery Location],0),) -> 1199 | E24: =INDEX(Table_ReceiptPoint[Receipt Point Name2],MATCH(Table_CloseReceipt[[#This Row],[Rank]],Table_ReceiptPoint[Distance Rank to Delivery Location],0),) -> WAINWRIGHT SOUTH* | F24: =INDEX(Table_ReceiptPoint[Distance From Delivery Station],MATCH(Table_CloseReceipt[[#This Row],[Rank]],Table_ReceiptPoint[Distance Rank to Delivery Location],0),) -> 54.7069 | G24: =INDEX(Table_ReceiptPoint[Legal Location Name],MATCH(Table_CloseReceipt[[#This Row],[Rank]],Table_ReceiptPoint[Distance Rank to Delivery Location],0),) -> 13-36-043-06-W4 | H24: =INDEX(Table_Attach1[FT-R Demand Rate Price Point "B" ($/103m3/mo)],MATCH(Table_CloseReceipt[[#This Row],[Station Number]],Table_Attach1[Receipt Point Number],0),)*INDEX(Conversions!$C$7:$C$8,MATCH('Toll Calculator'!$O$8,Conversions!$B$7:$B$8,0)) -> 36.52 | I24: =INDEX(Table_Attach3[FT-P Demand Rate Price Point "B"],MATCH(IF(CEILING(Table_CloseReceipt[[#This Row],[Distance (km)]],25)>500,999999,CEILING(Table_CloseReceipt[[#This Row],[Distance (km)]],25)),Table_Attach3[Maximum Distance Between Receipt Point and Delivery Point (km)],0),)*INDEX(Conversions!$C$7:$C$8,MATCH('Toll Calculator'!$O$8,Conversions!$B$7:$B$8,0)) -> 40.35 | J24: =INDEX(Table_Attach1[IT-R Rate ($/103m3/d)],MATCH(Table_CloseReceipt[[#This Row],[Station Number]], Table_Attach1[Receipt Point Number], 0))*INDEX(Conversions!$C$7:$C$8,MATCH('Toll Calculator'!$O$8, Conversions!$B$7:$B$8, 0))*_xlfn.SWITCH(UPPER(TRIM('Toll Calculator'!$O$8)),"IMPERIAL", (365/12),"METRIC", 1,1) -> 42.01
C25: =Table_ReceiptPointAlphabetical[[#This Row],[Alphabetical Order Rank]] -> 19 | D25: =INDEX(Table_ReceiptPoint[Receipt Point Number],MATCH(Table_CloseReceipt[[#This Row],[Rank]],Table_ReceiptPoint[Distance Rank to Delivery Location],0),) -> 30372 | E25: =INDEX(Table_ReceiptPoint[Receipt Point Name2],MATCH(Table_CloseReceipt[[#This Row],[Rank]],Table_ReceiptPoint[Distance Rank to Delivery Location],0),) -> VERMILION APN* | F25: =INDEX(Table_ReceiptPoint[Distance From Delivery Station],MATCH(Table_CloseReceipt[[#This Row],[Rank]],Table_ReceiptPoint[Distance Rank to Delivery Location],0),) -> 55.724 | G25: =INDEX(Table_ReceiptPoint[Legal Location Name],MATCH(Table_CloseReceipt[[#This Row],[Rank]],Table_ReceiptPoint[Distance Rank to Delivery Location],0),) -> 03-21-050-05-W4 | H25: =INDEX(Table_Attach1[FT-R Demand Rate Price Point "B" ($/103m3/mo)],MATCH(Table_CloseReceipt[[#This Row],[Station Number]],Table_Attach1[Receipt Point Number],0),)*INDEX(Conversions!$C$7:$C$8,MATCH('Toll Calculator'!$O$8,Conversions!$B$7:$B$8,0)) -> 47.74 | I25: =INDEX(Table_Attach3[FT-P Demand Rate Price Point "B"],MATCH(IF(CEILING(Table_CloseReceipt[[#This Row],[Distance (km)]],25)>500,999999,CEILING(Table_CloseReceipt[[#This Row],[Distance (km)]],25)),Table_Attach3[Maximum Distance Between Receipt Point and Delivery Point (km)],0),)*INDEX(Conversions!$C$7:$C$8,MATCH('Toll Calculator'!$O$8,Conversions!$B$7:$B$8,0)) -> 40.35 | J25: =INDEX(Table_Attach1[IT-R Rate ($/103m3/d)],MATCH(Table_CloseReceipt[[#This Row],[Station Number]], Table_Attach1[Receipt Point Number], 0))*INDEX(Conversions!$C$7:$C$8,MATCH('Toll Calculator'!$O$8, Conversions!$B$7:$B$8, 0))*_xlfn.SWITCH(UPPER(TRIM('Toll Calculator'!$O$8)),"IMPERIAL", (365/12),"METRIC", 1,1) -> 54.9
C26: =Table_ReceiptPointAlphabetical[[#This Row],[Alphabetical Order Rank]] -> 20 | D26: =INDEX(Table_ReceiptPoint[Receipt Point Number],MATCH(Table_CloseReceipt[[#This Row],[Rank]],Table_ReceiptPoint[Distance Rank to Delivery Location],0),) -> 30383 | E26: =INDEX(Table_ReceiptPoint[Receipt Point Name2],MATCH(Table_CloseReceipt[[#This Row],[Rank]],Table_ReceiptPoint[Distance Rank to Delivery Location],0),) -> WILDMERE SOUTH APN* | F26: =INDEX(Table_ReceiptPoint[Distance From Delivery Station],MATCH(Table_CloseReceipt[[#This Row],[Rank]],Table_ReceiptPoint[Distance Rank to Delivery Location],0),) -> 55.9829 | G26: =INDEX(Table_ReceiptPoint[Legal Location Name],MATCH(Table_CloseReceipt[[#This Row],[Rank]],Table_ReceiptPoint[Distance Rank to Delivery Location],0),) -> 13-05-048-06-W4 | H26: =INDEX(Table_Attach1[FT-R Demand Rate Price Point "B" ($/103m3/mo)],MATCH(Table_CloseReceipt[[#This Row],[Station Number]],Table_Attach1[Receipt Point Number],0),)*INDEX(Conversions!$C$7:$C$8,MATCH('Toll Calculator'!$O$8,Conversions!$B$7:$B$8,0)) -> 47.74 | I26: =INDEX(Table_Attach3[FT-P Demand Rate Price Point "B"],MATCH(IF(CEILING(Table_CloseReceipt[[#This Row],[Distance (km)]],25)>500,999999,CEILING(Table_CloseReceipt[[#This Row],[Distance (km)]],25)),Table_Attach3[Maximum Distance Between Receipt Point and Delivery Point (km)],0),)*INDEX(Conversions!$C$7:$C$8,MATCH('Toll Calculator'!$O$8,Conversions!$B$7:$B$8,0)) -> 40.35 | J26: =INDEX(Table_Attach1[IT-R Rate ($/103m3/d)],MATCH(Table_CloseReceipt[[#This Row],[Station Number]], Table_Attach1[Receipt Point Number], 0))*INDEX(Conversions!$C$7:$C$8,MATCH('Toll Calculator'!$O$8, Conversions!$B$7:$B$8, 0))*_xlfn.SWITCH(UPPER(TRIM('Toll Calculator'!$O$8)),"IMPERIAL", (365/12),"METRIC", 1,1) -> 54.9
C27: =Table_ReceiptPointAlphabetical[[#This Row],[Alphabetical Order Rank]] -> 21 | D27: =INDEX(Table_ReceiptPoint[Receipt Point Number],MATCH(Table_CloseReceipt[[#This Row],[Rank]],Table_ReceiptPoint[Distance Rank to Delivery Location],0),) -> 30382 | E27: =INDEX(Table_ReceiptPoint[Receipt Point Name2],MATCH(Table_CloseReceipt[[#This Row],[Rank]],Table_ReceiptPoint[Distance Rank to Delivery Location],0),) -> WILDMERE NORTH APN* | F27: =INDEX(Table_ReceiptPoint[Distance From Delivery Station],MATCH(Table_CloseReceipt[[#This Row],[Rank]],Table_ReceiptPoint[Distance Rank to Delivery Location],0),) -> 56.763 | G27: =INDEX(Table_ReceiptPoint[Legal Location Name],MATCH(Table_CloseReceipt[[#This Row],[Rank]],Table_ReceiptPoint[Distance Rank to Delivery Location],0),) -> NW-20-048-06-W4 | H27: =INDEX(Table_Attach1[FT-R Demand Rate Price Point "B" ($/103m3/mo)],MATCH(Table_CloseReceipt[[#This Row],[Station Number]],Table_Attach1[Receipt Point Number],0),)*INDEX(Conversions!$C$7:$C$8,MATCH('Toll Calculator'!$O$8,Conversions!$B$7:$B$8,0)) -> 47.74 | I27: =INDEX(Table_Attach3[FT-P Demand Rate Price Point "B"],MATCH(IF(CEILING(Table_CloseReceipt[[#This Row],[Distance (km)]],25)>500,999999,CEILING(Table_CloseReceipt[[#This Row],[Distance (km)]],25)),Table_Attach3[Maximum Distance Between Receipt Point and Delivery Point (km)],0),)*INDEX(Conversions!$C$7:$C$8,MATCH('Toll Calculator'!$O$8,Conversions!$B$7:$B$8,0)) -> 40.35 | J27: =INDEX(Table_Attach1[IT-R Rate ($/103m3/d)],MATCH(Table_CloseReceipt[[#This Row],[Station Number]], Table_Attach1[Receipt Point Number], 0))*INDEX(Conversions!$C$7:$C$8,MATCH('Toll Calculator'!$O$8, Conversions!$B$7:$B$8, 0))*_xlfn.SWITCH(UPPER(TRIM('Toll Calculator'!$O$8)),"IMPERIAL", (365/12),"METRIC", 1,1) -> 54.9
C28: =Table_ReceiptPointAlphabetical[[#This Row],[Alphabetical Order Rank]] -> 22 | D28: =INDEX(Table_ReceiptPoint[Receipt Point Number],MATCH(Table_CloseReceipt[[#This Row],[Rank]],Table_ReceiptPoint[Distance Rank to Delivery Location],0),) -> 30272 | E28: =INDEX(Table_ReceiptPoint[Receipt Point Name2],MATCH(Table_CloseReceipt[[#This Row],[Rank]],Table_ReceiptPoint[Distance Rank to Delivery Location],0),) -> GRIZZLY BEAR CREEK APN | F28: =INDEX(Table_ReceiptPoint[Distance From Delivery Station],MATCH(Table_CloseReceipt[[#This Row],[Rank]],Table_ReceiptPoint[Distance Rank to Delivery Location],0),) -> 57.7368 | G28: =INDEX(Table_ReceiptPoint[Legal Location Name],MATCH(Table_CloseReceipt[[#This Row],[Rank]],Table_ReceiptPoint[Distance Rank to Delivery Location],0),) -> 02-05-049-06-W4 | H28: =INDEX(Table_Attach1[FT-R Demand Rate Price Point "B" ($/103m3/mo)],MATCH(Table_CloseReceipt[[#This Row],[Station Number]],Table_Attach1[Receipt Point Number],0),)*INDEX(Conversions!$C$7:$C$8,MATCH('Toll Calculator'!$O$8,Conversions!$B$7:$B$8,0)) -> 47.74 | I28: =INDEX(Table_Attach3[FT-P Demand Rate Price Point "B"],MATCH(IF(CEILING(Table_CloseReceipt[[#This Row],[Distance (km)]],25)>500,999999,CEILING(Table_CloseReceipt[[#This Row],[Distance (km)]],25)),Table_Attach3[Maximum Distance Between Receipt Point and Delivery Point (km)],0),)*INDEX(Conversions!$C$7:$C$8,MATCH('Toll Calculator'!$O$8,Conversions!$B$7:$B$8,0)) -> 40.35 | J28: =INDEX(Table_Attach1[IT-R Rate ($/103m3/d)],MATCH(Table_CloseReceipt[[#This Row],[Station Number]], Table_Attach1[Receipt Point Number], 0))*INDEX(Conversions!$C$7:$C$8,MATCH('Toll Calculator'!$O$8, Conversions!$B$7:$B$8, 0))*_xlfn.SWITCH(UPPER(TRIM('Toll Calculator'!$O$8)),"IMPERIAL", (365/12),"METRIC", 1,1) -> 54.9
C29: =Table_ReceiptPointAlphabetical[[#This Row],[Alphabetical Order Rank]] -> 23 | D29: =INDEX(Table_ReceiptPoint[Receipt Point Number],MATCH(Table_CloseReceipt[[#This Row],[Rank]],Table_ReceiptPoint[Distance Rank to Delivery Location],0),) -> 30287 | E29: =INDEX(Table_ReceiptPoint[Receipt Point Name2],MATCH(Table_CloseReceipt[[#This Row],[Rank]],Table_ReceiptPoint[Distance Rank to Delivery Location],0),) -> IRMA NORTH APN* | F29: =INDEX(Table_ReceiptPoint[Distance From Delivery Station],MATCH(Table_CloseReceipt[[#This Row],[Rank]],Table_ReceiptPoint[Distance Rank to Delivery Location],0),) -> 59.0337 | G29: =INDEX(Table_ReceiptPoint[Legal Location Name],MATCH(Table_CloseReceipt[[#This Row],[Rank]],Table_ReceiptPoint[Distance Rank to Delivery Location],0),) -> 11-12-048-07-W4 | H29: =INDEX(Table_Attach1[FT-R Demand Rate Price Point "B" ($/103m3/mo)],MATCH(Table_CloseReceipt[[#This Row],[Station Number]],Table_Attach1[Receipt Point Number],0),)*INDEX(Conversions!$C$7:$C$8,MATCH('Toll Calculator'!$O$8,Conversions!$B$7:$B$8,0)) -> 47.74 | I29: =INDEX(Table_Attach3[FT-P Demand Rate Price Point "B"],MATCH(IF(CEILING(Table_CloseReceipt[[#This Row],[Distance (km)]],25)>500,999999,CEILING(Table_CloseReceipt[[#This Row],[Distance (km)]],25)),Table_Attach3[Maximum Distance Between Receipt Point and Delivery Point (km)],0),)*INDEX(Conversions!$C$7:$C$8,MATCH('Toll Calculator'!$O$8,Conversions!$B$7:$B$8,0)) -> 40.35 | J29: =INDEX(Table_Attach1[IT-R Rate ($/103m3/d)],MATCH(Table_CloseReceipt[[#This Row],[Station Number]], Table_Attach1[Receipt Point Number], 0))*INDEX(Conversions!$C$7:$C$8,MATCH('Toll Calculator'!$O$8, Conversions!$B$7:$B$8, 0))*_xlfn.SWITCH(UPPER(TRIM('Toll Calculator'!$O$8)),"IMPERIAL", (365/12),"METRIC", 1,1) -> 54.9
C30: =Table_ReceiptPointAlphabetical[[#This Row],[Alphabetical Order Rank]] -> 24 | D30: =INDEX(Table_ReceiptPoint[Receipt Point Number],MATCH(Table_CloseReceipt[[#This Row],[Rank]],Table_ReceiptPoint[Distance Rank to Delivery Location],0),) -> 30378 | E30: =INDEX(Table_ReceiptPoint[Receipt Point Name2],MATCH(Table_CloseReceipt[[#This Row],[Rank]],Table_ReceiptPoint[Distance Rank to Delivery Location],0),) -> WAINWRIGHT APN* | F30: =INDEX(Table_ReceiptPoint[Distance From Delivery Station],MATCH(Table_CloseReceipt[[#This Row],[Rank]],Table_ReceiptPoint[Distance Rank to Delivery Location],0),) -> 60.1354 | G30: =INDEX(Table_ReceiptPoint[Legal Location Name],MATCH(Table_CloseReceipt[[#This Row],[Rank]],Table_ReceiptPoint[Distance Rank to Delivery Location],0),) -> 14-25-044-07-W4 | H30: =INDEX(Table_Attach1[FT-R Demand Rate Price Point "B" ($/103m3/mo)],MATCH(Table_CloseReceipt[[#This Row],[Station Number]],Table_Attach1[Receipt Point Number],0),)*INDEX(Conversions!$C$7:$C$8,MATCH('Toll Calculator'!$O$8,Conversions!$B$7:$B$8,0)) -> 47.74 | I30: =INDEX(Table_Attach3[FT-P Demand Rate Price Point "B"],MATCH(IF(CEILING(Table_CloseReceipt[[#This Row],[Distance (km)]],25)>500,999999,CEILING(Table_CloseReceipt[[#This Row],[Distance (km)]],25)),Table_Attach3[Maximum Distance Between Receipt Point and Delivery Point (km)],0),)*INDEX(Conversions!$C$7:$C$8,MATCH('Toll Calculator'!$O$8,Conversions!$B$7:$B$8,0)) -> 40.35 | J30: =INDEX(Table_Attach1[IT-R Rate ($/103m3/d)],MATCH(Table_CloseReceipt[[#This Row],[Station Number]], Table_Attach1[Receipt Point Number], 0))*INDEX(Conversions!$C$7:$C$8,MATCH('Toll Calculator'!$O$8, Conversions!$B$7:$B$8, 0))*_xlfn.SWITCH(UPPER(TRIM('Toll Calculator'!$O$8)),"IMPERIAL", (365/12),"METRIC", 1,1) -> 54.9
C31: =Table_ReceiptPointAlphabetical[[#This Row],[Alphabetical Order Rank]] -> 25 | D31: =INDEX(Table_ReceiptPoint[Receipt Point Number],MATCH(Table_CloseReceipt[[#This Row],[Rank]],Table_ReceiptPoint[Distance Rank to Delivery Location],0),) -> 30256 | E31: =INDEX(Table_ReceiptPoint[Receipt Point Name2],MATCH(Table_CloseReceipt[[#This Row],[Rank]],Table_ReceiptPoint[Distance Rank to Delivery Location],0),) -> FASHENDALE APN* | F31: =INDEX(Table_ReceiptPoint[Distance From Delivery Station],MATCH(Table_CloseReceipt[[#This Row],[Rank]],Table_ReceiptPoint[Distance Rank to Delivery Location],0),) -> 62.9379 | G31: =INDEX(Table_ReceiptPoint[Legal Location Name],MATCH(Table_CloseReceipt[[#This Row],[Rank]],Table_ReceiptPoint[Distance Rank to Delivery Location],0),) -> SE-32-046-07-W4 | H31: =INDEX(Table_Attach1[FT-R Demand Rate Price Point "B" ($/103m3/mo)],MATCH(Table_CloseReceipt[[#This Row],[Station Number]],Table_Attach1[Receipt Point Number],0),)*INDEX(Conversions!$C$7:$C$8,MATCH('Toll Calculator'!$O$8,Conversions!$B$7:$B$8,0)) -> 47.74 | I31: =INDEX(Table_Attach3[FT-P Demand Rate Price Point "B"],MATCH(IF(CEILING(Table_CloseReceipt[[#This Row],[Distance (km)]],25)>500,999999,CEILING(Table_CloseReceipt[[#This Row],[Distance (km)]],25)),Table_Attach3[Maximum Distance Between Receipt Point and Delivery Point (km)],0),)*INDEX(Conversions!$C$7:$C$8,MATCH('Toll Calculator'!$O$8,Conversions!$B$7:$B$8,0)) -> 40.35 | J31: =INDEX(Table_Attach1[IT-R Rate ($/103m3/d)],MATCH(Table_CloseReceipt[[#This Row],[Station Number]], Table_Attach1[Receipt Point Number], 0))*INDEX(Conversions!$C$7:$C$8,MATCH('Toll Calculator'!$O$8, Conversions!$B$7:$B$8, 0))*_xlfn.SWITCH(UPPER(TRIM('Toll Calculator'!$O$8)),"IMPERIAL", (365/12),"METRIC", 1,1) -> 54.9
C32: =Table_ReceiptPointAlphabetical[[#This Row],[Alphabetical Order Rank]] -> 26 | D32: =INDEX(Table_ReceiptPoint[Receipt Point Number],MATCH(Table_CloseReceipt[[#This Row],[Rank]],Table_ReceiptPoint[Distance Rank to Delivery Location],0),) -> 30205 | E32: =INDEX(Table_ReceiptPoint[Receipt Point Name2],MATCH(Table_CloseReceipt[[#This Row],[Rank]],Table_ReceiptPoint[Distance Rank to Delivery Location],0),) -> AUBURNDALE APN* | F32: =INDEX(Table_ReceiptPoint[Distance From Delivery Station],MATCH(Table_CloseReceipt[[#This Row],[Rank]],Table_ReceiptPoint[Distance Rank to Delivery Location],0),) -> 62.9379 | G32: =INDEX(Table_ReceiptPoint[Legal Location Name],MATCH(Table_CloseReceipt[[#This Row],[Rank]],Table_ReceiptPoint[Distance Rank to Delivery Location],0),) -> SE-32-046-07-W4 | H32: =INDEX(Table_Attach1[FT-R Demand Rate Price Point "B" ($/103m3/mo)],MATCH(Table_CloseReceipt[[#This Row],[Station Number]],Table_Attach1[Receipt Point Number],0),)*INDEX(Conversions!$C$7:$C$8,MATCH('Toll Calculator'!$O$8,Conversions!$B$7:$B$8,0)) -> 47.74 | I32: =INDEX(Table_Attach3[FT-P Demand Rate Price Point "B"],MATCH(IF(CEILING(Table_CloseReceipt[[#This Row],[Distance (km)]],25)>500,999999,CEILING(Table_CloseReceipt[[#This Row],[Distance (km)]],25)),Table_Attach3[Maximum Distance Between Receipt Point and Delivery Point (km)],0),)*INDEX(Conversions!$C$7:$C$8,MATCH('Toll Calculator'!$O$8,Conversions!$B$7:$B$8,0)) -> 40.35 | J32: =INDEX(Table_Attach1[IT-R Rate ($/103m3/d)],MATCH(Table_CloseReceipt[[#This Row],[Station Number]], Table_Attach1[Receipt Point Number], 0))*INDEX(Conversions!$C$7:$C$8,MATCH('Toll Calculator'!$O$8, Conversions!$B$7:$B$8, 0))*_xlfn.SWITCH(UPPER(TRIM('Toll Calculator'!$O$8)),"IMPERIAL", (365/12),"METRIC", 1,1) -> 54.9
C33: =Table_ReceiptPointAlphabetical[[#This Row],[Alphabetical Order Rank]] -> 27 | D33: =INDEX(Table_ReceiptPoint[Receipt Point Number],MATCH(Table_CloseReceipt[[#This Row],[Rank]],Table_ReceiptPoint[Distance Rank to Delivery Location],0),) -> 1725 | E33: =INDEX(Table_ReceiptPoint[Receipt Point Name2],MATCH(Table_CloseReceipt[[#This Row],[Rank]],Table_ReceiptPoint[Distance Rank to Delivery Location],0),) -> CADOGAN | F33: =INDEX(Table_ReceiptPoint[Distance From Delivery Station],MATCH(Table_CloseReceipt[[#This Row],[Rank]],Table_ReceiptPoint[Distance Rank to Delivery Location],0),) -> 64.9861 | G33: =INDEX(Table_ReceiptPoint[Legal Location Name],MATCH(Table_CloseReceipt[[#This Row],[Rank]],Table_ReceiptPoint[Distance Rank to Delivery Location],0),) -> 08-14-040-03-W4 | H33: =INDEX(Table_Attach1[FT-R Demand Rate Price Point "B" ($/103m3/mo)],MATCH(Table_CloseReceipt[[#This Row],[Station Number]],Table_Attach1[Receipt Point Number],0),)*INDEX(Conversions!$C$7:$C$8,MATCH('Toll Calculator'!$O$8,Conversions!$B$7:$B$8,0)) -> 47.74 | I33: =INDEX(Table_Attach3[FT-P Demand Rate Price Point "B"],MATCH(IF(CEILING(Table_CloseReceipt[[#This Row],[Distance (km)]],25)>500,999999,CEILING(Table_CloseReceipt[[#This Row],[Distance (km)]],25)),Table_Attach3[Maximum Distance Between Receipt Point and Delivery Point (km)],0),)*INDEX(Conversions!$C$7:$C$8,MATCH('Toll Calculator'!$O$8,Conversions!$B$7:$B$8,0)) -> 40.35 | J33: =INDEX(Table_Attach1[IT-R Rate ($/103m3/d)],MATCH(Table_CloseReceipt[[#This Row],[Station Number]], Table_Attach1[Receipt Point Number], 0))*INDEX(Conversions!$C$7:$C$8,MATCH('Toll Calculator'!$O$8, Conversions!$B$7:$B$8, 0))*_xlfn.SWITCH(UPPER(TRIM('Toll Calculator'!$O$8)),"IMPERIAL", (365/12),"METRIC", 1,1) -> 54.9
C34: =Table_ReceiptPointAlphabetical[[#This Row],[Alphabetical Order Rank]] -> 28 | D34: =INDEX(Table_ReceiptPoint[Receipt Point Number],MATCH(Table_CloseReceipt[[#This Row],[Rank]],Table_ReceiptPoint[Distance Rank to Delivery Location],0),) -> 30255 | E34: =INDEX(Table_ReceiptPoint[Receipt Point Name2],MATCH(Table_CloseReceipt[[#This Row],[Rank]],Table_ReceiptPoint[Distance Rank to Delivery Location],0),) -> FABYAN APN | F34: =INDEX(Table_ReceiptPoint[Distance From Delivery Station],MATCH(Table_CloseReceipt[[#This Row],[Rank]],Table_ReceiptPoint[Distance Rank to Delivery Location],0),) -> 65.6202 | G34: =INDEX(Table_ReceiptPoint[Legal Location Name],MATCH(Table_CloseReceipt[[#This Row],[Rank]],Table_ReceiptPoint[Distance Rank to Delivery Location],0),) -> 05-08-045-07-W4 | H34: =INDEX(Table_Attach1[FT-R Demand Rate Price Point "B" ($/103m3/mo)],MATCH(Table_CloseReceipt[[#This Row],[Station Number]],Table_Attach1[Receipt Point Number],0),)*INDEX(Conversions!$C$7:$C$8,MATCH('Toll Calculator'!$O$8,Conversions!$B$7:$B$8,0)) -> 47.74 | I34: =INDEX(Table_Attach3[FT-P Demand Rate Price Point "B"],MATCH(IF(CEILING(Table_CloseReceipt[[#This Row],[Distance (km)]],25)>500,999999,CEILING(Table_CloseReceipt[[#This Row],[Distance (km)]],25)),Table_Attach3[Maximum Distance Between Receipt Point and Delivery Point (km)],0),)*INDEX(Conversions!$C$7:$C$8,MATCH('Toll Calculator'!$O$8,Conversions!$B$7:$B$8,0)) -> 40.35 | J34: =INDEX(Table_Attach1[IT-R Rate ($/103m3/d)],MATCH(Table_CloseReceipt[[#This Row],[Station Number]], Table_Attach1[Receipt Point Number], 0))*INDEX(Conversions!$C$7:$C$8,MATCH('Toll Calculator'!$O$8, Conversions!$B$7:$B$8, 0))*_xlfn.SWITCH(UPPER(TRIM('Toll Calculator'!$O$8)),"IMPERIAL", (365/12),"METRIC", 1,1) -> 54.9
C35: =Table_ReceiptPointAlphabetical[[#This Row],[Alphabetical Order Rank]] -> 29 | D35: =INDEX(Table_ReceiptPoint[Receipt Point Number],MATCH(Table_CloseReceipt[[#This Row],[Rank]],Table_ReceiptPoint[Distance Rank to Delivery Location],0),) -> 30207 | E35: =INDEX(Table_ReceiptPoint[Receipt Point Name2],MATCH(Table_CloseReceipt[[#This Row],[Rank]],Table_ReceiptPoint[Distance Rank to Delivery Location],0),) -> BATTLE RIVER APN* | F35: =INDEX(Table_ReceiptPoint[Distance From Delivery Station],MATCH(Table_CloseReceipt[[#This Row],[Rank]],Table_ReceiptPoint[Distance Rank to Delivery Location],0),) -> 67.0865 | G35: =INDEX(Table_ReceiptPoint[Legal Location Name],MATCH(Table_CloseReceipt[[#This Row],[Rank]],Table_ReceiptPoint[Distance Rank to Delivery Location],0),) -> 16-13-045-08-W4 | H35: =INDEX(Table_Attach1[FT-R Demand Rate Price Point "B" ($/103m3/mo)],MATCH(Table_CloseReceipt[[#This Row],[Station Number]],Table_Attach1[Receipt Point Number],0),)*INDEX(Conversions!$C$7:$C$8,MATCH('Toll Calculator'!$O$8,Conversions!$B$7:$B$8,0)) -> 47.74 | I35: =INDEX(Table_Attach3[FT-P Demand Rate Price Point "B"],MATCH(IF(CEILING(Table_CloseReceipt[[#This Row],[Distance (km)]],25)>500,999999,CEILING(Table_CloseReceipt[[#This Row],[Distance (km)]],25)),Table_Attach3[Maximum Distance Between Receipt Point and Delivery Point (km)],0),)*INDEX(Conversions!$C$7:$C$8,MATCH('Toll Calculator'!$O$8,Conversions!$B$7:$B$8,0)) -> 40.35 | J35: =INDEX(Table_Attach1[IT-R Rate ($/103m3/d)],MATCH(Table_CloseReceipt[[#This Row],[Station Number]], Table_Attach1[Receipt Point Number], 0))*INDEX(Conversions!$C$7:$C$8,MATCH('Toll Calculator'!$O$8, Conversions!$B$7:$B$8, 0))*_xlfn.SWITCH(UPPER(TRIM('Toll Calculator'!$O$8)),"IMPERIAL", (365/12),"METRIC", 1,1) -> 54.9
C36: =Table_ReceiptPointAlphabetical[[#This Row],[Alphabetical Order Rank]] -> 30 | D36: =INDEX(Table_ReceiptPoint[Receipt Point Number],MATCH(Table_CloseReceipt[[#This Row],[Rank]],Table_ReceiptPoint[Distance Rank to Delivery Location],0),) -> 30270 | E36: =INDEX(Table_ReceiptPoint[Receipt Point Name2],MATCH(Table_CloseReceipt[[#This Row],[Rank]],Table_ReceiptPoint[Distance Rank to Delivery Location],0),) -> GRATTON CREEK APN* | F36: =INDEX(Table_ReceiptPoint[Distance From Delivery Station],MATCH(Table_CloseReceipt[[#This Row],[Rank]],Table_ReceiptPoint[Distance Rank to Delivery Location],0),) -> 71.1713 | G36: =INDEX(Table_ReceiptPoint[Legal Location Name],MATCH(Table_CloseReceipt[[#This Row],[Rank]],Table_ReceiptPoint[Distance Rank to Delivery Location],0),) -> 13-22-045-08-W4 | H36: =INDEX(Table_Attach1[FT-R Demand Rate Price Point "B" ($/103m3/mo)],MATCH(Table_CloseReceipt[[#This Row],[Station Number]],Table_Attach1[Receipt Point Number],0),)*INDEX(Conversions!$C$7:$C$8,MATCH('Toll Calculator'!$O$8,Conversions!$B$7:$B$8,0)) -> 47.74 | I36: =INDEX(Table_Attach3[FT-P Demand Rate Price Point "B"],MATCH(IF(CEILING(Table_CloseReceipt[[#This Row],[Distance (km)]],25)>500,999999,CEILING(Table_CloseReceipt[[#This Row],[Distance (km)]],25)),Table_Attach3[Maximum Distance Between Receipt Point and Delivery Point (km)],0),)*INDEX(Conversions!$C$7:$C$8,MATCH('Toll Calculator'!$O$8,Conversions!$B$7:$B$8,0)) -> 40.35 | J36: =INDEX(Table_Attach1[IT-R Rate ($/103m3/d)],MATCH(Table_CloseReceipt[[#This Row],[Station Number]], Table_Attach1[Receipt Point Number], 0))*INDEX(Conversions!$C$7:$C$8,MATCH('Toll Calculator'!$O$8, Conversions!$B$7:$B$8, 0))*_xlfn.SWITCH(UPPER(TRIM('Toll Calculator'!$O$8)),"IMPERIAL", (365/12),"METRIC", 1,1) -> 54.9
C37: =Table_ReceiptPointAlphabetical[[#This Row],[Alphabetical Order Rank]] -> 31 | D37: =INDEX(Table_ReceiptPoint[Receipt Point Number],MATCH(Table_CloseReceipt[[#This Row],[Rank]],Table_ReceiptPoint[Distance Rank to Delivery Location],0),) -> 30373 | E37: =INDEX(Table_ReceiptPoint[Receipt Point Name2],MATCH(Table_CloseReceipt[[#This Row],[Rank]],Table_ReceiptPoint[Distance Rank to Delivery Location],0),) -> VERMILION RIVER APN | F37: =INDEX(Table_ReceiptPoint[Distance From Delivery Station],MATCH(Table_CloseReceipt[[#This Row],[Rank]],Table_ReceiptPoint[Distance Rank to Delivery Location],0),) -> 71.3641 | G37: =INDEX(Table_ReceiptPoint[Legal Location Name],MATCH(Table_CloseReceipt[[#This Row],[Rank]],Table_ReceiptPoint[Distance Rank to Delivery Location],0),) -> 06-20-051-06-W4 | H37: =INDEX(Table_Attach1[FT-R Demand Rate Price Point "B" ($/103m3/mo)],MATCH(Table_CloseReceipt[[#This Row],[Station Number]],Table_Attach1[Receipt Point Number],0),)*INDEX(Conversions!$C$7:$C$8,MATCH('Toll Calculator'!$O$8,Conversions!$B$7:$B$8,0)) -> 45.59 | I37: =INDEX(Table_Attach3[FT-P Demand Rate Price Point "B"],MATCH(IF(CEILING(Table_CloseReceipt[[#This Row],[Distance (km)]],25)>500,999999,CEILING(Table_CloseReceipt[[#This Row],[Distance (km)]],25)),Table_Attach3[Maximum Distance Between Receipt Point and Delivery Point (km)],0),)*INDEX(Conversions!$C$7:$C$8,MATCH('Toll Calculator'!$O$8,Conversions!$B$7:$B$8,0)) -> 40.35 | J37: =INDEX(Table_Attach1[IT-R Rate ($/103m3/d)],MATCH(Table_CloseReceipt[[#This Row],[Station Number]], Table_Attach1[Receipt Point Number], 0))*INDEX(Conversions!$C$7:$C$8,MATCH('Toll Calculator'!$O$8, Conversions!$B$7:$B$8, 0))*_xlfn.SWITCH(UPPER(TRIM('Toll Calculator'!$O$8)),"IMPERIAL", (365/12),"METRIC", 1,1) -> 52.43
C38: =Table_ReceiptPointAlphabetical[[#This Row],[Alphabetical Order Rank]] -> 32 | D38: =INDEX(Table_ReceiptPoint[Receipt Point Number],MATCH(Table_CloseReceipt[[#This Row],[Rank]],Table_ReceiptPoint[Distance Rank to Delivery Location],0),) -> 30208 | E38: =INDEX(Table_ReceiptPoint[Receipt Point Name2],MATCH(Table_CloseReceipt[[#This Row],[Rank]],Table_ReceiptPoint[Distance Rank to Delivery Location],0),) -> BAUER LAKE RECEIPT APN | F38: =INDEX(Table_ReceiptPoint[Distance From Delivery Station],MATCH(Table_CloseReceipt[[#This Row],[Rank]],Table_ReceiptPoint[Distance Rank to Delivery Location],0),) -> 73.9929 | G38: =INDEX(Table_ReceiptPoint[Legal Location Name],MATCH(Table_CloseReceipt[[#This Row],[Rank]],Table_ReceiptPoint[Distance Rank to Delivery Location],0),) -> NE-26-049-08-W4 | H38: =INDEX(Table_Attach1[FT-R Demand Rate Price Point "B" ($/103m3/mo)],MATCH(Table_CloseReceipt[[#This Row],[Station Number]],Table_Attach1[Receipt Point Number],0),)*INDEX(Conversions!$C$7:$C$8,MATCH('Toll Calculator'!$O$8,Conversions!$B$7:$B$8,0)) -> 47.74 | I38: =INDEX(Table_Attach3[FT-P Demand Rate Price Point "B"],MATCH(IF(CEILING(Table_CloseReceipt[[#This Row],[Distance (km)]],25)>500,999999,CEILING(Table_CloseReceipt[[#This Row],[Distance (km)]],25)),Table_Attach3[Maximum Distance Between Receipt Point and Delivery Point (km)],0),)*INDEX(Conversions!$C$7:$C$8,MATCH('Toll Calculator'!$O$8,Conversions!$B$7:$B$8,0)) -> 40.35 | J38: =INDEX(Table_Attach1[IT-R Rate ($/103m3/d)],MATCH(Table_CloseReceipt[[#This Row],[Station Number]], Table_Attach1[Receipt Point Number], 0))*INDEX(Conversions!$C$7:$C$8,MATCH('Toll Calculator'!$O$8, Conversions!$B$7:$B$8, 0))*_xlfn.SWITCH(UPPER(TRIM('Toll Calculator'!$O$8)),"IMPERIAL", (365/12),"METRIC", 1,1) -> 54.9
C39: =Table_ReceiptPointAlphabetical[[#This Row],[Alphabetical Order Rank]] -> 33 | D39: =INDEX(Table_ReceiptPoint[Receipt Point Number],MATCH(Table_CloseReceipt[[#This Row],[Rank]],Table_ReceiptPoint[Distance Rank to Delivery Location],0),) -> 1535 | E39: =INDEX(Table_ReceiptPoint[Receipt Point Name2],MATCH(Table_CloseReceipt[[#This Row],[Rank]],Table_ReceiptPoint[Distance Rank to Delivery Location],0),) -> CLANDONALD | F39: =INDEX(Table_ReceiptPoint[Distance From Delivery Station],MATCH(Table_CloseReceipt[[#This Row],[Rank]],Table_ReceiptPoint[Distance Rank to Delivery Location],0),) -> 77.6104 | G39: =INDEX(Table_ReceiptPoint[Legal Location Name],MATCH(Table_CloseReceipt[[#This Row],[Rank]],Table_ReceiptPoint[Distance Rank to Delivery Location],0),) -> 08-34-052-06-W4 | H39: =INDEX(Table_Attach1[FT-R Demand Rate Price Point "B" ($/103m3/mo)],MATCH(Table_CloseReceipt[[#This Row],[Station Number]],Table_Attach1[Receipt Point Number],0),)*INDEX(Conversions!$C$7:$C$8,MATCH('Toll Calculator'!$O$8,Conversions!$B$7:$B$8,0)) -> 47.74 | I39: =INDEX(Table_Attach3[FT-P Demand Rate Price Point "B"],MATCH(IF(CEILING(Table_CloseReceipt[[#This Row],[Distance (km)]],25)>500,999999,CEILING(Table_CloseReceipt[[#This Row],[Distance (km)]],25)),Table_Attach3[Maximum Distance Between Receipt Point and Delivery Point (km)],0),)*INDEX(Conversions!$C$7:$C$8,MATCH('Toll Calculator'!$O$8,Conversions!$B$7:$B$8,0)) -> 42.56 | J39: =INDEX(Table_Attach1[IT-R Rate ($/103m3/d)],MATCH(Table_CloseReceipt[[#This Row],[Station Number]], Table_Attach1[Receipt Point Number], 0))*INDEX(Conversions!$C$7:$C$8,MATCH('Toll Calculator'!$O$8, Conversions!$B$7:$B$8, 0))*_xlfn.SWITCH(UPPER(TRIM('Toll Calculator'!$O$8)),"IMPERIAL", (365/12),"METRIC", 1,1) -> 54.9
C40: =Table_ReceiptPointAlphabetical[[#This Row],[Alphabetical Order Rank]] -> 34 | D40: =INDEX(Table_ReceiptPoint[Receipt Point Number],MATCH(Table_CloseReceipt[[#This Row],[Rank]],Table_ReceiptPoint[Distance Rank to Delivery Location],0),) -> 30230 | E40: =INDEX(Table_ReceiptPoint[Receipt Point Name2],MATCH(Table_CloseReceipt[[#This Row],[Rank]],Table_ReceiptPoint[Distance Rank to Delivery Location],0),) -> BUFFALO CREEK A APN* | F40: =INDEX(Table_ReceiptPoint[Distance From Delivery Station],MATCH(Table_CloseReceipt[[#This Row],[Rank]],Table_ReceiptPoint[Distance Rank to Delivery Location],0),) -> 79.6577 | G40: =INDEX(Table_ReceiptPoint[Legal Location Name],MATCH(Table_CloseReceipt[[#This Row],[Rank]],Table_ReceiptPoint[Distance Rank to Delivery Location],0),) -> 16-23-048-09-W4 | H40: =INDEX(Table_Attach1[FT-R Demand Rate Price Point "B" ($/103m3/mo)],MATCH(Table_CloseReceipt[[#This Row],[Station Number]],Table_Attach1[Receipt Point Number],0),)*INDEX(Conversions!$C$7:$C$8,MATCH('Toll Calculator'!$O$8,Conversions!$B$7:$B$8,0)) -> 47.74 | I40: =INDEX(Table_Attach3[FT-P Demand Rate Price Point "B"],MATCH(IF(CEILING(Table_CloseReceipt[[#This Row],[Distance (km)]],25)>500,999999,CEILING(Table_CloseReceipt[[#This Row],[Distance (km)]],25)),Table_Attach3[Maximum Distance Between Receipt Point and Delivery Point (km)],0),)*INDEX(Conversions!$C$7:$C$8,MATCH('Toll Calculator'!$O$8,Conversions!$B$7:$B$8,0)) -> 42.56 | J40: =INDEX(Table_Attach1[IT-R Rate ($/103m3/d)],MATCH(Table_CloseReceipt[[#This Row],[Station Number]], Table_Attach1[Receipt Point Number], 0))*INDEX(Conversions!$C$7:$C$8,MATCH('Toll Calculator'!$O$8, Conversions!$B$7:$B$8, 0))*_xlfn.SWITCH(UPPER(TRIM('Toll Calculator'!$O$8)),"IMPERIAL", (365/12),"METRIC", 1,1) -> 54.9
C41: =Table_ReceiptPointAlphabetical[[#This Row],[Alphabetical Order Rank]] -> 35 | D41: =INDEX(Table_ReceiptPoint[Receipt Point Number],MATCH(Table_CloseReceipt[[#This Row],[Rank]],Table_ReceiptPoint[Distance Rank to Delivery Location],0),) -> 30286 | E41: =INDEX(Table_ReceiptPoint[Receipt Point Name2],MATCH(Table_CloseReceipt[[#This Row],[Rank]],Table_ReceiptPoint[Distance Rank to Delivery Location],0),) -> IRMA B APN | F41: =INDEX(Table_ReceiptPoint[Distance From Delivery Station],MATCH(Table_CloseReceipt[[#This Row],[Rank]],Table_ReceiptPoint[Distance Rank to Delivery Location],0),) -> 81.2642 | G41: =INDEX(Table_ReceiptPoint[Legal Location Name],MATCH(Table_CloseReceipt[[#This Row],[Rank]],Table_ReceiptPoint[Distance Rank to Delivery Location],0),) -> 06-16-046-09-W4 | H41: =INDEX(Table_Attach1[FT-R Demand Rate Price Point "B" ($/103m3/mo)],MATCH(Table_CloseReceipt[[#This Row],[Station Number]],Table_Attach1[Receipt Point Number],0),)*INDEX(Conversions!$C$7:$C$8,MATCH('Toll Calculator'!$O$8,Conversions!$B$7:$B$8,0)) -> 47.74 | I41: =INDEX(Table_Attach3[FT-P Demand Rate Price Point "B"],MATCH(IF(CEILING(Table_CloseReceipt[[#This Row],[Distance (km)]],25)>500,999999,CEILING(Table_CloseReceipt[[#This Row],[Distance (km)]],25)),Table_Attach3[Maximum Distance Between Receipt Point and Delivery Point (km)],0),)*INDEX(Conversions!$C$7:$C$8,MATCH('Toll Calculator'!$O$8,Conversions!$B$7:$B$8,0)) -> 42.56 | J41: =INDEX(Table_Attach1[IT-R Rate ($/103m3/d)],MATCH(Table_CloseReceipt[[#This Row],[Station Number]], Table_Attach1[Receipt Point Number], 0))*INDEX(Conversions!$C$7:$C$8,MATCH('Toll Calculator'!$O$8, Conversions!$B$7:$B$8, 0))*_xlfn.SWITCH(UPPER(TRIM('Toll Calculator'!$O$8)),"IMPERIAL", (365/12),"METRIC", 1,1) -> 54.9
C42: =Table_ReceiptPointAlphabetical[[#This Row],[Alphabetical Order Rank]] -> 36 | D42: =INDEX(Table_ReceiptPoint[Receipt Point Number],MATCH(Table_CloseReceipt[[#This Row],[Rank]],Table_ReceiptPoint[Distance Rank to Delivery Location],0),) -> 1645 | E42: =INDEX(Table_ReceiptPoint[Receipt Point Name2],MATCH(Table_CloseReceipt[[#This Row],[Rank]],Table_ReceiptPoint[Distance Rank to Delivery Location],0),) -> METISKOW NORTH* | F42: =INDEX(Table_ReceiptPoint[Distance From Delivery Station],MATCH(Table_CloseReceipt[[#This Row],[Rank]],Table_ReceiptPoint[Distance Rank to Delivery Location],0),) -> 82.1621 | G42: =INDEX(Table_ReceiptPoint[Legal Location Name],MATCH(Table_CloseReceipt[[#This Row],[Rank]],Table_ReceiptPoint[Distance Rank to Delivery Location],0),) -> 01-09-040-06-W4 | H42: =INDEX(Table_Attach1[FT-R Demand Rate Price Point "B" ($/103m3/mo)],MATCH(Table_CloseReceipt[[#This Row],[Station Number]],Table_Attach1[Receipt Point Number],0),)*INDEX(Conversions!$C$7:$C$8,MATCH('Toll Calculator'!$O$8,Conversions!$B$7:$B$8,0)) -> 36.21 | I42: =INDEX(Table_Attach3[FT-P Demand Rate Price Point "B"],MATCH(IF(CEILING(Table_CloseReceipt[[#This Row],[Distance (km)]],25)>500,999999,CEILING(Table_CloseReceipt[[#This Row],[Distance (km)]],25)),Table_Attach3[Maximum Distance Between Receipt Point and Delivery Point (km)],0),)*INDEX(Conversions!$C$7:$C$8,MATCH('Toll Calculator'!$O$8,Conversions!$B$7:$B$8,0)) -> 42.56 | J42: =INDEX(Table_Attach1[IT-R Rate ($/103m3/d)],MATCH(Table_CloseReceipt[[#This Row],[Station Number]], Table_Attach1[Receipt Point Number], 0))*INDEX(Conversions!$C$7:$C$8,MATCH('Toll Calculator'!$O$8, Conversions!$B$7:$B$8, 0))*_xlfn.SWITCH(UPPER(TRIM('Toll Calculator'!$O$8)),"IMPERIAL", (365/12),"METRIC", 1,1) -> 41.64
C43: =Table_ReceiptPointAlphabetical[[#This Row],[Alphabetical Order Rank]] -> 37 | D43: =INDEX(Table_ReceiptPoint[Receipt Point Number],MATCH(Table_CloseReceipt[[#This Row],[Rank]],Table_ReceiptPoint[Distance Rank to Delivery Location],0),) -> 1250 | E43: =INDEX(Table_ReceiptPoint[Receipt Point Name2],MATCH(Table_CloseReceipt[[#This Row],[Rank]],Table_ReceiptPoint[Distance Rank to Delivery Location],0),) -> UNITY BORDER | F43: =INDEX(Table_ReceiptPoint[Distance From Delivery Station],MATCH(Table_CloseReceipt[[#This Row],[Rank]],Table_ReceiptPoint[Distance Rank to Delivery Location],0),) -> 82.7489 | G43: =INDEX(Table_ReceiptPoint[Legal Location Name],MATCH(Table_CloseReceipt[[#This Row],[Rank]],Table_ReceiptPoint[Distance Rank to Delivery Location],0),) -> 09-11-038-01-W4 | H43: =INDEX(Table_Attach1[FT-R Demand Rate Price Point "B" ($/103m3/mo)],MATCH(Table_CloseReceipt[[#This Row],[Station Number]],Table_Attach1[Receipt Point Number],0),)*INDEX(Conversions!$C$7:$C$8,MATCH('Toll Calculator'!$O$8,Conversions!$B$7:$B$8,0)) -> 41.88 | I43: =INDEX(Table_Attach3[FT-P Demand Rate Price Point "B"],MATCH(IF(CEILING(Table_CloseReceipt[[#This Row],[Distance (km)]],25)>500,999999,CEILING(Table_CloseReceipt[[#This Row],[Distance (km)]],25)),Table_Attach3[Maximum Distance Between Receipt Point and Delivery Point (km)],0),)*INDEX(Conversions!$C$7:$C$8,MATCH('Toll Calculator'!$O$8,Conversions!$B$7:$B$8,0)) -> 42.56 | J43: =INDEX(Table_Attach1[IT-R Rate ($/103m3/d)],MATCH(Table_CloseReceipt[[#This Row],[Station Number]], Table_Attach1[Receipt Point Number], 0))*INDEX(Conversions!$C$7:$C$8,MATCH('Toll Calculator'!$O$8, Conversions!$B$7:$B$8, 0))*_xlfn.SWITCH(UPPER(TRIM('Toll Calculator'!$O$8)),"IMPERIAL", (365/12),"METRIC", 1,1) -> 48.16
C44: =Table_ReceiptPointAlphabetical[[#This Row],[Alphabetical Order Rank]] -> 38 | D44: =INDEX(Table_ReceiptPoint[Receipt Point Number],MATCH(Table_CloseReceipt[[#This Row],[Rank]],Table_ReceiptPoint[Distance Rank to Delivery Location],0),) -> 30344 | E44: =INDEX(Table_ReceiptPoint[Receipt Point Name2],MATCH(Table_CloseReceipt[[#This Row],[Rank]],Table_ReceiptPoint[Distance Rank to Delivery Location],0),) -> QUEENIE CREEK APN* | F44: =INDEX(Table_ReceiptPoint[Distance From Delivery Station],MATCH(Table_CloseReceipt[[#This Row],[Rank]],Table_ReceiptPoint[Distance Rank to Delivery Location],0),) -> 83.9166 | G44: =INDEX(Table_ReceiptPoint[Legal Location Name],MATCH(Table_CloseReceipt[[#This Row],[Rank]],Table_ReceiptPoint[Distance Rank to Delivery Location],0),) -> 09-07-052-07-W4 | H44: =INDEX(Table_Attach1[FT-R Demand Rate Price Point "B" ($/103m3/mo)],MATCH(Table_CloseReceipt[[#This Row],[Station Number]],Table_Attach1[Receipt Point Number],0),)*INDEX(Conversions!$C$7:$C$8,MATCH('Toll Calculator'!$O$8,Conversions!$B$7:$B$8,0)) -> 39.01 | I44: =INDEX(Table_Attach3[FT-P Demand Rate Price Point "B"],MATCH(IF(CEILING(Table_CloseReceipt[[#This Row],[Distance (km)]],25)>500,999999,CEILING(Table_CloseReceipt[[#This Row],[Distance (km)]],25)),Table_Attach3[Maximum Distance Between Receipt Point and Delivery Point (km)],0),)*INDEX(Conversions!$C$7:$C$8,MATCH('Toll Calculator'!$O$8,Conversions!$B$7:$B$8,0)) -> 42.56 | J44: =INDEX(Table_Attach1[IT-R Rate ($/103m3/d)],MATCH(Table_CloseReceipt[[#This Row],[Station Number]], Table_Attach1[Receipt Point Number], 0))*INDEX(Conversions!$C$7:$C$8,MATCH('Toll Calculator'!$O$8, Conversions!$B$7:$B$8, 0))*_xlfn.SWITCH(UPPER(TRIM('Toll Calculator'!$O$8)),"IMPERIAL", (365/12),"METRIC", 1,1) -> 44.87
C45: =Table_ReceiptPointAlphabetical[[#This Row],[Alphabetical Order Rank]] -> 39 | D45: =INDEX(Table_ReceiptPoint[Receipt Point Number],MATCH(Table_CloseReceipt[[#This Row],[Rank]],Table_ReceiptPoint[Distance Rank to Delivery Location],0),) -> 1444 | E45: =INDEX(Table_ReceiptPoint[Receipt Point Name2],MATCH(Table_CloseReceipt[[#This Row],[Rank]],Table_ReceiptPoint[Distance Rank to Delivery Location],0),) -> HARDISTY* | F45: =INDEX(Table_ReceiptPoint[Distance From Delivery Station],MATCH(Table_CloseReceipt[[#This Row],[Rank]],Table_ReceiptPoint[Distance Rank to Delivery Location],0),) -> 84.3894 | G45: =INDEX(Table_ReceiptPoint[Legal Location Name],MATCH(Table_CloseReceipt[[#This Row],[Rank]],Table_ReceiptPoint[Distance Rank to Delivery Location],0),) -> 16-11-043-09-W4 | H45: =INDEX(Table_Attach1[FT-R Demand Rate Price Point "B" ($/103m3/mo)],MATCH(Table_CloseReceipt[[#This Row],[Station Number]],Table_Attach1[Receipt Point Number],0),)*INDEX(Conversions!$C$7:$C$8,MATCH('Toll Calculator'!$O$8,Conversions!$B$7:$B$8,0)) -> 31.88 | I45: =INDEX(Table_Attach3[FT-P Demand Rate Price Point "B"],MATCH(IF(CEILING(Table_CloseReceipt[[#This Row],[Distance (km)]],25)>500,999999,CEILING(Table_CloseReceipt[[#This Row],[Distance (km)]],25)),Table_Attach3[Maximum Distance Between Receipt Point and Delivery Point (km)],0),)*INDEX(Conversions!$C$7:$C$8,MATCH('Toll Calculator'!$O$8,Conversions!$B$7:$B$8,0)) -> 42.56 | J45: =INDEX(Table_Attach1[IT-R Rate ($/103m3/d)],MATCH(Table_CloseReceipt[[#This Row],[Station Number]], Table_Attach1[Receipt Point Number], 0))*INDEX(Conversions!$C$7:$C$8,MATCH('Toll Calculator'!$O$8, Conversions!$B$7:$B$8, 0))*_xlfn.SWITCH(UPPER(TRIM('Toll Calculator'!$O$8)),"IMPERIAL", (365/12),"METRIC", 1,1) -> 36.66
C46: =Table_ReceiptPointAlphabetical[[#This Row],[Alphabetical Order Rank]] -> 40 | D46: =INDEX(Table_ReceiptPoint[Receipt Point Number],MATCH(Table_CloseReceipt[[#This Row],[Rank]],Table_ReceiptPoint[Distance Rank to Delivery Location],0),) -> 30348 | E46: =INDEX(Table_ReceiptPoint[Receipt Point Name2],MATCH(Table_CloseReceipt[[#This Row],[Rank]],Table_ReceiptPoint[Distance Rank to Delivery Location],0),) -> RODINO APN | F46: =INDEX(Table_ReceiptPoint[Distance From Delivery Station],MATCH(Table_CloseReceipt[[#This Row],[Rank]],Table_ReceiptPoint[Distance Rank to Delivery Location],0),) -> 84.6749 | G46: =INDEX(Table_ReceiptPoint[Legal Location Name],MATCH(Table_CloseReceipt[[#This Row],[Rank]],Table_ReceiptPoint[Distance Rank to Delivery Location],0),) -> 01-30-047-09-W4 | H46: =INDEX(Table_Attach1[FT-R Demand Rate Price Point "B" ($/103m3/mo)],MATCH(Table_CloseReceipt[[#This Row],[Station Number]],Table_Attach1[Receipt Point Number],0),)*INDEX(Conversions!$C$7:$C$8,MATCH('Toll Calculator'!$O$8,Conversions!$B$7:$B$8,0)) -> 47.74 | I46: =INDEX(Table_Attach3[FT-P Demand Rate Price Point "B"],MATCH(IF(CEILING(Table_CloseReceipt[[#This Row],[Distance (km)]],25)>500,999999,CEILING(Table_CloseReceipt[[#This Row],[Distance (km)]],25)),Table_Attach3[Maximum Distance Between Receipt Point and Delivery Point (km)],0),)*INDEX(Conversions!$C$7:$C$8,MATCH('Toll Calculator'!$O$8,Conversions!$B$7:$B$8,0)) -> 42.56 | J46: =INDEX(Table_Attach1[IT-R Rate ($/103m3/d)],MATCH(Table_CloseReceipt[[#This Row],[Station Number]], Table_Attach1[Receipt Point Number], 0))*INDEX(Conversions!$C$7:$C$8,MATCH('Toll Calculator'!$O$8, Conversions!$B$7:$B$8, 0))*_xlfn.SWITCH(UPPER(TRIM('Toll Calculator'!$O$8)),"IMPERIAL", (365/12),"METRIC", 1,1) -> 54.9
C47: =Table_ReceiptPointAlphabetical[[#This Row],[Alphabetical Order Rank]] -> 41 | D47: =INDEX(Table_ReceiptPoint[Receipt Point Number],MATCH(Table_CloseReceipt[[#This Row],[Rank]],Table_ReceiptPoint[Distance Rank to Delivery Location],0),) -> 1242 | E47: =INDEX(Table_ReceiptPoint[Receipt Point Name2],MATCH(Table_CloseReceipt[[#This Row],[Rank]],Table_ReceiptPoint[Distance Rank to Delivery Location],0),) -> BODO WEST | F47: =INDEX(Table_ReceiptPoint[Distance From Delivery Station],MATCH(Table_CloseReceipt[[#This Row],[Rank]],Table_ReceiptPoint[Distance Rank to Delivery Location],0),) -> 87.0926 | G47: =INDEX(Table_ReceiptPoint[Legal Location Name],MATCH(Table_CloseReceipt[[#This Row],[Rank]],Table_ReceiptPoint[Distance Rank to Delivery Location],0),) -> NE-31-037-02-W4 | H47: =INDEX(Table_Attach1[FT-R Demand Rate Price Point "B" ($/103m3/mo)],MATCH(Table_CloseReceipt[[#This Row],[Station Number]],Table_Attach1[Receipt Point Number],0),)*INDEX(Conversions!$C$7:$C$8,MATCH('Toll Calculator'!$O$8,Conversions!$B$7:$B$8,0)) -> 41.2 | I47: =INDEX(Table_Attach3[FT-P Demand Rate Price Point "B"],MATCH(IF(CEILING(Table_CloseReceipt[[#This Row],[Distance (km)]],25)>500,999999,CEILING(Table_CloseReceipt[[#This Row],[Distance (km)]],25)),Table_Attach3[Maximum Distance Between Receipt Point and Delivery Point (km)],0),)*INDEX(Conversions!$C$7:$C$8,MATCH('Toll Calculator'!$O$8,Conversions!$B$7:$B$8,0)) -> 42.56 | J47: =INDEX(Table_Attach1[IT-R Rate ($/103m3/d)],MATCH(Table_CloseReceipt[[#This Row],[Station Number]], Table_Attach1[Receipt Point Number], 0))*INDEX(Conversions!$C$7:$C$8,MATCH('Toll Calculator'!$O$8, Conversions!$B$7:$B$8, 0))*_xlfn.SWITCH(UPPER(TRIM('Toll Calculator'!$O$8)),"IMPERIAL", (365/12),"METRIC", 1,1) -> 47.36
C48: =Table_ReceiptPointAlphabetical[[#This Row],[Alphabetical Order Rank]] -> 42 | D48: =INDEX(Table_ReceiptPoint[Receipt Point Number],MATCH(Table_CloseReceipt[[#This Row],[Rank]],Table_ReceiptPoint[Distance Rank to Delivery Location],0),) -> 1514 | E48: =INDEX(Table_ReceiptPoint[Receipt Point Name2],MATCH(Table_CloseReceipt[[#This Row],[Rank]],Table_ReceiptPoint[Distance Rank to Delivery Location],0),) -> MAUGHAN | F48: =INDEX(Table_ReceiptPoint[Distance From Delivery Station],MATCH(Table_CloseReceipt[[#This Row],[Rank]],Table_ReceiptPoint[Distance Rank to Delivery Location],0),) -> 87.3562 | G48: =INDEX(Table_ReceiptPoint[Legal Location Name],MATCH(Table_CloseReceipt[[#This Row],[Rank]],Table_ReceiptPoint[Distance Rank to Delivery Location],0),) -> 11-32-052-07-W4 | H48: =INDEX(Table_Attach1[FT-R Demand Rate Price Point "B" ($/103m3/mo)],MATCH(Table_CloseReceipt[[#This Row],[Station Number]],Table_Attach1[Receipt Point Number],0),)*INDEX(Conversions!$C$7:$C$8,MATCH('Toll Calculator'!$O$8,Conversions!$B$7:$B$8,0)) -> 38.01 | I48: =INDEX(Table_Attach3[FT-P Demand Rate Price Point "B"],MATCH(IF(CEILING(Table_CloseReceipt[[#This Row],[Distance (km)]],25)>500,999999,CEILING(Table_CloseReceipt[[#This Row],[Distance (km)]],25)),Table_Attach3[Maximum Distance Between Receipt Point and Delivery Point (km)],0),)*INDEX(Conversions!$C$7:$C$8,MATCH('Toll Calculator'!$O$8,Conversions!$B$7:$B$8,0)) -> 42.56 | J48: =INDEX(Table_Attach1[IT-R Rate ($/103m3/d)],MATCH(Table_CloseReceipt[[#This Row],[Station Number]], Table_Attach1[Receipt Point Number], 0))*INDEX(Conversions!$C$7:$C$8,MATCH('Toll Calculator'!$O$8, Conversions!$B$7:$B$8, 0))*_xlfn.SWITCH(UPPER(TRIM('Toll Calculator'!$O$8)),"IMPERIAL", (365/12),"METRIC", 1,1) -> 43.71
C49: =Table_ReceiptPointAlphabetical[[#This Row],[Alphabetical Order Rank]] -> 43 | D49: =INDEX(Table_ReceiptPoint[Receipt Point Number],MATCH(Table_CloseReceipt[[#This Row],[Rank]],Table_ReceiptPoint[Distance Rank to Delivery Location],0),) -> 1159 | E49: =INDEX(Table_ReceiptPoint[Receipt Point Name2],MATCH(Table_CloseReceipt[[#This Row],[Rank]],Table_ReceiptPoint[Distance Rank to Delivery Location],0),) -> JARROW SOUTH | F49: =INDEX(Table_ReceiptPoint[Distance From Delivery Station],MATCH(Table_CloseReceipt[[#This Row],[Rank]],Table_ReceiptPoint[Distance Rank to Delivery Location],0),) -> 87.7643 | G49: =INDEX(Table_ReceiptPoint[Legal Location Name],MATCH(Table_CloseReceipt[[#This Row],[Rank]],Table_ReceiptPoint[Distance Rank to Delivery Location],0),) -> 04-05-044-09-W4 | H49: =INDEX(Table_Attach1[FT-R Demand Rate Price Point "B" ($/103m3/mo)],MATCH(Table_CloseReceipt[[#This Row],[Station Number]],Table_Attach1[Receipt Point Number],0),)*INDEX(Conversions!$C$7:$C$8,MATCH('Toll Calculator'!$O$8,Conversions!$B$7:$B$8,0)) -> 30.89 | I49: =INDEX(Table_Attach3[FT-P Demand Rate Price Point "B"],MATCH(IF(CEILING(Table_CloseReceipt[[#This Row],[Distance (km)]],25)>500,999999,CEILING(Table_CloseReceipt[[#This Row],[Distance (km)]],25)),Table_Attach3[Maximum Distance Between Receipt Point and Delivery Point (km)],0),)*INDEX(Conversions!$C$7:$C$8,MATCH('Toll Calculator'!$O$8,Conversions!$B$7:$B$8,0)) -> 42.56 | J49: =INDEX(Table_Attach1[IT-R Rate ($/103m3/d)],MATCH(Table_CloseReceipt[[#This Row],[Station Number]], Table_Attach1[Receipt Point Number], 0))*INDEX(Conversions!$C$7:$C$8,MATCH('Toll Calculator'!$O$8, Conversions!$B$7:$B$8, 0))*_xlfn.SWITCH(UPPER(TRIM('Toll Calculator'!$O$8)),"IMPERIAL", (365/12),"METRIC", 1,1) -> 35.52
C50: =Table_ReceiptPointAlphabetical[[#This Row],[Alphabetical Order Rank]] -> 44 | D50: =INDEX(Table_ReceiptPoint[Receipt Point Number],MATCH(Table_CloseReceipt[[#This Row],[Rank]],Table_ReceiptPoint[Distance Rank to Delivery Location],0),) -> 30311 | E50: =INDEX(Table_ReceiptPoint[Receipt Point Name2],MATCH(Table_CloseReceipt[[#This Row],[Rank]],Table_ReceiptPoint[Distance Rank to Delivery Location],0),) -> MANNVILLE APN | F50: =INDEX(Table_ReceiptPoint[Distance From Delivery Station],MATCH(Table_CloseReceipt[[#This Row],[Rank]],Table_ReceiptPoint[Distance Rank to Delivery Location],0),) -> 88.3122 | G50: =INDEX(Table_ReceiptPoint[Legal Location Name],MATCH(Table_CloseReceipt[[#This Row],[Rank]],Table_ReceiptPoint[Distance Rank to Delivery Location],0),) -> 03-27-050-09-W4 | H50: =INDEX(Table_Attach1[FT-R Demand Rate Price Point "B" ($/103m3/mo)],MATCH(Table_CloseReceipt[[#This Row],[Station Number]],Table_Attach1[Receipt Point Number],0),)*INDEX(Conversions!$C$7:$C$8,MATCH('Toll Calculator'!$O$8,Conversions!$B$7:$B$8,0)) -> 42.55 | I50: =INDEX(Table_Attach3[FT-P Demand Rate Price Point "B"],MATCH(IF(CEILING(Table_CloseReceipt[[#This Row],[Distance (km)]],25)>500,999999,CEILING(Table_CloseReceipt[[#This Row],[Distance (km)]],25)),Table_Attach3[Maximum Distance Between Receipt Point and Delivery Point (km)],0),)*INDEX(Conversions!$C$7:$C$8,MATCH('Toll Calculator'!$O$8,Conversions!$B$7:$B$8,0)) -> 42.56 | J50: =INDEX(Table_Attach1[IT-R Rate ($/103m3/d)],MATCH(Table_CloseReceipt[[#This Row],[Station Number]], Table_Attach1[Receipt Point Number], 0))*INDEX(Conversions!$C$7:$C$8,MATCH('Toll Calculator'!$O$8, Conversions!$B$7:$B$8, 0))*_xlfn.SWITCH(UPPER(TRIM('Toll Calculator'!$O$8)),"IMPERIAL", (365/12),"METRIC", 1,1) -> 48.92
C51: =Table_ReceiptPointAlphabetical[[#This Row],[Alphabetical Order Rank]] -> 45 | D51: =INDEX(Table_ReceiptPoint[Receipt Point Number],MATCH(Table_CloseReceipt[[#This Row],[Rank]],Table_ReceiptPoint[Distance Rank to Delivery Location],0),) -> 1164 | E51: =INDEX(Table_ReceiptPoint[Receipt Point Name2],MATCH(Table_CloseReceipt[[#This Row],[Rank]],Table_ReceiptPoint[Distance Rank to Delivery Location],0),) -> RANFURLY* | F51: =INDEX(Table_ReceiptPoint[Distance From Delivery Station],MATCH(Table_CloseReceipt[[#This Row],[Rank]],Table_ReceiptPoint[Distance Rank to Delivery Location],0),) -> 88.9182 | G51: =INDEX(Table_ReceiptPoint[Legal Location Name],MATCH(Table_CloseReceipt[[#This Row],[Rank]],Table_ReceiptPoint[Distance Rank to Delivery Location],0),) -> 01-28-050-09-W4 | H51: =INDEX(Table_Attach1[FT-R Demand Rate Price Point "B" ($/103m3/mo)],MATCH(Table_CloseReceipt[[#This Row],[Station Number]],Table_Attach1[Receipt Point Number],0),)*INDEX(Conversions!$C$7:$C$8,MATCH('Toll Calculator'!$O$8,Conversions!$B$7:$B$8,0)) -> 42.55 | I51: =INDEX(Table_Attach3[FT-P Demand Rate Price Point "B"],MATCH(IF(CEILING(Table_CloseReceipt[[#This Row],[Distance (km)]],25)>500,999999,CEILING(Table_CloseReceipt[[#This Row],[Distance (km)]],25)),Table_Attach3[Maximum Distance Between Receipt Point and Delivery Point (km)],0),)*INDEX(Conversions!$C$7:$C$8,MATCH('Toll Calculator'!$O$8,Conversions!$B$7:$B$8,0)) -> 42.56 | J51: =INDEX(Table_Attach1[IT-R Rate ($/103m3/d)],MATCH(Table_CloseReceipt[[#This Row],[Station Number]], Table_Attach1[Receipt Point Number], 0))*INDEX(Conversions!$C$7:$C$8,MATCH('Toll Calculator'!$O$8, Conversions!$B$7:$B$8, 0))*_xlfn.SWITCH(UPPER(TRIM('Toll Calculator'!$O$8)),"IMPERIAL", (365/12),"METRIC", 1,1) -> 48.92
C52: =Table_ReceiptPointAlphabetical[[#This Row],[Alphabetical Order Rank]] -> 46 | D52: =INDEX(Table_ReceiptPoint[Receipt Point Number],MATCH(Table_CloseReceipt[[#This Row],[Rank]],Table_ReceiptPoint[Distance Rank to Delivery Location],0),) -> 30374 | E52: =INDEX(Table_ReceiptPoint[Receipt Point Name2],MATCH(Table_CloseReceipt[[#This Row],[Rank]],Table_ReceiptPoint[Distance Rank to Delivery Location],0),) -> VERNON LAKE APN* | F52: =INDEX(Table_ReceiptPoint[Distance From Delivery Station],MATCH(Table_CloseReceipt[[#This Row],[Rank]],Table_ReceiptPoint[Distance Rank to Delivery Location],0),) -> 91.3025 | G52: =INDEX(Table_ReceiptPoint[Legal Location Name],MATCH(Table_CloseReceipt[[#This Row],[Rank]],Table_ReceiptPoint[Distance Rank to Delivery Location],0),) -> 07-09-047-10-W4 | H52: =INDEX(Table_Attach1[FT-R Demand Rate Price Point "B" ($/103m3/mo)],MATCH(Table_CloseReceipt[[#This Row],[Station Number]],Table_Attach1[Receipt Point Number],0),)*INDEX(Conversions!$C$7:$C$8,MATCH('Toll Calculator'!$O$8,Conversions!$B$7:$B$8,0)) -> 47.74 | I52: =INDEX(Table_Attach3[FT-P Demand Rate Price Point "B"],MATCH(IF(CEILING(Table_CloseReceipt[[#This Row],[Distance (km)]],25)>500,999999,CEILING(Table_CloseReceipt[[#This Row],[Distance (km)]],25)),Table_Attach3[Maximum Distance Between Receipt Point and Delivery Point (km)],0),)*INDEX(Conversions!$C$7:$C$8,MATCH('Toll Calculator'!$O$8,Conversions!$B$7:$B$8,0)) -> 42.56 | J52: =INDEX(Table_Attach1[IT-R Rate ($/103m3/d)],MATCH(Table_CloseReceipt[[#This Row],[Station Number]], Table_Attach1[Receipt Point Number], 0))*INDEX(Conversions!$C$7:$C$8,MATCH('Toll Calculator'!$O$8, Conversions!$B$7:$B$8, 0))*_xlfn.SWITCH(UPPER(TRIM('Toll Calculator'!$O$8)),"IMPERIAL", (365/12),"METRIC", 1,1) -> 54.9
C53: =Table_ReceiptPointAlphabetical[[#This Row],[Alphabetical Order Rank]] -> 47 | D53: =INDEX(Table_ReceiptPoint[Receipt Point Number],MATCH(Table_CloseReceipt[[#This Row],[Rank]],Table_ReceiptPoint[Distance Rank to Delivery Location],0),) -> 1403 | E53: =INDEX(Table_ReceiptPoint[Receipt Point Name2],MATCH(Table_CloseReceipt[[#This Row],[Rank]],Table_ReceiptPoint[Distance Rank to Delivery Location],0),) -> SEDGEWICK NORTH* | F53: =INDEX(Table_ReceiptPoint[Distance From Delivery Station],MATCH(Table_CloseReceipt[[#This Row],[Rank]],Table_ReceiptPoint[Distance Rank to Delivery Location],0),) -> 92.0938 | G53: =INDEX(Table_ReceiptPoint[Legal Location Name],MATCH(Table_CloseReceipt[[#This Row],[Rank]],Table_ReceiptPoint[Distance Rank to Delivery Location],0),) -> NW-22-044-10-W4 | H53: =INDEX(Table_Attach1[FT-R Demand Rate Price Point "B" ($/103m3/mo)],MATCH(Table_CloseReceipt[[#This Row],[Station Number]],Table_Attach1[Receipt Point Number],0),)*INDEX(Conversions!$C$7:$C$8,MATCH('Toll Calculator'!$O$8,Conversions!$B$7:$B$8,0)) -> 30 | I53: =INDEX(Table_Attach3[FT-P Demand Rate Price Point "B"],MATCH(IF(CEILING(Table_CloseReceipt[[#This Row],[Distance (km)]],25)>500,999999,CEILING(Table_CloseReceipt[[#This Row],[Distance (km)]],25)),Table_Attach3[Maximum Distance Between Receipt Point and Delivery Point (km)],0),)*INDEX(Conversions!$C$7:$C$8,MATCH('Toll Calculator'!$O$8,Conversions!$B$7:$B$8,0)) -> 42.56 | J53: =INDEX(Table_Attach1[IT-R Rate ($/103m3/d)],MATCH(Table_CloseReceipt[[#This Row],[Station Number]], Table_Attach1[Receipt Point Number], 0))*INDEX(Conversions!$C$7:$C$8,MATCH('Toll Calculator'!$O$8, Conversions!$B$7:$B$8, 0))*_xlfn.SWITCH(UPPER(TRIM('Toll Calculator'!$O$8)),"IMPERIAL", (365/12),"METRIC", 1,1) -> 34.5
C54: =Table_ReceiptPointAlphabetical[[#This Row],[Alphabetical Order Rank]] -> 48 | D54: =INDEX(Table_ReceiptPoint[Receipt Point Number],MATCH(Table_CloseReceipt[[#This Row],[Rank]],Table_ReceiptPoint[Distance Rank to Delivery Location],0),) -> 1441 | E54: =INDEX(Table_ReceiptPoint[Receipt Point Name2],MATCH(Table_CloseReceipt[[#This Row],[Rank]],Table_ReceiptPoint[Distance Rank to Delivery Location],0),) -> IRISH | F54: =INDEX(Table_ReceiptPoint[Distance From Delivery Station],MATCH(Table_CloseReceipt[[#This Row],[Rank]],Table_ReceiptPoint[Distance Rank to Delivery Location],0),) -> 92.3268 | G54: =INDEX(Table_ReceiptPoint[Legal Location Name],MATCH(Table_CloseReceipt[[#This Row],[Rank]],Table_ReceiptPoint[Distance Rank to Delivery Location],0),) -> NE-36-054-06-W4 | H54: =INDEX(Table_Attach1[FT-R Demand Rate Price Point "B" ($/103m3/mo)],MATCH(Table_CloseReceipt[[#This Row],[Station Number]],Table_Attach1[Receipt Point Number],0),)*INDEX(Conversions!$C$7:$C$8,MATCH('Toll Calculator'!$O$8,Conversions!$B$7:$B$8,0)) -> 30.19 | I54: =INDEX(Table_Attach3[FT-P Demand Rate Price Point "B"],MATCH(IF(CEILING(Table_CloseReceipt[[#This Row],[Distance (km)]],25)>500,999999,CEILING(Table_CloseReceipt[[#This Row],[Distance (km)]],25)),Table_Attach3[Maximum Distance Between Receipt Point and Delivery Point (km)],0),)*INDEX(Conversions!$C$7:$C$8,MATCH('Toll Calculator'!$O$8,Conversions!$B$7:$B$8,0)) -> 42.56 | J54: =INDEX(Table_Attach1[IT-R Rate ($/103m3/d)],MATCH(Table_CloseReceipt[[#This Row],[Station Number]], Table_Attach1[Receipt Point Number], 0))*INDEX(Conversions!$C$7:$C$8,MATCH('Toll Calculator'!$O$8, Conversions!$B$7:$B$8, 0))*_xlfn.SWITCH(UPPER(TRIM('Toll Calculator'!$O$8)),"IMPERIAL", (365/12),"METRIC", 1,1) -> 34.73
C55: =Table_ReceiptPointAlphabetical[[#This Row],[Alphabetical Order Rank]] -> 49 | D55: =INDEX(Table_ReceiptPoint[Receipt Point Number],MATCH(Table_CloseReceipt[[#This Row],[Rank]],Table_ReceiptPoint[Distance Rank to Delivery Location],0),) -> 30340 | E55: =INDEX(Table_ReceiptPoint[Receipt Point Name2],MATCH(Table_CloseReceipt[[#This Row],[Rank]],Table_ReceiptPoint[Distance Rank to Delivery Location],0),) -> PERCY LAKE APN* | F55: =INDEX(Table_ReceiptPoint[Distance From Delivery Station],MATCH(Table_CloseReceipt[[#This Row],[Rank]],Table_ReceiptPoint[Distance Rank to Delivery Location],0),) -> 93.6598 | G55: =INDEX(Table_ReceiptPoint[Legal Location Name],MATCH(Table_CloseReceipt[[#This Row],[Rank]],Table_ReceiptPoint[Distance Rank to Delivery Location],0),) -> 04-28-048-10-W4 | H55: =INDEX(Table_Attach1[FT-R Demand Rate Price Point "B" ($/103m3/mo)],MATCH(Table_CloseReceipt[[#This Row],[Station Number]],Table_Attach1[Receipt Point Number],0),)*INDEX(Conversions!$C$7:$C$8,MATCH('Toll Calculator'!$O$8,Conversions!$B$7:$B$8,0)) -> 47.74 | I55: =INDEX(Table_Attach3[FT-P Demand Rate Price Point "B"],MATCH(IF(CEILING(Table_CloseReceipt[[#This Row],[Distance (km)]],25)>500,999999,CEILING(Table_CloseReceipt[[#This Row],[Distance (km)]],25)),Table_Attach3[Maximum Distance Between Receipt Point and Delivery Point (km)],0),)*INDEX(Conversions!$C$7:$C$8,MATCH('Toll Calculator'!$O$8,Conversions!$B$7:$B$8,0)) -> 42.56 | J55: =INDEX(Table_Attach1[IT-R Rate ($/103m3/d)],MATCH(Table_CloseReceipt[[#This Row],[Station Number]], Table_Attach1[Receipt Point Number], 0))*INDEX(Conversions!$C$7:$C$8,MATCH('Toll Calculator'!$O$8, Conversions!$B$7:$B$8, 0))*_xlfn.SWITCH(UPPER(TRIM('Toll Calculator'!$O$8)),"IMPERIAL", (365/12),"METRIC", 1,1) -> 54.9
C56: =Table_ReceiptPointAlphabetical[[#This Row],[Alphabetical Order Rank]] -> 50 | D56: =INDEX(Table_ReceiptPoint[Receipt Point Number],MATCH(Table_CloseReceipt[[#This Row],[Rank]],Table_ReceiptPoint[Distance Rank to Delivery Location],0),) -> 1163 | E56: =INDEX(Table_ReceiptPoint[Receipt Point Name2],MATCH(Table_CloseReceipt[[#This Row],[Rank]],Table_ReceiptPoint[Distance Rank to Delivery Location],0),) -> JARROW | F56: =INDEX(Table_ReceiptPoint[Distance From Delivery Station],MATCH(Table_CloseReceipt[[#This Row],[Rank]],Table_ReceiptPoint[Distance Rank to Delivery Location],0),) -> 94.7343 | G56: =INDEX(Table_ReceiptPoint[Legal Location Name],MATCH(Table_CloseReceipt[[#This Row],[Rank]],Table_ReceiptPoint[Distance Rank to Delivery Location],0),) -> SW-05-045-10-W4 | H56: =INDEX(Table_Attach1[FT-R Demand Rate Price Point "B" ($/103m3/mo)],MATCH(Table_CloseReceipt[[#This Row],[Station Number]],Table_Attach1[Receipt Point Number],0),)*INDEX(Conversions!$C$7:$C$8,MATCH('Toll Calculator'!$O$8,Conversions!$B$7:$B$8,0)) -> 29.46 | I56: =INDEX(Table_Attach3[FT-P Demand Rate Price Point "B"],MATCH(IF(CEILING(Table_CloseReceipt[[#This Row],[Distance (km)]],25)>500,999999,CEILING(Table_CloseReceipt[[#This Row],[Distance (km)]],25)),Table_Attach3[Maximum Distance Between Receipt Point and Delivery Point (km)],0),)*INDEX(Conversions!$C$7:$C$8,MATCH('Toll Calculator'!$O$8,Conversions!$B$7:$B$8,0)) -> 42.56 | J56: =INDEX(Table_Attach1[IT-R Rate ($/103m3/d)],MATCH(Table_CloseReceipt[[#This Row],[Station Number]], Table_Attach1[Receipt Point Number], 0))*INDEX(Conversions!$C$7:$C$8,MATCH('Toll Calculator'!$O$8, Conversions!$B$7:$B$8, 0))*_xlfn.SWITCH(UPPER(TRIM('Toll Calculator'!$O$8)),"IMPERIAL", (365/12),"METRIC", 1,1) -> 33.88
C57: =Table_ReceiptPointAlphabetical[[#This Row],[Alphabetical Order Rank]] -> 51 | D57: =INDEX(Table_ReceiptPoint[Receipt Point Number],MATCH(Table_CloseReceipt[[#This Row],[Rank]],Table_ReceiptPoint[Distance Rank to Delivery Location],0),) -> 1281 | E57: =INDEX(Table_ReceiptPoint[Receipt Point Name2],MATCH(Table_CloseReceipt[[#This Row],[Rank]],Table_ReceiptPoint[Distance Rank to Delivery Location],0),) -> JARROW WEST* | F57: =INDEX(Table_ReceiptPoint[Distance From Delivery Station],MATCH(Table_CloseReceipt[[#This Row],[Rank]],Table_ReceiptPoint[Distance Rank to Delivery Location],0),) -> 97.4405 | G57: =INDEX(Table_ReceiptPoint[Legal Location Name],MATCH(Table_CloseReceipt[[#This Row],[Rank]],Table_ReceiptPoint[Distance Rank to Delivery Location],0),) -> SE-14-045-11-W4 | H57: =INDEX(Table_Attach1[FT-R Demand Rate Price Point "B" ($/103m3/mo)],MATCH(Table_CloseReceipt[[#This Row],[Station Number]],Table_Attach1[Receipt Point Number],0),)*INDEX(Conversions!$C$7:$C$8,MATCH('Toll Calculator'!$O$8,Conversions!$B$7:$B$8,0)) -> 28.95 | I57: =INDEX(Table_Attach3[FT-P Demand Rate Price Point "B"],MATCH(IF(CEILING(Table_CloseReceipt[[#This Row],[Distance (km)]],25)>500,999999,CEILING(Table_CloseReceipt[[#This Row],[Distance (km)]],25)),Table_Attach3[Maximum Distance Between Receipt Point and Delivery Point (km)],0),)*INDEX(Conversions!$C$7:$C$8,MATCH('Toll Calculator'!$O$8,Conversions!$B$7:$B$8,0)) -> 42.56 | J57: =INDEX(Table_Attach1[IT-R Rate ($/103m3/d)],MATCH(Table_CloseReceipt[[#This Row],[Station Number]], Table_Attach1[Receipt Point Number], 0))*INDEX(Conversions!$C$7:$C$8,MATCH('Toll Calculator'!$O$8, Conversions!$B$7:$B$8, 0))*_xlfn.SWITCH(UPPER(TRIM('Toll Calculator'!$O$8)),"IMPERIAL", (365/12),"METRIC", 1,1) -> 33.29
C58: =Table_ReceiptPointAlphabetical[[#This Row],[Alphabetical Order Rank]] -> 52 | D58: =INDEX(Table_ReceiptPoint[Receipt Point Number],MATCH(Table_CloseReceipt[[#This Row],[Rank]],Table_ReceiptPoint[Distance Rank to Delivery Location],0),) -> 1396 | E58: =INDEX(Table_ReceiptPoint[Receipt Point Name2],MATCH(Table_CloseReceipt[[#This Row],[Rank]],Table_ReceiptPoint[Distance Rank to Delivery Location],0),) -> MINBURN* | F58: =INDEX(Table_ReceiptPoint[Distance From Delivery Station],MATCH(Table_CloseReceipt[[#This Row],[Rank]],Table_ReceiptPoint[Distance Rank to Delivery Location],0),) -> 97.5784 | G58: =INDEX(Table_ReceiptPoint[Legal Location Name],MATCH(Table_CloseReceipt[[#This Row],[Rank]],Table_ReceiptPoint[Distance Rank to Delivery Location],0),) -> SE-24-051-10-W4 | H58: =INDEX(Table_Attach1[FT-R Demand Rate Price Point "B" ($/103m3/mo)],MATCH(Table_CloseReceipt[[#This Row],[Station Number]],Table_Attach1[Receipt Point Number],0),)*INDEX(Conversions!$C$7:$C$8,MATCH('Toll Calculator'!$O$8,Conversions!$B$7:$B$8,0)) -> 47.74 | I58: =INDEX(Table_Attach3[FT-P Demand Rate Price Point "B"],MATCH(IF(CEILING(Table_CloseReceipt[[#This Row],[Distance (km)]],25)>500,999999,CEILING(Table_CloseReceipt[[#This Row],[Distance (km)]],25)),Table_Attach3[Maximum Distance Between Receipt Point and Delivery Point (km)],0),)*INDEX(Conversions!$C$7:$C$8,MATCH('Toll Calculator'!$O$8,Conversions!$B$7:$B$8,0)) -> 42.56 | J58: =INDEX(Table_Attach1[IT-R Rate ($/103m3/d)],MATCH(Table_CloseReceipt[[#This Row],[Station Number]], Table_Attach1[Receipt Point Number], 0))*INDEX(Conversions!$C$7:$C$8,MATCH('Toll Calculator'!$O$8, Conversions!$B$7:$B$8, 0))*_xlfn.SWITCH(UPPER(TRIM('Toll Calculator'!$O$8)),"IMPERIAL", (365/12),"METRIC", 1,1) -> 54.9
C59: =Table_ReceiptPointAlphabetical[[#This Row],[Alphabetical Order Rank]] -> 53 | D59: =INDEX(Table_ReceiptPoint[Receipt Point Number],MATCH(Table_CloseReceipt[[#This Row],[Rank]],Table_ReceiptPoint[Distance Rank to Delivery Location],0),) -> 30321 | E59: =INDEX(Table_ReceiptPoint[Receipt Point Name2],MATCH(Table_CloseReceipt[[#This Row],[Rank]],Table_ReceiptPoint[Distance Rank to Delivery Location],0),) -> MYRNAM APN* | F59: =INDEX(Table_ReceiptPoint[Distance From Delivery Station],MATCH(Table_CloseReceipt[[#This Row],[Rank]],Table_ReceiptPoint[Distance Rank to Delivery Location],0),) -> 100.9854 | G59: =INDEX(Table_ReceiptPoint[Legal Location Name],MATCH(Table_CloseReceipt[[#This Row],[Rank]],Table_ReceiptPoint[Distance Rank to Delivery Location],0),) -> 08-10-053-09-W4 | H59: =INDEX(Table_Attach1[FT-R Demand Rate Price Point "B" ($/103m3/mo)],MATCH(Table_CloseReceipt[[#This Row],[Station Number]],Table_Attach1[Receipt Point Number],0),)*INDEX(Conversions!$C$7:$C$8,MATCH('Toll Calculator'!$O$8,Conversions!$B$7:$B$8,0)) -> 47.74 | I59: =INDEX(Table_Attach3[FT-P Demand Rate Price Point "B"],MATCH(IF(CEILING(Table_CloseReceipt[[#This Row],[Distance (km)]],25)>500,999999,CEILING(Table_CloseReceipt[[#This Row],[Distance (km)]],25)),Table_Attach3[Maximum Distance Between Receipt Point and Delivery Point (km)],0),)*INDEX(Conversions!$C$7:$C$8,MATCH('Toll Calculator'!$O$8,Conversions!$B$7:$B$8,0)) -> 44.77 | J59: =INDEX(Table_Attach1[IT-R Rate ($/103m3/d)],MATCH(Table_CloseReceipt[[#This Row],[Station Number]], Table_Attach1[Receipt Point Number], 0))*INDEX(Conversions!$C$7:$C$8,MATCH('Toll Calculator'!$O$8, Conversions!$B$7:$B$8, 0))*_xlfn.SWITCH(UPPER(TRIM('Toll Calculator'!$O$8)),"IMPERIAL", (365/12),"METRIC", 1,1) -> 54.9
C60: =Table_ReceiptPointAlphabetical[[#This Row],[Alphabetical Order Rank]] -> 54 | D60: =INDEX(Table_ReceiptPoint[Receipt Point Number],MATCH(Table_CloseReceipt[[#This Row],[Rank]],Table_ReceiptPoint[Distance Rank to Delivery Location],0),) -> 1395 | E60: =INDEX(Table_ReceiptPoint[Receipt Point Name2],MATCH(Table_CloseReceipt[[#This Row],[Rank]],Table_ReceiptPoint[Distance Rank to Delivery Location],0),) -> SEDGEWICK EAST* | F60: =INDEX(Table_ReceiptPoint[Distance From Delivery Station],MATCH(Table_CloseReceipt[[#This Row],[Rank]],Table_ReceiptPoint[Distance Rank to Delivery Location],0),) -> 102.9825 | G60: =INDEX(Table_ReceiptPoint[Legal Location Name],MATCH(Table_CloseReceipt[[#This Row],[Rank]],Table_ReceiptPoint[Distance Rank to Delivery Location],0),) -> NW-23-043-11-W4 | H60: =INDEX(Table_Attach1[FT-R Demand Rate Price Point "B" ($/103m3/mo)],MATCH(Table_CloseReceipt[[#This Row],[Station Number]],Table_Attach1[Receipt Point Number],0),)*INDEX(Conversions!$C$7:$C$8,MATCH('Toll Calculator'!$O$8,Conversions!$B$7:$B$8,0)) -> 33.8 | I60: =INDEX(Table_Attach3[FT-P Demand Rate Price Point "B"],MATCH(IF(CEILING(Table_CloseReceipt[[#This Row],[Distance (km)]],25)>500,999999,CEILING(Table_CloseReceipt[[#This Row],[Distance (km)]],25)),Table_Attach3[Maximum Distance Between Receipt Point and Delivery Point (km)],0),)*INDEX(Conversions!$C$7:$C$8,MATCH('Toll Calculator'!$O$8,Conversions!$B$7:$B$8,0)) -> 44.77 | J60: =INDEX(Table_Attach1[IT-R Rate ($/103m3/d)],MATCH(Table_CloseReceipt[[#This Row],[Station Number]], Table_Attach1[Receipt Point Number], 0))*INDEX(Conversions!$C$7:$C$8,MATCH('Toll Calculator'!$O$8, Conversions!$B$7:$B$8, 0))*_xlfn.SWITCH(UPPER(TRIM('Toll Calculator'!$O$8)),"IMPERIAL", (365/12),"METRIC", 1,1) -> 38.87
C61: =Table_ReceiptPointAlphabetical[[#This Row],[Alphabetical Order Rank]] -> 55 | D61: =INDEX(Table_ReceiptPoint[Receipt Point Number],MATCH(Table_CloseReceipt[[#This Row],[Rank]],Table_ReceiptPoint[Distance Rank to Delivery Location],0),) -> 1323 | E61: =INDEX(Table_ReceiptPoint[Receipt Point Name2],MATCH(Table_CloseReceipt[[#This Row],[Rank]],Table_ReceiptPoint[Distance Rank to Delivery Location],0),) -> CHOICE B* | F61: =INDEX(Table_ReceiptPoint[Distance From Delivery Station],MATCH(Table_CloseReceipt[[#This Row],[Rank]],Table_ReceiptPoint[Distance Rank to Delivery Location],0),) -> 103.5642 | G61: =INDEX(Table_ReceiptPoint[Legal Location Name],MATCH(Table_CloseReceipt[[#This Row],[Rank]],Table_ReceiptPoint[Distance Rank to Delivery Location],0),) -> SE-17-040-09-W4 | H61: =INDEX(Table_Attach1[FT-R Demand Rate Price Point "B" ($/103m3/mo)],MATCH(Table_CloseReceipt[[#This Row],[Station Number]],Table_Attach1[Receipt Point Number],0),)*INDEX(Conversions!$C$7:$C$8,MATCH('Toll Calculator'!$O$8,Conversions!$B$7:$B$8,0)) -> 44.58 | I61: =INDEX(Table_Attach3[FT-P Demand Rate Price Point "B"],MATCH(IF(CEILING(Table_CloseReceipt[[#This Row],[Distance (km)]],25)>500,999999,CEILING(Table_CloseReceipt[[#This Row],[Distance (km)]],25)),Table_Attach3[Maximum Distance Between Receipt Point and Delivery Point (km)],0),)*INDEX(Conversions!$C$7:$C$8,MATCH('Toll Calculator'!$O$8,Conversions!$B$7:$B$8,0)) -> 44.77 | J61: =INDEX(Table_Attach1[IT-R Rate ($/103m3/d)],MATCH(Table_CloseReceipt[[#This Row],[Station Number]], Table_Attach1[Receipt Point Number], 0))*INDEX(Conversions!$C$7:$C$8,MATCH('Toll Calculator'!$O$8, Conversions!$B$7:$B$8, 0))*_xlfn.SWITCH(UPPER(TRIM('Toll Calculator'!$O$8)),"IMPERIAL", (365/12),"METRIC", 1,1) -> 51.27
C62: =Table_ReceiptPointAlphabetical[[#This Row],[Alphabetical Order Rank]] -> 56 | D62: =INDEX(Table_ReceiptPoint[Receipt Point Number],MATCH(Table_CloseReceipt[[#This Row],[Rank]],Table_ReceiptPoint[Distance Rank to Delivery Location],0),) -> 1322 | E62: =INDEX(Table_ReceiptPoint[Receipt Point Name2],MATCH(Table_CloseReceipt[[#This Row],[Rank]],Table_ReceiptPoint[Distance Rank to Delivery Location],0),) -> CHOICE* | F62: =INDEX(Table_ReceiptPoint[Distance From Delivery Station],MATCH(Table_CloseReceipt[[#This Row],[Rank]],Table_ReceiptPoint[Distance Rank to Delivery Location],0),) -> 103.5931 | G62: =INDEX(Table_ReceiptPoint[Legal Location Name],MATCH(Table_CloseReceipt[[#This Row],[Rank]],Table_ReceiptPoint[Distance Rank to Delivery Location],0),) -> NW-17-040-09-W4 | H62: =INDEX(Table_Attach1[FT-R Demand Rate Price Point "B" ($/103m3/mo)],MATCH(Table_CloseReceipt[[#This Row],[Station Number]],Table_Attach1[Receipt Point Number],0),)*INDEX(Conversions!$C$7:$C$8,MATCH('Toll Calculator'!$O$8,Conversions!$B$7:$B$8,0)) -> 44.57 | I62: =INDEX(Table_Attach3[FT-P Demand Rate Price Point "B"],MATCH(IF(CEILING(Table_CloseReceipt[[#This Row],[Distance (km)]],25)>500,999999,CEILING(Table_CloseReceipt[[#This Row],[Distance (km)]],25)),Table_Attach3[Maximum Distance Between Receipt Point and Delivery Point (km)],0),)*INDEX(Conversions!$C$7:$C$8,MATCH('Toll Calculator'!$O$8,Conversions!$B$7:$B$8,0)) -> 44.77 | J62: =INDEX(Table_Attach1[IT-R Rate ($/103m3/d)],MATCH(Table_CloseReceipt[[#This Row],[Station Number]], Table_Attach1[Receipt Point Number], 0))*INDEX(Conversions!$C$7:$C$8,MATCH('Toll Calculator'!$O$8, Conversions!$B$7:$B$8, 0))*_xlfn.SWITCH(UPPER(TRIM('Toll Calculator'!$O$8)),"IMPERIAL", (365/12),"METRIC", 1,1) -> 51.25
C63: =Table_ReceiptPointAlphabetical[[#This Row],[Alphabetical Order Rank]] -> 57 | D63: =INDEX(Table_ReceiptPoint[Receipt Point Number],MATCH(Table_CloseReceipt[[#This Row],[Rank]],Table_ReceiptPoint[Distance Rank to Delivery Location],0),) -> 1038 | E63: =INDEX(Table_ReceiptPoint[Receipt Point Name2],MATCH(Table_CloseReceipt[[#This Row],[Rank]],Table_ReceiptPoint[Distance Rank to Delivery Location],0),) -> PROVOST-KESSLER | F63: =INDEX(Table_ReceiptPoint[Distance From Delivery Station],MATCH(Table_CloseReceipt[[#This Row],[Rank]],Table_ReceiptPoint[Distance Rank to Delivery Location],0),) -> 104.0176 | G63: =INDEX(Table_ReceiptPoint[Legal Location Name],MATCH(Table_CloseReceipt[[#This Row],[Rank]],Table_ReceiptPoint[Distance Rank to Delivery Location],0),) -> NE-05-039-08-W4 | H63: =INDEX(Table_Attach1[FT-R Demand Rate Price Point "B" ($/103m3/mo)],MATCH(Table_CloseReceipt[[#This Row],[Station Number]],Table_Attach1[Receipt Point Number],0),)*INDEX(Conversions!$C$7:$C$8,MATCH('Toll Calculator'!$O$8,Conversions!$B$7:$B$8,0)) -> 47.74 | I63: =INDEX(Table_Attach3[FT-P Demand Rate Price Point "B"],MATCH(IF(CEILING(Table_CloseReceipt[[#This Row],[Distance (km)]],25)>500,999999,CEILING(Table_CloseReceipt[[#This Row],[Distance (km)]],25)),Table_Attach3[Maximum Distance Between Receipt Point and Delivery Point (km)],0),)*INDEX(Conversions!$C$7:$C$8,MATCH('Toll Calculator'!$O$8,Conversions!$B$7:$B$8,0)) -> 44.77 | J63: =INDEX(Table_Attach1[IT-R Rate ($/103m3/d)],MATCH(Table_CloseReceipt[[#This Row],[Station Number]], Table_Attach1[Receipt Point Number], 0))*INDEX(Conversions!$C$7:$C$8,MATCH('Toll Calculator'!$O$8, Conversions!$B$7:$B$8, 0))*_xlfn.SWITCH(UPPER(TRIM('Toll Calculator'!$O$8)),"IMPERIAL", (365/12),"METRIC", 1,1) -> 54.9
C64: =Table_ReceiptPointAlphabetical[[#This Row],[Alphabetical Order Rank]] -> 58 | D64: =INDEX(Table_ReceiptPoint[Receipt Point Number],MATCH(Table_CloseReceipt[[#This Row],[Rank]],Table_ReceiptPoint[Distance Rank to Delivery Location],0),) -> 1165 | E64: =INDEX(Table_ReceiptPoint[Receipt Point Name2],MATCH(Table_CloseReceipt[[#This Row],[Rank]],Table_ReceiptPoint[Distance Rank to Delivery Location],0),) -> RANFURLY WEST* | F64: =INDEX(Table_ReceiptPoint[Distance From Delivery Station],MATCH(Table_CloseReceipt[[#This Row],[Rank]],Table_ReceiptPoint[Distance Rank to Delivery Location],0),) -> 107.7937 | G64: =INDEX(Table_ReceiptPoint[Legal Location Name],MATCH(Table_CloseReceipt[[#This Row],[Rank]],Table_ReceiptPoint[Distance Rank to Delivery Location],0),) -> 13-32-049-11-W4 | H64: =INDEX(Table_Attach1[FT-R Demand Rate Price Point "B" ($/103m3/mo)],MATCH(Table_CloseReceipt[[#This Row],[Station Number]],Table_Attach1[Receipt Point Number],0),)*INDEX(Conversions!$C$7:$C$8,MATCH('Toll Calculator'!$O$8,Conversions!$B$7:$B$8,0)) -> 44.81 | I64: =INDEX(Table_Attach3[FT-P Demand Rate Price Point "B"],MATCH(IF(CEILING(Table_CloseReceipt[[#This Row],[Distance (km)]],25)>500,999999,CEILING(Table_CloseReceipt[[#This Row],[Distance (km)]],25)),Table_Attach3[Maximum Distance Between Receipt Point and Delivery Point (km)],0),)*INDEX(Conversions!$C$7:$C$8,MATCH('Toll Calculator'!$O$8,Conversions!$B$7:$B$8,0)) -> 44.77 | J64: =INDEX(Table_Attach1[IT-R Rate ($/103m3/d)],MATCH(Table_CloseReceipt[[#This Row],[Station Number]], Table_Attach1[Receipt Point Number], 0))*INDEX(Conversions!$C$7:$C$8,MATCH('Toll Calculator'!$O$8, Conversions!$B$7:$B$8, 0))*_xlfn.SWITCH(UPPER(TRIM('Toll Calculator'!$O$8)),"IMPERIAL", (365/12),"METRIC", 1,1) -> 51.53
C65: =Table_ReceiptPointAlphabetical[[#This Row],[Alphabetical Order Rank]] -> 59 | D65: =INDEX(Table_ReceiptPoint[Receipt Point Number],MATCH(Table_CloseReceipt[[#This Row],[Rank]],Table_ReceiptPoint[Distance Rank to Delivery Location],0),) -> 1003 | E65: =INDEX(Table_ReceiptPoint[Receipt Point Name2],MATCH(Table_CloseReceipt[[#This Row],[Rank]],Table_ReceiptPoint[Distance Rank to Delivery Location],0),) -> PROVOST NORTH | F65: =INDEX(Table_ReceiptPoint[Distance From Delivery Station],MATCH(Table_CloseReceipt[[#This Row],[Rank]],Table_ReceiptPoint[Distance Rank to Delivery Location],0),) -> 109.7151 | G65: =INDEX(Table_ReceiptPoint[Legal Location Name],MATCH(Table_CloseReceipt[[#This Row],[Rank]],Table_ReceiptPoint[Distance Rank to Delivery Location],0),) -> 16-18-036-05-W4 | H65: =INDEX(Table_Attach1[FT-R Demand Rate Price Point "B" ($/103m3/mo)],MATCH(Table_CloseReceipt[[#This Row],[Station Number]],Table_Attach1[Receipt Point Number],0),)*INDEX(Conversions!$C$7:$C$8,MATCH('Toll Calculator'!$O$8,Conversions!$B$7:$B$8,0)) -> 40.87 | I65: =INDEX(Table_Attach3[FT-P Demand Rate Price Point "B"],MATCH(IF(CEILING(Table_CloseReceipt[[#This Row],[Distance (km)]],25)>500,999999,CEILING(Table_CloseReceipt[[#This Row],[Distance (km)]],25)),Table_Attach3[Maximum Distance Between Receipt Point and Delivery Point (km)],0),)*INDEX(Conversions!$C$7:$C$8,MATCH('Toll Calculator'!$O$8,Conversions!$B$7:$B$8,0)) -> 44.77 | J65: =INDEX(Table_Attach1[IT-R Rate ($/103m3/d)],MATCH(Table_CloseReceipt[[#This Row],[Station Number]], Table_Attach1[Receipt Point Number], 0))*INDEX(Conversions!$C$7:$C$8,MATCH('Toll Calculator'!$O$8, Conversions!$B$7:$B$8, 0))*_xlfn.SWITCH(UPPER(TRIM('Toll Calculator'!$O$8)),"IMPERIAL", (365/12),"METRIC", 1,1) -> 47
C66: =Table_ReceiptPointAlphabetical[[#This Row],[Alphabetical Order Rank]] -> 60 | D66: =INDEX(Table_ReceiptPoint[Receipt Point Number],MATCH(Table_CloseReceipt[[#This Row],[Rank]],Table_ReceiptPoint[Distance Rank to Delivery Location],0),) -> 1418 | E66: =INDEX(Table_ReceiptPoint[Receipt Point Name2],MATCH(Table_CloseReceipt[[#This Row],[Rank]],Table_ReceiptPoint[Distance Rank to Delivery Location],0),) -> HATTIE LAKE NORTH* | F66: =INDEX(Table_ReceiptPoint[Distance From Delivery Station],MATCH(Table_CloseReceipt[[#This Row],[Rank]],Table_ReceiptPoint[Distance Rank to Delivery Location],0),) -> 109.7378 | G66: =INDEX(Table_ReceiptPoint[Legal Location Name],MATCH(Table_CloseReceipt[[#This Row],[Rank]],Table_ReceiptPoint[Distance Rank to Delivery Location],0),) -> 14-10-047-12-W4 | H66: =INDEX(Table_Attach1[FT-R Demand Rate Price Point "B" ($/103m3/mo)],MATCH(Table_CloseReceipt[[#This Row],[Station Number]],Table_Attach1[Receipt Point Number],0),)*INDEX(Conversions!$C$7:$C$8,MATCH('Toll Calculator'!$O$8,Conversions!$B$7:$B$8,0)) -> 26.58 | I66: =INDEX(Table_Attach3[FT-P Demand Rate Price Point "B"],MATCH(IF(CEILING(Table_CloseReceipt[[#This Row],[Distance (km)]],25)>500,999999,CEILING(Table_CloseReceipt[[#This Row],[Distance (km)]],25)),Table_Attach3[Maximum Distance Between Receipt Point and Delivery Point (km)],0),)*INDEX(Conversions!$C$7:$C$8,MATCH('Toll Calculator'!$O$8,Conversions!$B$7:$B$8,0)) -> 44.77 | J66: =INDEX(Table_Attach1[IT-R Rate ($/103m3/d)],MATCH(Table_CloseReceipt[[#This Row],[Station Number]], Table_Attach1[Receipt Point Number], 0))*INDEX(Conversions!$C$7:$C$8,MATCH('Toll Calculator'!$O$8, Conversions!$B$7:$B$8, 0))*_xlfn.SWITCH(UPPER(TRIM('Toll Calculator'!$O$8)),"IMPERIAL", (365/12),"METRIC", 1,1) -> 30.57
C67: =Table_ReceiptPointAlphabetical[[#This Row],[Alphabetical Order Rank]] -> 61 | D67: =INDEX(Table_ReceiptPoint[Receipt Point Number],MATCH(Table_CloseReceipt[[#This Row],[Rank]],Table_ReceiptPoint[Distance Rank to Delivery Location],0),) -> 1162 | E67: =INDEX(Table_ReceiptPoint[Receipt Point Name2],MATCH(Table_CloseReceipt[[#This Row],[Rank]],Table_ReceiptPoint[Distance Rank to Delivery Location],0),) -> KILLAM | F67: =INDEX(Table_ReceiptPoint[Distance From Delivery Station],MATCH(Table_CloseReceipt[[#This Row],[Rank]],Table_ReceiptPoint[Distance Rank to Delivery Location],0),) -> 112.3701 | G67: =INDEX(Table_ReceiptPoint[Legal Location Name],MATCH(Table_CloseReceipt[[#This Row],[Rank]],Table_ReceiptPoint[Distance Rank to Delivery Location],0),) -> 09-05-045-12-W4 | H67: =INDEX(Table_Attach1[FT-R Demand Rate Price Point "B" ($/103m3/mo)],MATCH(Table_CloseReceipt[[#This Row],[Station Number]],Table_Attach1[Receipt Point Number],0),)*INDEX(Conversions!$C$7:$C$8,MATCH('Toll Calculator'!$O$8,Conversions!$B$7:$B$8,0)) -> 34.55 | I67: =INDEX(Table_Attach3[FT-P Demand Rate Price Point "B"],MATCH(IF(CEILING(Table_CloseReceipt[[#This Row],[Distance (km)]],25)>500,999999,CEILING(Table_CloseReceipt[[#This Row],[Distance (km)]],25)),Table_Attach3[Maximum Distance Between Receipt Point and Delivery Point (km)],0),)*INDEX(Conversions!$C$7:$C$8,MATCH('Toll Calculator'!$O$8,Conversions!$B$7:$B$8,0)) -> 44.77 | J67: =INDEX(Table_Attach1[IT-R Rate ($/103m3/d)],MATCH(Table_CloseReceipt[[#This Row],[Station Number]], Table_Attach1[Receipt Point Number], 0))*INDEX(Conversions!$C$7:$C$8,MATCH('Toll Calculator'!$O$8, Conversions!$B$7:$B$8, 0))*_xlfn.SWITCH(UPPER(TRIM('Toll Calculator'!$O$8)),"IMPERIAL", (365/12),"METRIC", 1,1) -> 39.74
C68: =Table_ReceiptPointAlphabetical[[#This Row],[Alphabetical Order Rank]] -> 62 | D68: =INDEX(Table_ReceiptPoint[Receipt Point Number],MATCH(Table_CloseReceipt[[#This Row],[Rank]],Table_ReceiptPoint[Distance Rank to Delivery Location],0),) -> 30376 | E68: =INDEX(Table_ReceiptPoint[Receipt Point Name2],MATCH(Table_CloseReceipt[[#This Row],[Rank]],Table_ReceiptPoint[Distance Rank to Delivery Location],0),) -> VIKING SOUTH APN* | F68: =INDEX(Table_ReceiptPoint[Distance From Delivery Station],MATCH(Table_CloseReceipt[[#This Row],[Rank]],Table_ReceiptPoint[Distance Rank to Delivery Location],0),) -> 115.88 | G68: =INDEX(Table_ReceiptPoint[Legal Location Name],MATCH(Table_CloseReceipt[[#This Row],[Rank]],Table_ReceiptPoint[Distance Rank to Delivery Location],0),) -> 16-01-048-13-W4 | H68: =INDEX(Table_Attach1[FT-R Demand Rate Price Point "B" ($/103m3/mo)],MATCH(Table_CloseReceipt[[#This Row],[Station Number]],Table_Attach1[Receipt Point Number],0),)*INDEX(Conversions!$C$7:$C$8,MATCH('Toll Calculator'!$O$8,Conversions!$B$7:$B$8,0)) -> 41.21 | I68: =INDEX(Table_Attach3[FT-P Demand Rate Price Point "B"],MATCH(IF(CEILING(Table_CloseReceipt[[#This Row],[Distance (km)]],25)>500,999999,CEILING(Table_CloseReceipt[[#This Row],[Distance (km)]],25)),Table_Attach3[Maximum Distance Between Receipt Point and Delivery Point (km)],0),)*INDEX(Conversions!$C$7:$C$8,MATCH('Toll Calculator'!$O$8,Conversions!$B$7:$B$8,0)) -> 44.77 | J68: =INDEX(Table_Attach1[IT-R Rate ($/103m3/d)],MATCH(Table_CloseReceipt[[#This Row],[Station Number]], Table_Attach1[Receipt Point Number], 0))*INDEX(Conversions!$C$7:$C$8,MATCH('Toll Calculator'!$O$8, Conversions!$B$7:$B$8, 0))*_xlfn.SWITCH(UPPER(TRIM('Toll Calculator'!$O$8)),"IMPERIAL", (365/12),"METRIC", 1,1) -> 47.39
C69: =Table_ReceiptPointAlphabetical[[#This Row],[Alphabetical Order Rank]] -> 63 | D69: =INDEX(Table_ReceiptPoint[Receipt Point Number],MATCH(Table_CloseReceipt[[#This Row],[Rank]],Table_ReceiptPoint[Distance Rank to Delivery Location],0),) -> 1841 | E69: =INDEX(Table_ReceiptPoint[Receipt Point Name2],MATCH(Table_CloseReceipt[[#This Row],[Rank]],Table_ReceiptPoint[Distance Rank to Delivery Location],0),) -> TORLEA EAST* | F69: =INDEX(Table_ReceiptPoint[Distance From Delivery Station],MATCH(Table_CloseReceipt[[#This Row],[Rank]],Table_ReceiptPoint[Distance Rank to Delivery Location],0),) -> 116.7884 | G69: =INDEX(Table_ReceiptPoint[Legal Location Name],MATCH(Table_CloseReceipt[[#This Row],[Rank]],Table_ReceiptPoint[Distance Rank to Delivery Location],0),) -> SW-06-049-12-W4 | H69: =INDEX(Table_Attach1[FT-R Demand Rate Price Point "B" ($/103m3/mo)],MATCH(Table_CloseReceipt[[#This Row],[Station Number]],Table_Attach1[Receipt Point Number],0),)*INDEX(Conversions!$C$7:$C$8,MATCH('Toll Calculator'!$O$8,Conversions!$B$7:$B$8,0)) -> 16.21 | I69: =INDEX(Table_Attach3[FT-P Demand Rate Price Point "B"],MATCH(IF(CEILING(Table_CloseReceipt[[#This Row],[Distance (km)]],25)>500,999999,CEILING(Table_CloseReceipt[[#This Row],[Distance (km)]],25)),Table_Attach3[Maximum Distance Between Receipt Point and Delivery Point (km)],0),)*INDEX(Conversions!$C$7:$C$8,MATCH('Toll Calculator'!$O$8,Conversions!$B$7:$B$8,0)) -> 44.77 | J69: =INDEX(Table_Attach1[IT-R Rate ($/103m3/d)],MATCH(Table_CloseReceipt[[#This Row],[Station Number]], Table_Attach1[Receipt Point Number], 0))*INDEX(Conversions!$C$7:$C$8,MATCH('Toll Calculator'!$O$8, Conversions!$B$7:$B$8, 0))*_xlfn.SWITCH(UPPER(TRIM('Toll Calculator'!$O$8)),"IMPERIAL", (365/12),"METRIC", 1,1) -> 18.64
C70: =Table_ReceiptPointAlphabetical[[#This Row],[Alphabetical Order Rank]] -> 64 | D70: =INDEX(Table_ReceiptPoint[Receipt Point Number],MATCH(Table_CloseReceipt[[#This Row],[Rank]],Table_ReceiptPoint[Distance Rank to Delivery Location],0),) -> 1460 | E70: =INDEX(Table_ReceiptPoint[Receipt Point Name2],MATCH(Table_CloseReceipt[[#This Row],[Rank]],Table_ReceiptPoint[Distance Rank to Delivery Location],0),) -> MORECAMBE | F70: =INDEX(Table_ReceiptPoint[Distance From Delivery Station],MATCH(Table_CloseReceipt[[#This Row],[Rank]],Table_ReceiptPoint[Distance Rank to Delivery Location],0),) -> 116.8926 | G70: =INDEX(Table_ReceiptPoint[Legal Location Name],MATCH(Table_CloseReceipt[[#This Row],[Rank]],Table_ReceiptPoint[Distance Rank to Delivery Location],0),) -> SW-09-054-10-W4 | H70: =INDEX(Table_Attach1[FT-R Demand Rate Price Point "B" ($/103m3/mo)],MATCH(Table_CloseReceipt[[#This Row],[Station Number]],Table_Attach1[Receipt Point Number],0),)*INDEX(Conversions!$C$7:$C$8,MATCH('Toll Calculator'!$O$8,Conversions!$B$7:$B$8,0)) -> 26.65 | I70: =INDEX(Table_Attach3[FT-P Demand Rate Price Point "B"],MATCH(IF(CEILING(Table_CloseReceipt[[#This Row],[Distance (km)]],25)>500,999999,CEILING(Table_CloseReceipt[[#This Row],[Distance (km)]],25)),Table_Attach3[Maximum Distance Between Receipt Point and Delivery Point (km)],0),)*INDEX(Conversions!$C$7:$C$8,MATCH('Toll Calculator'!$O$8,Conversions!$B$7:$B$8,0)) -> 44.77 | J70: =INDEX(Table_Attach1[IT-R Rate ($/103m3/d)],MATCH(Table_CloseReceipt[[#This Row],[Station Number]], Table_Attach1[Receipt Point Number], 0))*INDEX(Conversions!$C$7:$C$8,MATCH('Toll Calculator'!$O$8, Conversions!$B$7:$B$8, 0))*_xlfn.SWITCH(UPPER(TRIM('Toll Calculator'!$O$8)),"IMPERIAL", (365/12),"METRIC", 1,1) -> 30.65
C71: =Table_ReceiptPointAlphabetical[[#This Row],[Alphabetical Order Rank]] -> 65 | D71: =INDEX(Table_ReceiptPoint[Receipt Point Number],MATCH(Table_CloseReceipt[[#This Row],[Rank]],Table_ReceiptPoint[Distance Rank to Delivery Location],0),) -> 1045 | E71: =INDEX(Table_ReceiptPoint[Receipt Point Name2],MATCH(Table_CloseReceipt[[#This Row],[Rank]],Table_ReceiptPoint[Distance Rank to Delivery Location],0),) -> PROVOST WEST* | F71: =INDEX(Table_ReceiptPoint[Distance From Delivery Station],MATCH(Table_CloseReceipt[[#This Row],[Rank]],Table_ReceiptPoint[Distance Rank to Delivery Location],0),) -> 116.9195 | G71: =INDEX(Table_ReceiptPoint[Legal Location Name],MATCH(Table_CloseReceipt[[#This Row],[Rank]],Table_ReceiptPoint[Distance Rank to Delivery Location],0),) -> NW-21-036-07-W4 | H71: =INDEX(Table_Attach1[FT-R Demand Rate Price Point "B" ($/103m3/mo)],MATCH(Table_CloseReceipt[[#This Row],[Station Number]],Table_Attach1[Receipt Point Number],0),)*INDEX(Conversions!$C$7:$C$8,MATCH('Toll Calculator'!$O$8,Conversions!$B$7:$B$8,0)) -> 47.74 | I71: =INDEX(Table_Attach3[FT-P Demand Rate Price Point "B"],MATCH(IF(CEILING(Table_CloseReceipt[[#This Row],[Distance (km)]],25)>500,999999,CEILING(Table_CloseReceipt[[#This Row],[Distance (km)]],25)),Table_Attach3[Maximum Distance Between Receipt Point and Delivery Point (km)],0),)*INDEX(Conversions!$C$7:$C$8,MATCH('Toll Calculator'!$O$8,Conversions!$B$7:$B$8,0)) -> 44.77 | J71: =INDEX(Table_Attach1[IT-R Rate ($/103m3/d)],MATCH(Table_CloseReceipt[[#This Row],[Station Number]], Table_Attach1[Receipt Point Number], 0))*INDEX(Conversions!$C$7:$C$8,MATCH('Toll Calculator'!$O$8, Conversions!$B$7:$B$8, 0))*_xlfn.SWITCH(UPPER(TRIM('Toll Calculator'!$O$8)),"IMPERIAL", (365/12),"METRIC", 1,1) -> 54.9
C72: =Table_ReceiptPointAlphabetical[[#This Row],[Alphabetical Order Rank]] -> 66 | D72: =INDEX(Table_ReceiptPoint[Receipt Point Number],MATCH(Table_CloseReceipt[[#This Row],[Rank]],Table_ReceiptPoint[Distance Rank to Delivery Location],0),) -> 30375 | E72: =INDEX(Table_ReceiptPoint[Receipt Point Name2],MATCH(Table_CloseReceipt[[#This Row],[Rank]],Table_ReceiptPoint[Distance Rank to Delivery Location],0),) -> VIKING FIELD APN | F72: =INDEX(Table_ReceiptPoint[Distance From Delivery Station],MATCH(Table_CloseReceipt[[#This Row],[Rank]],Table_ReceiptPoint[Distance Rank to Delivery Location],0),) -> 116.9586 | G72: =INDEX(Table_ReceiptPoint[Legal Location Name],MATCH(Table_CloseReceipt[[#This Row],[Rank]],Table_ReceiptPoint[Distance Rank to Delivery Location],0),) -> 16-36-048-13-W4 | H72: =INDEX(Table_Attach1[FT-R Demand Rate Price Point "B" ($/103m3/mo)],MATCH(Table_CloseReceipt[[#This Row],[Station Number]],Table_Attach1[Receipt Point Number],0),)*INDEX(Conversions!$C$7:$C$8,MATCH('Toll Calculator'!$O$8,Conversions!$B$7:$B$8,0)) -> 16.21 | I72: =INDEX(Table_Attach3[FT-P Demand Rate Price Point "B"],MATCH(IF(CEILING(Table_CloseReceipt[[#This Row],[Distance (km)]],25)>500,999999,CEILING(Table_CloseReceipt[[#This Row],[Distance (km)]],25)),Table_Attach3[Maximum Distance Between Receipt Point and Delivery Point (km)],0),)*INDEX(Conversions!$C$7:$C$8,MATCH('Toll Calculator'!$O$8,Conversions!$B$7:$B$8,0)) -> 44.77 | J72: =INDEX(Table_Attach1[IT-R Rate ($/103m3/d)],MATCH(Table_CloseReceipt[[#This Row],[Station Number]], Table_Attach1[Receipt Point Number], 0))*INDEX(Conversions!$C$7:$C$8,MATCH('Toll Calculator'!$O$8, Conversions!$B$7:$B$8, 0))*_xlfn.SWITCH(UPPER(TRIM('Toll Calculator'!$O$8)),"IMPERIAL", (365/12),"METRIC", 1,1) -> 18.64
C73: =Table_ReceiptPointAlphabetical[[#This Row],[Alphabetical Order Rank]] -> 67 | D73: =INDEX(Table_ReceiptPoint[Receipt Point Number],MATCH(Table_CloseReceipt[[#This Row],[Rank]],Table_ReceiptPoint[Distance Rank to Delivery Location],0),) -> 1114 | E73: =INDEX(Table_ReceiptPoint[Receipt Point Name2],MATCH(Table_CloseReceipt[[#This Row],[Rank]],Table_ReceiptPoint[Distance Rank to Delivery Location],0),) -> SEDGEWICK | F73: =INDEX(Table_ReceiptPoint[Distance From Delivery Station],MATCH(Table_CloseReceipt[[#This Row],[Rank]],Table_ReceiptPoint[Distance Rank to Delivery Location],0),) -> 117.904 | G73: =INDEX(Table_ReceiptPoint[Legal Location Name],MATCH(Table_CloseReceipt[[#This Row],[Rank]],Table_ReceiptPoint[Distance Rank to Delivery Location],0),) -> SE-16-042-12-W4 | H73: =INDEX(Table_Attach1[FT-R Demand Rate Price Point "B" ($/103m3/mo)],MATCH(Table_CloseReceipt[[#This Row],[Station Number]],Table_Attach1[Receipt Point Number],0),)*INDEX(Conversions!$C$7:$C$8,MATCH('Toll Calculator'!$O$8,Conversions!$B$7:$B$8,0)) -> 39.65 | I73: =INDEX(Table_Attach3[FT-P Demand Rate Price Point "B"],MATCH(IF(CEILING(Table_CloseReceipt[[#This Row],[Distance (km)]],25)>500,999999,CEILING(Table_CloseReceipt[[#This Row],[Distance (km)]],25)),Table_Attach3[Maximum Distance Between Receipt Point and Delivery Point (km)],0),)*INDEX(Conversions!$C$7:$C$8,MATCH('Toll Calculator'!$O$8,Conversions!$B$7:$B$8,0)) -> 44.77 | J73: =INDEX(Table_Attach1[IT-R Rate ($/103m3/d)],MATCH(Table_CloseReceipt[[#This Row],[Station Number]], Table_Attach1[Receipt Point Number], 0))*INDEX(Conversions!$C$7:$C$8,MATCH('Toll Calculator'!$O$8, Conversions!$B$7:$B$8, 0))*_xlfn.SWITCH(UPPER(TRIM('Toll Calculator'!$O$8)),"IMPERIAL", (365/12),"METRIC", 1,1) -> 45.58
C74: =Table_ReceiptPointAlphabetical[[#This Row],[Alphabetical Order Rank]] -> 68 | D74: =INDEX(Table_ReceiptPoint[Receipt Point Number],MATCH(Table_CloseReceipt[[#This Row],[Rank]],Table_ReceiptPoint[Distance Rank to Delivery Location],0),) -> 1222 | E74: =INDEX(Table_ReceiptPoint[Receipt Point Name2],MATCH(Table_CloseReceipt[[#This Row],[Rank]],Table_ReceiptPoint[Distance Rank to Delivery Location],0),) -> MONITOR SOUTH | F74: =INDEX(Table_ReceiptPoint[Distance From Delivery Station],MATCH(Table_CloseReceipt[[#This Row],[Rank]],Table_ReceiptPoint[Distance Rank to Delivery Location],0),) -> 121.5728 | G74: =INDEX(Table_ReceiptPoint[Legal Location Name],MATCH(Table_CloseReceipt[[#This Row],[Rank]],Table_ReceiptPoint[Distance Rank to Delivery Location],0),) -> NW-34-034-05-W4 | H74: =INDEX(Table_Attach1[FT-R Demand Rate Price Point "B" ($/103m3/mo)],MATCH(Table_CloseReceipt[[#This Row],[Station Number]],Table_Attach1[Receipt Point Number],0),)*INDEX(Conversions!$C$7:$C$8,MATCH('Toll Calculator'!$O$8,Conversions!$B$7:$B$8,0)) -> 42.32 | I74: =INDEX(Table_Attach3[FT-P Demand Rate Price Point "B"],MATCH(IF(CEILING(Table_CloseReceipt[[#This Row],[Distance (km)]],25)>500,999999,CEILING(Table_CloseReceipt[[#This Row],[Distance (km)]],25)),Table_Attach3[Maximum Distance Between Receipt Point and Delivery Point (km)],0),)*INDEX(Conversions!$C$7:$C$8,MATCH('Toll Calculator'!$O$8,Conversions!$B$7:$B$8,0)) -> 44.77 | J74: =INDEX(Table_Attach1[IT-R Rate ($/103m3/d)],MATCH(Table_CloseReceipt[[#This Row],[Station Number]], Table_Attach1[Receipt Point Number], 0))*INDEX(Conversions!$C$7:$C$8,MATCH('Toll Calculator'!$O$8, Conversions!$B$7:$B$8, 0))*_xlfn.SWITCH(UPPER(TRIM('Toll Calculator'!$O$8)),"IMPERIAL", (365/12),"METRIC", 1,1) -> 48.67
C75: =Table_ReceiptPointAlphabetical[[#This Row],[Alphabetical Order Rank]] -> 69 | D75: =INDEX(Table_ReceiptPoint[Receipt Point Number],MATCH(Table_CloseReceipt[[#This Row],[Rank]],Table_ReceiptPoint[Distance Rank to Delivery Location],0),) -> 1013 | E75: =INDEX(Table_ReceiptPoint[Receipt Point Name2],MATCH(Table_CloseReceipt[[#This Row],[Rank]],Table_ReceiptPoint[Distance Rank to Delivery Location],0),) -> PROVOST SOUTH | F75: =INDEX(Table_ReceiptPoint[Distance From Delivery Station],MATCH(Table_CloseReceipt[[#This Row],[Rank]],Table_ReceiptPoint[Distance Rank to Delivery Location],0),) -> 125.6117 | G75: =INDEX(Table_ReceiptPoint[Legal Location Name],MATCH(Table_CloseReceipt[[#This Row],[Rank]],Table_ReceiptPoint[Distance Rank to Delivery Location],0),) -> 08-34-034-06-W4 | H75: =INDEX(Table_Attach1[FT-R Demand Rate Price Point "B" ($/103m3/mo)],MATCH(Table_CloseReceipt[[#This Row],[Station Number]],Table_Attach1[Receipt Point Number],0),)*INDEX(Conversions!$C$7:$C$8,MATCH('Toll Calculator'!$O$8,Conversions!$B$7:$B$8,0)) -> 44.7 | I75: =INDEX(Table_Attach3[FT-P Demand Rate Price Point "B"],MATCH(IF(CEILING(Table_CloseReceipt[[#This Row],[Distance (km)]],25)>500,999999,CEILING(Table_CloseReceipt[[#This Row],[Distance (km)]],25)),Table_Attach3[Maximum Distance Between Receipt Point and Delivery Point (km)],0),)*INDEX(Conversions!$C$7:$C$8,MATCH('Toll Calculator'!$O$8,Conversions!$B$7:$B$8,0)) -> 46.97 | J75: =INDEX(Table_Attach1[IT-R Rate ($/103m3/d)],MATCH(Table_CloseReceipt[[#This Row],[Station Number]], Table_Attach1[Receipt Point Number], 0))*INDEX(Conversions!$C$7:$C$8,MATCH('Toll Calculator'!$O$8, Conversions!$B$7:$B$8, 0))*_xlfn.SWITCH(UPPER(TRIM('Toll Calculator'!$O$8)),"IMPERIAL", (365/12),"METRIC", 1,1) -> 51.42
C76: =Table_ReceiptPointAlphabetical[[#This Row],[Alphabetical Order Rank]] -> 70 | D76: =INDEX(Table_ReceiptPoint[Receipt Point Number],MATCH(Table_CloseReceipt[[#This Row],[Rank]],Table_ReceiptPoint[Distance Rank to Delivery Location],0),) -> 1354 | E76: =INDEX(Table_ReceiptPoint[Receipt Point Name2],MATCH(Table_CloseReceipt[[#This Row],[Rank]],Table_ReceiptPoint[Distance Rank to Delivery Location],0),) -> SLAWA NORTH* | F76: =INDEX(Table_ReceiptPoint[Distance From Delivery Station],MATCH(Table_CloseReceipt[[#This Row],[Rank]],Table_ReceiptPoint[Distance Rank to Delivery Location],0),) -> 126.5839 | G76: =INDEX(Table_ReceiptPoint[Legal Location Name],MATCH(Table_CloseReceipt[[#This Row],[Rank]],Table_ReceiptPoint[Distance Rank to Delivery Location],0),) -> 04-18-056-09-W4 | H76: =INDEX(Table_Attach1[FT-R Demand Rate Price Point "B" ($/103m3/mo)],MATCH(Table_CloseReceipt[[#This Row],[Station Number]],Table_Attach1[Receipt Point Number],0),)*INDEX(Conversions!$C$7:$C$8,MATCH('Toll Calculator'!$O$8,Conversions!$B$7:$B$8,0)) -> 21.21 | I76: =INDEX(Table_Attach3[FT-P Demand Rate Price Point "B"],MATCH(IF(CEILING(Table_CloseReceipt[[#This Row],[Distance (km)]],25)>500,999999,CEILING(Table_CloseReceipt[[#This Row],[Distance (km)]],25)),Table_Attach3[Maximum Distance Between Receipt Point and Delivery Point (km)],0),)*INDEX(Conversions!$C$7:$C$8,MATCH('Toll Calculator'!$O$8,Conversions!$B$7:$B$8,0)) -> 46.97 | J76: =INDEX(Table_Attach1[IT-R Rate ($/103m3/d)],MATCH(Table_CloseReceipt[[#This Row],[Station Number]], Table_Attach1[Receipt Point Number], 0))*INDEX(Conversions!$C$7:$C$8,MATCH('Toll Calculator'!$O$8, Conversions!$B$7:$B$8, 0))*_xlfn.SWITCH(UPPER(TRIM('Toll Calculator'!$O$8)),"IMPERIAL", (365/12),"METRIC", 1,1) -> 24.39
C77: =Table_ReceiptPointAlphabetical[[#This Row],[Alphabetical Order Rank]] -> 71 | D77: =INDEX(Table_ReceiptPoint[Receipt Point Number],MATCH(Table_CloseReceipt[[#This Row],[Rank]],Table_ReceiptPoint[Distance Rank to Delivery Location],0),) -> 1257 | E77: =INDEX(Table_ReceiptPoint[Receipt Point Name2],MATCH(Table_CloseReceipt[[#This Row],[Rank]],Table_ReceiptPoint[Distance Rank to Delivery Location],0),) -> VIKING NORTH* | F77: =INDEX(Table_ReceiptPoint[Distance From Delivery Station],MATCH(Table_CloseReceipt[[#This Row],[Rank]],Table_ReceiptPoint[Distance Rank to Delivery Location],0),) -> 128.2167 | G77: =INDEX(Table_ReceiptPoint[Legal Location Name],MATCH(Table_CloseReceipt[[#This Row],[Rank]],Table_ReceiptPoint[Distance Rank to Delivery Location],0),) -> NW-31-049-13-W4 | H77: =INDEX(Table_Attach1[FT-R Demand Rate Price Point "B" ($/103m3/mo)],MATCH(Table_CloseReceipt[[#This Row],[Station Number]],Table_Attach1[Receipt Point Number],0),)*INDEX(Conversions!$C$7:$C$8,MATCH('Toll Calculator'!$O$8,Conversions!$B$7:$B$8,0)) -> 32.48 | I77: =INDEX(Table_Attach3[FT-P Demand Rate Price Point "B"],MATCH(IF(CEILING(Table_CloseReceipt[[#This Row],[Distance (km)]],25)>500,999999,CEILING(Table_CloseReceipt[[#This Row],[Distance (km)]],25)),Table_Attach3[Maximum Distance Between Receipt Point and Delivery Point (km)],0),)*INDEX(Conversions!$C$7:$C$8,MATCH('Toll Calculator'!$O$8,Conversions!$B$7:$B$8,0)) -> 46.97 | J77: =INDEX(Table_Attach1[IT-R Rate ($/103m3/d)],MATCH(Table_CloseReceipt[[#This Row],[Station Number]], Table_Attach1[Receipt Point Number], 0))*INDEX(Conversions!$C$7:$C$8,MATCH('Toll Calculator'!$O$8, Conversions!$B$7:$B$8, 0))*_xlfn.SWITCH(UPPER(TRIM('Toll Calculator'!$O$8)),"IMPERIAL", (365/12),"METRIC", 1,1) -> 37.34
C78: =Table_ReceiptPointAlphabetical[[#This Row],[Alphabetical Order Rank]] -> 72 | D78: =INDEX(Table_ReceiptPoint[Receipt Point Number],MATCH(Table_CloseReceipt[[#This Row],[Rank]],Table_ReceiptPoint[Distance Rank to Delivery Location],0),) -> 1189 | E78: =INDEX(Table_ReceiptPoint[Receipt Point Name2],MATCH(Table_CloseReceipt[[#This Row],[Rank]],Table_ReceiptPoint[Distance Rank to Delivery Location],0),) -> RANFURLY NORTH* | F78: =INDEX(Table_ReceiptPoint[Distance From Delivery Station],MATCH(Table_CloseReceipt[[#This Row],[Rank]],Table_ReceiptPoint[Distance Rank to Delivery Location],0),) -> 128.7233 | G78: =INDEX(Table_ReceiptPoint[Legal Location Name],MATCH(Table_CloseReceipt[[#This Row],[Rank]],Table_ReceiptPoint[Distance Rank to Delivery Location],0),) -> 14-32-050-13-W4 | H78: =INDEX(Table_Attach1[FT-R Demand Rate Price Point "B" ($/103m3/mo)],MATCH(Table_CloseReceipt[[#This Row],[Station Number]],Table_Attach1[Receipt Point Number],0),)*INDEX(Conversions!$C$7:$C$8,MATCH('Toll Calculator'!$O$8,Conversions!$B$7:$B$8,0)) -> 23.74 | I78: =INDEX(Table_Attach3[FT-P Demand Rate Price Point "B"],MATCH(IF(CEILING(Table_CloseReceipt[[#This Row],[Distance (km)]],25)>500,999999,CEILING(Table_CloseReceipt[[#This Row],[Distance (km)]],25)),Table_Attach3[Maximum Distance Between Receipt Point and Delivery Point (km)],0),)*INDEX(Conversions!$C$7:$C$8,MATCH('Toll Calculator'!$O$8,Conversions!$B$7:$B$8,0)) -> 46.97 | J78: =INDEX(Table_Attach1[IT-R Rate ($/103m3/d)],MATCH(Table_CloseReceipt[[#This Row],[Station Number]], Table_Attach1[Receipt Point Number], 0))*INDEX(Conversions!$C$7:$C$8,MATCH('Toll Calculator'!$O$8, Conversions!$B$7:$B$8, 0))*_xlfn.SWITCH(UPPER(TRIM('Toll Calculator'!$O$8)),"IMPERIAL", (365/12),"METRIC", 1,1) -> 27.31
C79: =Table_ReceiptPointAlphabetical[[#This Row],[Alphabetical Order Rank]] -> 73 | D79: =INDEX(Table_ReceiptPoint[Receipt Point Number],MATCH(Table_CloseReceipt[[#This Row],[Rank]],Table_ReceiptPoint[Distance Rank to Delivery Location],0),) -> 1110 | E79: =INDEX(Table_ReceiptPoint[Receipt Point Name2],MATCH(Table_CloseReceipt[[#This Row],[Rank]],Table_ReceiptPoint[Distance Rank to Delivery Location],0),) -> PLAIN LAKE | F79: =INDEX(Table_ReceiptPoint[Distance From Delivery Station],MATCH(Table_CloseReceipt[[#This Row],[Rank]],Table_ReceiptPoint[Distance Rank to Delivery Location],0),) -> 130.6057 | G79: =INDEX(Table_ReceiptPoint[Legal Location Name],MATCH(Table_CloseReceipt[[#This Row],[Rank]],Table_ReceiptPoint[Distance Rank to Delivery Location],0),) -> NE-36-052-13-W4 | H79: =INDEX(Table_Attach1[FT-R Demand Rate Price Point "B" ($/103m3/mo)],MATCH(Table_CloseReceipt[[#This Row],[Station Number]],Table_Attach1[Receipt Point Number],0),)*INDEX(Conversions!$C$7:$C$8,MATCH('Toll Calculator'!$O$8,Conversions!$B$7:$B$8,0)) -> 27.1 | I79: =INDEX(Table_Attach3[FT-P Demand Rate Price Point "B"],MATCH(IF(CEILING(Table_CloseReceipt[[#This Row],[Distance (km)]],25)>500,999999,CEILING(Table_CloseReceipt[[#This Row],[Distance (km)]],25)),Table_Attach3[Maximum Distance Between Receipt Point and Delivery Point (km)],0),)*INDEX(Conversions!$C$7:$C$8,MATCH('Toll Calculator'!$O$8,Conversions!$B$7:$B$8,0)) -> 46.97 | J79: =INDEX(Table_Attach1[IT-R Rate ($/103m3/d)],MATCH(Table_CloseReceipt[[#This Row],[Station Number]], Table_Attach1[Receipt Point Number], 0))*INDEX(Conversions!$C$7:$C$8,MATCH('Toll Calculator'!$O$8, Conversions!$B$7:$B$8, 0))*_xlfn.SWITCH(UPPER(TRIM('Toll Calculator'!$O$8)),"IMPERIAL", (365/12),"METRIC", 1,1) -> 31.16
C80: =Table_ReceiptPointAlphabetical[[#This Row],[Alphabetical Order Rank]] -> 74 | D80: =INDEX(Table_ReceiptPoint[Receipt Point Number],MATCH(Table_CloseReceipt[[#This Row],[Rank]],Table_ReceiptPoint[Distance Rank to Delivery Location],0),) -> 1605 | E80: =INDEX(Table_ReceiptPoint[Receipt Point Name2],MATCH(Table_CloseReceipt[[#This Row],[Rank]],Table_ReceiptPoint[Distance Rank to Delivery Location],0),) -> MONITOR CREEK* | F80: =INDEX(Table_ReceiptPoint[Distance From Delivery Station],MATCH(Table_CloseReceipt[[#This Row],[Rank]],Table_ReceiptPoint[Distance Rank to Delivery Location],0),) -> 131.3155 | G80: =INDEX(Table_ReceiptPoint[Legal Location Name],MATCH(Table_CloseReceipt[[#This Row],[Rank]],Table_ReceiptPoint[Distance Rank to Delivery Location],0),) -> NW-25-033-05-W4 | H80: =INDEX(Table_Attach1[FT-R Demand Rate Price Point "B" ($/103m3/mo)],MATCH(Table_CloseReceipt[[#This Row],[Station Number]],Table_Attach1[Receipt Point Number],0),)*INDEX(Conversions!$C$7:$C$8,MATCH('Toll Calculator'!$O$8,Conversions!$B$7:$B$8,0)) -> 43.74 | I80: =INDEX(Table_Attach3[FT-P Demand Rate Price Point "B"],MATCH(IF(CEILING(Table_CloseReceipt[[#This Row],[Distance (km)]],25)>500,999999,CEILING(Table_CloseReceipt[[#This Row],[Distance (km)]],25)),Table_Attach3[Maximum Distance Between Receipt Point and Delivery Point (km)],0),)*INDEX(Conversions!$C$7:$C$8,MATCH('Toll Calculator'!$O$8,Conversions!$B$7:$B$8,0)) -> 46.97 | J80: =INDEX(Table_Attach1[IT-R Rate ($/103m3/d)],MATCH(Table_CloseReceipt[[#This Row],[Station Number]], Table_Attach1[Receipt Point Number], 0))*INDEX(Conversions!$C$7:$C$8,MATCH('Toll Calculator'!$O$8, Conversions!$B$7:$B$8, 0))*_xlfn.SWITCH(UPPER(TRIM('Toll Calculator'!$O$8)),"IMPERIAL", (365/12),"METRIC", 1,1) -> 50.31
C81: =Table_ReceiptPointAlphabetical[[#This Row],[Alphabetical Order Rank]] -> 75 | D81: =INDEX(Table_ReceiptPoint[Receipt Point Number],MATCH(Table_CloseReceipt[[#This Row],[Rank]],Table_ReceiptPoint[Distance Rank to Delivery Location],0),) -> 1215 | E81: =INDEX(Table_ReceiptPoint[Receipt Point Name2],MATCH(Table_CloseReceipt[[#This Row],[Rank]],Table_ReceiptPoint[Distance Rank to Delivery Location],0),) -> BRUCE NORTH* | F81: =INDEX(Table_ReceiptPoint[Distance From Delivery Station],MATCH(Table_CloseReceipt[[#This Row],[Rank]],Table_ReceiptPoint[Distance Rank to Delivery Location],0),) -> 136.518 | G81: =INDEX(Table_ReceiptPoint[Legal Location Name],MATCH(Table_CloseReceipt[[#This Row],[Rank]],Table_ReceiptPoint[Distance Rank to Delivery Location],0),) -> SW-01-048-15-W4 | H81: =INDEX(Table_Attach1[FT-R Demand Rate Price Point "B" ($/103m3/mo)],MATCH(Table_CloseReceipt[[#This Row],[Station Number]],Table_Attach1[Receipt Point Number],0),)*INDEX(Conversions!$C$7:$C$8,MATCH('Toll Calculator'!$O$8,Conversions!$B$7:$B$8,0)) -> 29.85 | I81: =INDEX(Table_Attach3[FT-P Demand Rate Price Point "B"],MATCH(IF(CEILING(Table_CloseReceipt[[#This Row],[Distance (km)]],25)>500,999999,CEILING(Table_CloseReceipt[[#This Row],[Distance (km)]],25)),Table_Attach3[Maximum Distance Between Receipt Point and Delivery Point (km)],0),)*INDEX(Conversions!$C$7:$C$8,MATCH('Toll Calculator'!$O$8,Conversions!$B$7:$B$8,0)) -> 46.97 | J81: =INDEX(Table_Attach1[IT-R Rate ($/103m3/d)],MATCH(Table_CloseReceipt[[#This Row],[Station Number]], Table_Attach1[Receipt Point Number], 0))*INDEX(Conversions!$C$7:$C$8,MATCH('Toll Calculator'!$O$8, Conversions!$B$7:$B$8, 0))*_xlfn.SWITCH(UPPER(TRIM('Toll Calculator'!$O$8)),"IMPERIAL", (365/12),"METRIC", 1,1) -> 34.33
C82: =Table_ReceiptPointAlphabetical[[#This Row],[Alphabetical Order Rank]] -> 76 | D82: =INDEX(Table_ReceiptPoint[Receipt Point Number],MATCH(Table_CloseReceipt[[#This Row],[Rank]],Table_ReceiptPoint[Distance Rank to Delivery Location],0),) -> 3915 | E82: =INDEX(Table_ReceiptPoint[Receipt Point Name2],MATCH(Table_CloseReceipt[[#This Row],[Rank]],Table_ReceiptPoint[Distance Rank to Delivery Location],0),) -> HAMILTON LAKE SUMMARY* | F82: =INDEX(Table_ReceiptPoint[Distance From Delivery Station],MATCH(Table_CloseReceipt[[#This Row],[Rank]],Table_ReceiptPoint[Distance Rank to Delivery Location],0),) -> 136.8275 | G82: =INDEX(Table_ReceiptPoint[Legal Location Name],MATCH(Table_CloseReceipt[[#This Row],[Rank]],Table_ReceiptPoint[Distance Rank to Delivery Location],0),) -> 16-02-035-09-W4 | H82: =INDEX(Table_Attach1[FT-R Demand Rate Price Point "B" ($/103m3/mo)],MATCH(Table_CloseReceipt[[#This Row],[Station Number]],Table_Attach1[Receipt Point Number],0),)*INDEX(Conversions!$C$7:$C$8,MATCH('Toll Calculator'!$O$8,Conversions!$B$7:$B$8,0)) -> 47.74 | I82: =INDEX(Table_Attach3[FT-P Demand Rate Price Point "B"],MATCH(IF(CEILING(Table_CloseReceipt[[#This Row],[Distance (km)]],25)>500,999999,CEILING(Table_CloseReceipt[[#This Row],[Distance (km)]],25)),Table_Attach3[Maximum Distance Between Receipt Point and Delivery Point (km)],0),)*INDEX(Conversions!$C$7:$C$8,MATCH('Toll Calculator'!$O$8,Conversions!$B$7:$B$8,0)) -> 46.97 | J82: =INDEX(Table_Attach1[IT-R Rate ($/103m3/d)],MATCH(Table_CloseReceipt[[#This Row],[Station Number]], Table_Attach1[Receipt Point Number], 0))*INDEX(Conversions!$C$7:$C$8,MATCH('Toll Calculator'!$O$8, Conversions!$B$7:$B$8, 0))*_xlfn.SWITCH(UPPER(TRIM('Toll Calculator'!$O$8)),"IMPERIAL", (365/12),"METRIC", 1,1) -> 54.9
C83: =Table_ReceiptPointAlphabetical[[#This Row],[Alphabetical Order Rank]] -> 77 | D83: =INDEX(Table_ReceiptPoint[Receipt Point Number],MATCH(Table_CloseReceipt[[#This Row],[Rank]],Table_ReceiptPoint[Distance Rank to Delivery Location],0),) -> 1132 | E83: =INDEX(Table_ReceiptPoint[Receipt Point Name2],MATCH(Table_CloseReceipt[[#This Row],[Rank]],Table_ReceiptPoint[Distance Rank to Delivery Location],0),) -> LAVOY* | F83: =INDEX(Table_ReceiptPoint[Distance From Delivery Station],MATCH(Table_CloseReceipt[[#This Row],[Rank]],Table_ReceiptPoint[Distance Rank to Delivery Location],0),) -> 136.9567 | G83: =INDEX(Table_ReceiptPoint[Legal Location Name],MATCH(Table_CloseReceipt[[#This Row],[Rank]],Table_ReceiptPoint[Distance Rank to Delivery Location],0),) -> NW-12-052-14-W4 | H83: =INDEX(Table_Attach1[FT-R Demand Rate Price Point "B" ($/103m3/mo)],MATCH(Table_CloseReceipt[[#This Row],[Station Number]],Table_Attach1[Receipt Point Number],0),)*INDEX(Conversions!$C$7:$C$8,MATCH('Toll Calculator'!$O$8,Conversions!$B$7:$B$8,0)) -> 22.22 | I83: =INDEX(Table_Attach3[FT-P Demand Rate Price Point "B"],MATCH(IF(CEILING(Table_CloseReceipt[[#This Row],[Distance (km)]],25)>500,999999,CEILING(Table_CloseReceipt[[#This Row],[Distance (km)]],25)),Table_Attach3[Maximum Distance Between Receipt Point and Delivery Point (km)],0),)*INDEX(Conversions!$C$7:$C$8,MATCH('Toll Calculator'!$O$8,Conversions!$B$7:$B$8,0)) -> 46.97 | J83: =INDEX(Table_Attach1[IT-R Rate ($/103m3/d)],MATCH(Table_CloseReceipt[[#This Row],[Station Number]], Table_Attach1[Receipt Point Number], 0))*INDEX(Conversions!$C$7:$C$8,MATCH('Toll Calculator'!$O$8, Conversions!$B$7:$B$8, 0))*_xlfn.SWITCH(UPPER(TRIM('Toll Calculator'!$O$8)),"IMPERIAL", (365/12),"METRIC", 1,1) -> 25.55
C84: =Table_ReceiptPointAlphabetical[[#This Row],[Alphabetical Order Rank]] -> 78 | D84: =INDEX(Table_ReceiptPoint[Receipt Point Number],MATCH(Table_CloseReceipt[[#This Row],[Rank]],Table_ReceiptPoint[Distance Rank to Delivery Location],0),) -> 1612 | E84: =INDEX(Table_ReceiptPoint[Receipt Point Name2],MATCH(Table_CloseReceipt[[#This Row],[Rank]],Table_ReceiptPoint[Distance Rank to Delivery Location],0),) -> COATES LAKE | F84: =INDEX(Table_ReceiptPoint[Distance From Delivery Station],MATCH(Table_CloseReceipt[[#This Row],[Rank]],Table_ReceiptPoint[Distance Rank to Delivery Location],0),) -> 137.7003 | G84: =INDEX(Table_ReceiptPoint[Legal Location Name],MATCH(Table_CloseReceipt[[#This Row],[Rank]],Table_ReceiptPoint[Distance Rank to Delivery Location],0),) -> 13-19-032-01-W4 | H84: =INDEX(Table_Attach1[FT-R Demand Rate Price Point "B" ($/103m3/mo)],MATCH(Table_CloseReceipt[[#This Row],[Station Number]],Table_Attach1[Receipt Point Number],0),)*INDEX(Conversions!$C$7:$C$8,MATCH('Toll Calculator'!$O$8,Conversions!$B$7:$B$8,0)) -> 21.01 | I84: =INDEX(Table_Attach3[FT-P Demand Rate Price Point "B"],MATCH(IF(CEILING(Table_CloseReceipt[[#This Row],[Distance (km)]],25)>500,999999,CEILING(Table_CloseReceipt[[#This Row],[Distance (km)]],25)),Table_Attach3[Maximum Distance Between Receipt Point and Delivery Point (km)],0),)*INDEX(Conversions!$C$7:$C$8,MATCH('Toll Calculator'!$O$8,Conversions!$B$7:$B$8,0)) -> 46.97 | J84: =INDEX(Table_Attach1[IT-R Rate ($/103m3/d)],MATCH(Table_CloseReceipt[[#This Row],[Station Number]], Table_Attach1[Receipt Point Number], 0))*INDEX(Conversions!$C$7:$C$8,MATCH('Toll Calculator'!$O$8, Conversions!$B$7:$B$8, 0))*_xlfn.SWITCH(UPPER(TRIM('Toll Calculator'!$O$8)),"IMPERIAL", (365/12),"METRIC", 1,1) -> 24.16
C85: =Table_ReceiptPointAlphabetical[[#This Row],[Alphabetical Order Rank]] -> 79 | D85: =INDEX(Table_ReceiptPoint[Receipt Point Number],MATCH(Table_CloseReceipt[[#This Row],[Rank]],Table_ReceiptPoint[Distance Rank to Delivery Location],0),) -> 3916 | E85: =INDEX(Table_ReceiptPoint[Receipt Point Name2],MATCH(Table_CloseReceipt[[#This Row],[Rank]],Table_ReceiptPoint[Distance Rank to Delivery Location],0),) -> VETERAN SUMMARY | F85: =INDEX(Table_ReceiptPoint[Distance From Delivery Station],MATCH(Table_CloseReceipt[[#This Row],[Rank]],Table_ReceiptPoint[Distance Rank to Delivery Location],0),) -> 137.9155 | G85: =INDEX(Table_ReceiptPoint[Legal Location Name],MATCH(Table_CloseReceipt[[#This Row],[Rank]],Table_ReceiptPoint[Distance Rank to Delivery Location],0),) -> SE-29-034-08-W4 | H85: =INDEX(Table_Attach1[FT-R Demand Rate Price Point "B" ($/103m3/mo)],MATCH(Table_CloseReceipt[[#This Row],[Station Number]],Table_Attach1[Receipt Point Number],0),)*INDEX(Conversions!$C$7:$C$8,MATCH('Toll Calculator'!$O$8,Conversions!$B$7:$B$8,0)) -> 47.74 | I85: =INDEX(Table_Attach3[FT-P Demand Rate Price Point "B"],MATCH(IF(CEILING(Table_CloseReceipt[[#This Row],[Distance (km)]],25)>500,999999,CEILING(Table_CloseReceipt[[#This Row],[Distance (km)]],25)),Table_Attach3[Maximum Distance Between Receipt Point and Delivery Point (km)],0),)*INDEX(Conversions!$C$7:$C$8,MATCH('Toll Calculator'!$O$8,Conversions!$B$7:$B$8,0)) -> 46.97 | J85: =INDEX(Table_Attach1[IT-R Rate ($/103m3/d)],MATCH(Table_CloseReceipt[[#This Row],[Station Number]], Table_Attach1[Receipt Point Number], 0))*INDEX(Conversions!$C$7:$C$8,MATCH('Toll Calculator'!$O$8, Conversions!$B$7:$B$8, 0))*_xlfn.SWITCH(UPPER(TRIM('Toll Calculator'!$O$8)),"IMPERIAL", (365/12),"METRIC", 1,1) -> 54.9
C86: =Table_ReceiptPointAlphabetical[[#This Row],[Alphabetical Order Rank]] -> 80 | D86: =INDEX(Table_ReceiptPoint[Receipt Point Number],MATCH(Table_CloseReceipt[[#This Row],[Rank]],Table_ReceiptPoint[Distance Rank to Delivery Location],0),) -> 1877 | E86: =INDEX(Table_ReceiptPoint[Receipt Point Name2],MATCH(Table_CloseReceipt[[#This Row],[Rank]],Table_ReceiptPoint[Distance Rank to Delivery Location],0),) -> DUVERNAY* | F86: =INDEX(Table_ReceiptPoint[Distance From Delivery Station],MATCH(Table_CloseReceipt[[#This Row],[Rank]],Table_ReceiptPoint[Distance Rank to Delivery Location],0),) -> 138.0233 | G86: =INDEX(Table_ReceiptPoint[Legal Location Name],MATCH(Table_CloseReceipt[[#This Row],[Rank]],Table_ReceiptPoint[Distance Rank to Delivery Location],0),) -> 04-23-055-12-W4 | H86: =INDEX(Table_Attach1[FT-R Demand Rate Price Point "B" ($/103m3/mo)],MATCH(Table_CloseReceipt[[#This Row],[Station Number]],Table_Attach1[Receipt Point Number],0),)*INDEX(Conversions!$C$7:$C$8,MATCH('Toll Calculator'!$O$8,Conversions!$B$7:$B$8,0)) -> 18.14 | I86: =INDEX(Table_Attach3[FT-P Demand Rate Price Point "B"],MATCH(IF(CEILING(Table_CloseReceipt[[#This Row],[Distance (km)]],25)>500,999999,CEILING(Table_CloseReceipt[[#This Row],[Distance (km)]],25)),Table_Attach3[Maximum Distance Between Receipt Point and Delivery Point (km)],0),)*INDEX(Conversions!$C$7:$C$8,MATCH('Toll Calculator'!$O$8,Conversions!$B$7:$B$8,0)) -> 46.97 | J86: =INDEX(Table_Attach1[IT-R Rate ($/103m3/d)],MATCH(Table_CloseReceipt[[#This Row],[Station Number]], Table_Attach1[Receipt Point Number], 0))*INDEX(Conversions!$C$7:$C$8,MATCH('Toll Calculator'!$O$8, Conversions!$B$7:$B$8, 0))*_xlfn.SWITCH(UPPER(TRIM('Toll Calculator'!$O$8)),"IMPERIAL", (365/12),"METRIC", 1,1) -> 20.85
C87: =Table_ReceiptPointAlphabetical[[#This Row],[Alphabetical Order Rank]] -> 81 | D87: =INDEX(Table_ReceiptPoint[Receipt Point Number],MATCH(Table_CloseReceipt[[#This Row],[Rank]],Table_ReceiptPoint[Distance Rank to Delivery Location],0),) -> 1517 | E87: =INDEX(Table_ReceiptPoint[Receipt Point Name2],MATCH(Table_CloseReceipt[[#This Row],[Rank]],Table_ReceiptPoint[Distance Rank to Delivery Location],0),) -> KEHIWIN* | F87: =INDEX(Table_ReceiptPoint[Distance From Delivery Station],MATCH(Table_CloseReceipt[[#This Row],[Rank]],Table_ReceiptPoint[Distance Rank to Delivery Location],0),) -> 138.0426 | G87: =INDEX(Table_ReceiptPoint[Legal Location Name],MATCH(Table_CloseReceipt[[#This Row],[Rank]],Table_ReceiptPoint[Distance Rank to Delivery Location],0),) -> 08-25-059-07-W4 | H87: =INDEX(Table_Attach1[FT-R Demand Rate Price Point "B" ($/103m3/mo)],MATCH(Table_CloseReceipt[[#This Row],[Station Number]],Table_Attach1[Receipt Point Number],0),)*INDEX(Conversions!$C$7:$C$8,MATCH('Toll Calculator'!$O$8,Conversions!$B$7:$B$8,0)) -> 22.89 | I87: =INDEX(Table_Attach3[FT-P Demand Rate Price Point "B"],MATCH(IF(CEILING(Table_CloseReceipt[[#This Row],[Distance (km)]],25)>500,999999,CEILING(Table_CloseReceipt[[#This Row],[Distance (km)]],25)),Table_Attach3[Maximum Distance Between Receipt Point and Delivery Point (km)],0),)*INDEX(Conversions!$C$7:$C$8,MATCH('Toll Calculator'!$O$8,Conversions!$B$7:$B$8,0)) -> 46.97 | J87: =INDEX(Table_Attach1[IT-R Rate ($/103m3/d)],MATCH(Table_CloseReceipt[[#This Row],[Station Number]], Table_Attach1[Receipt Point Number], 0))*INDEX(Conversions!$C$7:$C$8,MATCH('Toll Calculator'!$O$8, Conversions!$B$7:$B$8, 0))*_xlfn.SWITCH(UPPER(TRIM('Toll Calculator'!$O$8)),"IMPERIAL", (365/12),"METRIC", 1,1) -> 26.32
C88: =Table_ReceiptPointAlphabetical[[#This Row],[Alphabetical Order Rank]] -> 82 | D88: =INDEX(Table_ReceiptPoint[Receipt Point Number],MATCH(Table_CloseReceipt[[#This Row],[Rank]],Table_ReceiptPoint[Distance Rank to Delivery Location],0),) -> 1858 | E88: =INDEX(Table_ReceiptPoint[Receipt Point Name2],MATCH(Table_CloseReceipt[[#This Row],[Rank]],Table_ReceiptPoint[Distance Rank to Delivery Location],0),) -> POE* | F88: =INDEX(Table_ReceiptPoint[Distance From Delivery Station],MATCH(Table_CloseReceipt[[#This Row],[Rank]],Table_ReceiptPoint[Distance Rank to Delivery Location],0),) -> 141.0341 | G88: =INDEX(Table_ReceiptPoint[Legal Location Name],MATCH(Table_CloseReceipt[[#This Row],[Rank]],Table_ReceiptPoint[Distance Rank to Delivery Location],0),) -> SE-04-049-15-W4 | H88: =INDEX(Table_Attach1[FT-R Demand Rate Price Point "B" ($/103m3/mo)],MATCH(Table_CloseReceipt[[#This Row],[Station Number]],Table_Attach1[Receipt Point Number],0),)*INDEX(Conversions!$C$7:$C$8,MATCH('Toll Calculator'!$O$8,Conversions!$B$7:$B$8,0)) -> 23.55 | I88: =INDEX(Table_Attach3[FT-P Demand Rate Price Point "B"],MATCH(IF(CEILING(Table_CloseReceipt[[#This Row],[Distance (km)]],25)>500,999999,CEILING(Table_CloseReceipt[[#This Row],[Distance (km)]],25)),Table_Attach3[Maximum Distance Between Receipt Point and Delivery Point (km)],0),)*INDEX(Conversions!$C$7:$C$8,MATCH('Toll Calculator'!$O$8,Conversions!$B$7:$B$8,0)) -> 46.97 | J88: =INDEX(Table_Attach1[IT-R Rate ($/103m3/d)],MATCH(Table_CloseReceipt[[#This Row],[Station Number]], Table_Attach1[Receipt Point Number], 0))*INDEX(Conversions!$C$7:$C$8,MATCH('Toll Calculator'!$O$8, Conversions!$B$7:$B$8, 0))*_xlfn.SWITCH(UPPER(TRIM('Toll Calculator'!$O$8)),"IMPERIAL", (365/12),"METRIC", 1,1) -> 27.08
C89: =Table_ReceiptPointAlphabetical[[#This Row],[Alphabetical Order Rank]] -> 83 | D89: =INDEX(Table_ReceiptPoint[Receipt Point Number],MATCH(Table_CloseReceipt[[#This Row],[Rank]],Table_ReceiptPoint[Distance Rank to Delivery Location],0),) -> 1632 | E89: =INDEX(Table_ReceiptPoint[Receipt Point Name2],MATCH(Table_CloseReceipt[[#This Row],[Rank]],Table_ReceiptPoint[Distance Rank to Delivery Location],0),) -> FOISY* | F89: =INDEX(Table_ReceiptPoint[Distance From Delivery Station],MATCH(Table_CloseReceipt[[#This Row],[Rank]],Table_ReceiptPoint[Distance Rank to Delivery Location],0),) -> 142.8587 | G89: =INDEX(Table_ReceiptPoint[Legal Location Name],MATCH(Table_CloseReceipt[[#This Row],[Rank]],Table_ReceiptPoint[Distance Rank to Delivery Location],0),) -> 04-30-056-11-W4 | H89: =INDEX(Table_Attach1[FT-R Demand Rate Price Point "B" ($/103m3/mo)],MATCH(Table_CloseReceipt[[#This Row],[Station Number]],Table_Attach1[Receipt Point Number],0),)*INDEX(Conversions!$C$7:$C$8,MATCH('Toll Calculator'!$O$8,Conversions!$B$7:$B$8,0)) -> 16.74 | I89: =INDEX(Table_Attach3[FT-P Demand Rate Price Point "B"],MATCH(IF(CEILING(Table_CloseReceipt[[#This Row],[Distance (km)]],25)>500,999999,CEILING(Table_CloseReceipt[[#This Row],[Distance (km)]],25)),Table_Attach3[Maximum Distance Between Receipt Point and Delivery Point (km)],0),)*INDEX(Conversions!$C$7:$C$8,MATCH('Toll Calculator'!$O$8,Conversions!$B$7:$B$8,0)) -> 46.97 | J89: =INDEX(Table_Attach1[IT-R Rate ($/103m3/d)],MATCH(Table_CloseReceipt[[#This Row],[Station Number]], Table_Attach1[Receipt Point Number], 0))*INDEX(Conversions!$C$7:$C$8,MATCH('Toll Calculator'!$O$8, Conversions!$B$7:$B$8, 0))*_xlfn.SWITCH(UPPER(TRIM('Toll Calculator'!$O$8)),"IMPERIAL", (365/12),"METRIC", 1,1) -> 19.23
C90: =Table_ReceiptPointAlphabetical[[#This Row],[Alphabetical Order Rank]] -> 84 | D90: =INDEX(Table_ReceiptPoint[Receipt Point Number],MATCH(Table_CloseReceipt[[#This Row],[Rank]],Table_ReceiptPoint[Distance Rank to Delivery Location],0),) -> 1168 | E90: =INDEX(Table_ReceiptPoint[Receipt Point Name2],MATCH(Table_CloseReceipt[[#This Row],[Rank]],Table_ReceiptPoint[Distance Rank to Delivery Location],0),) -> BRUCE* | F90: =INDEX(Table_ReceiptPoint[Distance From Delivery Station],MATCH(Table_CloseReceipt[[#This Row],[Rank]],Table_ReceiptPoint[Distance Rank to Delivery Location],0),) -> 143.6659 | G90: =INDEX(Table_ReceiptPoint[Legal Location Name],MATCH(Table_CloseReceipt[[#This Row],[Rank]],Table_ReceiptPoint[Distance Rank to Delivery Location],0),) -> SW-06-047-15-W4 | H90: =INDEX(Table_Attach1[FT-R Demand Rate Price Point "B" ($/103m3/mo)],MATCH(Table_CloseReceipt[[#This Row],[Station Number]],Table_Attach1[Receipt Point Number],0),)*INDEX(Conversions!$C$7:$C$8,MATCH('Toll Calculator'!$O$8,Conversions!$B$7:$B$8,0)) -> 23.86 | I90: =INDEX(Table_Attach3[FT-P Demand Rate Price Point "B"],MATCH(IF(CEILING(Table_CloseReceipt[[#This Row],[Distance (km)]],25)>500,999999,CEILING(Table_CloseReceipt[[#This Row],[Distance (km)]],25)),Table_Attach3[Maximum Distance Between Receipt Point and Delivery Point (km)],0),)*INDEX(Conversions!$C$7:$C$8,MATCH('Toll Calculator'!$O$8,Conversions!$B$7:$B$8,0)) -> 46.97 | J90: =INDEX(Table_Attach1[IT-R Rate ($/103m3/d)],MATCH(Table_CloseReceipt[[#This Row],[Station Number]], Table_Attach1[Receipt Point Number], 0))*INDEX(Conversions!$C$7:$C$8,MATCH('Toll Calculator'!$O$8, Conversions!$B$7:$B$8, 0))*_xlfn.SWITCH(UPPER(TRIM('Toll Calculator'!$O$8)),"IMPERIAL", (365/12),"METRIC", 1,1) -> 27.45
C91: =Table_ReceiptPointAlphabetical[[#This Row],[Alphabetical Order Rank]] -> 85 | D91: =INDEX(Table_ReceiptPoint[Receipt Point Number],MATCH(Table_CloseReceipt[[#This Row],[Rank]],Table_ReceiptPoint[Distance Rank to Delivery Location],0),) -> 1771 | E91: =INDEX(Table_ReceiptPoint[Receipt Point Name2],MATCH(Table_CloseReceipt[[#This Row],[Rank]],Table_ReceiptPoint[Distance Rank to Delivery Location],0),) -> MONITOR CREEK WEST* | F91: =INDEX(Table_ReceiptPoint[Distance From Delivery Station],MATCH(Table_CloseReceipt[[#This Row],[Rank]],Table_ReceiptPoint[Distance Rank to Delivery Location],0),) -> 143.8754 | G91: =INDEX(Table_ReceiptPoint[Legal Location Name],MATCH(Table_CloseReceipt[[#This Row],[Rank]],Table_ReceiptPoint[Distance Rank to Delivery Location],0),) -> 16-32-032-06-W4 | H91: =INDEX(Table_Attach1[FT-R Demand Rate Price Point "B" ($/103m3/mo)],MATCH(Table_CloseReceipt[[#This Row],[Station Number]],Table_Attach1[Receipt Point Number],0),)*INDEX(Conversions!$C$7:$C$8,MATCH('Toll Calculator'!$O$8,Conversions!$B$7:$B$8,0)) -> 37.02 | I91: =INDEX(Table_Attach3[FT-P Demand Rate Price Point "B"],MATCH(IF(CEILING(Table_CloseReceipt[[#This Row],[Distance (km)]],25)>500,999999,CEILING(Table_CloseReceipt[[#This Row],[Distance (km)]],25)),Table_Attach3[Maximum Distance Between Receipt Point and Delivery Point (km)],0),)*INDEX(Conversions!$C$7:$C$8,MATCH('Toll Calculator'!$O$8,Conversions!$B$7:$B$8,0)) -> 46.97 | J91: =INDEX(Table_Attach1[IT-R Rate ($/103m3/d)],MATCH(Table_CloseReceipt[[#This Row],[Station Number]], Table_Attach1[Receipt Point Number], 0))*INDEX(Conversions!$C$7:$C$8,MATCH('Toll Calculator'!$O$8, Conversions!$B$7:$B$8, 0))*_xlfn.SWITCH(UPPER(TRIM('Toll Calculator'!$O$8)),"IMPERIAL", (365/12),"METRIC", 1,1) -> 42.58
C92: =Table_ReceiptPointAlphabetical[[#This Row],[Alphabetical Order Rank]] -> 86 | D92: =INDEX(Table_ReceiptPoint[Receipt Point Number],MATCH(Table_CloseReceipt[[#This Row],[Rank]],Table_ReceiptPoint[Distance Rank to Delivery Location],0),) -> 1211 | E92: =INDEX(Table_ReceiptPoint[Receipt Point Name2],MATCH(Table_CloseReceipt[[#This Row],[Rank]],Table_ReceiptPoint[Distance Rank to Delivery Location],0),) -> PROVOST MONITOR* | F92: =INDEX(Table_ReceiptPoint[Distance From Delivery Station],MATCH(Table_CloseReceipt[[#This Row],[Rank]],Table_ReceiptPoint[Distance Rank to Delivery Location],0),) -> 144.4832 | G92: =INDEX(Table_ReceiptPoint[Legal Location Name],MATCH(Table_CloseReceipt[[#This Row],[Rank]],Table_ReceiptPoint[Distance Rank to Delivery Location],0),) -> SW-16-033-07-W4 | H92: =INDEX(Table_Attach1[FT-R Demand Rate Price Point "B" ($/103m3/mo)],MATCH(Table_CloseReceipt[[#This Row],[Station Number]],Table_Attach1[Receipt Point Number],0),)*INDEX(Conversions!$C$7:$C$8,MATCH('Toll Calculator'!$O$8,Conversions!$B$7:$B$8,0)) -> 47.74 | I92: =INDEX(Table_Attach3[FT-P Demand Rate Price Point "B"],MATCH(IF(CEILING(Table_CloseReceipt[[#This Row],[Distance (km)]],25)>500,999999,CEILING(Table_CloseReceipt[[#This Row],[Distance (km)]],25)),Table_Attach3[Maximum Distance Between Receipt Point and Delivery Point (km)],0),)*INDEX(Conversions!$C$7:$C$8,MATCH('Toll Calculator'!$O$8,Conversions!$B$7:$B$8,0)) -> 46.97 | J92: =INDEX(Table_Attach1[IT-R Rate ($/103m3/d)],MATCH(Table_CloseReceipt[[#This Row],[Station Number]], Table_Attach1[Receipt Point Number], 0))*INDEX(Conversions!$C$7:$C$8,MATCH('Toll Calculator'!$O$8, Conversions!$B$7:$B$8, 0))*_xlfn.SWITCH(UPPER(TRIM('Toll Calculator'!$O$8)),"IMPERIAL", (365/12),"METRIC", 1,1) -> 54.9
C93: =Table_ReceiptPointAlphabetical[[#This Row],[Alphabetical Order Rank]] -> 87 | D93: =INDEX(Table_ReceiptPoint[Receipt Point Number],MATCH(Table_CloseReceipt[[#This Row],[Rank]],Table_ReceiptPoint[Distance Rank to Delivery Location],0),) -> 1299 | E93: =INDEX(Table_ReceiptPoint[Receipt Point Name2],MATCH(Table_CloseReceipt[[#This Row],[Rank]],Table_ReceiptPoint[Distance Rank to Delivery Location],0),) -> ROYAL PARK* | F93: =INDEX(Table_ReceiptPoint[Distance From Delivery Station],MATCH(Table_CloseReceipt[[#This Row],[Rank]],Table_ReceiptPoint[Distance Rank to Delivery Location],0),) -> 144.9285 | G93: =INDEX(Table_ReceiptPoint[Legal Location Name],MATCH(Table_CloseReceipt[[#This Row],[Rank]],Table_ReceiptPoint[Distance Rank to Delivery Location],0),) -> 16-23-051-15-W4 | H93: =INDEX(Table_Attach1[FT-R Demand Rate Price Point "B" ($/103m3/mo)],MATCH(Table_CloseReceipt[[#This Row],[Station Number]],Table_Attach1[Receipt Point Number],0),)*INDEX(Conversions!$C$7:$C$8,MATCH('Toll Calculator'!$O$8,Conversions!$B$7:$B$8,0)) -> 21.91 | I93: =INDEX(Table_Attach3[FT-P Demand Rate Price Point "B"],MATCH(IF(CEILING(Table_CloseReceipt[[#This Row],[Distance (km)]],25)>500,999999,CEILING(Table_CloseReceipt[[#This Row],[Distance (km)]],25)),Table_Attach3[Maximum Distance Between Receipt Point and Delivery Point (km)],0),)*INDEX(Conversions!$C$7:$C$8,MATCH('Toll Calculator'!$O$8,Conversions!$B$7:$B$8,0)) -> 46.97 | J93: =INDEX(Table_Attach1[IT-R Rate ($/103m3/d)],MATCH(Table_CloseReceipt[[#This Row],[Station Number]], Table_Attach1[Receipt Point Number], 0))*INDEX(Conversions!$C$7:$C$8,MATCH('Toll Calculator'!$O$8, Conversions!$B$7:$B$8, 0))*_xlfn.SWITCH(UPPER(TRIM('Toll Calculator'!$O$8)),"IMPERIAL", (365/12),"METRIC", 1,1) -> 25.21
C94: =Table_ReceiptPointAlphabetical[[#This Row],[Alphabetical Order Rank]] -> 88 | D94: =INDEX(Table_ReceiptPoint[Receipt Point Number],MATCH(Table_CloseReceipt[[#This Row],[Rank]],Table_ReceiptPoint[Distance Rank to Delivery Location],0),) -> 1519 | E94: =INDEX(Table_ReceiptPoint[Receipt Point Name2],MATCH(Table_CloseReceipt[[#This Row],[Rank]],Table_ReceiptPoint[Distance Rank to Delivery Location],0),) -> ST. BRIDES* | F94: =INDEX(Table_ReceiptPoint[Distance From Delivery Station],MATCH(Table_CloseReceipt[[#This Row],[Rank]],Table_ReceiptPoint[Distance Rank to Delivery Location],0),) -> 144.9549 | G94: =INDEX(Table_ReceiptPoint[Legal Location Name],MATCH(Table_CloseReceipt[[#This Row],[Rank]],Table_ReceiptPoint[Distance Rank to Delivery Location],0),) -> SW-16-058-10-W4 | H94: =INDEX(Table_Attach1[FT-R Demand Rate Price Point "B" ($/103m3/mo)],MATCH(Table_CloseReceipt[[#This Row],[Station Number]],Table_Attach1[Receipt Point Number],0),)*INDEX(Conversions!$C$7:$C$8,MATCH('Toll Calculator'!$O$8,Conversions!$B$7:$B$8,0)) -> 18.59 | I94: =INDEX(Table_Attach3[FT-P Demand Rate Price Point "B"],MATCH(IF(CEILING(Table_CloseReceipt[[#This Row],[Distance (km)]],25)>500,999999,CEILING(Table_CloseReceipt[[#This Row],[Distance (km)]],25)),Table_Attach3[Maximum Distance Between Receipt Point and Delivery Point (km)],0),)*INDEX(Conversions!$C$7:$C$8,MATCH('Toll Calculator'!$O$8,Conversions!$B$7:$B$8,0)) -> 46.97 | J94: =INDEX(Table_Attach1[IT-R Rate ($/103m3/d)],MATCH(Table_CloseReceipt[[#This Row],[Station Number]], Table_Attach1[Receipt Point Number], 0))*INDEX(Conversions!$C$7:$C$8,MATCH('Toll Calculator'!$O$8, Conversions!$B$7:$B$8, 0))*_xlfn.SWITCH(UPPER(TRIM('Toll Calculator'!$O$8)),"IMPERIAL", (365/12),"METRIC", 1,1) -> 21.39
C95: =Table_ReceiptPointAlphabetical[[#This Row],[Alphabetical Order Rank]] -> 89 | D95: =INDEX(Table_ReceiptPoint[Receipt Point Number],MATCH(Table_CloseReceipt[[#This Row],[Rank]],Table_ReceiptPoint[Distance Rank to Delivery Location],0),) -> 1709 | E95: =INDEX(Table_ReceiptPoint[Receipt Point Name2],MATCH(Table_CloseReceipt[[#This Row],[Rank]],Table_ReceiptPoint[Distance Rank to Delivery Location],0),) -> HASTINGS COULEE* | F95: =INDEX(Table_ReceiptPoint[Distance From Delivery Station],MATCH(Table_CloseReceipt[[#This Row],[Rank]],Table_ReceiptPoint[Distance Rank to Delivery Location],0),) -> 145.1266 | G95: =INDEX(Table_ReceiptPoint[Legal Location Name],MATCH(Table_CloseReceipt[[#This Row],[Rank]],Table_ReceiptPoint[Distance Rank to Delivery Location],0),) -> 01-14-041-15-W4 | H95: =INDEX(Table_Attach1[FT-R Demand Rate Price Point "B" ($/103m3/mo)],MATCH(Table_CloseReceipt[[#This Row],[Station Number]],Table_Attach1[Receipt Point Number],0),)*INDEX(Conversions!$C$7:$C$8,MATCH('Toll Calculator'!$O$8,Conversions!$B$7:$B$8,0)) -> 34.26 | I95: =INDEX(Table_Attach3[FT-P Demand Rate Price Point "B"],MATCH(IF(CEILING(Table_CloseReceipt[[#This Row],[Distance (km)]],25)>500,999999,CEILING(Table_CloseReceipt[[#This Row],[Distance (km)]],25)),Table_Attach3[Maximum Distance Between Receipt Point and Delivery Point (km)],0),)*INDEX(Conversions!$C$7:$C$8,MATCH('Toll Calculator'!$O$8,Conversions!$B$7:$B$8,0)) -> 46.97 | J95: =INDEX(Table_Attach1[IT-R Rate ($/103m3/d)],MATCH(Table_CloseReceipt[[#This Row],[Station Number]], Table_Attach1[Receipt Point Number], 0))*INDEX(Conversions!$C$7:$C$8,MATCH('Toll Calculator'!$O$8, Conversions!$B$7:$B$8, 0))*_xlfn.SWITCH(UPPER(TRIM('Toll Calculator'!$O$8)),"IMPERIAL", (365/12),"METRIC", 1,1) -> 39.4
C96: =Table_ReceiptPointAlphabetical[[#This Row],[Alphabetical Order Rank]] -> 90 | D96: =INDEX(Table_ReceiptPoint[Receipt Point Number],MATCH(Table_CloseReceipt[[#This Row],[Rank]],Table_ReceiptPoint[Distance Rank to Delivery Location],0),) -> 1468 | E96: =INDEX(Table_ReceiptPoint[Receipt Point Name2],MATCH(Table_CloseReceipt[[#This Row],[Rank]],Table_ReceiptPoint[Distance Rank to Delivery Location],0),) -> ROSALIND* | F96: =INDEX(Table_ReceiptPoint[Distance From Delivery Station],MATCH(Table_CloseReceipt[[#This Row],[Rank]],Table_ReceiptPoint[Distance Rank to Delivery Location],0),) -> 145.4236 | G96: =INDEX(Table_ReceiptPoint[Legal Location Name],MATCH(Table_CloseReceipt[[#This Row],[Rank]],Table_ReceiptPoint[Distance Rank to Delivery Location],0),) -> 09-26-045-16-W4 | H96: =INDEX(Table_Attach1[FT-R Demand Rate Price Point "B" ($/103m3/mo)],MATCH(Table_CloseReceipt[[#This Row],[Station Number]],Table_Attach1[Receipt Point Number],0),)*INDEX(Conversions!$C$7:$C$8,MATCH('Toll Calculator'!$O$8,Conversions!$B$7:$B$8,0)) -> 24.95 | I96: =INDEX(Table_Attach3[FT-P Demand Rate Price Point "B"],MATCH(IF(CEILING(Table_CloseReceipt[[#This Row],[Distance (km)]],25)>500,999999,CEILING(Table_CloseReceipt[[#This Row],[Distance (km)]],25)),Table_Attach3[Maximum Distance Between Receipt Point and Delivery Point (km)],0),)*INDEX(Conversions!$C$7:$C$8,MATCH('Toll Calculator'!$O$8,Conversions!$B$7:$B$8,0)) -> 46.97 | J96: =INDEX(Table_Attach1[IT-R Rate ($/103m3/d)],MATCH(Table_CloseReceipt[[#This Row],[Station Number]], Table_Attach1[Receipt Point Number], 0))*INDEX(Conversions!$C$7:$C$8,MATCH('Toll Calculator'!$O$8, Conversions!$B$7:$B$8, 0))*_xlfn.SWITCH(UPPER(TRIM('Toll Calculator'!$O$8)),"IMPERIAL", (365/12),"METRIC", 1,1) -> 28.7
C97: =Table_ReceiptPointAlphabetical[[#This Row],[Alphabetical Order Rank]] -> 91 | D97: =INDEX(Table_ReceiptPoint[Receipt Point Number],MATCH(Table_CloseReceipt[[#This Row],[Rank]],Table_ReceiptPoint[Distance Rank to Delivery Location],0),) -> 1397 | E97: =INDEX(Table_ReceiptPoint[Receipt Point Name2],MATCH(Table_CloseReceipt[[#This Row],[Rank]],Table_ReceiptPoint[Distance Rank to Delivery Location],0),) -> CASTOR | F97: =INDEX(Table_ReceiptPoint[Distance From Delivery Station],MATCH(Table_CloseReceipt[[#This Row],[Rank]],Table_ReceiptPoint[Distance Rank to Delivery Location],0),) -> 145.7306 | G97: =INDEX(Table_ReceiptPoint[Legal Location Name],MATCH(Table_CloseReceipt[[#This Row],[Rank]],Table_ReceiptPoint[Distance Rank to Delivery Location],0),) -> SW-03-038-13-W4 | H97: =INDEX(Table_Attach1[FT-R Demand Rate Price Point "B" ($/103m3/mo)],MATCH(Table_CloseReceipt[[#This Row],[Station Number]],Table_Attach1[Receipt Point Number],0),)*INDEX(Conversions!$C$7:$C$8,MATCH('Toll Calculator'!$O$8,Conversions!$B$7:$B$8,0)) -> 37.28 | I97: =INDEX(Table_Attach3[FT-P Demand Rate Price Point "B"],MATCH(IF(CEILING(Table_CloseReceipt[[#This Row],[Distance (km)]],25)>500,999999,CEILING(Table_CloseReceipt[[#This Row],[Distance (km)]],25)),Table_Attach3[Maximum Distance Between Receipt Point and Delivery Point (km)],0),)*INDEX(Conversions!$C$7:$C$8,MATCH('Toll Calculator'!$O$8,Conversions!$B$7:$B$8,0)) -> 46.97 | J97: =INDEX(Table_Attach1[IT-R Rate ($/103m3/d)],MATCH(Table_CloseReceipt[[#This Row],[Station Number]], Table_Attach1[Receipt Point Number], 0))*INDEX(Conversions!$C$7:$C$8,MATCH('Toll Calculator'!$O$8, Conversions!$B$7:$B$8, 0))*_xlfn.SWITCH(UPPER(TRIM('Toll Calculator'!$O$8)),"IMPERIAL", (365/12),"METRIC", 1,1) -> 42.86
C98: =Table_ReceiptPointAlphabetical[[#This Row],[Alphabetical Order Rank]] -> 92 | D98: =INDEX(Table_ReceiptPoint[Receipt Point Number],MATCH(Table_CloseReceipt[[#This Row],[Rank]],Table_ReceiptPoint[Distance Rank to Delivery Location],0),) -> 1852 | E98: =INDEX(Table_ReceiptPoint[Receipt Point Name2],MATCH(Table_CloseReceipt[[#This Row],[Rank]],Table_ReceiptPoint[Distance Rank to Delivery Location],0),) -> PAKAN LAKE* | F98: =INDEX(Table_ReceiptPoint[Distance From Delivery Station],MATCH(Table_CloseReceipt[[#This Row],[Rank]],Table_ReceiptPoint[Distance Rank to Delivery Location],0),) -> 146.2985 | G98: =INDEX(Table_ReceiptPoint[Legal Location Name],MATCH(Table_CloseReceipt[[#This Row],[Rank]],Table_ReceiptPoint[Distance Rank to Delivery Location],0),) -> 01-18-057-11-W4 | H98: =INDEX(Table_Attach1[FT-R Demand Rate Price Point "B" ($/103m3/mo)],MATCH(Table_CloseReceipt[[#This Row],[Station Number]],Table_Attach1[Receipt Point Number],0),)*INDEX(Conversions!$C$7:$C$8,MATCH('Toll Calculator'!$O$8,Conversions!$B$7:$B$8,0)) -> 14.33 | I98: =INDEX(Table_Attach3[FT-P Demand Rate Price Point "B"],MATCH(IF(CEILING(Table_CloseReceipt[[#This Row],[Distance (km)]],25)>500,999999,CEILING(Table_CloseReceipt[[#This Row],[Distance (km)]],25)),Table_Attach3[Maximum Distance Between Receipt Point and Delivery Point (km)],0),)*INDEX(Conversions!$C$7:$C$8,MATCH('Toll Calculator'!$O$8,Conversions!$B$7:$B$8,0)) -> 46.97 | J98: =INDEX(Table_Attach1[IT-R Rate ($/103m3/d)],MATCH(Table_CloseReceipt[[#This Row],[Station Number]], Table_Attach1[Receipt Point Number], 0))*INDEX(Conversions!$C$7:$C$8,MATCH('Toll Calculator'!$O$8, Conversions!$B$7:$B$8, 0))*_xlfn.SWITCH(UPPER(TRIM('Toll Calculator'!$O$8)),"IMPERIAL", (365/12),"METRIC", 1,1) -> 16.49
C99: =Table_ReceiptPointAlphabetical[[#This Row],[Alphabetical Order Rank]] -> 93 | D99: =INDEX(Table_ReceiptPoint[Receipt Point Number],MATCH(Table_CloseReceipt[[#This Row],[Rank]],Table_ReceiptPoint[Distance Rank to Delivery Location],0),) -> 3948 | E99: =INDEX(Table_ReceiptPoint[Receipt Point Name2],MATCH(Table_CloseReceipt[[#This Row],[Rank]],Table_ReceiptPoint[Distance Rank to Delivery Location],0),) -> WARWICK SOUTHEAST INTERCONNECTION | F99: =INDEX(Table_ReceiptPoint[Distance From Delivery Station],MATCH(Table_CloseReceipt[[#This Row],[Rank]],Table_ReceiptPoint[Distance Rank to Delivery Location],0),) -> 147.6787 | G99: =INDEX(Table_ReceiptPoint[Legal Location Name],MATCH(Table_CloseReceipt[[#This Row],[Rank]],Table_ReceiptPoint[Distance Rank to Delivery Location],0),) -> 10-07-053-14-W4 | H99: =INDEX(Table_Attach1[FT-R Demand Rate Price Point "B" ($/103m3/mo)],MATCH(Table_CloseReceipt[[#This Row],[Station Number]],Table_Attach1[Receipt Point Number],0),)*INDEX(Conversions!$C$7:$C$8,MATCH('Toll Calculator'!$O$8,Conversions!$B$7:$B$8,0)) -> 21.89 | I99: =INDEX(Table_Attach3[FT-P Demand Rate Price Point "B"],MATCH(IF(CEILING(Table_CloseReceipt[[#This Row],[Distance (km)]],25)>500,999999,CEILING(Table_CloseReceipt[[#This Row],[Distance (km)]],25)),Table_Attach3[Maximum Distance Between Receipt Point and Delivery Point (km)],0),)*INDEX(Conversions!$C$7:$C$8,MATCH('Toll Calculator'!$O$8,Conversions!$B$7:$B$8,0)) -> 46.97 | J99: =INDEX(Table_Attach1[IT-R Rate ($/103m3/d)],MATCH(Table_CloseReceipt[[#This Row],[Station Number]], Table_Attach1[Receipt Point Number], 0))*INDEX(Conversions!$C$7:$C$8,MATCH('Toll Calculator'!$O$8, Conversions!$B$7:$B$8, 0))*_xlfn.SWITCH(UPPER(TRIM('Toll Calculator'!$O$8)),"IMPERIAL", (365/12),"METRIC", 1,1) -> 25.16
C100: =Table_ReceiptPointAlphabetical[[#This Row],[Alphabetical Order Rank]] -> 94 | D100: =INDEX(Table_ReceiptPoint[Receipt Point Number],MATCH(Table_CloseReceipt[[#This Row],[Rank]],Table_ReceiptPoint[Distance Rank to Delivery Location],0),) -> 1118 | E100: =INDEX(Table_ReceiptPoint[Receipt Point Name2],MATCH(Table_CloseReceipt[[#This Row],[Rank]],Table_ReceiptPoint[Distance Rank to Delivery Location],0),) -> WARWICK | F100: =INDEX(Table_ReceiptPoint[Distance From Delivery Station],MATCH(Table_CloseReceipt[[#This Row],[Rank]],Table_ReceiptPoint[Distance Rank to Delivery Location],0),) -> 149.3062 | G100: =INDEX(Table_ReceiptPoint[Legal Location Name],MATCH(Table_CloseReceipt[[#This Row],[Rank]],Table_ReceiptPoint[Distance Rank to Delivery Location],0),) -> NW-04-054-14-W4 | H100: =INDEX(Table_Attach1[FT-R Demand Rate Price Point "B" ($/103m3/mo)],MATCH(Table_CloseReceipt[[#This Row],[Station Number]],Table_Attach1[Receipt Point Number],0),)*INDEX(Conversions!$C$7:$C$8,MATCH('Toll Calculator'!$O$8,Conversions!$B$7:$B$8,0)) -> 19.51 | I100: =INDEX(Table_Attach3[FT-P Demand Rate Price Point "B"],MATCH(IF(CEILING(Table_CloseReceipt[[#This Row],[Distance (km)]],25)>500,999999,CEILING(Table_CloseReceipt[[#This Row],[Distance (km)]],25)),Table_Attach3[Maximum Distance Between Receipt Point and Delivery Point (km)],0),)*INDEX(Conversions!$C$7:$C$8,MATCH('Toll Calculator'!$O$8,Conversions!$B$7:$B$8,0)) -> 46.97 | J100: =INDEX(Table_Attach1[IT-R Rate ($/103m3/d)],MATCH(Table_CloseReceipt[[#This Row],[Station Number]], Table_Attach1[Receipt Point Number], 0))*INDEX(Conversions!$C$7:$C$8,MATCH('Toll Calculator'!$O$8, Conversions!$B$7:$B$8, 0))*_xlfn.SWITCH(UPPER(TRIM('Toll Calculator'!$O$8)),"IMPERIAL", (365/12),"METRIC", 1,1) -> 22.44
C101: =Table_ReceiptPointAlphabetical[[#This Row],[Alphabetical Order Rank]] -> 95 | D101: =INDEX(Table_ReceiptPoint[Receipt Point Number],MATCH(Table_CloseReceipt[[#This Row],[Rank]],Table_ReceiptPoint[Distance Rank to Delivery Location],0),) -> 1680 | E101: =INDEX(Table_ReceiptPoint[Receipt Point Name2],MATCH(Table_CloseReceipt[[#This Row],[Rank]],Table_ReceiptPoint[Distance Rank to Delivery Location],0),) -> CHERRY GROVE EAST* | F101: =INDEX(Table_ReceiptPoint[Distance From Delivery Station],MATCH(Table_CloseReceipt[[#This Row],[Rank]],Table_ReceiptPoint[Distance Rank to Delivery Location],0),) -> 149.7255 | G101: =INDEX(Table_ReceiptPoint[Legal Location Name],MATCH(Table_CloseReceipt[[#This Row],[Rank]],Table_ReceiptPoint[Distance Rank to Delivery Location],0),) -> SW-12-062-01-W4 | H101: =INDEX(Table_Attach1[FT-R Demand Rate Price Point "B" ($/103m3/mo)],MATCH(Table_CloseReceipt[[#This Row],[Station Number]],Table_Attach1[Receipt Point Number],0),)*INDEX(Conversions!$C$7:$C$8,MATCH('Toll Calculator'!$O$8,Conversions!$B$7:$B$8,0)) -> 13.63 | I101: =INDEX(Table_Attach3[FT-P Demand Rate Price Point "B"],MATCH(IF(CEILING(Table_CloseReceipt[[#This Row],[Distance (km)]],25)>500,999999,CEILING(Table_CloseReceipt[[#This Row],[Distance (km)]],25)),Table_Attach3[Maximum Distance Between Receipt Point and Delivery Point (km)],0),)*INDEX(Conversions!$C$7:$C$8,MATCH('Toll Calculator'!$O$8,Conversions!$B$7:$B$8,0)) -> 46.97 | J101: =INDEX(Table_Attach1[IT-R Rate ($/103m3/d)],MATCH(Table_CloseReceipt[[#This Row],[Station Number]], Table_Attach1[Receipt Point Number], 0))*INDEX(Conversions!$C$7:$C$8,MATCH('Toll Calculator'!$O$8, Conversions!$B$7:$B$8, 0))*_xlfn.SWITCH(UPPER(TRIM('Toll Calculator'!$O$8)),"IMPERIAL", (365/12),"METRIC", 1,1) -> 15.67
C102: =Table_ReceiptPointAlphabetical[[#This Row],[Alphabetical Order Rank]] -> 96 | D102: =INDEX(Table_ReceiptPoint[Receipt Point Number],MATCH(Table_CloseReceipt[[#This Row],[Rank]],Table_ReceiptPoint[Distance Rank to Delivery Location],0),) -> 1417 | E102: =INDEX(Table_ReceiptPoint[Receipt Point Name2],MATCH(Table_CloseReceipt[[#This Row],[Rank]],Table_ReceiptPoint[Distance Rank to Delivery Location],0),) -> COLD LAKE BORDER | F102: =INDEX(Table_ReceiptPoint[Distance From Delivery Station],MATCH(Table_CloseReceipt[[#This Row],[Rank]],Table_ReceiptPoint[Distance Rank to Delivery Location],0),) -> 149.76 | G102: =INDEX(Table_ReceiptPoint[Legal Location Name],MATCH(Table_CloseReceipt[[#This Row],[Rank]],Table_ReceiptPoint[Distance Rank to Delivery Location],0),) -> SW-12-062-01-W4 | H102: =INDEX(Table_Attach1[FT-R Demand Rate Price Point "B" ($/103m3/mo)],MATCH(Table_CloseReceipt[[#This Row],[Station Number]],Table_Attach1[Receipt Point Number],0),)*INDEX(Conversions!$C$7:$C$8,MATCH('Toll Calculator'!$O$8,Conversions!$B$7:$B$8,0)) -> 13.63 | I102: =INDEX(Table_Attach3[FT-P Demand Rate Price Point "B"],MATCH(IF(CEILING(Table_CloseReceipt[[#This Row],[Distance (km)]],25)>500,999999,CEILING(Table_CloseReceipt[[#This Row],[Distance (km)]],25)),Table_Attach3[Maximum Distance Between Receipt Point and Delivery Point (km)],0),)*INDEX(Conversions!$C$7:$C$8,MATCH('Toll Calculator'!$O$8,Conversions!$B$7:$B$8,0)) -> 46.97 | J102: =INDEX(Table_Attach1[IT-R Rate ($/103m3/d)],MATCH(Table_CloseReceipt[[#This Row],[Station Number]], Table_Attach1[Receipt Point Number], 0))*INDEX(Conversions!$C$7:$C$8,MATCH('Toll Calculator'!$O$8, Conversions!$B$7:$B$8, 0))*_xlfn.SWITCH(UPPER(TRIM('Toll Calculator'!$O$8)),"IMPERIAL", (365/12),"METRIC", 1,1) -> 15.67
C103: =Table_ReceiptPointAlphabetical[[#This Row],[Alphabetical Order Rank]] -> 97 | D103: =INDEX(Table_ReceiptPoint[Receipt Point Number],MATCH(Table_CloseReceipt[[#This Row],[Rank]],Table_ReceiptPoint[Distance Rank to Delivery Location],0),) -> 1311 | E103: =INDEX(Table_ReceiptPoint[Receipt Point Name2],MATCH(Table_CloseReceipt[[#This Row],[Rank]],Table_ReceiptPoint[Distance Rank to Delivery Location],0),) -> SADDLE LAKE NORTH | F103: =INDEX(Table_ReceiptPoint[Distance From Delivery Station],MATCH(Table_CloseReceipt[[#This Row],[Rank]],Table_ReceiptPoint[Distance Rank to Delivery Location],0),) -> 150.1941 | G103: =INDEX(Table_ReceiptPoint[Legal Location Name],MATCH(Table_CloseReceipt[[#This Row],[Rank]],Table_ReceiptPoint[Distance Rank to Delivery Location],0),) -> 09-09-058-11-W4 | H103: =INDEX(Table_Attach1[FT-R Demand Rate Price Point "B" ($/103m3/mo)],MATCH(Table_CloseReceipt[[#This Row],[Station Number]],Table_Attach1[Receipt Point Number],0),)*INDEX(Conversions!$C$7:$C$8,MATCH('Toll Calculator'!$O$8,Conversions!$B$7:$B$8,0)) -> 13.83 | I103: =INDEX(Table_Attach3[FT-P Demand Rate Price Point "B"],MATCH(IF(CEILING(Table_CloseReceipt[[#This Row],[Distance (km)]],25)>500,999999,CEILING(Table_CloseReceipt[[#This Row],[Distance (km)]],25)),Table_Attach3[Maximum Distance Between Receipt Point and Delivery Point (km)],0),)*INDEX(Conversions!$C$7:$C$8,MATCH('Toll Calculator'!$O$8,Conversions!$B$7:$B$8,0)) -> 49.18 | J103: =INDEX(Table_Attach1[IT-R Rate ($/103m3/d)],MATCH(Table_CloseReceipt[[#This Row],[Station Number]], Table_Attach1[Receipt Point Number], 0))*INDEX(Conversions!$C$7:$C$8,MATCH('Toll Calculator'!$O$8, Conversions!$B$7:$B$8, 0))*_xlfn.SWITCH(UPPER(TRIM('Toll Calculator'!$O$8)),"IMPERIAL", (365/12),"METRIC", 1,1) -> 15.89
C104: =Table_ReceiptPointAlphabetical[[#This Row],[Alphabetical Order Rank]] -> 98 | D104: =INDEX(Table_ReceiptPoint[Receipt Point Number],MATCH(Table_CloseReceipt[[#This Row],[Rank]],Table_ReceiptPoint[Distance Rank to Delivery Location],0),) -> 1036 | E104: =INDEX(Table_ReceiptPoint[Receipt Point Name2],MATCH(Table_CloseReceipt[[#This Row],[Rank]],Table_ReceiptPoint[Distance Rank to Delivery Location],0),) -> SEDALIA NORTH* | F104: =INDEX(Table_ReceiptPoint[Distance From Delivery Station],MATCH(Table_CloseReceipt[[#This Row],[Rank]],Table_ReceiptPoint[Distance Rank to Delivery Location],0),) -> 151.4604 | G104: =INDEX(Table_ReceiptPoint[Legal Location Name],MATCH(Table_CloseReceipt[[#This Row],[Rank]],Table_ReceiptPoint[Distance Rank to Delivery Location],0),) -> 01-32-031-05-W4 | H104: =INDEX(Table_Attach1[FT-R Demand Rate Price Point "B" ($/103m3/mo)],MATCH(Table_CloseReceipt[[#This Row],[Station Number]],Table_Attach1[Receipt Point Number],0),)*INDEX(Conversions!$C$7:$C$8,MATCH('Toll Calculator'!$O$8,Conversions!$B$7:$B$8,0)) -> 21.92 | I104: =INDEX(Table_Attach3[FT-P Demand Rate Price Point "B"],MATCH(IF(CEILING(Table_CloseReceipt[[#This Row],[Distance (km)]],25)>500,999999,CEILING(Table_CloseReceipt[[#This Row],[Distance (km)]],25)),Table_Attach3[Maximum Distance Between Receipt Point and Delivery Point (km)],0),)*INDEX(Conversions!$C$7:$C$8,MATCH('Toll Calculator'!$O$8,Conversions!$B$7:$B$8,0)) -> 49.18 | J104: =INDEX(Table_Attach1[IT-R Rate ($/103m3/d)],MATCH(Table_CloseReceipt[[#This Row],[Station Number]], Table_Attach1[Receipt Point Number], 0))*INDEX(Conversions!$C$7:$C$8,MATCH('Toll Calculator'!$O$8, Conversions!$B$7:$B$8, 0))*_xlfn.SWITCH(UPPER(TRIM('Toll Calculator'!$O$8)),"IMPERIAL", (365/12),"METRIC", 1,1) -> 25.21
C105: =Table_ReceiptPointAlphabetical[[#This Row],[Alphabetical Order Rank]] -> 99 | D105: =INDEX(Table_ReceiptPoint[Receipt Point Number],MATCH(Table_CloseReceipt[[#This Row],[Rank]],Table_ReceiptPoint[Distance Rank to Delivery Location],0),) -> 1161 | E105: =INDEX(Table_ReceiptPoint[Receipt Point Name2],MATCH(Table_CloseReceipt[[#This Row],[Rank]],Table_ReceiptPoint[Distance Rank to Delivery Location],0),) -> HOLDEN | F105: =INDEX(Table_ReceiptPoint[Distance From Delivery Station],MATCH(Table_CloseReceipt[[#This Row],[Rank]],Table_ReceiptPoint[Distance Rank to Delivery Location],0),) -> 153.1945 | G105: =INDEX(Table_ReceiptPoint[Legal Location Name],MATCH(Table_CloseReceipt[[#This Row],[Rank]],Table_ReceiptPoint[Distance Rank to Delivery Location],0),) -> NW-20-048-16-W4 | H105: =INDEX(Table_Attach1[FT-R Demand Rate Price Point "B" ($/103m3/mo)],MATCH(Table_CloseReceipt[[#This Row],[Station Number]],Table_Attach1[Receipt Point Number],0),)*INDEX(Conversions!$C$7:$C$8,MATCH('Toll Calculator'!$O$8,Conversions!$B$7:$B$8,0)) -> 28.97 | I105: =INDEX(Table_Attach3[FT-P Demand Rate Price Point "B"],MATCH(IF(CEILING(Table_CloseReceipt[[#This Row],[Distance (km)]],25)>500,999999,CEILING(Table_CloseReceipt[[#This Row],[Distance (km)]],25)),Table_Attach3[Maximum Distance Between Receipt Point and Delivery Point (km)],0),)*INDEX(Conversions!$C$7:$C$8,MATCH('Toll Calculator'!$O$8,Conversions!$B$7:$B$8,0)) -> 49.18 | J105: =INDEX(Table_Attach1[IT-R Rate ($/103m3/d)],MATCH(Table_CloseReceipt[[#This Row],[Station Number]], Table_Attach1[Receipt Point Number], 0))*INDEX(Conversions!$C$7:$C$8,MATCH('Toll Calculator'!$O$8, Conversions!$B$7:$B$8, 0))*_xlfn.SWITCH(UPPER(TRIM('Toll Calculator'!$O$8)),"IMPERIAL", (365/12),"METRIC", 1,1) -> 33.31
C106: =Table_ReceiptPointAlphabetical[[#This Row],[Alphabetical Order Rank]] -> 100 | D106: =INDEX(Table_ReceiptPoint[Receipt Point Number],MATCH(Table_CloseReceipt[[#This Row],[Rank]],Table_ReceiptPoint[Distance Rank to Delivery Location],0),) -> 1483 | E106: =INDEX(Table_ReceiptPoint[Receipt Point Name2],MATCH(Table_CloseReceipt[[#This Row],[Rank]],Table_ReceiptPoint[Distance Rank to Delivery Location],0),) -> KENT* | F106: =INDEX(Table_ReceiptPoint[Distance From Delivery Station],MATCH(Table_CloseReceipt[[#This Row],[Rank]],Table_ReceiptPoint[Distance Rank to Delivery Location],0),) -> 153.237 | G106: =INDEX(Table_ReceiptPoint[Legal Location Name],MATCH(Table_CloseReceipt[[#This Row],[Rank]],Table_ReceiptPoint[Distance Rank to Delivery Location],0),) -> 15-13-062-03-W4 | H106: =INDEX(Table_Attach1[FT-R Demand Rate Price Point "B" ($/103m3/mo)],MATCH(Table_CloseReceipt[[#This Row],[Station Number]],Table_Attach1[Receipt Point Number],0),)*INDEX(Conversions!$C$7:$C$8,MATCH('Toll Calculator'!$O$8,Conversions!$B$7:$B$8,0)) -> 13.63 | I106: =INDEX(Table_Attach3[FT-P Demand Rate Price Point "B"],MATCH(IF(CEILING(Table_CloseReceipt[[#This Row],[Distance (km)]],25)>500,999999,CEILING(Table_CloseReceipt[[#This Row],[Distance (km)]],25)),Table_Attach3[Maximum Distance Between Receipt Point and Delivery Point (km)],0),)*INDEX(Conversions!$C$7:$C$8,MATCH('Toll Calculator'!$O$8,Conversions!$B$7:$B$8,0)) -> 49.18 | J106: =INDEX(Table_Attach1[IT-R Rate ($/103m3/d)],MATCH(Table_CloseReceipt[[#This Row],[Station Number]], Table_Attach1[Receipt Point Number], 0))*INDEX(Conversions!$C$7:$C$8,MATCH('Toll Calculator'!$O$8, Conversions!$B$7:$B$8, 0))*_xlfn.SWITCH(UPPER(TRIM('Toll Calculator'!$O$8)),"IMPERIAL", (365/12),"METRIC", 1,1) -> 15.67
C107: =Table_ReceiptPointAlphabetical[[#This Row],[Alphabetical Order Rank]] -> 101 | D107: =INDEX(Table_ReceiptPoint[Receipt Point Number],MATCH(Table_CloseReceipt[[#This Row],[Rank]],Table_ReceiptPoint[Distance Rank to Delivery Location],0),) -> 1602 | E107: =INDEX(Table_ReceiptPoint[Receipt Point Name2],MATCH(Table_CloseReceipt[[#This Row],[Rank]],Table_ReceiptPoint[Distance Rank to Delivery Location],0),) -> FORT KENT* | F107: =INDEX(Table_ReceiptPoint[Distance From Delivery Station],MATCH(Table_CloseReceipt[[#This Row],[Rank]],Table_ReceiptPoint[Distance Rank to Delivery Location],0),) -> 153.5745 | G107: =INDEX(Table_ReceiptPoint[Legal Location Name],MATCH(Table_CloseReceipt[[#This Row],[Rank]],Table_ReceiptPoint[Distance Rank to Delivery Location],0),) -> 14-11-062-04-W4 | H107: =INDEX(Table_Attach1[FT-R Demand Rate Price Point "B" ($/103m3/mo)],MATCH(Table_CloseReceipt[[#This Row],[Station Number]],Table_Attach1[Receipt Point Number],0),)*INDEX(Conversions!$C$7:$C$8,MATCH('Toll Calculator'!$O$8,Conversions!$B$7:$B$8,0)) -> 13.63 | I107: =INDEX(Table_Attach3[FT-P Demand Rate Price Point "B"],MATCH(IF(CEILING(Table_CloseReceipt[[#This Row],[Distance (km)]],25)>500,999999,CEILING(Table_CloseReceipt[[#This Row],[Distance (km)]],25)),Table_Attach3[Maximum Distance Between Receipt Point and Delivery Point (km)],0),)*INDEX(Conversions!$C$7:$C$8,MATCH('Toll Calculator'!$O$8,Conversions!$B$7:$B$8,0)) -> 49.18 | J107: =INDEX(Table_Attach1[IT-R Rate ($/103m3/d)],MATCH(Table_CloseReceipt[[#This Row],[Station Number]], Table_Attach1[Receipt Point Number], 0))*INDEX(Conversions!$C$7:$C$8,MATCH('Toll Calculator'!$O$8, Conversions!$B$7:$B$8, 0))*_xlfn.SWITCH(UPPER(TRIM('Toll Calculator'!$O$8)),"IMPERIAL", (365/12),"METRIC", 1,1) -> 15.67
C108: =Table_ReceiptPointAlphabetical[[#This Row],[Alphabetical Order Rank]] -> 102 | D108: =INDEX(Table_ReceiptPoint[Receipt Point Number],MATCH(Table_CloseReceipt[[#This Row],[Rank]],Table_ReceiptPoint[Distance Rank to Delivery Location],0),) -> 1439 | E108: =INDEX(Table_ReceiptPoint[Receipt Point Name2],MATCH(Table_CloseReceipt[[#This Row],[Rank]],Table_ReceiptPoint[Distance Rank to Delivery Location],0),) -> HEISLER* | F108: =INDEX(Table_ReceiptPoint[Distance From Delivery Station],MATCH(Table_CloseReceipt[[#This Row],[Rank]],Table_ReceiptPoint[Distance Rank to Delivery Location],0),) -> 153.5989 | G108: =INDEX(Table_ReceiptPoint[Legal Location Name],MATCH(Table_CloseReceipt[[#This Row],[Rank]],Table_ReceiptPoint[Distance Rank to Delivery Location],0),) -> SW-15-042-16-W4 | H108: =INDEX(Table_Attach1[FT-R Demand Rate Price Point "B" ($/103m3/mo)],MATCH(Table_CloseReceipt[[#This Row],[Station Number]],Table_Attach1[Receipt Point Number],0),)*INDEX(Conversions!$C$7:$C$8,MATCH('Toll Calculator'!$O$8,Conversions!$B$7:$B$8,0)) -> 26.5 | I108: =INDEX(Table_Attach3[FT-P Demand Rate Price Point "B"],MATCH(IF(CEILING(Table_CloseReceipt[[#This Row],[Distance (km)]],25)>500,999999,CEILING(Table_CloseReceipt[[#This Row],[Distance (km)]],25)),Table_Attach3[Maximum Distance Between Receipt Point and Delivery Point (km)],0),)*INDEX(Conversions!$C$7:$C$8,MATCH('Toll Calculator'!$O$8,Conversions!$B$7:$B$8,0)) -> 49.18 | J108: =INDEX(Table_Attach1[IT-R Rate ($/103m3/d)],MATCH(Table_CloseReceipt[[#This Row],[Station Number]], Table_Attach1[Receipt Point Number], 0))*INDEX(Conversions!$C$7:$C$8,MATCH('Toll Calculator'!$O$8, Conversions!$B$7:$B$8, 0))*_xlfn.SWITCH(UPPER(TRIM('Toll Calculator'!$O$8)),"IMPERIAL", (365/12),"METRIC", 1,1) -> 30.48
C109: =Table_ReceiptPointAlphabetical[[#This Row],[Alphabetical Order Rank]] -> 103 | D109: =INDEX(Table_ReceiptPoint[Receipt Point Number],MATCH(Table_CloseReceipt[[#This Row],[Rank]],Table_ReceiptPoint[Distance Rank to Delivery Location],0),) -> 1230 | E109: =INDEX(Table_ReceiptPoint[Receipt Point Name2],MATCH(Table_CloseReceipt[[#This Row],[Rank]],Table_ReceiptPoint[Distance Rank to Delivery Location],0),) -> HAIRY HILL* | F109: =INDEX(Table_ReceiptPoint[Distance From Delivery Station],MATCH(Table_CloseReceipt[[#This Row],[Rank]],Table_ReceiptPoint[Distance Rank to Delivery Location],0),) -> 153.6564 | G109: =INDEX(Table_ReceiptPoint[Legal Location Name],MATCH(Table_CloseReceipt[[#This Row],[Rank]],Table_ReceiptPoint[Distance Rank to Delivery Location],0),) -> SE-36-055-14-W4 | H109: =INDEX(Table_Attach1[FT-R Demand Rate Price Point "B" ($/103m3/mo)],MATCH(Table_CloseReceipt[[#This Row],[Station Number]],Table_Attach1[Receipt Point Number],0),)*INDEX(Conversions!$C$7:$C$8,MATCH('Toll Calculator'!$O$8,Conversions!$B$7:$B$8,0)) -> 22.96 | I109: =INDEX(Table_Attach3[FT-P Demand Rate Price Point "B"],MATCH(IF(CEILING(Table_CloseReceipt[[#This Row],[Distance (km)]],25)>500,999999,CEILING(Table_CloseReceipt[[#This Row],[Distance (km)]],25)),Table_Attach3[Maximum Distance Between Receipt Point and Delivery Point (km)],0),)*INDEX(Conversions!$C$7:$C$8,MATCH('Toll Calculator'!$O$8,Conversions!$B$7:$B$8,0)) -> 49.18 | J109: =INDEX(Table_Attach1[IT-R Rate ($/103m3/d)],MATCH(Table_CloseReceipt[[#This Row],[Station Number]], Table_Attach1[Receipt Point Number], 0))*INDEX(Conversions!$C$7:$C$8,MATCH('Toll Calculator'!$O$8, Conversions!$B$7:$B$8, 0))*_xlfn.SWITCH(UPPER(TRIM('Toll Calculator'!$O$8)),"IMPERIAL", (365/12),"METRIC", 1,1) -> 26.4
C110: =Table_ReceiptPointAlphabetical[[#This Row],[Alphabetical Order Rank]] -> 104 | D110: =INDEX(Table_ReceiptPoint[Receipt Point Number],MATCH(Table_CloseReceipt[[#This Row],[Rank]],Table_ReceiptPoint[Distance Rank to Delivery Location],0),) -> 1207 | E110: =INDEX(Table_ReceiptPoint[Receipt Point Name2],MATCH(Table_CloseReceipt[[#This Row],[Rank]],Table_ReceiptPoint[Distance Rank to Delivery Location],0),) -> HUDSON* | F110: =INDEX(Table_ReceiptPoint[Distance From Delivery Station],MATCH(Table_CloseReceipt[[#This Row],[Rank]],Table_ReceiptPoint[Distance Rank to Delivery Location],0),) -> 155.3046 | G110: =INDEX(Table_ReceiptPoint[Legal Location Name],MATCH(Table_CloseReceipt[[#This Row],[Rank]],Table_ReceiptPoint[Distance Rank to Delivery Location],0),) -> SW-31-030-02-W4 | H110: =INDEX(Table_Attach1[FT-R Demand Rate Price Point "B" ($/103m3/mo)],MATCH(Table_CloseReceipt[[#This Row],[Station Number]],Table_Attach1[Receipt Point Number],0),)*INDEX(Conversions!$C$7:$C$8,MATCH('Toll Calculator'!$O$8,Conversions!$B$7:$B$8,0)) -> 15.66 | I110: =INDEX(Table_Attach3[FT-P Demand Rate Price Point "B"],MATCH(IF(CEILING(Table_CloseReceipt[[#This Row],[Distance (km)]],25)>500,999999,CEILING(Table_CloseReceipt[[#This Row],[Distance (km)]],25)),Table_Attach3[Maximum Distance Between Receipt Point and Delivery Point (km)],0),)*INDEX(Conversions!$C$7:$C$8,MATCH('Toll Calculator'!$O$8,Conversions!$B$7:$B$8,0)) -> 49.18 | J110: =INDEX(Table_Attach1[IT-R Rate ($/103m3/d)],MATCH(Table_CloseReceipt[[#This Row],[Station Number]], Table_Attach1[Receipt Point Number], 0))*INDEX(Conversions!$C$7:$C$8,MATCH('Toll Calculator'!$O$8, Conversions!$B$7:$B$8, 0))*_xlfn.SWITCH(UPPER(TRIM('Toll Calculator'!$O$8)),"IMPERIAL", (365/12),"METRIC", 1,1) -> 18.02
C111: =Table_ReceiptPointAlphabetical[[#This Row],[Alphabetical Order Rank]] -> 105 | D111: =INDEX(Table_ReceiptPoint[Receipt Point Number],MATCH(Table_CloseReceipt[[#This Row],[Rank]],Table_ReceiptPoint[Distance Rank to Delivery Location],0),) -> 1179 | E111: =INDEX(Table_ReceiptPoint[Receipt Point Name2],MATCH(Table_CloseReceipt[[#This Row],[Rank]],Table_ReceiptPoint[Distance Rank to Delivery Location],0),) -> STROME-HOLMBERG | F111: =INDEX(Table_ReceiptPoint[Distance From Delivery Station],MATCH(Table_CloseReceipt[[#This Row],[Rank]],Table_ReceiptPoint[Distance Rank to Delivery Location],0),) -> 156.6357 | G111: =INDEX(Table_ReceiptPoint[Legal Location Name],MATCH(Table_CloseReceipt[[#This Row],[Rank]],Table_ReceiptPoint[Distance Rank to Delivery Location],0),) -> NW-13-044-17-W4 | H111: =INDEX(Table_Attach1[FT-R Demand Rate Price Point "B" ($/103m3/mo)],MATCH(Table_CloseReceipt[[#This Row],[Station Number]],Table_Attach1[Receipt Point Number],0),)*INDEX(Conversions!$C$7:$C$8,MATCH('Toll Calculator'!$O$8,Conversions!$B$7:$B$8,0)) -> 27.96 | I111: =INDEX(Table_Attach3[FT-P Demand Rate Price Point "B"],MATCH(IF(CEILING(Table_CloseReceipt[[#This Row],[Distance (km)]],25)>500,999999,CEILING(Table_CloseReceipt[[#This Row],[Distance (km)]],25)),Table_Attach3[Maximum Distance Between Receipt Point and Delivery Point (km)],0),)*INDEX(Conversions!$C$7:$C$8,MATCH('Toll Calculator'!$O$8,Conversions!$B$7:$B$8,0)) -> 49.18 | J111: =INDEX(Table_Attach1[IT-R Rate ($/103m3/d)],MATCH(Table_CloseReceipt[[#This Row],[Station Number]], Table_Attach1[Receipt Point Number], 0))*INDEX(Conversions!$C$7:$C$8,MATCH('Toll Calculator'!$O$8, Conversions!$B$7:$B$8, 0))*_xlfn.SWITCH(UPPER(TRIM('Toll Calculator'!$O$8)),"IMPERIAL", (365/12),"METRIC", 1,1) -> 32.15
C112: =Table_ReceiptPointAlphabetical[[#This Row],[Alphabetical Order Rank]] -> 106 | D112: =INDEX(Table_ReceiptPoint[Receipt Point Number],MATCH(Table_CloseReceipt[[#This Row],[Rank]],Table_ReceiptPoint[Distance Rank to Delivery Location],0),) -> 1660 | E112: =INDEX(Table_ReceiptPoint[Receipt Point Name2],MATCH(Table_CloseReceipt[[#This Row],[Rank]],Table_ReceiptPoint[Distance Rank to Delivery Location],0),) -> BONNYVILLE* | F112: =INDEX(Table_ReceiptPoint[Distance From Delivery Station],MATCH(Table_CloseReceipt[[#This Row],[Rank]],Table_ReceiptPoint[Distance Rank to Delivery Location],0),) -> 157.7921 | G112: =INDEX(Table_ReceiptPoint[Legal Location Name],MATCH(Table_CloseReceipt[[#This Row],[Rank]],Table_ReceiptPoint[Distance Rank to Delivery Location],0),) -> 16-12-062-06-W4 | H112: =INDEX(Table_Attach1[FT-R Demand Rate Price Point "B" ($/103m3/mo)],MATCH(Table_CloseReceipt[[#This Row],[Station Number]],Table_Attach1[Receipt Point Number],0),)*INDEX(Conversions!$C$7:$C$8,MATCH('Toll Calculator'!$O$8,Conversions!$B$7:$B$8,0)) -> 13.63 | I112: =INDEX(Table_Attach3[FT-P Demand Rate Price Point "B"],MATCH(IF(CEILING(Table_CloseReceipt[[#This Row],[Distance (km)]],25)>500,999999,CEILING(Table_CloseReceipt[[#This Row],[Distance (km)]],25)),Table_Attach3[Maximum Distance Between Receipt Point and Delivery Point (km)],0),)*INDEX(Conversions!$C$7:$C$8,MATCH('Toll Calculator'!$O$8,Conversions!$B$7:$B$8,0)) -> 49.18 | J112: =INDEX(Table_Attach1[IT-R Rate ($/103m3/d)],MATCH(Table_CloseReceipt[[#This Row],[Station Number]], Table_Attach1[Receipt Point Number], 0))*INDEX(Conversions!$C$7:$C$8,MATCH('Toll Calculator'!$O$8, Conversions!$B$7:$B$8, 0))*_xlfn.SWITCH(UPPER(TRIM('Toll Calculator'!$O$8)),"IMPERIAL", (365/12),"METRIC", 1,1) -> 15.67
C113: =Table_ReceiptPointAlphabetical[[#This Row],[Alphabetical Order Rank]] -> 107 | D113: =INDEX(Table_ReceiptPoint[Receipt Point Number],MATCH(Table_CloseReceipt[[#This Row],[Rank]],Table_ReceiptPoint[Distance Rank to Delivery Location],0),) -> 1413 | E113: =INDEX(Table_ReceiptPoint[Receipt Point Name2],MATCH(Table_CloseReceipt[[#This Row],[Rank]],Table_ReceiptPoint[Distance Rank to Delivery Location],0),) -> HUDSON WEST* | F113: =INDEX(Table_ReceiptPoint[Distance From Delivery Station],MATCH(Table_CloseReceipt[[#This Row],[Rank]],Table_ReceiptPoint[Distance Rank to Delivery Location],0),) -> 158.5147 | G113: =INDEX(Table_ReceiptPoint[Legal Location Name],MATCH(Table_CloseReceipt[[#This Row],[Rank]],Table_ReceiptPoint[Distance Rank to Delivery Location],0),) -> NW-26-030-04-W4 | H113: =INDEX(Table_Attach1[FT-R Demand Rate Price Point "B" ($/103m3/mo)],MATCH(Table_CloseReceipt[[#This Row],[Station Number]],Table_Attach1[Receipt Point Number],0),)*INDEX(Conversions!$C$7:$C$8,MATCH('Toll Calculator'!$O$8,Conversions!$B$7:$B$8,0)) -> 15.16 | I113: =INDEX(Table_Attach3[FT-P Demand Rate Price Point "B"],MATCH(IF(CEILING(Table_CloseReceipt[[#This Row],[Distance (km)]],25)>500,999999,CEILING(Table_CloseReceipt[[#This Row],[Distance (km)]],25)),Table_Attach3[Maximum Distance Between Receipt Point and Delivery Point (km)],0),)*INDEX(Conversions!$C$7:$C$8,MATCH('Toll Calculator'!$O$8,Conversions!$B$7:$B$8,0)) -> 49.18 | J113: =INDEX(Table_Attach1[IT-R Rate ($/103m3/d)],MATCH(Table_CloseReceipt[[#This Row],[Station Number]], Table_Attach1[Receipt Point Number], 0))*INDEX(Conversions!$C$7:$C$8,MATCH('Toll Calculator'!$O$8, Conversions!$B$7:$B$8, 0))*_xlfn.SWITCH(UPPER(TRIM('Toll Calculator'!$O$8)),"IMPERIAL", (365/12),"METRIC", 1,1) -> 17.42
C114: =Table_ReceiptPointAlphabetical[[#This Row],[Alphabetical Order Rank]] -> 108 | D114: =INDEX(Table_ReceiptPoint[Receipt Point Number],MATCH(Table_CloseReceipt[[#This Row],[Rank]],Table_ReceiptPoint[Distance Rank to Delivery Location],0),) -> 1456 | E114: =INDEX(Table_ReceiptPoint[Receipt Point Name2],MATCH(Table_CloseReceipt[[#This Row],[Rank]],Table_ReceiptPoint[Distance Rank to Delivery Location],0),) -> GLENDON | F114: =INDEX(Table_ReceiptPoint[Distance From Delivery Station],MATCH(Table_CloseReceipt[[#This Row],[Rank]],Table_ReceiptPoint[Distance Rank to Delivery Location],0),) -> 158.7088 | G114: =INDEX(Table_ReceiptPoint[Legal Location Name],MATCH(Table_CloseReceipt[[#This Row],[Rank]],Table_ReceiptPoint[Distance Rank to Delivery Location],0),) -> 03-16-061-08-W4 | H114: =INDEX(Table_Attach1[FT-R Demand Rate Price Point "B" ($/103m3/mo)],MATCH(Table_CloseReceipt[[#This Row],[Station Number]],Table_Attach1[Receipt Point Number],0),)*INDEX(Conversions!$C$7:$C$8,MATCH('Toll Calculator'!$O$8,Conversions!$B$7:$B$8,0)) -> 13.63 | I114: =INDEX(Table_Attach3[FT-P Demand Rate Price Point "B"],MATCH(IF(CEILING(Table_CloseReceipt[[#This Row],[Distance (km)]],25)>500,999999,CEILING(Table_CloseReceipt[[#This Row],[Distance (km)]],25)),Table_Attach3[Maximum Distance Between Receipt Point and Delivery Point (km)],0),)*INDEX(Conversions!$C$7:$C$8,MATCH('Toll Calculator'!$O$8,Conversions!$B$7:$B$8,0)) -> 49.18 | J114: =INDEX(Table_Attach1[IT-R Rate ($/103m3/d)],MATCH(Table_CloseReceipt[[#This Row],[Station Number]], Table_Attach1[Receipt Point Number], 0))*INDEX(Conversions!$C$7:$C$8,MATCH('Toll Calculator'!$O$8, Conversions!$B$7:$B$8, 0))*_xlfn.SWITCH(UPPER(TRIM('Toll Calculator'!$O$8)),"IMPERIAL", (365/12),"METRIC", 1,1) -> 15.67
C115: =Table_ReceiptPointAlphabetical[[#This Row],[Alphabetical Order Rank]] -> 109 | D115: =INDEX(Table_ReceiptPoint[Receipt Point Number],MATCH(Table_CloseReceipt[[#This Row],[Rank]],Table_ReceiptPoint[Distance Rank to Delivery Location],0),) -> 1428 | E115: =INDEX(Table_ReceiptPoint[Receipt Point Name2],MATCH(Table_CloseReceipt[[#This Row],[Rank]],Table_ReceiptPoint[Distance Rank to Delivery Location],0),) -> WILLINGDON* | F115: =INDEX(Table_ReceiptPoint[Distance From Delivery Station],MATCH(Table_CloseReceipt[[#This Row],[Rank]],Table_ReceiptPoint[Distance Rank to Delivery Location],0),) -> 161.476 | G115: =INDEX(Table_ReceiptPoint[Legal Location Name],MATCH(Table_CloseReceipt[[#This Row],[Rank]],Table_ReceiptPoint[Distance Rank to Delivery Location],0),) -> 12-24-055-15-W4 | H115: =INDEX(Table_Attach1[FT-R Demand Rate Price Point "B" ($/103m3/mo)],MATCH(Table_CloseReceipt[[#This Row],[Station Number]],Table_Attach1[Receipt Point Number],0),)*INDEX(Conversions!$C$7:$C$8,MATCH('Toll Calculator'!$O$8,Conversions!$B$7:$B$8,0)) -> 21.51 | I115: =INDEX(Table_Attach3[FT-P Demand Rate Price Point "B"],MATCH(IF(CEILING(Table_CloseReceipt[[#This Row],[Distance (km)]],25)>500,999999,CEILING(Table_CloseReceipt[[#This Row],[Distance (km)]],25)),Table_Attach3[Maximum Distance Between Receipt Point and Delivery Point (km)],0),)*INDEX(Conversions!$C$7:$C$8,MATCH('Toll Calculator'!$O$8,Conversions!$B$7:$B$8,0)) -> 49.18 | J115: =INDEX(Table_Attach1[IT-R Rate ($/103m3/d)],MATCH(Table_CloseReceipt[[#This Row],[Station Number]], Table_Attach1[Receipt Point Number], 0))*INDEX(Conversions!$C$7:$C$8,MATCH('Toll Calculator'!$O$8, Conversions!$B$7:$B$8, 0))*_xlfn.SWITCH(UPPER(TRIM('Toll Calculator'!$O$8)),"IMPERIAL", (365/12),"METRIC", 1,1) -> 24.73
C116: =Table_ReceiptPointAlphabetical[[#This Row],[Alphabetical Order Rank]] -> 110 | D116: =INDEX(Table_ReceiptPoint[Receipt Point Number],MATCH(Table_CloseReceipt[[#This Row],[Rank]],Table_ReceiptPoint[Distance Rank to Delivery Location],0),) -> 1834 | E116: =INDEX(Table_ReceiptPoint[Receipt Point Name2],MATCH(Table_CloseReceipt[[#This Row],[Rank]],Table_ReceiptPoint[Distance Rank to Delivery Location],0),) -> HALKIRK NORTH NO 2* | F116: =INDEX(Table_ReceiptPoint[Distance From Delivery Station],MATCH(Table_CloseReceipt[[#This Row],[Rank]],Table_ReceiptPoint[Distance Rank to Delivery Location],0),) -> 163.158 | G116: =INDEX(Table_ReceiptPoint[Legal Location Name],MATCH(Table_CloseReceipt[[#This Row],[Rank]],Table_ReceiptPoint[Distance Rank to Delivery Location],0),) -> NW-11-039-16-W4 | H116: =INDEX(Table_Attach1[FT-R Demand Rate Price Point "B" ($/103m3/mo)],MATCH(Table_CloseReceipt[[#This Row],[Station Number]],Table_Attach1[Receipt Point Number],0),)*INDEX(Conversions!$C$7:$C$8,MATCH('Toll Calculator'!$O$8,Conversions!$B$7:$B$8,0)) -> 29.03 | I116: =INDEX(Table_Attach3[FT-P Demand Rate Price Point "B"],MATCH(IF(CEILING(Table_CloseReceipt[[#This Row],[Distance (km)]],25)>500,999999,CEILING(Table_CloseReceipt[[#This Row],[Distance (km)]],25)),Table_Attach3[Maximum Distance Between Receipt Point and Delivery Point (km)],0),)*INDEX(Conversions!$C$7:$C$8,MATCH('Toll Calculator'!$O$8,Conversions!$B$7:$B$8,0)) -> 49.18 | J116: =INDEX(Table_Attach1[IT-R Rate ($/103m3/d)],MATCH(Table_CloseReceipt[[#This Row],[Station Number]], Table_Attach1[Receipt Point Number], 0))*INDEX(Conversions!$C$7:$C$8,MATCH('Toll Calculator'!$O$8, Conversions!$B$7:$B$8, 0))*_xlfn.SWITCH(UPPER(TRIM('Toll Calculator'!$O$8)),"IMPERIAL", (365/12),"METRIC", 1,1) -> 33.4
C117: =Table_ReceiptPointAlphabetical[[#This Row],[Alphabetical Order Rank]] -> 111 | D117: =INDEX(Table_ReceiptPoint[Receipt Point Number],MATCH(Table_CloseReceipt[[#This Row],[Rank]],Table_ReceiptPoint[Distance Rank to Delivery Location],0),) -> 1484 | E117: =INDEX(Table_ReceiptPoint[Receipt Point Name2],MATCH(Table_CloseReceipt[[#This Row],[Rank]],Table_ReceiptPoint[Distance Rank to Delivery Location],0),) -> MOOSELAKE RIVER | F117: =INDEX(Table_ReceiptPoint[Distance From Delivery Station],MATCH(Table_CloseReceipt[[#This Row],[Rank]],Table_ReceiptPoint[Distance Rank to Delivery Location],0),) -> 163.3918 | G117: =INDEX(Table_ReceiptPoint[Legal Location Name],MATCH(Table_CloseReceipt[[#This Row],[Rank]],Table_ReceiptPoint[Distance Rank to Delivery Location],0),) -> 16-08-062-07-W4 | H117: =INDEX(Table_Attach1[FT-R Demand Rate Price Point "B" ($/103m3/mo)],MATCH(Table_CloseReceipt[[#This Row],[Station Number]],Table_Attach1[Receipt Point Number],0),)*INDEX(Conversions!$C$7:$C$8,MATCH('Toll Calculator'!$O$8,Conversions!$B$7:$B$8,0)) -> 13.63 | I117: =INDEX(Table_Attach3[FT-P Demand Rate Price Point "B"],MATCH(IF(CEILING(Table_CloseReceipt[[#This Row],[Distance (km)]],25)>500,999999,CEILING(Table_CloseReceipt[[#This Row],[Distance (km)]],25)),Table_Attach3[Maximum Distance Between Receipt Point and Delivery Point (km)],0),)*INDEX(Conversions!$C$7:$C$8,MATCH('Toll Calculator'!$O$8,Conversions!$B$7:$B$8,0)) -> 49.18 | J117: =INDEX(Table_Attach1[IT-R Rate ($/103m3/d)],MATCH(Table_CloseReceipt[[#This Row],[Station Number]], Table_Attach1[Receipt Point Number], 0))*INDEX(Conversions!$C$7:$C$8,MATCH('Toll Calculator'!$O$8, Conversions!$B$7:$B$8, 0))*_xlfn.SWITCH(UPPER(TRIM('Toll Calculator'!$O$8)),"IMPERIAL", (365/12),"METRIC", 1,1) -> 15.67
C118: =Table_ReceiptPointAlphabetical[[#This Row],[Alphabetical Order Rank]] -> 112 | D118: =INDEX(Table_ReceiptPoint[Receipt Point Number],MATCH(Table_CloseReceipt[[#This Row],[Rank]],Table_ReceiptPoint[Distance Rank to Delivery Location],0),) -> 30350 | E118: =INDEX(Table_ReceiptPoint[Receipt Point Name2],MATCH(Table_CloseReceipt[[#This Row],[Rank]],Table_ReceiptPoint[Distance Rank to Delivery Location],0),) -> RYLEY APN* | F118: =INDEX(Table_ReceiptPoint[Distance From Delivery Station],MATCH(Table_CloseReceipt[[#This Row],[Rank]],Table_ReceiptPoint[Distance Rank to Delivery Location],0),) -> 163.7397 | G118: =INDEX(Table_ReceiptPoint[Legal Location Name],MATCH(Table_CloseReceipt[[#This Row],[Rank]],Table_ReceiptPoint[Distance Rank to Delivery Location],0),) -> 11-29-049-17-W4 | H118: =INDEX(Table_Attach1[FT-R Demand Rate Price Point "B" ($/103m3/mo)],MATCH(Table_CloseReceipt[[#This Row],[Station Number]],Table_Attach1[Receipt Point Number],0),)*INDEX(Conversions!$C$7:$C$8,MATCH('Toll Calculator'!$O$8,Conversions!$B$7:$B$8,0)) -> 15.49 | I118: =INDEX(Table_Attach3[FT-P Demand Rate Price Point "B"],MATCH(IF(CEILING(Table_CloseReceipt[[#This Row],[Distance (km)]],25)>500,999999,CEILING(Table_CloseReceipt[[#This Row],[Distance (km)]],25)),Table_Attach3[Maximum Distance Between Receipt Point and Delivery Point (km)],0),)*INDEX(Conversions!$C$7:$C$8,MATCH('Toll Calculator'!$O$8,Conversions!$B$7:$B$8,0)) -> 49.18 | J118: =INDEX(Table_Attach1[IT-R Rate ($/103m3/d)],MATCH(Table_CloseReceipt[[#This Row],[Station Number]], Table_Attach1[Receipt Point Number], 0))*INDEX(Conversions!$C$7:$C$8,MATCH('Toll Calculator'!$O$8, Conversions!$B$7:$B$8, 0))*_xlfn.SWITCH(UPPER(TRIM('Toll Calculator'!$O$8)),"IMPERIAL", (365/12),"METRIC", 1,1) -> 17.82
C119: =Table_ReceiptPointAlphabetical[[#This Row],[Alphabetical Order Rank]] -> 113 | D119: =INDEX(Table_ReceiptPoint[Receipt Point Number],MATCH(Table_CloseReceipt[[#This Row],[Rank]],Table_ReceiptPoint[Distance Rank to Delivery Location],0),) -> 1023 | E119: =INDEX(Table_ReceiptPoint[Receipt Point Name2],MATCH(Table_CloseReceipt[[#This Row],[Rank]],Table_ReceiptPoint[Distance Rank to Delivery Location],0),) -> SEDALIA SOUTH* | F119: =INDEX(Table_ReceiptPoint[Distance From Delivery Station],MATCH(Table_CloseReceipt[[#This Row],[Rank]],Table_ReceiptPoint[Distance Rank to Delivery Location],0),) -> 163.8671 | G119: =INDEX(Table_ReceiptPoint[Legal Location Name],MATCH(Table_CloseReceipt[[#This Row],[Rank]],Table_ReceiptPoint[Distance Rank to Delivery Location],0),) -> SW-18-030-04-W4 | H119: =INDEX(Table_Attach1[FT-R Demand Rate Price Point "B" ($/103m3/mo)],MATCH(Table_CloseReceipt[[#This Row],[Station Number]],Table_Attach1[Receipt Point Number],0),)*INDEX(Conversions!$C$7:$C$8,MATCH('Toll Calculator'!$O$8,Conversions!$B$7:$B$8,0)) -> 13.63 | I119: =INDEX(Table_Attach3[FT-P Demand Rate Price Point "B"],MATCH(IF(CEILING(Table_CloseReceipt[[#This Row],[Distance (km)]],25)>500,999999,CEILING(Table_CloseReceipt[[#This Row],[Distance (km)]],25)),Table_Attach3[Maximum Distance Between Receipt Point and Delivery Point (km)],0),)*INDEX(Conversions!$C$7:$C$8,MATCH('Toll Calculator'!$O$8,Conversions!$B$7:$B$8,0)) -> 49.18 | J119: =INDEX(Table_Attach1[IT-R Rate ($/103m3/d)],MATCH(Table_CloseReceipt[[#This Row],[Station Number]], Table_Attach1[Receipt Point Number], 0))*INDEX(Conversions!$C$7:$C$8,MATCH('Toll Calculator'!$O$8, Conversions!$B$7:$B$8, 0))*_xlfn.SWITCH(UPPER(TRIM('Toll Calculator'!$O$8)),"IMPERIAL", (365/12),"METRIC", 1,1) -> 15.67
C120: =Table_ReceiptPointAlphabetical[[#This Row],[Alphabetical Order Rank]] -> 114 | D120: =INDEX(Table_ReceiptPoint[Receipt Point Number],MATCH(Table_CloseReceipt[[#This Row],[Rank]],Table_ReceiptPoint[Distance Rank to Delivery Location],0),) -> 1221 | E120: =INDEX(Table_ReceiptPoint[Receipt Point Name2],MATCH(Table_CloseReceipt[[#This Row],[Rank]],Table_ReceiptPoint[Distance Rank to Delivery Location],0),) -> CHINOOK-CEREAL* | F120: =INDEX(Table_ReceiptPoint[Distance From Delivery Station],MATCH(Table_CloseReceipt[[#This Row],[Rank]],Table_ReceiptPoint[Distance Rank to Delivery Location],0),) -> 163.9618 | G120: =INDEX(Table_ReceiptPoint[Legal Location Name],MATCH(Table_CloseReceipt[[#This Row],[Rank]],Table_ReceiptPoint[Distance Rank to Delivery Location],0),) -> SW-26-030-06-W4 | H120: =INDEX(Table_Attach1[FT-R Demand Rate Price Point "B" ($/103m3/mo)],MATCH(Table_CloseReceipt[[#This Row],[Station Number]],Table_Attach1[Receipt Point Number],0),)*INDEX(Conversions!$C$7:$C$8,MATCH('Toll Calculator'!$O$8,Conversions!$B$7:$B$8,0)) -> 14.83 | I120: =INDEX(Table_Attach3[FT-P Demand Rate Price Point "B"],MATCH(IF(CEILING(Table_CloseReceipt[[#This Row],[Distance (km)]],25)>500,999999,CEILING(Table_CloseReceipt[[#This Row],[Distance (km)]],25)),Table_Attach3[Maximum Distance Between Receipt Point and Delivery Point (km)],0),)*INDEX(Conversions!$C$7:$C$8,MATCH('Toll Calculator'!$O$8,Conversions!$B$7:$B$8,0)) -> 49.18 | J120: =INDEX(Table_Attach1[IT-R Rate ($/103m3/d)],MATCH(Table_CloseReceipt[[#This Row],[Station Number]], Table_Attach1[Receipt Point Number], 0))*INDEX(Conversions!$C$7:$C$8,MATCH('Toll Calculator'!$O$8, Conversions!$B$7:$B$8, 0))*_xlfn.SWITCH(UPPER(TRIM('Toll Calculator'!$O$8)),"IMPERIAL", (365/12),"METRIC", 1,1) -> 17.05
C121: =Table_ReceiptPointAlphabetical[[#This Row],[Alphabetical Order Rank]] -> 115 | D121: =INDEX(Table_ReceiptPoint[Receipt Point Number],MATCH(Table_CloseReceipt[[#This Row],[Rank]],Table_ReceiptPoint[Distance Rank to Delivery Location],0),) -> 1718 | E121: =INDEX(Table_ReceiptPoint[Receipt Point Name2],MATCH(Table_CloseReceipt[[#This Row],[Rank]],Table_ReceiptPoint[Distance Rank to Delivery Location],0),) -> LACOREY* | F121: =INDEX(Table_ReceiptPoint[Distance From Delivery Station],MATCH(Table_CloseReceipt[[#This Row],[Rank]],Table_ReceiptPoint[Distance Rank to Delivery Location],0),) -> 164.5228 | G121: =INDEX(Table_ReceiptPoint[Legal Location Name],MATCH(Table_CloseReceipt[[#This Row],[Rank]],Table_ReceiptPoint[Distance Rank to Delivery Location],0),) -> 11-05-063-05-W4 | H121: =INDEX(Table_Attach1[FT-R Demand Rate Price Point "B" ($/103m3/mo)],MATCH(Table_CloseReceipt[[#This Row],[Station Number]],Table_Attach1[Receipt Point Number],0),)*INDEX(Conversions!$C$7:$C$8,MATCH('Toll Calculator'!$O$8,Conversions!$B$7:$B$8,0)) -> 13.63 | I121: =INDEX(Table_Attach3[FT-P Demand Rate Price Point "B"],MATCH(IF(CEILING(Table_CloseReceipt[[#This Row],[Distance (km)]],25)>500,999999,CEILING(Table_CloseReceipt[[#This Row],[Distance (km)]],25)),Table_Attach3[Maximum Distance Between Receipt Point and Delivery Point (km)],0),)*INDEX(Conversions!$C$7:$C$8,MATCH('Toll Calculator'!$O$8,Conversions!$B$7:$B$8,0)) -> 49.18 | J121: =INDEX(Table_Attach1[IT-R Rate ($/103m3/d)],MATCH(Table_CloseReceipt[[#This Row],[Station Number]], Table_Attach1[Receipt Point Number], 0))*INDEX(Conversions!$C$7:$C$8,MATCH('Toll Calculator'!$O$8, Conversions!$B$7:$B$8, 0))*_xlfn.SWITCH(UPPER(TRIM('Toll Calculator'!$O$8)),"IMPERIAL", (365/12),"METRIC", 1,1) -> 15.67
C122: =Table_ReceiptPointAlphabetical[[#This Row],[Alphabetical Order Rank]] -> 116 | D122: =INDEX(Table_ReceiptPoint[Receipt Point Number],MATCH(Table_CloseReceipt[[#This Row],[Rank]],Table_ReceiptPoint[Distance Rank to Delivery Location],0),) -> 30273 | E122: =INDEX(Table_ReceiptPoint[Receipt Point Name2],MATCH(Table_CloseReceipt[[#This Row],[Rank]],Table_ReceiptPoint[Distance Rank to Delivery Location],0),) -> HAIGHT APN* | F122: =INDEX(Table_ReceiptPoint[Distance From Delivery Station],MATCH(Table_CloseReceipt[[#This Row],[Rank]],Table_ReceiptPoint[Distance Rank to Delivery Location],0),) -> 164.6925 | G122: =INDEX(Table_ReceiptPoint[Legal Location Name],MATCH(Table_CloseReceipt[[#This Row],[Rank]],Table_ReceiptPoint[Distance Rank to Delivery Location],0),) -> 16-24-052-17-W4 | H122: =INDEX(Table_Attach1[FT-R Demand Rate Price Point "B" ($/103m3/mo)],MATCH(Table_CloseReceipt[[#This Row],[Station Number]],Table_Attach1[Receipt Point Number],0),)*INDEX(Conversions!$C$7:$C$8,MATCH('Toll Calculator'!$O$8,Conversions!$B$7:$B$8,0)) -> 13.63 | I122: =INDEX(Table_Attach3[FT-P Demand Rate Price Point "B"],MATCH(IF(CEILING(Table_CloseReceipt[[#This Row],[Distance (km)]],25)>500,999999,CEILING(Table_CloseReceipt[[#This Row],[Distance (km)]],25)),Table_Attach3[Maximum Distance Between Receipt Point and Delivery Point (km)],0),)*INDEX(Conversions!$C$7:$C$8,MATCH('Toll Calculator'!$O$8,Conversions!$B$7:$B$8,0)) -> 49.18 | J122: =INDEX(Table_Attach1[IT-R Rate ($/103m3/d)],MATCH(Table_CloseReceipt[[#This Row],[Station Number]], Table_Attach1[Receipt Point Number], 0))*INDEX(Conversions!$C$7:$C$8,MATCH('Toll Calculator'!$O$8, Conversions!$B$7:$B$8, 0))*_xlfn.SWITCH(UPPER(TRIM('Toll Calculator'!$O$8)),"IMPERIAL", (365/12),"METRIC", 1,1) -> 15.67
C123: =Table_ReceiptPointAlphabetical[[#This Row],[Alphabetical Order Rank]] -> 117 | D123: =INDEX(Table_ReceiptPoint[Receipt Point Number],MATCH(Table_CloseReceipt[[#This Row],[Rank]],Table_ReceiptPoint[Distance Rank to Delivery Location],0),) -> 1391 | E123: =INDEX(Table_ReceiptPoint[Receipt Point Name2],MATCH(Table_CloseReceipt[[#This Row],[Rank]],Table_ReceiptPoint[Distance Rank to Delivery Location],0),) -> HALKIRK | F123: =INDEX(Table_ReceiptPoint[Distance From Delivery Station],MATCH(Table_CloseReceipt[[#This Row],[Rank]],Table_ReceiptPoint[Distance Rank to Delivery Location],0),) -> 165.192 | G123: =INDEX(Table_ReceiptPoint[Legal Location Name],MATCH(Table_CloseReceipt[[#This Row],[Rank]],Table_ReceiptPoint[Distance Rank to Delivery Location],0),) -> 02-34-038-16-W4 | H123: =INDEX(Table_Attach1[FT-R Demand Rate Price Point "B" ($/103m3/mo)],MATCH(Table_CloseReceipt[[#This Row],[Station Number]],Table_Attach1[Receipt Point Number],0),)*INDEX(Conversions!$C$7:$C$8,MATCH('Toll Calculator'!$O$8,Conversions!$B$7:$B$8,0)) -> 29.37 | I123: =INDEX(Table_Attach3[FT-P Demand Rate Price Point "B"],MATCH(IF(CEILING(Table_CloseReceipt[[#This Row],[Distance (km)]],25)>500,999999,CEILING(Table_CloseReceipt[[#This Row],[Distance (km)]],25)),Table_Attach3[Maximum Distance Between Receipt Point and Delivery Point (km)],0),)*INDEX(Conversions!$C$7:$C$8,MATCH('Toll Calculator'!$O$8,Conversions!$B$7:$B$8,0)) -> 49.18 | J123: =INDEX(Table_Attach1[IT-R Rate ($/103m3/d)],MATCH(Table_CloseReceipt[[#This Row],[Station Number]], Table_Attach1[Receipt Point Number], 0))*INDEX(Conversions!$C$7:$C$8,MATCH('Toll Calculator'!$O$8, Conversions!$B$7:$B$8, 0))*_xlfn.SWITCH(UPPER(TRIM('Toll Calculator'!$O$8)),"IMPERIAL", (365/12),"METRIC", 1,1) -> 33.8
C124: =Table_ReceiptPointAlphabetical[[#This Row],[Alphabetical Order Rank]] -> 118 | D124: =INDEX(Table_ReceiptPoint[Receipt Point Number],MATCH(Table_CloseReceipt[[#This Row],[Rank]],Table_ReceiptPoint[Distance Rank to Delivery Location],0),) -> 1416 | E124: =INDEX(Table_ReceiptPoint[Receipt Point Name2],MATCH(Table_CloseReceipt[[#This Row],[Rank]],Table_ReceiptPoint[Distance Rank to Delivery Location],0),) -> ST. LINA WEST | F124: =INDEX(Table_ReceiptPoint[Distance From Delivery Station],MATCH(Table_CloseReceipt[[#This Row],[Rank]],Table_ReceiptPoint[Distance Rank to Delivery Location],0),) -> 166.5789 | G124: =INDEX(Table_ReceiptPoint[Legal Location Name],MATCH(Table_CloseReceipt[[#This Row],[Rank]],Table_ReceiptPoint[Distance Rank to Delivery Location],0),) -> NE-20-061-09-W4 | H124: =INDEX(Table_Attach1[FT-R Demand Rate Price Point "B" ($/103m3/mo)],MATCH(Table_CloseReceipt[[#This Row],[Station Number]],Table_Attach1[Receipt Point Number],0),)*INDEX(Conversions!$C$7:$C$8,MATCH('Toll Calculator'!$O$8,Conversions!$B$7:$B$8,0)) -> 13.63 | I124: =INDEX(Table_Attach3[FT-P Demand Rate Price Point "B"],MATCH(IF(CEILING(Table_CloseReceipt[[#This Row],[Distance (km)]],25)>500,999999,CEILING(Table_CloseReceipt[[#This Row],[Distance (km)]],25)),Table_Attach3[Maximum Distance Between Receipt Point and Delivery Point (km)],0),)*INDEX(Conversions!$C$7:$C$8,MATCH('Toll Calculator'!$O$8,Conversions!$B$7:$B$8,0)) -> 49.18 | J124: =INDEX(Table_Attach1[IT-R Rate ($/103m3/d)],MATCH(Table_CloseReceipt[[#This Row],[Station Number]], Table_Attach1[Receipt Point Number], 0))*INDEX(Conversions!$C$7:$C$8,MATCH('Toll Calculator'!$O$8, Conversions!$B$7:$B$8, 0))*_xlfn.SWITCH(UPPER(TRIM('Toll Calculator'!$O$8)),"IMPERIAL", (365/12),"METRIC", 1,1) -> 15.67
C125: =Table_ReceiptPointAlphabetical[[#This Row],[Alphabetical Order Rank]] -> 119 | D125: =INDEX(Table_ReceiptPoint[Receipt Point Number],MATCH(Table_CloseReceipt[[#This Row],[Rank]],Table_ReceiptPoint[Distance Rank to Delivery Location],0),) -> 1779 | E125: =INDEX(Table_ReceiptPoint[Receipt Point Name2],MATCH(Table_CloseReceipt[[#This Row],[Rank]],Table_ReceiptPoint[Distance Rank to Delivery Location],0),) -> BLOOR LAKE | F125: =INDEX(Table_ReceiptPoint[Distance From Delivery Station],MATCH(Table_CloseReceipt[[#This Row],[Rank]],Table_ReceiptPoint[Distance Rank to Delivery Location],0),) -> 166.9639 | G125: =INDEX(Table_ReceiptPoint[Legal Location Name],MATCH(Table_CloseReceipt[[#This Row],[Rank]],Table_ReceiptPoint[Distance Rank to Delivery Location],0),) -> 06-14-034-13-W4 | H125: =INDEX(Table_Attach1[FT-R Demand Rate Price Point "B" ($/103m3/mo)],MATCH(Table_CloseReceipt[[#This Row],[Station Number]],Table_Attach1[Receipt Point Number],0),)*INDEX(Conversions!$C$7:$C$8,MATCH('Toll Calculator'!$O$8,Conversions!$B$7:$B$8,0)) -> 44.86 | I125: =INDEX(Table_Attach3[FT-P Demand Rate Price Point "B"],MATCH(IF(CEILING(Table_CloseReceipt[[#This Row],[Distance (km)]],25)>500,999999,CEILING(Table_CloseReceipt[[#This Row],[Distance (km)]],25)),Table_Attach3[Maximum Distance Between Receipt Point and Delivery Point (km)],0),)*INDEX(Conversions!$C$7:$C$8,MATCH('Toll Calculator'!$O$8,Conversions!$B$7:$B$8,0)) -> 49.18 | J125: =INDEX(Table_Attach1[IT-R Rate ($/103m3/d)],MATCH(Table_CloseReceipt[[#This Row],[Station Number]], Table_Attach1[Receipt Point Number], 0))*INDEX(Conversions!$C$7:$C$8,MATCH('Toll Calculator'!$O$8, Conversions!$B$7:$B$8, 0))*_xlfn.SWITCH(UPPER(TRIM('Toll Calculator'!$O$8)),"IMPERIAL", (365/12),"METRIC", 1,1) -> 51.58
C126: =Table_ReceiptPointAlphabetical[[#This Row],[Alphabetical Order Rank]] -> 120 | D126: =INDEX(Table_ReceiptPoint[Receipt Point Number],MATCH(Table_CloseReceipt[[#This Row],[Rank]],Table_ReceiptPoint[Distance Rank to Delivery Location],0),) -> 1504 | E126: =INDEX(Table_ReceiptPoint[Receipt Point Name2],MATCH(Table_CloseReceipt[[#This Row],[Rank]],Table_ReceiptPoint[Distance Rank to Delivery Location],0),) -> GOODRIDGE* | F126: =INDEX(Table_ReceiptPoint[Distance From Delivery Station],MATCH(Table_CloseReceipt[[#This Row],[Rank]],Table_ReceiptPoint[Distance Rank to Delivery Location],0),) -> 167.3058 | G126: =INDEX(Table_ReceiptPoint[Legal Location Name],MATCH(Table_CloseReceipt[[#This Row],[Rank]],Table_ReceiptPoint[Distance Rank to Delivery Location],0),) -> 07-34-061-09-W4 | H126: =INDEX(Table_Attach1[FT-R Demand Rate Price Point "B" ($/103m3/mo)],MATCH(Table_CloseReceipt[[#This Row],[Station Number]],Table_Attach1[Receipt Point Number],0),)*INDEX(Conversions!$C$7:$C$8,MATCH('Toll Calculator'!$O$8,Conversions!$B$7:$B$8,0)) -> 13.63 | I126: =INDEX(Table_Attach3[FT-P Demand Rate Price Point "B"],MATCH(IF(CEILING(Table_CloseReceipt[[#This Row],[Distance (km)]],25)>500,999999,CEILING(Table_CloseReceipt[[#This Row],[Distance (km)]],25)),Table_Attach3[Maximum Distance Between Receipt Point and Delivery Point (km)],0),)*INDEX(Conversions!$C$7:$C$8,MATCH('Toll Calculator'!$O$8,Conversions!$B$7:$B$8,0)) -> 49.18 | J126: =INDEX(Table_Attach1[IT-R Rate ($/103m3/d)],MATCH(Table_CloseReceipt[[#This Row],[Station Number]], Table_Attach1[Receipt Point Number], 0))*INDEX(Conversions!$C$7:$C$8,MATCH('Toll Calculator'!$O$8, Conversions!$B$7:$B$8, 0))*_xlfn.SWITCH(UPPER(TRIM('Toll Calculator'!$O$8)),"IMPERIAL", (365/12),"METRIC", 1,1) -> 15.67
C127: =Table_ReceiptPointAlphabetical[[#This Row],[Alphabetical Order Rank]] -> 121 | D127: =INDEX(Table_ReceiptPoint[Receipt Point Number],MATCH(Table_CloseReceipt[[#This Row],[Rank]],Table_ReceiptPoint[Distance Rank to Delivery Location],0),) -> 1414 | E127: =INDEX(Table_ReceiptPoint[Receipt Point Name2],MATCH(Table_CloseReceipt[[#This Row],[Rank]],Table_ReceiptPoint[Distance Rank to Delivery Location],0),) -> ST. LINA | F127: =INDEX(Table_ReceiptPoint[Distance From Delivery Station],MATCH(Table_CloseReceipt[[#This Row],[Rank]],Table_ReceiptPoint[Distance Rank to Delivery Location],0),) -> 167.5059 | G127: =INDEX(Table_ReceiptPoint[Legal Location Name],MATCH(Table_CloseReceipt[[#This Row],[Rank]],Table_ReceiptPoint[Distance Rank to Delivery Location],0),) -> 13-09-062-08-W4 | H127: =INDEX(Table_Attach1[FT-R Demand Rate Price Point "B" ($/103m3/mo)],MATCH(Table_CloseReceipt[[#This Row],[Station Number]],Table_Attach1[Receipt Point Number],0),)*INDEX(Conversions!$C$7:$C$8,MATCH('Toll Calculator'!$O$8,Conversions!$B$7:$B$8,0)) -> 13.63 | I127: =INDEX(Table_Attach3[FT-P Demand Rate Price Point "B"],MATCH(IF(CEILING(Table_CloseReceipt[[#This Row],[Distance (km)]],25)>500,999999,CEILING(Table_CloseReceipt[[#This Row],[Distance (km)]],25)),Table_Attach3[Maximum Distance Between Receipt Point and Delivery Point (km)],0),)*INDEX(Conversions!$C$7:$C$8,MATCH('Toll Calculator'!$O$8,Conversions!$B$7:$B$8,0)) -> 49.18 | J127: =INDEX(Table_Attach1[IT-R Rate ($/103m3/d)],MATCH(Table_CloseReceipt[[#This Row],[Station Number]], Table_Attach1[Receipt Point Number], 0))*INDEX(Conversions!$C$7:$C$8,MATCH('Toll Calculator'!$O$8, Conversions!$B$7:$B$8, 0))*_xlfn.SWITCH(UPPER(TRIM('Toll Calculator'!$O$8)),"IMPERIAL", (365/12),"METRIC", 1,1) -> 15.67
C128: =Table_ReceiptPointAlphabetical[[#This Row],[Alphabetical Order Rank]] -> 122 | D128: =INDEX(Table_ReceiptPoint[Receipt Point Number],MATCH(Table_CloseReceipt[[#This Row],[Rank]],Table_ReceiptPoint[Distance Rank to Delivery Location],0),) -> 1345 | E128: =INDEX(Table_ReceiptPoint[Receipt Point Name2],MATCH(Table_CloseReceipt[[#This Row],[Rank]],Table_ReceiptPoint[Distance Rank to Delivery Location],0),) -> WHITFORD* | F128: =INDEX(Table_ReceiptPoint[Distance From Delivery Station],MATCH(Table_CloseReceipt[[#This Row],[Rank]],Table_ReceiptPoint[Distance Rank to Delivery Location],0),) -> 170.6993 | G128: =INDEX(Table_ReceiptPoint[Legal Location Name],MATCH(Table_CloseReceipt[[#This Row],[Rank]],Table_ReceiptPoint[Distance Rank to Delivery Location],0),) -> 08-20-056-15-W4 | H128: =INDEX(Table_Attach1[FT-R Demand Rate Price Point "B" ($/103m3/mo)],MATCH(Table_CloseReceipt[[#This Row],[Station Number]],Table_Attach1[Receipt Point Number],0),)*INDEX(Conversions!$C$7:$C$8,MATCH('Toll Calculator'!$O$8,Conversions!$B$7:$B$8,0)) -> 26.49 | I128: =INDEX(Table_Attach3[FT-P Demand Rate Price Point "B"],MATCH(IF(CEILING(Table_CloseReceipt[[#This Row],[Distance (km)]],25)>500,999999,CEILING(Table_CloseReceipt[[#This Row],[Distance (km)]],25)),Table_Attach3[Maximum Distance Between Receipt Point and Delivery Point (km)],0),)*INDEX(Conversions!$C$7:$C$8,MATCH('Toll Calculator'!$O$8,Conversions!$B$7:$B$8,0)) -> 49.18 | J128: =INDEX(Table_Attach1[IT-R Rate ($/103m3/d)],MATCH(Table_CloseReceipt[[#This Row],[Station Number]], Table_Attach1[Receipt Point Number], 0))*INDEX(Conversions!$C$7:$C$8,MATCH('Toll Calculator'!$O$8, Conversions!$B$7:$B$8, 0))*_xlfn.SWITCH(UPPER(TRIM('Toll Calculator'!$O$8)),"IMPERIAL", (365/12),"METRIC", 1,1) -> 30.45
C129: =Table_ReceiptPointAlphabetical[[#This Row],[Alphabetical Order Rank]] -> 123 | D129: =INDEX(Table_ReceiptPoint[Receipt Point Number],MATCH(Table_CloseReceipt[[#This Row],[Rank]],Table_ReceiptPoint[Distance Rank to Delivery Location],0),) -> 1058 | E129: =INDEX(Table_ReceiptPoint[Receipt Point Name2],MATCH(Table_CloseReceipt[[#This Row],[Rank]],Table_ReceiptPoint[Distance Rank to Delivery Location],0),) -> OYEN NORTH* | F129: =INDEX(Table_ReceiptPoint[Distance From Delivery Station],MATCH(Table_CloseReceipt[[#This Row],[Rank]],Table_ReceiptPoint[Distance Rank to Delivery Location],0),) -> 171.9456 | G129: =INDEX(Table_ReceiptPoint[Legal Location Name],MATCH(Table_CloseReceipt[[#This Row],[Rank]],Table_ReceiptPoint[Distance Rank to Delivery Location],0),) -> 10-17-029-04-W4 | H129: =INDEX(Table_Attach1[FT-R Demand Rate Price Point "B" ($/103m3/mo)],MATCH(Table_CloseReceipt[[#This Row],[Station Number]],Table_Attach1[Receipt Point Number],0),)*INDEX(Conversions!$C$7:$C$8,MATCH('Toll Calculator'!$O$8,Conversions!$B$7:$B$8,0)) -> 13.63 | I129: =INDEX(Table_Attach3[FT-P Demand Rate Price Point "B"],MATCH(IF(CEILING(Table_CloseReceipt[[#This Row],[Distance (km)]],25)>500,999999,CEILING(Table_CloseReceipt[[#This Row],[Distance (km)]],25)),Table_Attach3[Maximum Distance Between Receipt Point and Delivery Point (km)],0),)*INDEX(Conversions!$C$7:$C$8,MATCH('Toll Calculator'!$O$8,Conversions!$B$7:$B$8,0)) -> 49.18 | J129: =INDEX(Table_Attach1[IT-R Rate ($/103m3/d)],MATCH(Table_CloseReceipt[[#This Row],[Station Number]], Table_Attach1[Receipt Point Number], 0))*INDEX(Conversions!$C$7:$C$8,MATCH('Toll Calculator'!$O$8, Conversions!$B$7:$B$8, 0))*_xlfn.SWITCH(UPPER(TRIM('Toll Calculator'!$O$8)),"IMPERIAL", (365/12),"METRIC", 1,1) -> 15.67
C130: =Table_ReceiptPointAlphabetical[[#This Row],[Alphabetical Order Rank]] -> 124 | D130: =INDEX(Table_ReceiptPoint[Receipt Point Number],MATCH(Table_CloseReceipt[[#This Row],[Rank]],Table_ReceiptPoint[Distance Rank to Delivery Location],0),) -> 1273 | E130: =INDEX(Table_ReceiptPoint[Receipt Point Name2],MATCH(Table_CloseReceipt[[#This Row],[Rank]],Table_ReceiptPoint[Distance Rank to Delivery Location],0),) -> MAPLE GLEN | F130: =INDEX(Table_ReceiptPoint[Distance From Delivery Station],MATCH(Table_CloseReceipt[[#This Row],[Rank]],Table_ReceiptPoint[Distance Rank to Delivery Location],0),) -> 171.9865 | G130: =INDEX(Table_ReceiptPoint[Legal Location Name],MATCH(Table_CloseReceipt[[#This Row],[Rank]],Table_ReceiptPoint[Distance Rank to Delivery Location],0),) -> SE-01-037-16-W4 | H130: =INDEX(Table_Attach1[FT-R Demand Rate Price Point "B" ($/103m3/mo)],MATCH(Table_CloseReceipt[[#This Row],[Station Number]],Table_Attach1[Receipt Point Number],0),)*INDEX(Conversions!$C$7:$C$8,MATCH('Toll Calculator'!$O$8,Conversions!$B$7:$B$8,0)) -> 30.05 | I130: =INDEX(Table_Attach3[FT-P Demand Rate Price Point "B"],MATCH(IF(CEILING(Table_CloseReceipt[[#This Row],[Distance (km)]],25)>500,999999,CEILING(Table_CloseReceipt[[#This Row],[Distance (km)]],25)),Table_Attach3[Maximum Distance Between Receipt Point and Delivery Point (km)],0),)*INDEX(Conversions!$C$7:$C$8,MATCH('Toll Calculator'!$O$8,Conversions!$B$7:$B$8,0)) -> 49.18 | J130: =INDEX(Table_Attach1[IT-R Rate ($/103m3/d)],MATCH(Table_CloseReceipt[[#This Row],[Station Number]], Table_Attach1[Receipt Point Number], 0))*INDEX(Conversions!$C$7:$C$8,MATCH('Toll Calculator'!$O$8, Conversions!$B$7:$B$8, 0))*_xlfn.SWITCH(UPPER(TRIM('Toll Calculator'!$O$8)),"IMPERIAL", (365/12),"METRIC", 1,1) -> 34.56
C131: =Table_ReceiptPointAlphabetical[[#This Row],[Alphabetical Order Rank]] -> 125 | D131: =INDEX(Table_ReceiptPoint[Receipt Point Number],MATCH(Table_CloseReceipt[[#This Row],[Rank]],Table_ReceiptPoint[Distance Rank to Delivery Location],0),) -> 1783 | E131: =INDEX(Table_ReceiptPoint[Receipt Point Name2],MATCH(Table_CloseReceipt[[#This Row],[Rank]],Table_ReceiptPoint[Distance Rank to Delivery Location],0),) -> GOODRIDGE NORTH* | F131: =INDEX(Table_ReceiptPoint[Distance From Delivery Station],MATCH(Table_CloseReceipt[[#This Row],[Rank]],Table_ReceiptPoint[Distance Rank to Delivery Location],0),) -> 172.1407 | G131: =INDEX(Table_ReceiptPoint[Legal Location Name],MATCH(Table_CloseReceipt[[#This Row],[Rank]],Table_ReceiptPoint[Distance Rank to Delivery Location],0),) -> 04-16-062-09-W4 | H131: =INDEX(Table_Attach1[FT-R Demand Rate Price Point "B" ($/103m3/mo)],MATCH(Table_CloseReceipt[[#This Row],[Station Number]],Table_Attach1[Receipt Point Number],0),)*INDEX(Conversions!$C$7:$C$8,MATCH('Toll Calculator'!$O$8,Conversions!$B$7:$B$8,0)) -> 15.13 | I131: =INDEX(Table_Attach3[FT-P Demand Rate Price Point "B"],MATCH(IF(CEILING(Table_CloseReceipt[[#This Row],[Distance (km)]],25)>500,999999,CEILING(Table_CloseReceipt[[#This Row],[Distance (km)]],25)),Table_Attach3[Maximum Distance Between Receipt Point and Delivery Point (km)],0),)*INDEX(Conversions!$C$7:$C$8,MATCH('Toll Calculator'!$O$8,Conversions!$B$7:$B$8,0)) -> 49.18 | J131: =INDEX(Table_Attach1[IT-R Rate ($/103m3/d)],MATCH(Table_CloseReceipt[[#This Row],[Station Number]], Table_Attach1[Receipt Point Number], 0))*INDEX(Conversions!$C$7:$C$8,MATCH('Toll Calculator'!$O$8, Conversions!$B$7:$B$8, 0))*_xlfn.SWITCH(UPPER(TRIM('Toll Calculator'!$O$8)),"IMPERIAL", (365/12),"METRIC", 1,1) -> 17.39
C132: =Table_ReceiptPointAlphabetical[[#This Row],[Alphabetical Order Rank]] -> 126 | D132: =INDEX(Table_ReceiptPoint[Receipt Point Number],MATCH(Table_CloseReceipt[[#This Row],[Rank]],Table_ReceiptPoint[Distance Rank to Delivery Location],0),) -> 1193 | E132: =INDEX(Table_ReceiptPoint[Receipt Point Name2],MATCH(Table_CloseReceipt[[#This Row],[Rank]],Table_ReceiptPoint[Distance Rank to Delivery Location],0),) -> SULLIVAN LAKE | F132: =INDEX(Table_ReceiptPoint[Distance From Delivery Station],MATCH(Table_CloseReceipt[[#This Row],[Rank]],Table_ReceiptPoint[Distance Rank to Delivery Location],0),) -> 172.1667 | G132: =INDEX(Table_ReceiptPoint[Legal Location Name],MATCH(Table_CloseReceipt[[#This Row],[Rank]],Table_ReceiptPoint[Distance Rank to Delivery Location],0),) -> SW-18-034-13-W4 | H132: =INDEX(Table_Attach1[FT-R Demand Rate Price Point "B" ($/103m3/mo)],MATCH(Table_CloseReceipt[[#This Row],[Station Number]],Table_Attach1[Receipt Point Number],0),)*INDEX(Conversions!$C$7:$C$8,MATCH('Toll Calculator'!$O$8,Conversions!$B$7:$B$8,0)) -> 41.35 | I132: =INDEX(Table_Attach3[FT-P Demand Rate Price Point "B"],MATCH(IF(CEILING(Table_CloseReceipt[[#This Row],[Distance (km)]],25)>500,999999,CEILING(Table_CloseReceipt[[#This Row],[Distance (km)]],25)),Table_Attach3[Maximum Distance Between Receipt Point and Delivery Point (km)],0),)*INDEX(Conversions!$C$7:$C$8,MATCH('Toll Calculator'!$O$8,Conversions!$B$7:$B$8,0)) -> 49.18 | J132: =INDEX(Table_Attach1[IT-R Rate ($/103m3/d)],MATCH(Table_CloseReceipt[[#This Row],[Station Number]], Table_Attach1[Receipt Point Number], 0))*INDEX(Conversions!$C$7:$C$8,MATCH('Toll Calculator'!$O$8, Conversions!$B$7:$B$8, 0))*_xlfn.SWITCH(UPPER(TRIM('Toll Calculator'!$O$8)),"IMPERIAL", (365/12),"METRIC", 1,1) -> 47.53
C133: =Table_ReceiptPointAlphabetical[[#This Row],[Alphabetical Order Rank]] -> 127 | D133: =INDEX(Table_ReceiptPoint[Receipt Point Number],MATCH(Table_CloseReceipt[[#This Row],[Rank]],Table_ReceiptPoint[Distance Rank to Delivery Location],0),) -> 1635 | E133: =INDEX(Table_ReceiptPoint[Receipt Point Name2],MATCH(Table_CloseReceipt[[#This Row],[Rank]],Table_ReceiptPoint[Distance Rank to Delivery Location],0),) -> CONTRACOSTA EAST* | F133: =INDEX(Table_ReceiptPoint[Distance From Delivery Station],MATCH(Table_CloseReceipt[[#This Row],[Rank]],Table_ReceiptPoint[Distance Rank to Delivery Location],0),) -> 172.5207 | G133: =INDEX(Table_ReceiptPoint[Legal Location Name],MATCH(Table_CloseReceipt[[#This Row],[Rank]],Table_ReceiptPoint[Distance Rank to Delivery Location],0),) -> 16-03-032-11-W4 | H133: =INDEX(Table_Attach1[FT-R Demand Rate Price Point "B" ($/103m3/mo)],MATCH(Table_CloseReceipt[[#This Row],[Station Number]],Table_Attach1[Receipt Point Number],0),)*INDEX(Conversions!$C$7:$C$8,MATCH('Toll Calculator'!$O$8,Conversions!$B$7:$B$8,0)) -> 47.74 | I133: =INDEX(Table_Attach3[FT-P Demand Rate Price Point "B"],MATCH(IF(CEILING(Table_CloseReceipt[[#This Row],[Distance (km)]],25)>500,999999,CEILING(Table_CloseReceipt[[#This Row],[Distance (km)]],25)),Table_Attach3[Maximum Distance Between Receipt Point and Delivery Point (km)],0),)*INDEX(Conversions!$C$7:$C$8,MATCH('Toll Calculator'!$O$8,Conversions!$B$7:$B$8,0)) -> 49.18 | J133: =INDEX(Table_Attach1[IT-R Rate ($/103m3/d)],MATCH(Table_CloseReceipt[[#This Row],[Station Number]], Table_Attach1[Receipt Point Number], 0))*INDEX(Conversions!$C$7:$C$8,MATCH('Toll Calculator'!$O$8, Conversions!$B$7:$B$8, 0))*_xlfn.SWITCH(UPPER(TRIM('Toll Calculator'!$O$8)),"IMPERIAL", (365/12),"METRIC", 1,1) -> 54.9
C134: =Table_ReceiptPointAlphabetical[[#This Row],[Alphabetical Order Rank]] -> 128 | D134: =INDEX(Table_ReceiptPoint[Receipt Point Number],MATCH(Table_CloseReceipt[[#This Row],[Rank]],Table_ReceiptPoint[Distance Rank to Delivery Location],0),) -> 1532 | E134: =INDEX(Table_ReceiptPoint[Receipt Point Name2],MATCH(Table_CloseReceipt[[#This Row],[Rank]],Table_ReceiptPoint[Distance Rank to Delivery Location],0),) -> OHATON* | F134: =INDEX(Table_ReceiptPoint[Distance From Delivery Station],MATCH(Table_CloseReceipt[[#This Row],[Rank]],Table_ReceiptPoint[Distance Rank to Delivery Location],0),) -> 172.5696 | G134: =INDEX(Table_ReceiptPoint[Legal Location Name],MATCH(Table_CloseReceipt[[#This Row],[Rank]],Table_ReceiptPoint[Distance Rank to Delivery Location],0),) -> SE-25-046-19-W4 | H134: =INDEX(Table_Attach1[FT-R Demand Rate Price Point "B" ($/103m3/mo)],MATCH(Table_CloseReceipt[[#This Row],[Station Number]],Table_Attach1[Receipt Point Number],0),)*INDEX(Conversions!$C$7:$C$8,MATCH('Toll Calculator'!$O$8,Conversions!$B$7:$B$8,0)) -> 47.74 | I134: =INDEX(Table_Attach3[FT-P Demand Rate Price Point "B"],MATCH(IF(CEILING(Table_CloseReceipt[[#This Row],[Distance (km)]],25)>500,999999,CEILING(Table_CloseReceipt[[#This Row],[Distance (km)]],25)),Table_Attach3[Maximum Distance Between Receipt Point and Delivery Point (km)],0),)*INDEX(Conversions!$C$7:$C$8,MATCH('Toll Calculator'!$O$8,Conversions!$B$7:$B$8,0)) -> 49.18 | J134: =INDEX(Table_Attach1[IT-R Rate ($/103m3/d)],MATCH(Table_CloseReceipt[[#This Row],[Station Number]], Table_Attach1[Receipt Point Number], 0))*INDEX(Conversions!$C$7:$C$8,MATCH('Toll Calculator'!$O$8, Conversions!$B$7:$B$8, 0))*_xlfn.SWITCH(UPPER(TRIM('Toll Calculator'!$O$8)),"IMPERIAL", (365/12),"METRIC", 1,1) -> 54.9
C135: =Table_ReceiptPointAlphabetical[[#This Row],[Alphabetical Order Rank]] -> 129 | D135: =INDEX(Table_ReceiptPoint[Receipt Point Number],MATCH(Table_CloseReceipt[[#This Row],[Rank]],Table_ReceiptPoint[Distance Rank to Delivery Location],0),) -> 1835 | E135: =INDEX(Table_ReceiptPoint[Receipt Point Name2],MATCH(Table_CloseReceipt[[#This Row],[Rank]],Table_ReceiptPoint[Distance Rank to Delivery Location],0),) -> BIGKNIFE CREEK* | F135: =INDEX(Table_ReceiptPoint[Distance From Delivery Station],MATCH(Table_CloseReceipt[[#This Row],[Rank]],Table_ReceiptPoint[Distance Rank to Delivery Location],0),) -> 172.9488 | G135: =INDEX(Table_ReceiptPoint[Legal Location Name],MATCH(Table_CloseReceipt[[#This Row],[Rank]],Table_ReceiptPoint[Distance Rank to Delivery Location],0),) -> 12-24-038-17-W4 | H135: =INDEX(Table_Attach1[FT-R Demand Rate Price Point "B" ($/103m3/mo)],MATCH(Table_CloseReceipt[[#This Row],[Station Number]],Table_Attach1[Receipt Point Number],0),)*INDEX(Conversions!$C$7:$C$8,MATCH('Toll Calculator'!$O$8,Conversions!$B$7:$B$8,0)) -> 30.7 | I135: =INDEX(Table_Attach3[FT-P Demand Rate Price Point "B"],MATCH(IF(CEILING(Table_CloseReceipt[[#This Row],[Distance (km)]],25)>500,999999,CEILING(Table_CloseReceipt[[#This Row],[Distance (km)]],25)),Table_Attach3[Maximum Distance Between Receipt Point and Delivery Point (km)],0),)*INDEX(Conversions!$C$7:$C$8,MATCH('Toll Calculator'!$O$8,Conversions!$B$7:$B$8,0)) -> 49.18 | J135: =INDEX(Table_Attach1[IT-R Rate ($/103m3/d)],MATCH(Table_CloseReceipt[[#This Row],[Station Number]], Table_Attach1[Receipt Point Number], 0))*INDEX(Conversions!$C$7:$C$8,MATCH('Toll Calculator'!$O$8, Conversions!$B$7:$B$8, 0))*_xlfn.SWITCH(UPPER(TRIM('Toll Calculator'!$O$8)),"IMPERIAL", (365/12),"METRIC", 1,1) -> 35.3
C136: =Table_ReceiptPointAlphabetical[[#This Row],[Alphabetical Order Rank]] -> 130 | D136: =INDEX(Table_ReceiptPoint[Receipt Point Number],MATCH(Table_CloseReceipt[[#This Row],[Rank]],Table_ReceiptPoint[Distance Rank to Delivery Location],0),) -> 1342 | E136: =INDEX(Table_ReceiptPoint[Receipt Point Name2],MATCH(Table_CloseReceipt[[#This Row],[Rank]],Table_ReceiptPoint[Distance Rank to Delivery Location],0),) -> YOUNGSTOWN* | F136: =INDEX(Table_ReceiptPoint[Distance From Delivery Station],MATCH(Table_CloseReceipt[[#This Row],[Rank]],Table_ReceiptPoint[Distance Rank to Delivery Location],0),) -> 175.69 | G136: =INDEX(Table_ReceiptPoint[Legal Location Name],MATCH(Table_CloseReceipt[[#This Row],[Rank]],Table_ReceiptPoint[Distance Rank to Delivery Location],0),) -> NW-29-030-09-W4 | H136: =INDEX(Table_Attach1[FT-R Demand Rate Price Point "B" ($/103m3/mo)],MATCH(Table_CloseReceipt[[#This Row],[Station Number]],Table_Attach1[Receipt Point Number],0),)*INDEX(Conversions!$C$7:$C$8,MATCH('Toll Calculator'!$O$8,Conversions!$B$7:$B$8,0)) -> 47.74 | I136: =INDEX(Table_Attach3[FT-P Demand Rate Price Point "B"],MATCH(IF(CEILING(Table_CloseReceipt[[#This Row],[Distance (km)]],25)>500,999999,CEILING(Table_CloseReceipt[[#This Row],[Distance (km)]],25)),Table_Attach3[Maximum Distance Between Receipt Point and Delivery Point (km)],0),)*INDEX(Conversions!$C$7:$C$8,MATCH('Toll Calculator'!$O$8,Conversions!$B$7:$B$8,0)) -> 51.38 | J136: =INDEX(Table_Attach1[IT-R Rate ($/103m3/d)],MATCH(Table_CloseReceipt[[#This Row],[Station Number]], Table_Attach1[Receipt Point Number], 0))*INDEX(Conversions!$C$7:$C$8,MATCH('Toll Calculator'!$O$8, Conversions!$B$7:$B$8, 0))*_xlfn.SWITCH(UPPER(TRIM('Toll Calculator'!$O$8)),"IMPERIAL", (365/12),"METRIC", 1,1) -> 54.9
C137: =Table_ReceiptPointAlphabetical[[#This Row],[Alphabetical Order Rank]] -> 131 | D137: =INDEX(Table_ReceiptPoint[Receipt Point Number],MATCH(Table_CloseReceipt[[#This Row],[Rank]],Table_ReceiptPoint[Distance Rank to Delivery Location],0),) -> 1464 | E137: =INDEX(Table_ReceiptPoint[Receipt Point Name2],MATCH(Table_CloseReceipt[[#This Row],[Rank]],Table_ReceiptPoint[Distance Rank to Delivery Location],0),) -> VILNA | F137: =INDEX(Table_ReceiptPoint[Distance From Delivery Station],MATCH(Table_CloseReceipt[[#This Row],[Rank]],Table_ReceiptPoint[Distance Rank to Delivery Location],0),) -> 176.424 | G137: =INDEX(Table_ReceiptPoint[Legal Location Name],MATCH(Table_CloseReceipt[[#This Row],[Rank]],Table_ReceiptPoint[Distance Rank to Delivery Location],0),) -> SE-32-059-13-W4 | H137: =INDEX(Table_Attach1[FT-R Demand Rate Price Point "B" ($/103m3/mo)],MATCH(Table_CloseReceipt[[#This Row],[Station Number]],Table_Attach1[Receipt Point Number],0),)*INDEX(Conversions!$C$7:$C$8,MATCH('Toll Calculator'!$O$8,Conversions!$B$7:$B$8,0)) -> 40.92 | I137: =INDEX(Table_Attach3[FT-P Demand Rate Price Point "B"],MATCH(IF(CEILING(Table_CloseReceipt[[#This Row],[Distance (km)]],25)>500,999999,CEILING(Table_CloseReceipt[[#This Row],[Distance (km)]],25)),Table_Attach3[Maximum Distance Between Receipt Point and Delivery Point (km)],0),)*INDEX(Conversions!$C$7:$C$8,MATCH('Toll Calculator'!$O$8,Conversions!$B$7:$B$8,0)) -> 51.38 | J137: =INDEX(Table_Attach1[IT-R Rate ($/103m3/d)],MATCH(Table_CloseReceipt[[#This Row],[Station Number]], Table_Attach1[Receipt Point Number], 0))*INDEX(Conversions!$C$7:$C$8,MATCH('Toll Calculator'!$O$8, Conversions!$B$7:$B$8, 0))*_xlfn.SWITCH(UPPER(TRIM('Toll Calculator'!$O$8)),"IMPERIAL", (365/12),"METRIC", 1,1) -> 47.05
C138: =Table_ReceiptPointAlphabetical[[#This Row],[Alphabetical Order Rank]] -> 132 | D138: =INDEX(Table_ReceiptPoint[Receipt Point Number],MATCH(Table_CloseReceipt[[#This Row],[Rank]],Table_ReceiptPoint[Distance Rank to Delivery Location],0),) -> 1719 | E138: =INDEX(Table_ReceiptPoint[Receipt Point Name2],MATCH(Table_CloseReceipt[[#This Row],[Rank]],Table_ReceiptPoint[Distance Rank to Delivery Location],0),) -> MANATOKEN LAKE | F138: =INDEX(Table_ReceiptPoint[Distance From Delivery Station],MATCH(Table_CloseReceipt[[#This Row],[Rank]],Table_ReceiptPoint[Distance Rank to Delivery Location],0),) -> 176.7982 | G138: =INDEX(Table_ReceiptPoint[Legal Location Name],MATCH(Table_CloseReceipt[[#This Row],[Rank]],Table_ReceiptPoint[Distance Rank to Delivery Location],0),) -> 10-29-063-07-W4 | H138: =INDEX(Table_Attach1[FT-R Demand Rate Price Point "B" ($/103m3/mo)],MATCH(Table_CloseReceipt[[#This Row],[Station Number]],Table_Attach1[Receipt Point Number],0),)*INDEX(Conversions!$C$7:$C$8,MATCH('Toll Calculator'!$O$8,Conversions!$B$7:$B$8,0)) -> 13.63 | I138: =INDEX(Table_Attach3[FT-P Demand Rate Price Point "B"],MATCH(IF(CEILING(Table_CloseReceipt[[#This Row],[Distance (km)]],25)>500,999999,CEILING(Table_CloseReceipt[[#This Row],[Distance (km)]],25)),Table_Attach3[Maximum Distance Between Receipt Point and Delivery Point (km)],0),)*INDEX(Conversions!$C$7:$C$8,MATCH('Toll Calculator'!$O$8,Conversions!$B$7:$B$8,0)) -> 51.38 | J138: =INDEX(Table_Attach1[IT-R Rate ($/103m3/d)],MATCH(Table_CloseReceipt[[#This Row],[Station Number]], Table_Attach1[Receipt Point Number], 0))*INDEX(Conversions!$C$7:$C$8,MATCH('Toll Calculator'!$O$8, Conversions!$B$7:$B$8, 0))*_xlfn.SWITCH(UPPER(TRIM('Toll Calculator'!$O$8)),"IMPERIAL", (365/12),"METRIC", 1,1) -> 15.67
C139: =Table_ReceiptPointAlphabetical[[#This Row],[Alphabetical Order Rank]] -> 133 | D139: =INDEX(Table_ReceiptPoint[Receipt Point Number],MATCH(Table_CloseReceipt[[#This Row],[Rank]],Table_ReceiptPoint[Distance Rank to Delivery Location],0),) -> 1415 | E139: =INDEX(Table_ReceiptPoint[Receipt Point Name2],MATCH(Table_CloseReceipt[[#This Row],[Rank]],Table_ReceiptPoint[Distance Rank to Delivery Location],0),) -> ST. LINA NORTH* | F139: =INDEX(Table_ReceiptPoint[Distance From Delivery Station],MATCH(Table_CloseReceipt[[#This Row],[Rank]],Table_ReceiptPoint[Distance Rank to Delivery Location],0),) -> 177.0635 | G139: =INDEX(Table_ReceiptPoint[Legal Location Name],MATCH(Table_CloseReceipt[[#This Row],[Rank]],Table_ReceiptPoint[Distance Rank to Delivery Location],0),) -> NW-07-063-08-W4 | H139: =INDEX(Table_Attach1[FT-R Demand Rate Price Point "B" ($/103m3/mo)],MATCH(Table_CloseReceipt[[#This Row],[Station Number]],Table_Attach1[Receipt Point Number],0),)*INDEX(Conversions!$C$7:$C$8,MATCH('Toll Calculator'!$O$8,Conversions!$B$7:$B$8,0)) -> 17.33 | I139: =INDEX(Table_Attach3[FT-P Demand Rate Price Point "B"],MATCH(IF(CEILING(Table_CloseReceipt[[#This Row],[Distance (km)]],25)>500,999999,CEILING(Table_CloseReceipt[[#This Row],[Distance (km)]],25)),Table_Attach3[Maximum Distance Between Receipt Point and Delivery Point (km)],0),)*INDEX(Conversions!$C$7:$C$8,MATCH('Toll Calculator'!$O$8,Conversions!$B$7:$B$8,0)) -> 51.38 | J139: =INDEX(Table_Attach1[IT-R Rate ($/103m3/d)],MATCH(Table_CloseReceipt[[#This Row],[Station Number]], Table_Attach1[Receipt Point Number], 0))*INDEX(Conversions!$C$7:$C$8,MATCH('Toll Calculator'!$O$8, Conversions!$B$7:$B$8, 0))*_xlfn.SWITCH(UPPER(TRIM('Toll Calculator'!$O$8)),"IMPERIAL", (365/12),"METRIC", 1,1) -> 19.94
C140: =Table_ReceiptPointAlphabetical[[#This Row],[Alphabetical Order Rank]] -> 134 | D140: =INDEX(Table_ReceiptPoint[Receipt Point Number],MATCH(Table_CloseReceipt[[#This Row],[Rank]],Table_ReceiptPoint[Distance Rank to Delivery Location],0),) -> 1716 | E140: =INDEX(Table_ReceiptPoint[Receipt Point Name2],MATCH(Table_CloseReceipt[[#This Row],[Rank]],Table_ReceiptPoint[Distance Rank to Delivery Location],0),) -> OSBORNE LAKE* | F140: =INDEX(Table_ReceiptPoint[Distance From Delivery Station],MATCH(Table_CloseReceipt[[#This Row],[Rank]],Table_ReceiptPoint[Distance Rank to Delivery Location],0),) -> 177.2653 | G140: =INDEX(Table_ReceiptPoint[Legal Location Name],MATCH(Table_CloseReceipt[[#This Row],[Rank]],Table_ReceiptPoint[Distance Rank to Delivery Location],0),) -> 09-01-064-07-W4 | H140: =INDEX(Table_Attach1[FT-R Demand Rate Price Point "B" ($/103m3/mo)],MATCH(Table_CloseReceipt[[#This Row],[Station Number]],Table_Attach1[Receipt Point Number],0),)*INDEX(Conversions!$C$7:$C$8,MATCH('Toll Calculator'!$O$8,Conversions!$B$7:$B$8,0)) -> 13.63 | I140: =INDEX(Table_Attach3[FT-P Demand Rate Price Point "B"],MATCH(IF(CEILING(Table_CloseReceipt[[#This Row],[Distance (km)]],25)>500,999999,CEILING(Table_CloseReceipt[[#This Row],[Distance (km)]],25)),Table_Attach3[Maximum Distance Between Receipt Point and Delivery Point (km)],0),)*INDEX(Conversions!$C$7:$C$8,MATCH('Toll Calculator'!$O$8,Conversions!$B$7:$B$8,0)) -> 51.38 | J140: =INDEX(Table_Attach1[IT-R Rate ($/103m3/d)],MATCH(Table_CloseReceipt[[#This Row],[Station Number]], Table_Attach1[Receipt Point Number], 0))*INDEX(Conversions!$C$7:$C$8,MATCH('Toll Calculator'!$O$8, Conversions!$B$7:$B$8, 0))*_xlfn.SWITCH(UPPER(TRIM('Toll Calculator'!$O$8)),"IMPERIAL", (365/12),"METRIC", 1,1) -> 15.67
C141: =Table_ReceiptPointAlphabetical[[#This Row],[Alphabetical Order Rank]] -> 135 | D141: =INDEX(Table_ReceiptPoint[Receipt Point Number],MATCH(Table_CloseReceipt[[#This Row],[Rank]],Table_ReceiptPoint[Distance Rank to Delivery Location],0),) -> 1272 | E141: =INDEX(Table_ReceiptPoint[Receipt Point Name2],MATCH(Table_CloseReceipt[[#This Row],[Rank]],Table_ReceiptPoint[Distance Rank to Delivery Location],0),) -> LEO* | F141: =INDEX(Table_ReceiptPoint[Distance From Delivery Station],MATCH(Table_CloseReceipt[[#This Row],[Rank]],Table_ReceiptPoint[Distance Rank to Delivery Location],0),) -> 177.9305 | G141: =INDEX(Table_ReceiptPoint[Legal Location Name],MATCH(Table_CloseReceipt[[#This Row],[Rank]],Table_ReceiptPoint[Distance Rank to Delivery Location],0),) -> 09-17-035-15-W4 | H141: =INDEX(Table_Attach1[FT-R Demand Rate Price Point "B" ($/103m3/mo)],MATCH(Table_CloseReceipt[[#This Row],[Station Number]],Table_Attach1[Receipt Point Number],0),)*INDEX(Conversions!$C$7:$C$8,MATCH('Toll Calculator'!$O$8,Conversions!$B$7:$B$8,0)) -> 30.77 | I141: =INDEX(Table_Attach3[FT-P Demand Rate Price Point "B"],MATCH(IF(CEILING(Table_CloseReceipt[[#This Row],[Distance (km)]],25)>500,999999,CEILING(Table_CloseReceipt[[#This Row],[Distance (km)]],25)),Table_Attach3[Maximum Distance Between Receipt Point and Delivery Point (km)],0),)*INDEX(Conversions!$C$7:$C$8,MATCH('Toll Calculator'!$O$8,Conversions!$B$7:$B$8,0)) -> 51.38 | J141: =INDEX(Table_Attach1[IT-R Rate ($/103m3/d)],MATCH(Table_CloseReceipt[[#This Row],[Station Number]], Table_Attach1[Receipt Point Number], 0))*INDEX(Conversions!$C$7:$C$8,MATCH('Toll Calculator'!$O$8, Conversions!$B$7:$B$8, 0))*_xlfn.SWITCH(UPPER(TRIM('Toll Calculator'!$O$8)),"IMPERIAL", (365/12),"METRIC", 1,1) -> 35.38
